Workbook

Sheet START

Sheet Instructions
D2: 2020
X4: Yes
X5: No
W7: Type of Entities Range:
X8: Parent Municipality
X9: Consolidated Information
W17: MTREF Range: | X17: 2008
X18: 2009
X19: 2010
X20: 2011
X21: 2012
X22: 2013
X23: 2014
X24: 2015
X25: 2016
X26: 2017
X27: 2018
X28: 2019
X29: 2020
X30: 2021
X31: 2022
W33: MTREF Linked: | X33: 11
W34: MTREF: | X34: =INDEX(X17:X31,X33,1) -> 2018
W36: Fin Year: | X36: =MTREF&"/"&RIGHT(MTREF,2)+1 -> 2018/19

Sheet Template names (hidden)
A1: Common sheet headings
A2: Head1 | B2: =HLOOKUP(MTREF,Headings,2) -> 2016/17 | C2: Prior year -1
A3: Head1A | B3: =HLOOKUP(MTREF,Headings,3) -> 2015/16 | C3: Prior year -2
A4: Head1B | B4: =HLOOKUP(MTREF,Headings,4) -> 2014/15 | C4: Prior year -3
A5: Head2 | B5: =HLOOKUP(MTREF,Headings,5) -> Current Year 2017/18 | C5: Year in which budget is being prepared
A6: Head2A | B6: =HLOOKUP(MTREF,Headings,6) -> 2017/18 | C6: Year in which budget is being prepared
A7: Head3 | B7: =HLOOKUP(MTREF,Headings,7) -> 2018/19 Medium Term Revenue & Expenditure Framework | C7: MTREF name
A8: Head4 | B8: LTFS | C8: Long term financial strategy
A9: Head5 | B9: Audited Outcome
A10: Head5A | B10: Outcome
A11: Head5B | B11: Pre-audit outcome
A12: Head6 | B12: Original Budget
A13: Head7 | B13: Adjusted Budget
A14: Head8 | B14: Full Year Forecast
A15: Head9 | B15: =HLOOKUP(MTREF,Headings,8) -> Budget Year 2018/19 | C15: 1st year of MTREF | D15: Year1
A16: Head10 | B16: =HLOOKUP(MTREF,Headings,9) -> Budget Year +1 2019/20 | C16: 2nd year of MTREF | D16: Year2
A17: Head11 | B17: =HLOOKUP(MTREF,Headings,10) -> Budget Year +2 2020/21 | C17: 3rd year of MTREF | D17: Year3
A18: Head12 | B18: =HLOOKUP(MTREF,Headings,11) -> Forecast 2021/22 | C18: 1st yr of long term forecast | D18: Year4
A19: Head13 | B19: =HLOOKUP(MTREF,Headings,12) -> Forecast 2022/23 | C19: Next yr of long term forecast | D19: Year5
A20: Head14 | B20: =HLOOKUP(MTREF,Headings,13) -> Forecast 2023/24 | C20: Next yr of long term forecast | D20: Year6
A21: Head15 | B21: =HLOOKUP(MTREF,Headings,14) -> Forecast 2024/25 | C21: Next yr of long term forecast | D21: Year7
A22: Head16 | B22: =HLOOKUP(MTREF,Headings,15) -> Forecast 2025/26 | C22: Next yr of long term forecast | D22: Year8
A23: Head17 | B23: =HLOOKUP(MTREF,Headings,16) -> Forecast 2026/27 | C23: Next yr of long term forecast | D23: Year9
A24: Head18 | B24: =HLOOKUP(MTREF,Headings,17) -> Forecast 2027/28 | C24: Next yr of long term forecast | D24: Year10
A25: Head19 | B25: =HLOOKUP(MTREF,Headings,18) -> Forecast 2028/29 | C25: Next yr of long term forecast | D25: Year11
A26: Head20 | B26: =HLOOKUP(MTREF,Headings,19) -> Forecast 2029/30 | C26: Next yr of long term forecast | D26: Year12
A27: Head21 | B27: =HLOOKUP(MTREF,Headings,20) -> Forecast 2030/31 | C27: Next yr of long term forecast | D27: Year13
A28: Head22 | B28: =HLOOKUP(MTREF,Headings,21) -> Forecast 2031/32 | C28: Next yr of long term forecast | D28: Year14
A29: Head23 | B29: =HLOOKUP(MTREF,Headings,22) -> Forecast 2032/33 | C29: Next yr of long term forecast | D29: Year15
A30: Head24 | B30: Description
A31: Head25
A32: Head26 | B32: Vote Description
A33: Head27 | B33: Ref
A34: Head27a | B34: References
A35: Head28 | B35: Surplus/(Deficit) for the year | D35: Result
A36: Head29 | B36: =HLOOKUP(MTREF,Headings,23) -> Annual target 2018/19
A37: Head30 | B37: =HLOOKUP(MTREF,Headings,24) -> Revised target 2018/19
A38: Head31 | B38: Quarter ended 30 September
A39: Head32 | B39: Quarter ended 31 December
A40: Head33 | B40: Quarter ended 31 March
A41: Head34 | B41: Quarter ended 30 June
A42: Head35 | B42: Variance explanation
A43: Head36 | B43: YTD Actual 31 Dec
A44: Head37 | B44: YTD Budget 31 Dec
A45: Head38 | B45: Monthly actual
A46: Head39 | B46: YTD actual
A47: Head40 | B47: YTD budget
A48: Head41 | B48: YTD variance
A49: Head42 | B49: Surplus/ (Deficit) for the yr/period
A50: Head43 | B50: =Head3&" Summary" -> 2018/19 Medium Term Revenue & Expenditure Framework Summary
A51: Head44 | B51: 2001 Census
A52: Head45 | B52: 2011 Census
A53: Head46 | B53: - Adjustments Budget - January 2007
A54: Head47 | B54: Previous target year to complete
A55: Head48 | B55: Present value
A56: Head49
A57: Head50 | B57: Other Adjusts.
A58: Head51 | B58: Accum. Funds
A59: Head52 | B59: Multi-year capital
A60: Head53 | B60: Unfore. Unavoid.
A61: Head54 | B61: Prior Adjusted
A62: Head55 | B62: Nat. or Prov. Govt
A63: Head56 | B63: Total Adjusts.
A64: SFPerf1 | B64: Budgeted Financial Performance
A65: SFPerf2 | B65: Forecast Financial Performance
A66: SFPos1 | B66: Budgeted Financial Position
A67: SFPos2 | B67: Forecast Financial Position
A68: Cash1 | B68: Budget Cash Flow
A69: Cash2 | B69: Forecast Cash Flow
A70: RandM | B70: Expenditure includes repairs & maintenance of R'000
A71: Depart1 | B71: Department 1 - | D71: DEP1
A72: Depart2 | B72: Department 2 - | D72: DEP2
A73: Depart3 | B73: Department 3 - | D73: DEP3
A74: Depart4 | B74: Department 4 - | D74: DEP4
A75: Depart5 | B75: Department 5 - | D75: DEP5
A76: Depart6 | B76: Department 6 - | D76: DEP6
A77: Depart7 | B77: Department 7 - | D77: DEP7
A78: Depart8 | B78: Department 8 - | D78: DEP8
A79: Depart9 | B79: Department 9 - | D79: DEP9
A80: Depart10 | B80: Department 10 - | D80: DEP10
A81: Depart11 | B81: Department 11 - | D81: DEP11
A82: Depart12 | B82: Department 12 - | D82: DEP12
A83: Depart13 | B83: Department 13 - | D83: DEP13
A84: Depart14 | B84: Department 14 - | D84: DEP14
A87: Base year of forecast column selection names
A88: Choose | B88: ACT
B89: APP
B90: ADJ
A92: Standard nomenclature
A93: Muni | B93: ='Lookup and lists'!B28 -> FS193 Nketoana
A94: Municipal Entities | B94: 2 | C94: Type of report: | D94: 1
A95: =IF((MuniEntities=1)*(MuniType=2),"YES","NO") -> NO | B95: Does this municipality have entities (consolidated budget and entity budgets required)? YES/NO
A96: Entity 1 | B96: (Pty) Ltd Example 1 - Municipal entity - | D96: Ent1
A97: Entity 2 | B97: (Pty) Ltd Example 2 - Municipal entity - | D97: Ent2
A98: Entity 3 | B98: Municipal Entity Example 3 | D98: Ent3
A99: Budget approval tables | C99: Chart x-ref | D99: Sch/Tab/Ch | E99: Alternative for municipalities without entities | F99: Alternative for municipalities without entities
B100: =IF(Consolques="YES",E100,F100) -> Table A1 Budget Summary | D100: Table A1 | E100: =D100&"Consolidated Budget Summary" -> Table A1 Consolidated Budget Summary | F100: =D100&"Budget Summary" -> Table A1 Budget Summary
B101: Table A2 Budgeted Financial Performance (revenue and expenditure by functional classification) | C101: Charts 5, 6 | D101: Table A2 | E101: =D101&"Consolidated Budgeted Financial Performance (revenue and expenditure by functional classification)" -> Table A2 Consolidated Budgeted Financial Performance (revenue and expenditure by functional classification) | F101: =D101&"Budgeted Financial Performance (revenue and expenditure by functional classification)" -> Table A2 Budgeted Financial Performance (revenue and expenditure by functional classification)
B102: Table A3 Budgeted Financial Performance (revenue and expenditure by municipal vote) | D102: Table A3 | E102: =D102&"Consolidated Budgeted Financial Performance (revenue and expenditure by municipal vote)" -> Table A3 Consolidated Budgeted Financial Performance (revenue and expenditure by municipal vote) | F102: =D102&"Budgeted Financial Performance (revenue and expenditure by municipal vote)" -> Table A3 Budgeted Financial Performance (revenue and expenditure by municipal vote)
B103: Table A4 Budgeted Financial Performance (revenue and expenditure) | C103: Charts 1, 2, 3, 4 | D103: Table A4 | E103: =D103&"Consolidated Budgeted Financial Performance (revenue and expenditure)" -> Table A4 Consolidated Budgeted Financial Performance (revenue and expenditure) | F103: =D103&"Budgeted Financial Performance (revenue and expenditure)" -> Table A4 Budgeted Financial Performance (revenue and expenditure)
B104: Table A5 Budgeted Capital Expenditure by vote, functional classification and funding | C104: Charts 7, 8, 9, 10, 20 | D104: Table A5 | E104: =D104&"Consolidated Budgeted Capital Expenditure by vote, functional classification and funding" -> Table A5 Consolidated Budgeted Capital Expenditure by vote, functional classification and funding | F104: =D104&"Budgeted Capital Expenditure by vote, functional classification and funding" -> Table A5 Budgeted Capital Expenditure by vote, functional classification and funding
B105: Table A6 Budgeted Financial Position | D105: Table A6 | E105: =D105&"Consolidated Budgeted Financial Position" -> Table A6 Consolidated Budgeted Financial Position | F105: =D105&"Budgeted Financial Position" -> Table A6 Budgeted Financial Position
B106: Table A7 Budgeted Cash Flows | D106: Table A7 | E106: =D106&"Consolidated Budgeted Cash Flows" -> Table A7 Consolidated Budgeted Cash Flows | F106: =D106&"Budgeted Cash Flows" -> Table A7 Budgeted Cash Flows
B107: Table A8 Cash backed reserves/accumulated surplus reconciliation | D107: Table A8 | E107: =D107&"Consolidated Cash backed reserves/accumulated surplus reconciliation" -> Table A8 Consolidated Cash backed reserves/accumulated surplus reconciliation | F107: =D107&"Cash backed reserves/accumulated surplus reconciliation" -> Table A8 Cash backed reserves/accumulated surplus reconciliation
B108: Table A9 Asset Management | D108: Table A9 | E108: =D108&"Consolidated Asset Management" -> Table A9 Consolidated Asset Management | F108: =D108&"Asset Management" -> Table A9 Asset Management
B109: Table A10 Basic service delivery measurement | D109: Table A10 | E109: =D109&"Consolidated basic service delivery measurement" -> Table A10 Consolidated basic service delivery measurement | F109: =D109&"Basic service delivery measurement" -> Table A10 Basic service delivery measurement
A110: Supportinging Tables to the Budget Approval Tables | C110: =$C$99 -> Chart x-ref | D110: =$D$99 -> Sch/Tab/Ch
A111: Supporting Table SA1 | B111: =A111&" Supportinging detail to 'Budgeted Financial Performance'" -> Supporting Table SA1 Supportinging detail to 'Budgeted Financial Performance'
A112: Supporting Table SA2 | B112: =IF(Consolques="YES",E112,F112) -> Supporting Table SA2 Matrix Financial Performance Budget (revenue source/expenditure type and dept.) | E112: =A112&"Consolidated Matrix Financial Performance Budget (revenue source/expenditure type & dept.)" -> Supporting Table SA2 Consolidated Matrix Financial Performance Budget (revenue source/expenditure type & dept.) | F112: =A112&"Matrix Financial Performance Budget (revenue source/expenditure type and dept.)" -> Supporting Table SA2 Matrix Financial Performance Budget (revenue source/expenditure type and dept.)
A113: Supporting Table SA3 | B113: =A113&"Supportinging detail to 'Budgeted Financial Position'" -> Supporting Table SA3 Supportinging detail to 'Budgeted Financial Position'
A114: Supporting Table SA4 | B114: =A114&"Reconciliation of IDP strategic objectives and budget (revenue)" -> Supporting Table SA4 Reconciliation of IDP strategic objectives and budget (revenue) | C114: Chart 11
A115: Supporting Table SA5 | B115: =A115&"Reconciliation of IDP strategic objectives and budget (operating expenditure)" -> Supporting Table SA5 Reconciliation of IDP strategic objectives and budget (operating expenditure) | C115: Chart 12
A116: Supporting Table SA6 | B116: =A116&"Reconciliation of IDP strategic objectives and budget (capital expenditure)" -> Supporting Table SA6 Reconciliation of IDP strategic objectives and budget (capital expenditure) | C116: Chart 13
A117: Supporting Table SA7 | B117: =A117&" Measureable performance objectives" -> Supporting Table SA7 Measureable performance objectives
A118: Supporting Table SA8 | B118: =A118&" Performance indicators and benchmarks" -> Supporting Table SA8 Performance indicators and benchmarks | C118: Chts 15-19
A119: Supporting Table SA9 | B119: =A119&" Social, economic and demographic statistics and assumptions" -> Supporting Table SA9 Social, economic and demographic statistics and assumptions
A120: Supporting Table SA10 | B120: =A120&" Funding measurement" -> Supporting Table SA10 Funding measurement | C120: Chart 14
A121: Supporting Table SA11 | B121: =A121&" Property rates summary" -> Supporting Table SA11 Property rates summary
A122: Supporting Table SA12a | B122: =A122&" Property rates by category (current year)" -> Supporting Table SA12a Property rates by category (current year)
A123: Supporting Table SA12b | B123: =A123&" Property rates by category (budget year)" -> Supporting Table SA12b Property rates by category (budget year)
A124: Supporting Table SA13a | B124: =A124&" Service Tariffs by category" -> Supporting Table SA13a Service Tariffs by category
A125: Supporting Table SA13b | B125: =A125&" Service Tariffs by category - explanatory" -> Supporting Table SA13b Service Tariffs by category - explanatory
A126: Supporting Table SA14 | B126: =A126&" Household bills" -> Supporting Table SA14 Household bills
A127: Supporting Table SA15 | B127: =A127&" Investment particulars by type" -> Supporting Table SA15 Investment particulars by type
A128: Supporting Table SA16 | B128: =A128&" Investment particulars by maturity" -> Supporting Table SA16 Investment particulars by maturity
A129: Supporting Table SA17 | B129: =A129&" Borrowing" -> Supporting Table SA17 Borrowing
A130: Supporting Table SA18 | B130: =A130&" Transfers and grant receipts" -> Supporting Table SA18 Transfers and grant receipts
A131: Supporting Table SA19 | B131: =A131&" Expenditure on transfers and grant programme" -> Supporting Table SA19 Expenditure on transfers and grant programme
A132: Supporting Table SA20 | B132: =A132&" Reconciliation of transfers, grant receipts and unspent funds" -> Supporting Table SA20 Reconciliation of transfers, grant receipts and unspent funds
A133: Supporting Table SA21 | B133: =A133&" Transfers and grants made by the municipality" -> Supporting Table SA21 Transfers and grants made by the municipality
A134: Supporting Table SA22 | B134: =A134&" Summary councillor and staff benefits" -> Supporting Table SA22 Summary councillor and staff benefits
A135: Supporting Table SA23 | B135: =A135&" Salaries, allowances & benefits (political office bearers/councillors/senior managers)" -> Supporting Table SA23 Salaries, allowances & benefits (political office bearers/councillors/senior managers)
A136: Supporting Table SA24 | B136: =A136&" Summary of personnel numbers" -> Supporting Table SA24 Summary of personnel numbers
A137: Supporting Table SA25 | B137: =IF(Consolques="YES",E137,F137) -> Supporting Table SA25 Budgeted monthly revenue and expenditure | E137: =A137&" Consolidated budgeted monthly revenue and expenditure" -> Supporting Table SA25 Consolidated budgeted monthly revenue and expenditure | F137: =A137&" Budgeted monthly revenue and expenditure" -> Supporting Table SA25 Budgeted monthly revenue and expenditure
A138: Supporting Table SA26 | B138: Supporting Table SA26 Budgeted monthly revenue and expenditure (municipal vote) | E138: =A138&" Consolidated budgeted monthly revenue and expenditure (municipal vote)" -> Supporting Table SA26 Consolidated budgeted monthly revenue and expenditure (municipal vote) | F138: =A138&" Budgeted monthly revenue and expenditure (municipal vote)" -> Supporting Table SA26 Budgeted monthly revenue and expenditure (municipal vote)
A139: Supporting Table SA27 | B139: Supporting Table SA27 Budgeted monthly revenue and expenditure (functional classification) | E139: =A139&" Consolidated budgeted monthly revenue and expenditure (functional classification)" -> Supporting Table SA27 Consolidated budgeted monthly revenue and expenditure (functional classification) | F139: =A139&" Budgeted monthly revenue and expenditure (functional classification)" -> Supporting Table SA27 Budgeted monthly revenue and expenditure (functional classification)
A140: Supporting Table SA28 | B140: Supporting Table SA28 Budgeted monthly capital expenditure (municipal vote) | E140: =A140&" Consolidated budgeted monthly capital expenditure (municipal vote)" -> Supporting Table SA28 Consolidated budgeted monthly capital expenditure (municipal vote) | F140: =A140&" Budgeted monthly capital expenditure (municipal vote)" -> Supporting Table SA28 Budgeted monthly capital expenditure (municipal vote)
A141: Supporting Table SA29 | B141: Supporting Table SA29 Budgeted monthly capital expenditure (functional classification) | E141: =A141&" Consolidated budgeted monthly capital expenditure (functional classification)" -> Supporting Table SA29 Consolidated budgeted monthly capital expenditure (functional classification) | F141: =A141&" Budgeted monthly capital expenditure (functional classification)" -> Supporting Table SA29 Budgeted monthly capital expenditure (functional classification)
A142: Supporting Table SA30 | B142: Supporting Table SA30 Budgeted monthly cash flow | E142: =A142&" Consolidated budgeted monthly cash flow" -> Supporting Table SA30 Consolidated budgeted monthly cash flow | F142: =A142&" Budgeted monthly cash flow" -> Supporting Table SA30 Budgeted monthly cash flow
A143: Supporting Table SA31 | B143: NOT REQUIRED - municipality does not have entities | E143: =A143&" Aggregated entity budget" -> Supporting Table SA31 Aggregated entity budget | F143: NOT REQUIRED - municipality does not have entities
A144: Supporting Table SA32 | B144: =A144&" List of external mechanisms" -> Supporting Table SA32 List of external mechanisms
A145: Supporting Table SA33 | B145: =A145&" Contracts having future budgetary implications" -> Supporting Table SA33 Contracts having future budgetary implications
A146: Supporting Table SA34a | B146: =IF(Consolques="YES",E146,F146) -> Supporting Table SA34a Capital expenditure on new assets by asset class | E146: =A146&" Consolidated capital expenditure on new assets by asset class" -> Supporting Table SA34a Consolidated capital expenditure on new assets by asset class | F146: =A146&" Capital expenditure on new assets by asset class" -> Supporting Table SA34a Capital expenditure on new assets by asset class
A147: Supporting Table SA34b | B147: Supporting Table SA34b Capital expenditure on the renewal of existing assets by asset class | E147: =A147&" Consolidated capital expenditure on the renewal of existing assets by asset class" -> Supporting Table SA34b Consolidated capital expenditure on the renewal of existing assets by asset class | F147: =A147&" Capital expenditure on the renewal of existing assets by asset class" -> Supporting Table SA34b Capital expenditure on the renewal of existing assets by asset class
A148: Supporting Table SA34c | B148: Supporting Table SA34c Repairs and maintenance expenditure by asset class | E148: =A148&" Consolidated repairs and maintenance by asset class" -> Supporting Table SA34c Consolidated repairs and maintenance by asset class | F148: =A148&" Repairs and maintenance expenditure by asset class" -> Supporting Table SA34c Repairs and maintenance expenditure by asset class
A149: Supporting Table SA34d | B149: =IF(Consolques="YES",E149,F149) -> Supporting Table SA34d Depreciation by asset class | E149: =A149&" Consolidated Depreciation by asset class" -> Supporting Table SA34d Consolidated Depreciation by asset class | F149: =A149&" Depreciation by asset class" -> Supporting Table SA34d Depreciation by asset class
A150: Supporting Table SA34e | B150: =IF(Consolques="YES",E150,F150) -> Supporting Table SA34e Capital expenditure on the upgrading of existing assets by asset class | E150: =A150&" Consolidated capital expenditure on the upgrading of existing assets by asset class" -> Supporting Table SA34e Consolidated capital expenditure on the upgrading of existing assets by asset class | F150: =A150&" Capital expenditure on the upgrading of existing assets by asset class" -> Supporting Table SA34e Capital expenditure on the upgrading of existing assets by asset class
A151: Supporting Table SA35 | B151: Supporting Table SA35 Future financial implications of the capital budget | E151: =A151&" Consolidated future financial implications of the capital budget" -> Supporting Table SA35 Consolidated future financial implications of the capital budget | F151: =A151& " Future financial implications of the capital budget" -> Supporting Table SA35 Future financial implications of the capital budget
A152: Supporting Table SA36 | B152: Supporting Table SA36 Detailed capital budget | E152: =A152&" Consolidated detailed capital budget" -> Supporting Table SA36 Consolidated detailed capital budget | F152: =A152& " Detailed capital budget" -> Supporting Table SA36 Detailed capital budget
A153: Supporting Table SA37 | B153: Supporting Table SA37 Projects delayed from previous financial year/s | E153: =A153&" Consolidated projects delayed from previous financial year/s" -> Supporting Table SA37 Consolidated projects delayed from previous financial year/s | F153: =A153& " Projects delayed from previous financial year/s" -> Supporting Table SA37 Projects delayed from previous financial year/s
A154: Supporting Table SA38 | B154: =IF(Consolques="YES",E154,F154) -> Supporting Table SA38 Detailed operational projects | E154: =A154&" Consolidated detailed operational projects" -> Supporting Table SA38 Consolidated detailed operational projects | F154: =A154& " Detailed operational projects" -> Supporting Table SA38 Detailed operational projects
A156: Budget Charts | B156: Charts | C156: Cross reference
A157: Chart A1 | B157: =A157&"Revenue by Municipal Vote" -> Chart A1 Revenue by Municipal Vote
A158: Chart A2 | B158: =A158&"Expenditure by Municipal Vote" -> Chart A2 Expenditure by Municipal Vote
A159: Chart A3 | B159: =A159&"Revenue by Standard Classification" -> Chart A3 Revenue by Standard Classification | C159: A2
A160: Chart A4 | B160: =A160&"Expenditure by Standard Classification" -> Chart A4 Expenditure by Standard Classification | C160: A2
A161: Chart A5 | B161: =A161&"Revenue by Major Source (refer 'Minor' source for 'Other Revenue' allocation" -> Chart A5 Revenue by Major Source (refer 'Minor' source for 'Other Revenue' allocation | C161: A3
A162: Chart A6 | B162: =A162&"Revenue by Minor Source (Other)" -> Chart A6 Revenue by Minor Source (Other) | C162: A3
A163: Chart A7 | B163: =A163&"Expenditure by Major Type" -> Chart A7 Expenditure by Major Type | C163: A3
A164: Chart A8 | B164: =A164&"Expenditure by Minor Type (Other)" -> Chart A8 Expenditure by Minor Type (Other) | C164: A3
A165: Chart A9 | B165: =A165&"Capital Expenditure by Municipal Vote/Appropriation (Major)" -> Chart A9 Capital Expenditure by Municipal Vote/Appropriation (Major) | C165: A5
A166: Chart A10 | B166: =A166&"Capital Expenditure by Municipal Vote/Appropriation (Minor)" -> Chart A10 Capital Expenditure by Municipal Vote/Appropriation (Minor) | C166: A5
A167: Chart A11 | B167: =A166&"Capital Expenditure by Standard Classification" -> Chart A10 Capital Expenditure by Standard Classification | C167: A5
A168: Chart A12 | B168: =A168&"Capital expenditure performance trend" -> Chart A12 Capital expenditure performance trend | C168: A5
A169: Chart A13 | B169: =A169&"Capital funding by Source" -> Chart A13 Capital funding by Source | C169: A5
A170: Chart A14 | B170: =A170&"Cash flow trend" -> Chart A14 Cash flow trend | C170: A7
A171: Chart A15 | B171: =A171&"IDP Strategic Objective - Revenue" -> Chart A15 IDP Strategic Objective - Revenue | C171: Table A4
A172: Chart A16 | B172: =A172&"IDP Strategic Objective - Expenditure" -> Chart A16 IDP Strategic Objective - Expenditure | C172: Table A5
A173: Chart A17 | B173: =A173&"IDP Strategic Objective - Capital Expenditure" -> Chart A17 IDP Strategic Objective - Capital Expenditure | C173: Table A6
A174: Chart A18 | B174: =A174&"Debt (borrowing to Total Revenue)" -> Chart A18 Debt (borrowing to Total Revenue) | C174: Table A8
A175: Chart A19 | B175: =A175&"Debtors' trend analysis" -> Chart A19 Debtors' trend analysis | C175: Table A8
A176: Chart A20 | B176: =A176&"Distribution losses" -> Chart A20 Distribution losses | C176: Table A8
A177: Chart A21 | B177: =A177&"Borrowed funding of capital expenditure" -> Chart A21 Borrowed funding of capital expenditure | C177: Table A8
A178: Chart A22 | B178: =A178&"Expenditure analysis (% of Revenue)" -> Chart A22 Expenditure analysis (% of Revenue) | C178: Table A8
A179: Chart A23 | B179: =A179&"Increases in service charges" -> Chart A23 Increases in service charges | C179: Table A10

Sheet Lookup and lists (hidden)
A1: Description | B1: 2007 | C1: 2008 | D1: 2009 | E1: 2010 | F1: 2011 | G1: 2012 | H1: 2013 | I1: 2014 | J1: 2015 | K1: 2016 | L1: 2017 | M1: 2018 | N1: 2019 | O1: 2020 | Q1: Lists | Y1: Grants: | Z1: National - opex | AA1: Provincial - opex | AB1: National - capex | AC1: Provincial - capex
A2: ='Template names'!C2 -> Prior year -1 | B2: 2005/06 | C2: 2006/07 | D2: 2007/08 | E2: =E1-2&"/"&RIGHT(E1,2)-1 -> 2008/9 | F2: 2009/10 | G2: 2010/11 | H2: 2011/12 | I2: 2012/13 | J2: 2013/14 | K2: 2014/15 | L2: 2015/16 | M2: 2016/17 | N2: 2017/18 | O2: 2018/19 | Q2: Yes | R2: <1 | S2: <4 | T2: Market | U2: Land & impr. | V2: Yes | W2: Uniform | X2: Yrs | Z2: Local Government Equitable Share | AA2: Health subsidy | AB2: Municipal Infrastructure Grant (MIG) | AC2: Agriculture
A3: ='Template names'!C3 -> Prior year -2 | B3: 2004/05 | C3: 2005/06 | D3: 2006/07 | E3: =E1-3&"/"&RIGHT(E1,2)-2 -> 2007/8 | F3: 2008/9 | G3: 2009/10 | H3: 2010/11 | I3: 2011/12 | J3: 2012/13 | K3: 2013/14 | L3: 2014/15 | M3: 2015/16 | N3: 2016/17 | O3: 2017/18 | Q3: No | R3: 1 | S3: 4 | T3: Dep.Replace | U3: Land only | V3: No | W3: Variable | X3: Mths | Z3: RSC Levy Replacement | AA3: Ambulance subsidy | AB3: Public Transport and Systems | AC3: Education
A4: ='Template names'!C4 -> Prior year -3 | B4: 2003/04 | C4: 2004/05 | D4: 2005/06 | E4: =E1-4&"/"&RIGHT(E1,2)-3 -> 2006/7 | F4: 2007/8 | G4: 2008/9 | H4: 2009/10 | I4: 2010/11 | J4: 2011/12 | K4: 2012/13 | L4: 2013/14 | M4: 2014/15 | N4: 2015/16 | O4: 2016/17 | R4: 2 | S4: 5 | T4: Other | U4: Other | Z4: Finance Management | AA4: Housing | AB4: Rural Transport Services and Infrastructure | AC4: Health
A5: ='Template names'!C5 -> Year in which budget is being prepared | B5: Current Year 2006/07 | C5: Current Year 2007/08 | D5: Current Year 2008/09 | E5: ="Current Year "& E1-1&"/"&RIGHT(E1,2) -> Current Year 2009/10 | F5: Current Year 2010/11 | G5: Current Year 2011/12 | H5: Current Year 2012/13 | I5: Current Year 2013/14 | J5: Current Year 2014/15 | K5: Current Year 2015/16 | L5: Current Year 2016/17 | M5: Current Year 2017/18 | N5: Current Year 2018/19 | O5: Current Year 2019/20 | R5: 3 | S5: 6 | Z5: Municipal Systems Improvement | AA5: Sport and Recreation | AB5: Regional Bulk Infrastructure | AC5: Housing and Local Government
A6: ='Template names'!C6 -> Year in which budget is being prepared | B6: 2006/07 | C6: 2007/08 | D6: 2008/09 | E6: =E1-1&"/"&RIGHT(E1,2) -> 2009/10 | F6: 2010/11 | G6: 2011/12 | H6: 2012/13 | I6: 2013/14 | J6: 2014/15 | K6: 2015/16 | L6: 2016/17 | M6: 2017/18 | N6: 2018/19 | O6: 2019/20 | R6: 4 | S6: 6-10 | Z6: Water Services Operating Subsidy | AB6: Rural Households Infrastructure | AC6: Other Departments
A7: ='Template names'!C7 -> MTREF name | B7: 2007/08 Medium Term Revenue & Expenditure Framework | C7: 2008/09 Medium Term Revenue & Expenditure Framework | D7: 2009/10 Medium Term Revenue & Expenditure Framework | E7: =E1&"/"&RIGHT(E1,2)+1&" Medium Term Revenue & Expenditure Framework" -> 2010/11 Medium Term Revenue & Expenditure Framework | F7: 2011/12 Medium Term Revenue & Expenditure Framework | G7: 2012/13 Medium Term Revenue & Expenditure Framework | H7: 2013/14 Medium Term Revenue & Expenditure Framework | I7: 2014/15 Medium Term Revenue & Expenditure Framework | J7: 2015/16 Medium Term Revenue & Expenditure Framework | K7: 2016/17 Medium Term Revenue & Expenditure Framework | L7: 2017/18 Medium Term Revenue & Expenditure Framework | M7: 2018/19 Medium Term Revenue & Expenditure Framework | N7: 2019/20 Medium Term Revenue & Expenditure Framework | O7: 2020/21 Medium Term Revenue & Expenditure Framework | R7: 5 | S7: >10 | Z7: Energy Efficiency and Demand Management | AB7: Neighbourhood Development Partnership | AC7: Public Works, Roads, Transport
A8: ='Template names'!C15 -> 1st year of MTREF | B8: Budget Year 2007/08 | C8: Budget Year 2008/09 | D8: Budget Year 2009/10 | E8: ="Budget Year "&E1&"/"&RIGHT(E1,2)+1 -> Budget Year 2010/11 | F8: Budget Year 2011/12 | G8: Budget Year 2012/13 | H8: Budget Year 2013/14 | I8: Budget Year 2014/15 | J8: Budget Year 2015/16 | K8: Budget Year 2016/17 | L8: Budget Year 2017/18 | M8: Budget Year 2018/19 | N8: Budget Year 2019/20 | O8: Budget Year 2020/21 | R8: >5 | Z8: Integrated National Electrification Programme | AB8: 2010 FIFA World Cup Stadiums Development | AC8: Sport and Recreation
A9: ='Template names'!C16 -> 2nd year of MTREF | B9: Budget Year +1 2008/09 | C9: Budget Year +1 2009/10 | D9: Budget Year +1 2010/11 | E9: ="Budget Year +1 "&E1+1&"/"&RIGHT(E1,2)+2 -> Budget Year +1 2011/12 | F9: Budget Year +1 2012/13 | G9: Budget Year +1 2013/14 | H9: Budget Year +1 2014/15 | I9: Budget Year +1 2015/16 | J9: Budget Year +1 2016/17 | K9: Budget Year +1 2017/18 | L9: Budget Year +1 2018/19 | M9: Budget Year +1 2019/20 | N9: Budget Year +1 2020/21 | O9: Budget Year +1 2021/22 | Z9: Municipal Drought Relief
A10: ='Template names'!C17 -> 3rd year of MTREF | B10: Budget Year +2 2009/10 | C10: Budget Year +2 2010/11 | D10: Budget Year +2 2011/12 | E10: ="Budget Year +2 "&E1+2&"/"&RIGHT(E1,2)+3 -> Budget Year +2 2012/13 | F10: Budget Year +2 2013/14 | G10: Budget Year +2 2014/15 | H10: Budget Year +2 2015/16 | I10: Budget Year +2 2016/17 | J10: Budget Year +2 2017/18 | K10: Budget Year +2 2018/19 | L10: Budget Year +2 2019/20 | M10: Budget Year +2 2020/21 | N10: Budget Year +2 2021/22 | O10: Budget Year +2 2022/23 | Z10: 2010 FIFA World Cup Operating
A11: ='Template names'!C18 -> 1st yr of long term forecast | B11: Forecast 2010/11 | C11: Forecast 2011/12 | D11: Forecast 2012/13 | E11: ="Forecast "&E1+3&"/"&RIGHT(E1,2)+4 -> Forecast 2013/14 | F11: Forecast 2014/15 | G11: Forecast 2015/16 | H11: Forecast 2016/17 | I11: Forecast 2017/18 | J11: Forecast 2018/19 | K11: Forecast 2019/20 | L11: Forecast 2020/21 | M11: Forecast 2021/22 | N11: Forecast 2022/23 | O11: Forecast 2023/24 | Z11: Electricity Demand Side Management
A12: ='Template names'!C19 -> Next yr of long term forecast | B12: Forecast 2011/12 | C12: Forecast 2012/13 | D12: Forecast 2013/14 | E12: ="Forecast "&E1+4&"/"&RIGHT(E1,2)+5 -> Forecast 2014/15 | F12: Forecast 2015/16 | G12: Forecast 2016/17 | H12: Forecast 2017/18 | I12: Forecast 2018/19 | J12: Forecast 2019/20 | K12: Forecast 2020/21 | L12: Forecast 2021/22 | M12: Forecast 2022/23 | N12: Forecast 2023/24 | O12: Forecast 2024/25 | Z12: EPWP Incentive
A13: ='Template names'!C20 -> Next yr of long term forecast | B13: Forecast 2012/13 | C13: Forecast 2013/14 | D13: Forecast 2014/15 | E13: ="Forecast "&E1+5&"/"&RIGHT(E1,2)+6 -> Forecast 2015/16 | F13: Forecast 2016/17 | G13: Forecast 2017/18 | H13: Forecast 2018/19 | I13: Forecast 2019/20 | J13: Forecast 2020/21 | K13: Forecast 2021/22 | L13: Forecast 2022/23 | M13: Forecast 2023/24 | N13: Forecast 2024/25 | O13: Forecast 2025/26
A14: ='Template names'!C21 -> Next yr of long term forecast | B14: Forecast 2013/14 | C14: Forecast 2014/15 | D14: Forecast 2015/16 | E14: ="Forecast "&E1+6&"/"&RIGHT(E1,2)+7 -> Forecast 2016/17 | F14: Forecast 2017/18 | G14: Forecast 2018/19 | H14: Forecast 2019/20 | I14: Forecast 2020/21 | J14: Forecast 2021/22 | K14: Forecast 2022/23 | L14: Forecast 2023/24 | M14: Forecast 2024/25 | N14: Forecast 2025/26 | O14: Forecast 2026/27 | Z14: Asset Class | AA14: Asset sub-class old | AB14: Asset sub-class
A15: ='Template names'!C22 -> Next yr of long term forecast | B15: Forecast 2014/15 | C15: Forecast 2015/16 | D15: Forecast 2016/17 | E15: ="Forecast "&E1+7&"/"&RIGHT(E1,2)+8 -> Forecast 2017/18 | F15: Forecast 2018/19 | G15: Forecast 2019/20 | H15: Forecast 2020/21 | I15: Forecast 2021/22 | J15: Forecast 2022/23 | K15: Forecast 2023/24 | L15: Forecast 2024/25 | M15: Forecast 2025/26 | N15: Forecast 2026/27 | O15: Forecast 2027/28
A16: ='Template names'!C23 -> Next yr of long term forecast | B16: Forecast 2015/16 | C16: Forecast 2016/17 | D16: Forecast 2017/18 | E16: ="Forecast "&E1+8&"/"&RIGHT(E1,2)+9 -> Forecast 2018/19 | F16: Forecast 2019/20 | G16: Forecast 2020/21 | H16: Forecast 2021/22 | I16: Forecast 2022/23 | J16: Forecast 2023/24 | K16: Forecast 2024/25 | L16: Forecast 2025/26 | M16: Forecast 2026/27 | N16: Forecast 2027/28 | O16: Forecast 2028/29 | Z16: Roads Infrastructure | AA16: Roads, Pavements & Bridges | AB16: Roads
A17: ='Template names'!C24 -> Next yr of long term forecast | B17: Forecast 2016/17 | C17: Forecast 2017/18 | D17: Forecast 2018/19 | E17: ="Forecast "&E1+9&"/"&RIGHT(E1,2)+10 -> Forecast 2019/20 | F17: Forecast 2020/21 | G17: Forecast 2021/22 | H17: Forecast 2022/23 | I17: Forecast 2023/24 | J17: Forecast 2024/25 | K17: Forecast 2025/26 | L17: Forecast 2026/27 | M17: Forecast 2027/28 | N17: Forecast 2028/29 | O17: Forecast 2029/30 | Z17: Storm water Infrastructure | AA17: Storm water | AB17: Road Structures
A18: ='Template names'!C25 -> Next yr of long term forecast | B18: Forecast 2017/18 | C18: Forecast 2018/19 | D18: Forecast 2019/20 | E18: ="Forecast "&E1+10&"/"&RIGHT(E1,2)+11 -> Forecast 2020/21 | F18: Forecast 2021/22 | G18: Forecast 2022/23 | H18: Forecast 2023/24 | I18: Forecast 2024/25 | J18: Forecast 2025/26 | K18: Forecast 2026/27 | L18: Forecast 2027/28 | M18: Forecast 2028/29 | N18: Forecast 2029/30 | O18: Forecast 2030/31 | Z18: Electrical Infrastructure | AA18: Generation | AB18: Road Furniture
A19: ='Template names'!C26 -> Next yr of long term forecast | B19: Forecast 2018/19 | C19: Forecast 2019/20 | D19: Forecast 2020/21 | E19: ="Forecast "&E1+11&"/"&RIGHT(E1,2)+12 -> Forecast 2021/22 | F19: Forecast 2022/23 | G19: Forecast 2023/24 | H19: Forecast 2024/25 | I19: Forecast 2025/26 | J19: Forecast 2026/27 | K19: Forecast 2027/28 | L19: Forecast 2028/29 | M19: Forecast 2029/30 | N19: Forecast 2030/31 | O19: Forecast 2031/32 | Z19: Water Supply Infrastructure | AA19: Transmission & Reticulation | AB19: Capital Spares
A20: ='Template names'!C27 -> Next yr of long term forecast | B20: Forecast 2019/20 | C20: Forecast 2020/21 | D20: Forecast 2021/22 | E20: ="Forecast "&E1+12&"/"&RIGHT(E1,2)+13 -> Forecast 2022/23 | F20: Forecast 2023/24 | G20: Forecast 2024/25 | H20: Forecast 2025/26 | I20: Forecast 2026/27 | J20: Forecast 2027/28 | K20: Forecast 2028/29 | L20: Forecast 2029/30 | M20: Forecast 2030/31 | N20: Forecast 2031/32 | O20: Forecast 2032/33 | Z20: Sanitation Infrastructure | AA20: Street Lighting | AB20: Drainage Collection
A21: ='Template names'!C28 -> Next yr of long term forecast | B21: Forecast 2020/21 | C21: Forecast 2021/22 | D21: Forecast 2022/23 | E21: ="Forecast "&E1+13&"/"&RIGHT(E1,2)+14 -> Forecast 2023/24 | F21: Forecast 2024/25 | G21: Forecast 2025/26 | H21: Forecast 2026/27 | I21: Forecast 2027/28 | J21: Forecast 2028/29 | K21: Forecast 2029/30 | L21: Forecast 2030/31 | M21: Forecast 2031/32 | N21: Forecast 2032/33 | O21: Forecast 2033/34 | Z21: Solid Waste Infrastructure | AA21: Dams & Reservoirs | AB21: Storm water Conveyance
A22: ='Template names'!C29 -> Next yr of long term forecast | B22: Forecast 2021/22 | C22: Forecast 2022/23 | D22: Forecast 2023/24 | E22: ="Forecast "&E1+14&"/"&RIGHT(E1,2)+15 -> Forecast 2024/25 | F22: Forecast 2025/26 | G22: Forecast 2026/27 | H22: Forecast 2027/28 | I22: Forecast 2028/29 | J22: Forecast 2029/30 | K22: Forecast 2030/31 | L22: Forecast 2031/32 | M22: Forecast 2032/33 | N22: Forecast 2033/34 | O22: Forecast 2034/35 | Z22: Rail Infrastructure | AA22: Water purification | AB22: Attenuation
A23: Adjustments Budget | B23: Annual target 2007/08 | C23: Annual target 2008/09 | D23: Annual target 2009/10 | E23: ="Annual target " & E1&"/"&RIGHT(E1,2)+1 -> Annual target 2010/11 | F23: Annual target 2011/12 | G23: Annual target 2012/13 | H23: Annual target 2013/14 | I23: Annual target 2014/15 | J23: Annual target 2015/16 | K23: Annual target 2016/17 | L23: Annual target 2017/18 | M23: Annual target 2018/19 | N23: Annual target 2019/20 | O23: Annual target 2020/21 | Z23: Coastal Infrastructure | AA23: Reticulation | AB23: Power Plants
A24: =A23 -> Adjustments Budget | B24: Revised target 2007/08 | C24: Revised target 2008/09 | D24: Revised target 2009/10 | E24: ="Revised target "& E1&"/"&RIGHT(E1,2)+1 -> Revised target 2010/11 | F24: Revised target 2011/12 | G24: Revised target 2012/13 | H24: Revised target 2013/14 | I24: Revised target 2014/15 | J24: Revised target 2015/16 | K24: Revised target 2016/17 | L24: Revised target 2017/18 | M24: Revised target 2018/19 | N24: Revised target 2019/20 | O24: Revised target 2020/21 | Z24: Information and Communication Infrastructure | AA24: Sewerage purification | AB24: HV Substations
A25: NOTE: This sheet should not be directly amended - select headings from sheet 'S' | Z25: Community Facilities | AA25: Waste Management | AB25: HV Switching Station
Z26: Sport and Recreation Facilities | AA26: Transportation | AB26: HV Transmission Conductors
A27: Name link | B27: 54 | Z27: Heritage assets | AA27: Gas | AB27: MV Substations
A28: Name of Muni | B28: =INDEX(B29:B307,B27,1) -> FS193 Nketoana | Z28: Revenue Generating | AA28: Parks & gardens | AB28: MV Switching Stations
B29: Choose name from list | C29: Set name on 'Instructions' sheet | Z29: Non-revenue Generating | AA29: Sportsfields & stadia | AB29: MV Networks
B30: BUF Buffalo City | C30: EC EASTERN CAPE | Z30: Operational Buildings | AA30: Swimming pools | AB30: LV Networks
B31: NMA Nelson Mandela Bay | C31: EC EASTERN CAPE | Z31: Housing | AA31: Community halls | AB31: Capital Spares
B32: EC101 Dr. Beyers Naude | C32: EC EASTERN CAPE | Z32: Biological or Cultivated Assets | AA32: Libraries | AB32: Dams and Weirs
B33: EC102 Blue Crane Route | C33: EC EASTERN CAPE | Z33: Servitudes | AA33: Recreational facilities | AB33: Boreholes
B34: EC104 Makana | C34: EC EASTERN CAPE | Z34: Licences and Rights | AA34: Fire, safety & emergency | AB34: Reservoirs
B35: EC105 Ndlambe | C35: EC EASTERN CAPE | Z35: Computer Equipment | AA35: Security and policing | AB35: Pump Stations
B36: EC106 Sundays River Valley | C36: EC EASTERN CAPE | Z36: Furniture and Office Equipment | AA36: Buses | AB36: Water Treatment Works
B37: EC108 Kouga | C37: EC EASTERN CAPE | Z37: Machinery and Equipment | AA37: Clinics | AB37: Bulk Mains
B38: EC109 Kou-Kamma | C38: EC EASTERN CAPE | Z38: Transport Assets | AA38: Museums & Art Galleries | AB38: Distribution
B39: DC10 Sarah Baartman | C39: EC EASTERN CAPE | Z39: Libraries | AA39: Cemeteries | AB39: Distribution Points
B40: EC121 Mbhashe | C40: EC EASTERN CAPE | Z40: Zoo's, Marine and Non-biological Animals | AA40: Social rental housing | AB40: PRV Stations
B41: EC122 Mnquma | C41: EC EASTERN CAPE | AA41: Buildings | AB41: Capital Spares
B42: EC123 Great Kei | C42: EC EASTERN CAPE | AA42: Housing development | AB42: Pump Station
B43: EC124 Amahlathi | C43: EC EASTERN CAPE | AA43: General vehicles | AB43: Reticulation
B44: EC126 Ngqushwa | C44: EC EASTERN CAPE | AA44: Specialised vehicles - Refuse | AB44: Waste Water Treatment Works
B45: EC129 Raymond Mhlaba | C45: EC EASTERN CAPE | AA45: Specialised vehicles - Fire | AB45: Outfall Sewers
B46: DC12 Amathole | C46: EC EASTERN CAPE | AA46: Specialised vehicles - Conservancy | AB46: Toilet Facilities
B47: EC131 Inxuba Yethemba | C47: EC EASTERN CAPE | AA47: Specialised vehicles - Ambulances | AB47: Capital Spares
B48: EC135 Intsika Yethu | C48: EC EASTERN CAPE | AA48: Plant & equipment | AB48: Landfill Sites
B49: EC136 Emalahleni (Ec) | C49: EC EASTERN CAPE | AA49: Computers - hardware/equipment | AB49: Waste Transfer Stations
B50: EC137 Engcobo | C50: EC EASTERN CAPE | AA50: Furniture and other office equipment | AB50: Waste Processing Facilities
B51: EC138 Sakhisizwe | C51: EC EASTERN CAPE | AA51: Abattoirs | AB51: Waste Drop-off Points
B52: EC139 Enoch Mgijima | C52: EC EASTERN CAPE | AA52: Markets | AB52: Waste Separation Facilities
B53: DC13 Chris Hani | C53: EC EASTERN CAPE | AA53: Civic Land and Buildings | AB53: Electricity Generation Facilities
B54: EC141 Elundini | C54: EC EASTERN CAPE | AA54: Other Buildings | AB54: Capital Spares
B55: EC142 Senqu | C55: EC EASTERN CAPE | AA55: Other Land | AB55: Rail Lines
B56: EC145 Walter Sisulu | C56: EC EASTERN CAPE | AA56: Surplus Assets - (Investment or Inventory) | AB56: Rail Structures
B57: DC14 Joe Gqabi | C57: EC EASTERN CAPE | AA57: Computers - software & programming | AB57: Rail Furniture
B58: EC153 Ngquza Hills | C58: EC EASTERN CAPE | AA58: Other | AB58: Drainage Collection
B59: EC154 Port St Johns | C59: EC EASTERN CAPE | AB59: Storm water Conveyance
B60: EC155 Nyandeni | C60: EC EASTERN CAPE | Z60: SA16 - Investments | AB60: Attenuation
B61: EC156 Mhlontlo | C61: EC EASTERN CAPE | Z61: Security | AA61: Interest rate | AB61: MV Substations
B62: EC157 King Sabata Dalindyebo | C62: EC EASTERN CAPE | Z62: Yes | AA62: Fixed | AB62: LV Networks
B63: DC15 O .R. Tambo | C63: EC EASTERN CAPE | Z63: No | AA63: Variable | AB63: Capital Spares
B64: EC441 Matatiele | C64: EC EASTERN CAPE | AB64: Sand Pumps
B65: EC442 Umzimvubu | C65: EC EASTERN CAPE | AB65: Piers
B66: EC443 Mbizana | C66: EC EASTERN CAPE | Z66: SA36, SA37 - Capital projects | AB66: Revetments
B67: EC444 Ntabankulu | C67: EC EASTERN CAPE | Z67: Yes | AB67: Promenades
B68: DC44 Alfred Nzo | C68: EC EASTERN CAPE | Z68: No | AB68: Capital Spares
B69: MAN Mangaung | C69: FS FREE STATE | AB69: Data Centres
B70: FS161 Letsemeng | C70: FS FREE STATE | AB70: Core Layers
B71: FS162 Kopanong | C71: FS FREE STATE | AB71: Distribution Layers
B72: FS163 Mohokare | C72: FS FREE STATE | AB72: Capital Spares
B73: DC16 Xhariep | C73: FS FREE STATE | AB73: Halls
B74: FS181 Masilonyana | C74: FS FREE STATE | AB74: Centres
B75: FS182 Tokologo | C75: FS FREE STATE | AB75: Crèches
B76: FS183 Tswelopele | C76: FS FREE STATE | AB76: Clinics/Care Centres
B77: FS184 Matjhabeng | C77: FS FREE STATE | AB77: Fire/Ambulance Stations
B78: FS185 Nala | C78: FS FREE STATE | AB78: Testing Stations
B79: DC18 Lejweleputswa | C79: FS FREE STATE | AB79: Museums
B80: FS191 Setsoto | C80: FS FREE STATE | AB80: Galleries
B81: FS192 Dihlabeng | C81: FS FREE STATE | AB81: Theatres
B82: FS193 Nketoana | C82: FS FREE STATE | AB82: Libraries
B83: FS194 Maluti-a-Phofung | C83: FS FREE STATE | AB83: Cemeteries/Crematoria
B84: FS195 Phumelela | C84: FS FREE STATE | AB84: Police
B85: FS196 Mantsopa | C85: FS FREE STATE | AB85: Purls
B86: DC19 Thabo Mofutsanyana | C86: FS FREE STATE | AB86: Public Open Space
B87: FS201 Moqhaka | C87: FS FREE STATE | AB87: Nature Reserves
B88: FS203 Ngwathe | C88: FS FREE STATE | AB88: Public Ablution Facilities
B89: FS204 Metsimaholo | C89: FS FREE STATE | AB89: Markets
B90: FS205 Mafube | C90: FS FREE STATE | AB90: Stalls
B91: DC20 Fezile Dabi | C91: FS FREE STATE | AB91: Abattoirs
B92: EKU Ekurhuleni Metro | C92: GT GAUTENG | AB92: Airports
B93: JHB City Of Johannesburg | C93: GT GAUTENG | AB93: Taxi Ranks/Bus Terminals
B94: TSH City Of Tshwane | C94: GT GAUTENG | AB94: Capital Spares
B95: GT421 Emfuleni | C95: GT GAUTENG | AB95: Indoor Facilities
B96: GT422 Midvaal | C96: GT GAUTENG | AB96: Outdoor Facilities
B97: GT423 Lesedi | C97: GT GAUTENG | AB97: Capital Spares
B98: DC42 Sedibeng | C98: GT GAUTENG | AB98: Monuments
B99: GT481 Mogale City | C99: GT GAUTENG | AB99: Historic Buildings
B100: GT484 Merafong City | C100: GT GAUTENG | AB100: Works of Art
B101: GT485 Rand West City | C101: GT GAUTENG | AB101: Conservation Areas
B102: DC48 West Rand | C102: GT GAUTENG | AB102: Other Heritage
B103: ETH eThekwini | C103: KZN KWAZULU-NATAL | AB103: Improved Property
B104: KZN212 Umdoni | C104: KZN KWAZULU-NATAL | AB104: Unimproved Property
B105: KZN213 Umzumbe | C105: KZN KWAZULU-NATAL | AB105: Municipal Offices
B106: KZN214 uMuziwabantu | C106: KZN KWAZULU-NATAL | AB106: Pay/Enquiry Points
B107: KZN216 Ray Nkonyeni | C107: KZN KWAZULU-NATAL | AB107: Building Plan Offices
B108: DC21 Ugu | C108: KZN KWAZULU-NATAL | AB108: Workshops
B109: KZN221 uMshwathi | C109: KZN KWAZULU-NATAL | AB109: Yards
B110: KZN222 uMngeni | C110: KZN KWAZULU-NATAL | AB110: Stores
B111: KZN223 Mpofana | C111: KZN KWAZULU-NATAL | AB111: Laboratories
B112: KZN224 Impendle | C112: KZN KWAZULU-NATAL | AB112: Training Centres
B113: KZN225 Msunduzi | C113: KZN KWAZULU-NATAL | AB113: Manufacturing Plant
B114: KZN226 Mkhambathini | C114: KZN KWAZULU-NATAL | AB114: Depots
B115: KZN227 Richmond | C115: KZN KWAZULU-NATAL | AB115: Capital Spares
B116: DC22 uMgungundlovu | C116: KZN KWAZULU-NATAL | AB116: Staff Housing
B117: KZN235 Okhahlamba | C117: KZN KWAZULU-NATAL | AB117: Social Housing
B118: KZN237 Inkosi Langalibalele | C118: KZN KWAZULU-NATAL | AB118: Capital Spares
B119: KZN238 Alfred Duma | C119: KZN KWAZULU-NATAL | AB119: Water Rights
B120: DC23 Uthukela | C120: KZN KWAZULU-NATAL | AB120: Effluent Licenses
B121: KZN241 Endumeni | C121: KZN KWAZULU-NATAL | AB121: Solid Waste Licenses
B122: KZN242 Nquthu | C122: KZN KWAZULU-NATAL | AB122: Computer Software and Applications
B123: KZN244 Msinga | C123: KZN KWAZULU-NATAL | AB123: Load Settlement Software Applications
B124: KZN245 Umvoti | C124: KZN KWAZULU-NATAL | AB124: Unspecified
B125: DC24 Umzinyathi | C125: KZN KWAZULU-NATAL
B126: KZN252 Newcastle | C126: KZN KWAZULU-NATAL
B127: KZN253 eMadlangeni | C127: KZN KWAZULU-NATAL
B128: KZN254 Dannhauser | C128: KZN KWAZULU-NATAL
B129: DC25 Amajuba | C129: KZN KWAZULU-NATAL
B130: KZN261 eDumbe | C130: KZN KWAZULU-NATAL
B131: KZN262 uPhongolo | C131: KZN KWAZULU-NATAL
B132: KZN263 Abaqulusi | C132: KZN KWAZULU-NATAL
B133: KZN265 Nongoma | C133: KZN KWAZULU-NATAL
B134: KZN266 Ulundi | C134: KZN KWAZULU-NATAL
B135: DC26 Zululand | C135: KZN KWAZULU-NATAL
B136: KZN271 Umhlabuyalingana | C136: KZN KWAZULU-NATAL
B137: KZN272 Jozini | C137: KZN KWAZULU-NATAL
B138: KZN275 Mtubatuba | C138: KZN KWAZULU-NATAL
B139: KZN276 The New Big 5 False Bay | C139: KZN KWAZULU-NATAL
B140: DC27 Umkhanyakude | C140: KZN KWAZULU-NATAL
B141: KZN281 Mfolozi | C141: KZN KWAZULU-NATAL
B142: KZN282 uMhlathuze | C142: KZN KWAZULU-NATAL
B143: KZN284 uMlalazi | C143: KZN KWAZULU-NATAL
B144: KZN285 Mthonjaneni | C144: KZN KWAZULU-NATAL
B145: KZN286 Nkandla | C145: KZN KWAZULU-NATAL
B146: DC28 King Cetshwayo | C146: KZN KWAZULU-NATAL
B147: KZN291 Mandeni | C147: KZN KWAZULU-NATAL
B148: KZN292 KwaDukuza | C148: KZN KWAZULU-NATAL
B149: KZN293 Ndwedwe | C149: KZN KWAZULU-NATAL
B150: KZN294 Maphumulo | C150: KZN KWAZULU-NATAL
B151: DC29 iLembe | C151: KZN KWAZULU-NATAL
B152: KZN433 Greater Kokstad | C152: KZN KWAZULU-NATAL
B153: KZN434 Ubuhlebezwe | C153: KZN KWAZULU-NATAL
B154: KZN435 Umzimkhulu | C154: KZN KWAZULU-NATAL
B155: KZN436 Dr Nkosazana Dlamini Zuma | C155: KZN KWAZULU-NATAL
B156: DC43 Harry Gwala | C156: KZN KWAZULU-NATAL
B157: LIM331 Greater Giyani | C157: LIM LIMPOPO
B158: LIM332 Greater Letaba | C158: LIM LIMPOPO
B159: LIM333 Greater Tzaneen | C159: LIM LIMPOPO
B160: LIM334 Ba-Phalaborwa | C160: LIM LIMPOPO
B161: LIM335 Maruleng | C161: LIM LIMPOPO
B162: DC33 Mopani | C162: LIM LIMPOPO
B163: LIM341 Musina | C163: LIM LIMPOPO
B164: LIM343 Thulamela | C164: LIM LIMPOPO
B165: LIM344 Makhado | C165: LIM LIMPOPO
B166: LIM345 Makhado-Thulamela | C166: LIM LIMPOPO
B167: DC34 Vhembe | C167: LIM LIMPOPO
B168: LIM351 Blouberg | C168: LIM LIMPOPO
B169: LIM353 Molemole | C169: LIM LIMPOPO
B170: LIM354 Polokwane | C170: LIM LIMPOPO
B171: LIM355 Lepelle-Nkumpi | C171: LIM LIMPOPO
B172: DC35 Capricorn | C172: LIM LIMPOPO
B173: LIM361 Thabazimbi | C173: LIM LIMPOPO
B174: LIM362 Lephalale | C174: LIM LIMPOPO
B175: LIM366 Bela Bela | C175: LIM LIMPOPO
B176: LIM367 Mogalakwena | C176: LIM LIMPOPO
B177: LIM368 Modimolle-Mookgopong | C177: LIM LIMPOPO
B178: DC36 Waterberg | C178: LIM LIMPOPO
B179: LIM471 Ephraim Mogale | C179: LIM LIMPOPO
B180: LIM472 Elias Motsoaledi | C180: LIM LIMPOPO
B181: LIM473 Makhuduthamaga | C181: LIM LIMPOPO
B182: LIM476 Fetakgomo-Tubatse | C182: LIM LIMPOPO
B183: DC47 Sekhukhune | C183: LIM LIMPOPO
B184: MP301 Albert Luthuli | C184: MP MPUMALANGA
B185: MP302 Msukaligwa | C185: MP MPUMALANGA
B186: MP303 Mkhondo | C186: MP MPUMALANGA
B187: MP304 Pixley Ka Seme (MP) | C187: MP MPUMALANGA
B188: MP305 Lekwa | C188: MP MPUMALANGA
B189: MP306 Dipaleseng | C189: MP MPUMALANGA
B190: MP307 Govan Mbeki | C190: MP MPUMALANGA
B191: DC30 Gert Sibande | C191: MP MPUMALANGA
B192: MP311 Victor Khanye | C192: MP MPUMALANGA
B193: MP312 Emalahleni (Mp) | C193: MP MPUMALANGA
B194: MP313 Steve Tshwete | C194: MP MPUMALANGA
B195: MP314 Emakhazeni | C195: MP MPUMALANGA
B196: MP315 Thembisile Hani | C196: MP MPUMALANGA
B197: MP316 Dr J.S. Moroka | C197: MP MPUMALANGA
B198: DC31 Nkangala | C198: MP MPUMALANGA
B199: MP321 Thaba Chweu | C199: MP MPUMALANGA
B200: MP324 Nkomazi | C200: MP MPUMALANGA
... 87 more rows

Sheet Org structure
A1: Organisational Structure Votes | C1: Organisational Structure Sub-Votes | E1: Display Sub-Votes
A2: Vote 1 - EXECUTIVE AND COUNCIL | B2: Vote 1 | C2: EXECUTIVE AND COUNCIL
A3: Vote 2 - FINANCE AND ADMINISTRATION | B3: 1.1 | C3: Mayor's Office | D3: =CONCATENATE(B3, " - ", C3) -> 1.1 - Mayor's Office | E3: 1.1 - Mayor's Office
A4: Vote 3 - COMMUNITY SERVICES | B4: 1.2 | C4: Speaker's Office | D4: 1.2 - Speaker's Office | E4: 1.2 - Speaker's Office
A5: Vote 4 - WASTE MANAGEMENT | B5: 1.3 | C5: Municipal Manager's Office | D5: 1.3 - Municipal Manager's Office | E5: 1.3 - Municipal Manager's Office
A6: Vote 5 - LOCAL ECONOMIC DEVELOPMENT | B6: 1.4 | C6: Municipal Manager's Office | D6: 1.4 - Municipal Manager's Office | E6: 1.4 - IDP and PMS
A7: Vote 6 - ROADS TRANSPORT | B7: 1.5 | C7: Internal Audit | D7: 1.5 - Internal Audit | E7: 1.5 - Internal Audit
A8: Vote 7 - WATER | B8: 1.6 | C8: Special Programmes | D8: 1.6 - Special Programmes | E8: 1.6 - Special Programmes
A9: Vote 8 - ELECTRICITY | B9: 1.7 | C9: [Name of sub-vote] | D9: 1.7 - [Name of sub-vote]
A10: Vote 9 - WASTE WATER | B10: 1.8 | C10: [Name of sub-vote] | D10: 1.8 - [Name of sub-vote]
A11: Vote 10 - HOUSING | B11: 1.9 | C11: [Name of sub-vote] | D11: 1.9 - [Name of sub-vote]
A12: =B112&" - "&C112 -> Vote 11 - [NAME OF VOTE 11] | B12: 1.10 | C12: [Name of sub-vote] | D12: 1.10 - [Name of sub-vote]
A13: =B123&" - "&C123 -> Vote 12 - [NAME OF VOTE 12] | B13: Vote 2 | C13: FINANCE AND ADMINISTRATION
A14: =B134&" - "&C134 -> Vote 13 - [NAME OF VOTE 13] | B14: 2.1 | C14: Human Resource | D14: =CONCATENATE(B14, " - ", C14) -> 2.1 - Human Resource | E14: 2.1 - Human Resource
A15: =B145&" - "&C145 -> Vote 14 - [NAME OF VOTE 14] | B15: 2.2 | C15: Records Management | D15: 2.2 - Records Management | E15: 2.2 - Records Management
A16: =B156&" - "&C156 -> Vote 15 - [NAME OF VOTE 15] | B16: 2.3 | C16: Legal Services | D16: 2.3 - Legal Services | E16: 2.3 - Legal Services
B17: 2.4 | C17: Administration | D17: 2.4 - Administration | E17: 2.4 - Administration
B18: 2.5 | C18: Revenue Management | D18: 2.5 - Revenue Management | E18: 2.5 - Revenue Management
B19: 2.6 | C19: Supply Chain Management | D19: 2.6 - Supply Chain Management | E19: 2.6 - Supply Chain Management
B20: 2.7 | C20: CFO | D20: 2.7 - CFO | E20: 2.7 - CFO
B21: 2.8 | C21: Director Corporate Services | D21: 2.8 - Director Corporate Services | E21: 2.8 - Director Corporate Services
B22: 2.9 | C22: Budget and Treasury | D22: 2.9 - Budget and Treasury | E22: 2.9 - Budget and Treasury
B23: 2.10 | C23: Expenditure | D23: 2.10 - Expenditure | E23: 2.10 - Expenditure
B24: Vote 3 | C24: COMMUNITY SERVICES
B25: 3.1 | C25: Cementry | D25: =CONCATENATE(B25, " - ", C25) -> 3.1 - Cementry | E25: 3.1 - Cementry
B26: 3.2 | C26: Parks | D26: 3.2 - Parks | E26: 3.2 - Parks
B27: 3.3 | C27: Director Community Services | D27: 3.3 - Director Community Services | E27: 3.3 - Director Community Services
B28: 3.4 | C28: Traffic Services | D28: 3.4 - Traffic Services | E28: 3.4 - Traffic Services
B29: 3.5 | C29: Fire Services | D29: 3.5 - Fire Services | E29: 3.5 - Fire Services
B30: 3.6 | C30: Sports and Recreation | D30: 3.6 - Sports and Recreation | E30: 3.6 - Sports and Recreation
B31: 3.7 | C31: Libraries | D31: 3.7 - Libraries | E31: 3.7 - Libraries
B32: 3.8 | C32: [Name of sub-vote] | D32: 3.8 - [Name of sub-vote]
B33: 3.9 | C33: [Name of sub-vote] | D33: 3.9 - [Name of sub-vote]
B34: 3.10 | C34: [Name of sub-vote] | D34: 3.10 - [Name of sub-vote]
B35: Vote 4 | C35: WASTE MANAGEMENT
B36: 4.1 | C36: Waste Collection | D36: =CONCATENATE(B36, " - ", C36) -> 4.1 - Waste Collection | E36: 4.1 - Waste Collection
B37: 4.2 | C37: Solid Waste Disposal | D37: 4.2 - Solid Waste Disposal | E37: 4.2 - Solid Waste Disposal
B38: 4.3 | C38: Solid Waste Management | D38: 4.3 - Solid Waste Management | E38: 4.3 - Solid Waste Management
B39: 4.4 | C39: [Name of sub-vote] | D39: 4.4 - [Name of sub-vote]
B40: 4.5 | C40: [Name of sub-vote] | D40: 4.5 - [Name of sub-vote]
B41: 4.6 | C41: [Name of sub-vote] | D41: 4.6 - [Name of sub-vote]
B42: 4.7 | C42: [Name of sub-vote] | D42: 4.7 - [Name of sub-vote]
B43: 4.8 | C43: [Name of sub-vote] | D43: 4.8 - [Name of sub-vote]
B44: 4.9 | C44: [Name of sub-vote] | D44: 4.9 - [Name of sub-vote]
B45: 4.10 | C45: [Name of sub-vote] | D45: 4.10 - [Name of sub-vote]
B46: Vote 5 | C46: LOCAL ECONOMIC DEVELOPMENT
B47: 5.1 | C47: SMME Hub | D47: =CONCATENATE(B47, " - ", C47) -> 5.1 - SMME Hub | E47: 5.1 - SMME Hub
B48: 5.2 | C48: Tourism | D48: 5.2 - Tourism | E48: 5.2 - Tourism
B49: 5.3 | C49: Economic Development | D49: 5.3 - Economic Development | E49: 5.3 - Economic Development
B50: 5.4 | C50: [Name of sub-vote] | D50: 5.4 - [Name of sub-vote]
B51: 5.5 | C51: [Name of sub-vote] | D51: 5.5 - [Name of sub-vote]
B52: 5.6 | C52: [Name of sub-vote] | D52: 5.6 - [Name of sub-vote]
B53: 5.7 | C53: [Name of sub-vote] | D53: 5.7 - [Name of sub-vote]
B54: 5.8 | C54: [Name of sub-vote] | D54: 5.8 - [Name of sub-vote]
B55: 5.9 | C55: [Name of sub-vote] | D55: 5.9 - [Name of sub-vote]
B56: 5.10 | C56: [Name of sub-vote] | D56: 5.10 - [Name of sub-vote]
B57: Vote 6 | C57: ROADS TRANSPORT
B58: 6.1 | C58: Roads | D58: =CONCATENATE(B58, " - ", C58) -> 6.1 - Roads | E58: 6.1 - Roads
B59: 6.2 | C59: Storm Water | D59: 6.2 - Storm Water | E59: 6.2 - Storm Water
B60: 6.3 | C60: Director Technical | D60: 6.3 - Director Technical | E60: 6.3 - Director Technical
B61: 6.4 | C61: [Name of sub-vote] | D61: 6.4 - [Name of sub-vote]
B62: 6.5 | C62: [Name of sub-vote] | D62: 6.5 - [Name of sub-vote]
B63: 6.6 | C63: [Name of sub-vote] | D63: 6.6 - [Name of sub-vote]
B64: 6.7 | C64: [Name of sub-vote] | D64: 6.7 - [Name of sub-vote]
B65: 6.8 | C65: [Name of sub-vote] | D65: 6.8 - [Name of sub-vote]
B66: 6.9 | C66: [Name of sub-vote] | D66: 6.9 - [Name of sub-vote]
B67: 6.10 | C67: [Name of sub-vote] | D67: 6.10 - [Name of sub-vote]
B68: Vote 7 | C68: WATER
B69: 7.1 | C69: WTW Reitz | D69: =CONCATENATE(B69, " - ", C69) -> 7.1 - WTW Reitz | E69: 7.1 - WTW Reitz
B70: 7.2 | C70: WTW Mamafubedu | D70: 7.2 - WTW Mamafubedu | E70: 7.2 - WTW Mamafubedu
B71: 7.3 | C71: WTW Lindley | D71: 7.3 - WTW Lindley | E71: 7.3 - WTW Lindley
B72: 7.4 | C72: WTW Arlington | D72: 7.4 - WTW Arlington | E72: 7.4 - WTW Arlington
B73: 7.5 | C73: Water Network Reitz | D73: 7.5 - Water Network Reitz | E73: 7.5 - Water Network Reitz
B74: 7.6 | C74: Water Network Mamafubedu | D74: 7.6 - Water Network Mamafubedu | E74: 7.6 - Water Network Mamafubedu
B75: 7.7 | C75: Water Network Lindley | D75: 7.7 - Water Network Lindley | E75: 7.7 - Water Network Lindley
B76: 7.8 | C76: Water Network Arlington | D76: 7.8 - Water Network Arlington | E76: 7.8 - Water Network Arlington
B77: 7.9 | C77: General Water Works | D77: 7.9 - General Water Works | E77: 7.9 - General Water Works
B78: 7.10 | C78: [Name of sub-vote] | D78: 7.10 - [Name of sub-vote]
B79: Vote 8 | C79: ELECTRICITY
B80: 8.1 | C80: Reitz Electricity | D80: =CONCATENATE(B80, " - ", C80) -> 8.1 - Reitz Electricity | E80: 8.1 - Reitz Electricity
B81: 8.2 | C81: Mamafubedu Electricity | D81: 8.2 - Mamafubedu Electricity | E81: 8.2 - Mamafubedu Electricity
B82: 8.3 | C82: Lindley Electricity | D82: 8.3 - Lindley Electricity | E82: 8.3 - Lindley Electricity
B83: 8.4 | C83: General Electricity Works | D83: 8.4 - General Electricity Works | E83: 8.4 - General Electricity Works
B84: 8.5 | C84: [Name of sub-vote] | D84: 8.5 - [Name of sub-vote]
B85: 8.6 | C85: [Name of sub-vote] | D85: 8.6 - [Name of sub-vote]
B86: 8.7 | C86: [Name of sub-vote] | D86: 8.7 - [Name of sub-vote]
B87: 8.8 | C87: [Name of sub-vote] | D87: 8.8 - [Name of sub-vote]
B88: 8.9 | C88: [Name of sub-vote] | D88: 8.9 - [Name of sub-vote]
B89: 8.10 | C89: [Name of sub-vote] | D89: 8.10 - [Name of sub-vote]
B90: Vote 9 | C90: WASTE WATER
B91: 9.1 | C91: WWTW Reitz | D91: =CONCATENATE(B91, " - ", C91) -> 9.1 - WWTW Reitz | E91: 9.1 - WWTW Reitz
B92: 9.2 | C92: Network Reitz | D92: 9.2 - Network Reitz | E92: 9.2 - Network Reitz
B93: 9.3 | C93: Network Mamafubedu | D93: 9.3 - Network Mamafubedu | E93: 9.3 - Network Mamafubedu
B94: 9.4 | C94: WWTW Mamafubedu | D94: 9.4 - WWTW Mamafubedu | E94: 9.4 - WWTW Mamafubedu
B95: 9.5 | C95: WWTW Lindley | D95: 9.5 - WWTW Lindley | E95: 9.5 - WWTW Lindley
B96: 9.6 | C96: Network Lindley | D96: 9.6 - Network Lindley | E96: 9.6 - Network Lindley
B97: 9.7 | C97: WWTW Arlington | D97: 9.7 - WWTW Arlington | E97: 9.7 - WWTW Arlington
B98: 9.8 | C98: Network Arlington | D98: 9.8 - Network Arlington | E98: 9.8 - Network Arlington
B99: 9.9 | C99: [Name of sub-vote] | D99: 9.9 - [Name of sub-vote]
B100: 9.10 | C100: [Name of sub-vote] | D100: 9.10 - [Name of sub-vote]
B101: Vote 10 | C101: HOUSING
B102: 10.1 | C102: Urban Planning | D102: =CONCATENATE(B102, " - ", C102) -> 10.1 - Urban Planning | E102: 10.1 - Urban Planning
B103: 10.2 | C103: Housing | D103: 10.2 - Housing | E103: 10.2 - Housing
B104: 10.3 | C104: [Name of sub-vote] | D104: 10.3 - [Name of sub-vote]
B105: 10.4 | C105: [Name of sub-vote] | D105: 10.4 - [Name of sub-vote]
B106: 10.5 | C106: [Name of sub-vote] | D106: 10.5 - [Name of sub-vote]
B107: 10.6 | C107: [Name of sub-vote] | D107: 10.6 - [Name of sub-vote]
B108: 10.7 | C108: [Name of sub-vote] | D108: 10.7 - [Name of sub-vote]
B109: 10.8 | C109: [Name of sub-vote] | D109: 10.8 - [Name of sub-vote]
B110: 10.9 | C110: [Name of sub-vote] | D110: 10.9 - [Name of sub-vote]
B111: 10.10 | C111: [Name of sub-vote] | D111: 10.10 - [Name of sub-vote]
B112: Vote 11 | C112: [NAME OF VOTE 11]
B113: 11.1 | C113: [Name of sub-vote] | D113: =CONCATENATE(B113, " - ", C113) -> 11.1 - [Name of sub-vote] | E113: 11.1 - [Name of sub-vote]
B114: 11.2 | C114: [Name of sub-vote] | D114: 11.2 - [Name of sub-vote]
B115: 11.3 | C115: [Name of sub-vote] | D115: 11.3 - [Name of sub-vote]
B116: 11.4 | C116: [Name of sub-vote] | D116: 11.4 - [Name of sub-vote]
B117: 11.5 | C117: [Name of sub-vote] | D117: 11.5 - [Name of sub-vote]
B118: 11.6 | C118: [Name of sub-vote] | D118: 11.6 - [Name of sub-vote]
B119: 11.7 | C119: [Name of sub-vote] | D119: 11.7 - [Name of sub-vote]
B120: 11.8 | C120: [Name of sub-vote] | D120: 11.8 - [Name of sub-vote]
B121: 11.9 | C121: [Name of sub-vote] | D121: 11.9 - [Name of sub-vote]
B122: 11.10 | C122: [Name of sub-vote] | D122: 11.10 - [Name of sub-vote]
B123: Vote 12 | C123: [NAME OF VOTE 12]
B124: 12.1 | C124: [Name of sub-vote] | D124: =CONCATENATE(B124, " - ", C124) -> 12.1 - [Name of sub-vote] | E124: 12.1 - [Name of sub-vote]
B125: 12.2 | C125: [Name of sub-vote] | D125: 12.2 - [Name of sub-vote]
B126: 12.3 | C126: [Name of sub-vote] | D126: 12.3 - [Name of sub-vote]
B127: 12.4 | C127: [Name of sub-vote] | D127: 12.4 - [Name of sub-vote]
B128: 12.5 | C128: [Name of sub-vote] | D128: 12.5 - [Name of sub-vote]
B129: 12.6 | C129: [Name of sub-vote] | D129: 12.6 - [Name of sub-vote]
B130: 12.7 | C130: [Name of sub-vote] | D130: 12.7 - [Name of sub-vote]
B131: 12.8 | C131: [Name of sub-vote] | D131: 12.8 - [Name of sub-vote]
B132: 12.9 | C132: [Name of sub-vote] | D132: 12.9 - [Name of sub-vote]
B133: 12.10 | C133: [Name of sub-vote] | D133: 12.10 - [Name of sub-vote]
B134: Vote 13 | C134: [NAME OF VOTE 13]
B135: 13.1 | C135: [Name of sub-vote] | D135: =CONCATENATE(B135, " - ", C135) -> 13.1 - [Name of sub-vote] | E135: 13.1 - [Name of sub-vote]
B136: 13.2 | C136: [Name of sub-vote] | D136: 13.2 - [Name of sub-vote]
B137: 13.3 | C137: [Name of sub-vote] | D137: 13.3 - [Name of sub-vote]
B138: 13.4 | C138: [Name of sub-vote] | D138: 13.4 - [Name of sub-vote]
B139: 13.5 | C139: [Name of sub-vote] | D139: 13.5 - [Name of sub-vote]
B140: 13.6 | C140: [Name of sub-vote] | D140: 13.6 - [Name of sub-vote]
B141: 13.7 | C141: [Name of sub-vote] | D141: 13.7 - [Name of sub-vote]
B142: 13.8 | C142: [Name of sub-vote] | D142: 13.8 - [Name of sub-vote]
B143: 13.9 | C143: [Name of sub-vote] | D143: 13.9 - [Name of sub-vote]
B144: 13.10 | C144: [Name of sub-vote] | D144: 13.10 - [Name of sub-vote]
B145: Vote 14 | C145: [NAME OF VOTE 14]
B146: 14.1 | C146: [Name of sub-vote] | D146: =CONCATENATE(B146, " - ", C146) -> 14.1 - [Name of sub-vote] | E146: 14.1 - [Name of sub-vote]
B147: 14.2 | C147: [Name of sub-vote] | D147: 14.2 - [Name of sub-vote]
B148: 14.3 | C148: [Name of sub-vote] | D148: 14.3 - [Name of sub-vote]
B149: 14.4 | C149: [Name of sub-vote] | D149: 14.4 - [Name of sub-vote]
B150: 14.5 | C150: [Name of sub-vote] | D150: 14.5 - [Name of sub-vote]
B151: 14.6 | C151: [Name of sub-vote] | D151: 14.6 - [Name of sub-vote]
B152: 14.7 | C152: [Name of sub-vote] | D152: 14.7 - [Name of sub-vote]
B153: 14.8 | C153: [Name of sub-vote] | D153: 14.8 - [Name of sub-vote]
B154: 14.9 | C154: [Name of sub-vote] | D154: 14.9 - [Name of sub-vote]
B155: 14.10 | C155: [Name of sub-vote] | D155: 14.10 - [Name of sub-vote]
B156: Vote 15 | C156: [NAME OF VOTE 15]
B157: 15.1 | C157: [Name of sub-vote] | D157: =CONCATENATE(B157, " - ", C157) -> 15.1 - [Name of sub-vote] | E157: 15.1 - [Name of sub-vote]
B158: 15.2 | C158: [Name of sub-vote] | D158: 15.2 - [Name of sub-vote]
B159: 15.3 | C159: [Name of sub-vote] | D159: 15.3 - [Name of sub-vote]
B160: 15.4 | C160: [Name of sub-vote] | D160: 15.4 - [Name of sub-vote]
B161: 15.5 | C161: [Name of sub-vote] | D161: 15.5 - [Name of sub-vote]
B162: 15.6 | C162: [Name of sub-vote] | D162: 15.6 - [Name of sub-vote]
B163: 15.7 | C163: [Name of sub-vote] | D163: 15.7 - [Name of sub-vote]
B164: 15.8 | C164: [Name of sub-vote] | D164: 15.8 - [Name of sub-vote]
B165: 15.9 | C165: [Name of sub-vote] | D165: 15.9 - [Name of sub-vote]
B166: 15.10 | C166: [Name of sub-vote] | D166: 15.10 - [Name of sub-vote]

Sheet Contacts
A1: =muni&" - "&" Contact Information" -> FS193 Nketoana - Contact Information
A3: A. GENERAL INFORMATION
A4: Municipality | B4: =muni -> FS193 Nketoana | C4: =IF(B4="Choose name from List","Set name on 'Instructions' sheet", "") -> 
A6: Grade | B6: Grade 3 | C6: 1 Grade in terms of the Remuneration of Public Office Bearers Act.
A8: Province | B8: =IF(B4>" ",VLOOKUP(B4,'Lookup and lists'!B29:C307,2, FALSE)," ") -> FS FREE STATE
A10: Web Address | B10: www.nketoanafs.gov.za
A12: e-mail Address | B12: www@info.co.za
A14: B. CONTACT INFORMATION
A15: Postal address:
A16: P.O. Box | B16: 26
A17: City / Town | B17: Reitz
A18: Postal Code | B18: 9810
A20: Street address
A21: Building | B21: Municipal Building
A22: Street No. & Name | B22: Corner Church and Voortrekker Street
A23: City / Town | B23: Reitz
A24: Postal Code | B24: 9810
A26: General Contacts
A27: Telephone number | B27: 058 863 2811
A28: Fax number | B28: 058 863 2523
A30: C. POLITICAL LEADERSHIP
A31: Speaker: | C31: Secretary/PA to the Speaker:
A32: ID Number | B32: 751206 5634 088 | C32: ID Number | D32: 870507 6283 080
A33: Title | B33: Mr | C33: Title | D33: Mr
A34: Name | B34: Kgaketla Abram Mokoena | C34: Name | D34: Sekwatle Motloung
A35: Telephone number | B35: 058 863 2811 Ext 239 | C35: Telephone number | D35: 058 863 2811 Ext 148
A36: Cell number | B36: 072 815 9227 | C36: Cell number | D36: 073 9790 765
A37: Fax number | B37: 058 863 2523 | C37: Fax number | D37: 058 863 2523
A38: E-mail address | B38: kamokoena@webmail.co.za | C38: E-mail address | D38: msekwatle@yahoo.com
A40: Mayor/Executive Mayor: | C40: Secretary/PA to the Mayor/Executive Mayor:
A41: ID Number | B41: 810629 0624 086 | C41: ID Number | D41: 851125 1178 081
A42: Title | B42: Mrs | C42: Title | D42: Mrs
A43: Name | B43: Maditswako Teresia Mokoena | C43: Name | D43: Dieketseng Thobeha
A44: Telephone number | B44: 058 863 2811 | C44: Telephone number | D44: 058 863 2811 Ext 238
A45: Cell number | B45: 078 259 7954 | C45: Cell number | D45: 078 707 7782
A46: Fax number | B46: 058 863 1129 | C46: Fax number | D46: 058 863 2523
A47: E-mail address | B47: tswaku.nakedi@webmail.co.za | C47: E-mail address | D47: baby.dee3362@yahoo.com
A49: Deputy Mayor/Executive Mayor: | C49: Secretary/PA to the Deputy Mayor/Executive Mayor:
A50: ID Number | C50: ID Number
A51: Title | C51: Title
A52: Name | C52: Name
A53: Telephone number | C53: Telephone number
A54: Cell number | C54: Cell number
A55: Fax number | C55: Fax number
A56: E-mail address | C56: E-mail address
A58: D. MANAGEMENT LEADERSHIP
A59: Municipal Manager: | C59: Secretary/PA to the Municipal Manager:
A60: ID Number | B60: 670302 5360 087 | C60: ID Number | D60: 85052 70596 083
A61: Title | B61: Mr | C61: Title | D61: Miss
A62: Name | B62: Mzwandile Penwell Manzi | C62: Name | D62: Mamonaheng Mokoena
A63: Telephone number | B63: 058 863 2811 EXT 236 | C63: Telephone number | D63: 058 863 2811 EXT 246
A64: Cell number | B64: 072 333 9115 | C64: Cell number | D64: 082 307 2640
A65: Fax number | B65: 058 863 2523 | C65: Fax number | D65: 058 863 2523
A66: E-mail address | B66: mmanzi@nketoanafs.co.za | C66: E-mail address | D66: mamnaheng.mokoena@nketoanafs.co.za
A68: Chief Financial Officer | C68: Secretary/PA to the Chief Financial Officer
A69: ID Number | B69: 871028 5769 085 | C69: ID Number | D69: 810326 0555 085
A70: Title | B70: Mr | C70: Title | D70: Miss
A71: Name | B71: XOLANI MALINDI | C71: Name | D71: Thobile Ndaba
A72: Telephone number | B72: 058 863 2811 | C72: Telephone number | D72: 058 863 2811 EXT 283
A73: Cell number | B73: 078 287 7306 | C73: Cell number | D73: 079 033 7171
A74: Fax number | B74: 058 863 2523 | C74: Fax number | D74: 058 863 2523
A75: E-mail address | B75: xolani.malindi@nketoana.co.za | C75: E-mail address | D75: thobile@nketoanafs.co.za
A77: Official responsible for submitting financial information | C77: Official responsible for submitting financial information
A78: ID Number | B78: 871222 6247 080 | C78: ID Number | D78: 901101 0304 085
A79: Title | B79: Mr | C79: Title | D79: Miss
A80: Name | B80: Tumelo Moloi | C80: Name | D80: Bontle Mpotu
A81: Telephone number | B81: 058 863 2811 EXT 265 | C81: Telephone number | D81: 058 863 2811 EXT 249
A82: Cell number | B82: 073 219 8775 | C82: Cell number | D82: 073 065 9198
A83: Fax number | B83: 058 863 2523 | C83: Fax number | D83: 058 863 2523
A84: E-mail address | B84: Tumelo.Moloi@nketoanafs.co.za | C84: E-mail address | D84: Bontle.Mpotu@nketoanafs.co.za
A85: Official responsible for submitting financial information | C85: Official responsible for submitting financial information
A86: ID Number | B86: 900305 0692 081 | C86: ID Number | D86: 560724 0112 083
A87: Title | B87: Miss | C87: Title | D87: Mrs
A88: Name | B88: Duduzile Mbele | C88: Name | D88: Stephani Venter
A89: Telephone number | B89: 058 863 2811 EXT 255 | C89: Telephone number | D89: 058 863 2811 ext 220
A90: Cell number | B90: 073 655 0497 | C90: Cell number | D90: 079 047 0473
A91: Fax number | B91: 058 863 2523 | C91: Fax number | D91: 086 402 9244
A92: E-mail address | B92: duduzile@nketoanafs.co.za | C92: E-mail address | D92: stephani.venter@nketoanafs.co.za
A93: Official responsible for submitting financial information | C93: Official responsible for submitting financial information
A94: ID Number | C94: ID Number
A95: Title | C95: Title
A96: Name | C96: Name
A97: Telephone number | C97: Telephone number
A98: Cell number | C98: Cell number
A99: Fax number | C99: Fax number
A100: E-mail address | C100: E-mail address
A101: Official responsible for submitting financial information | C101: Official responsible for submitting financial information
A102: ID Number | C102: ID Number
A103: Title | C103: Title
A104: Name | C104: Name
A105: Telephone number | C105: Telephone number
A106: Cell number | C106: Cell number
A107: Fax number | C107: Fax number
A108: E-mail address | C108: E-mail address
A109: Official responsible for submitting financial information | C109: Official responsible for submitting financial information
A110: ID Number | C110: ID Number
A111: Title | C111: Title
A112: Name | C112: Name
A113: Telephone number | C113: Telephone number
A114: Cell number | C114: Cell number
A115: Fax number | C115: Fax number
A116: E-mail address | C116: E-mail address
A117: Official responsible for submitting financial information | C117: Official responsible for submitting financial information
A118: ID Number | C118: ID Number
A119: Title | C119: Title
A120: Name | C120: Name
A121: Telephone number | C121: Telephone number
A122: Cell number | C122: Cell number
A123: Fax number | C123: Fax number
A124: E-mail address | C124: E-mail address
A125: Official responsible for submitting financial information | C125: Official responsible for submitting financial information
A126: ID Number | C126: ID Number
A127: Title | C127: Title
A128: Name | C128: Name
A129: Telephone number | C129: Telephone number
A130: Cell number | C130: Cell number
A131: Fax number | C131: Fax number
A132: E-mail address | C132: E-mail address
A133: Official responsible for submitting financial information
A134: ID Number
A135: Title
A136: Name
A137: Telephone number
A138: Cell number
A139: Fax number
A140: E-mail address

Sheet A1-Sum
A1: =muni&" - "&Approve1 -> FS193 Nketoana - Table A1 Budget Summary
A2: =desc -> Description | B2: =head1b -> 2014/15 | C2: =head1A -> 2015/16 | D2: =Head1 -> 2016/17 | E2: =Head2 -> Current Year 2017/18 | I2: =Head3 -> 2018/19 Medium Term Revenue & Expenditure Framework
A3: R thousands | B3: =Head5 -> Audited Outcome | C3: =Head5 -> Audited Outcome | D3: =Head5 -> Audited Outcome | E3: =Head6 -> Original Budget | F3: =Head7 -> Adjusted Budget | G3: =Head8 -> Full Year Forecast | H3: =Head5b -> Pre-audit outcome | I3: =Head9 -> Budget Year 2018/19 | J3: =Head10 -> Budget Year +1 2019/20 | K3: =Head11 -> Budget Year +2 2020/21
A4: Financial Performance
A5: Property rates | B5: ='A4-FinPerf RE'!C5 -> 15835059 | C5: ='A4-FinPerf RE'!D5 -> 16612976 | D5: ='A4-FinPerf RE'!E5 -> 19537745.91 | E5: ='A4-FinPerf RE'!F5 -> 20340678.09 | F5: ='A4-FinPerf RE'!G5 -> 19875809.39 | G5: ='A4-FinPerf RE'!H5 -> 19875809.39 | H5: ='A4-FinPerf RE'!I5 -> 19875809.39 | I5: ='A4-FinPerf RE'!J5 -> 21272654.85 | J5: ='A4-FinPerf RE'!K5 -> 22549014.15 | K5: ='A4-FinPerf RE'!L5 -> 23901954.99
A6: Service charges | B6: =SUM('A4-FinPerf RE'!C6:C10) -> 111255685 | C6: =SUM('A4-FinPerf RE'!D6:D10) -> 128350839 | D6: =SUM('A4-FinPerf RE'!E6:E10) -> 136770287.3 | E6: =SUM('A4-FinPerf RE'!F6:F10) -> 142569046.7 | F6: =SUM('A4-FinPerf RE'!G6:G10) -> 144465472.9 | G6: =SUM('A4-FinPerf RE'!H6:H10) -> 144465472.9 | H6: =SUM('A4-FinPerf RE'!I6:I10) -> 144465472.9 | I6: =SUM('A4-FinPerf RE'!J6:J10) -> 155103974.1 | J6: =SUM('A4-FinPerf RE'!K6:K10) -> 164410212.5 | K6: =SUM('A4-FinPerf RE'!L6:L10) -> 174274825.2
A7: Investment revenue | B7: ='A4-FinPerf RE'!C12 -> 583166 | C7: ='A4-FinPerf RE'!D12 -> 1101572 | D7: ='A4-FinPerf RE'!E12 -> 1202536.78 | E7: ='A4-FinPerf RE'!F12 -> 1303833.357 | F7: ='A4-FinPerf RE'!G12 -> 1303833.357 | G7: ='A4-FinPerf RE'!H12 -> 1303833.357 | H7: ='A4-FinPerf RE'!I12 -> 1303833.357 | I7: ='A4-FinPerf RE'!J12 -> 1395101.692 | J7: ='A4-FinPerf RE'!K12 -> 1478807.793 | K7: ='A4-FinPerf RE'!L12 -> 1567536.261
A8: Transfers recognised - operational | B8: ='A4-FinPerf RE'!C18 -> 82878721 | C8: ='A4-FinPerf RE'!D18 -> 85568721 | D8: ='A4-FinPerf RE'!E18 -> 81702000 | E8: ='A4-FinPerf RE'!F18 -> 82580000 | F8: ='A4-FinPerf RE'!G18 -> 82580000 | G8: ='A4-FinPerf RE'!H18 -> 82580000 | H8: ='A4-FinPerf RE'!I18 -> 82580000 | I8: ='A4-FinPerf RE'!J18 -> 90367000 | J8: ='A4-FinPerf RE'!K18 -> 95789020 | K8: ='A4-FinPerf RE'!L18 -> 101536361.2
A9: Other own revenue | B9: ='A4-FinPerf RE'!C11+'A4-FinPerf RE'!C13+'A4-FinPerf RE'!C14+'A4-FinPerf RE'!C15+'A4-FinPerf RE'!C16+'A4-FinPerf RE'!C17+'A4-FinPerf RE'!C19+'A4-FinPerf RE'!C20 -> 26136950 | C9: ='A4-FinPerf RE'!D11+'A4-FinPerf RE'!D13+'A4-FinPerf RE'!D14+'A4-FinPerf RE'!D15+'A4-FinPerf RE'!D16+'A4-FinPerf RE'!D17+'A4-FinPerf RE'!D19+'A4-FinPerf RE'!D20 -> 35358561 | D9: ='A4-FinPerf RE'!E11+'A4-FinPerf RE'!E13+'A4-FinPerf RE'!E14+'A4-FinPerf RE'!E15+'A4-FinPerf RE'!E16+'A4-FinPerf RE'!E17+'A4-FinPerf RE'!E19+'A4-FinPerf RE'!E20 -> 53875132.52 | E9: ='A4-FinPerf RE'!F11+'A4-FinPerf RE'!F13+'A4-FinPerf RE'!F14+'A4-FinPerf RE'!F15+'A4-FinPerf RE'!F16+'A4-FinPerf RE'!F17+'A4-FinPerf RE'!F19+'A4-FinPerf RE'!F20 -> 56918116.57 | F9: ='A4-FinPerf RE'!G11+'A4-FinPerf RE'!G13+'A4-FinPerf RE'!G14+'A4-FinPerf RE'!G15+'A4-FinPerf RE'!G16+'A4-FinPerf RE'!G17+'A4-FinPerf RE'!G19+'A4-FinPerf RE'!G20 -> 60450322.32 | G9: ='A4-FinPerf RE'!H11+'A4-FinPerf RE'!H13+'A4-FinPerf RE'!H14+'A4-FinPerf RE'!H15+'A4-FinPerf RE'!H16+'A4-FinPerf RE'!H17+'A4-FinPerf RE'!H19+'A4-FinPerf RE'!H20 -> 60450322.32 | H9: ='A4-FinPerf RE'!I11+'A4-FinPerf RE'!I13+'A4-FinPerf RE'!I14+'A4-FinPerf RE'!I15+'A4-FinPerf RE'!I16+'A4-FinPerf RE'!I17+'A4-FinPerf RE'!I19+'A4-FinPerf RE'!I20 -> 60450322.32 | I9: ='A4-FinPerf RE'!J11+'A4-FinPerf RE'!J13+'A4-FinPerf RE'!J14+'A4-FinPerf RE'!J15+'A4-FinPerf RE'!J16+'A4-FinPerf RE'!J17+'A4-FinPerf RE'!J19+'A4-FinPerf RE'!J20 -> 63957150.41 | J9: ='A4-FinPerf RE'!K11+'A4-FinPerf RE'!K13+'A4-FinPerf RE'!K14+'A4-FinPerf RE'!K15+'A4-FinPerf RE'!K16+'A4-FinPerf RE'!K17+'A4-FinPerf RE'!K19+'A4-FinPerf RE'!K20 -> 67794579.43 | K9: ='A4-FinPerf RE'!L11+'A4-FinPerf RE'!L13+'A4-FinPerf RE'!L14+'A4-FinPerf RE'!L15+'A4-FinPerf RE'!L16+'A4-FinPerf RE'!L17+'A4-FinPerf RE'!L19+'A4-FinPerf RE'!L20 -> 71862254.2
A10: ='A4-FinPerf RE'!A21 -> Total Revenue (excluding capital transfers and contributions) | B10: =SUM(B5:B9) -> 236689581 | C10: 266992669 | D10: 293087702.5 | E10: 303711674.7 | F10: 308675438 | G10: 308675438 | H10: 308675438 | I10: 332095881 | J10: 352021633.9 | K10: 373142931.9
A11: Employee costs | B11: ='A4-FinPerf RE'!C24 -> 74798709 | C11: ='A4-FinPerf RE'!D24 -> 80810390 | D11: ='A4-FinPerf RE'!E24 -> 86156238.96 | E11: ='A4-FinPerf RE'!F24 -> 93590545.79 | F11: ='A4-FinPerf RE'!G24 -> 97962608.54 | G11: ='A4-FinPerf RE'!H24 -> 97962608.54 | H11: ='A4-FinPerf RE'!I24 -> 97962608.54 | I11: ='A4-FinPerf RE'!J24 -> 105019841.4 | J11: ='A4-FinPerf RE'!K24 -> 110270833.5 | K11: ='A4-FinPerf RE'!L24 -> 114681666.8
A12: Remuneration of councillors | B12: ='A4-FinPerf RE'!C25 -> 6676993 | C12: ='A4-FinPerf RE'!D25 -> 6891541 | D12: ='A4-FinPerf RE'!E25 -> 8749575.68 | E12: ='A4-FinPerf RE'!F25 -> 9083084.992 | F12: ='A4-FinPerf RE'!G25 -> 9501709.217 | G12: ='A4-FinPerf RE'!H25 -> 9501709.217 | H12: ='A4-FinPerf RE'!I25 -> 9501709.217 | I12: ='A4-FinPerf RE'!J25 -> 10166194.69 | J12: ='A4-FinPerf RE'!K25 -> 10674504.43 | K12: ='A4-FinPerf RE'!L25 -> 11101484.6
A13: Depreciation & asset impairment | B13: ='A4-FinPerf RE'!C27 -> 57015081 | C13: ='A4-FinPerf RE'!D27 -> 58502541 | D13: ='A4-FinPerf RE'!E27 -> 58502541 | E13: ='A4-FinPerf RE'!F27 -> 59672591.82 | F13: ='A4-FinPerf RE'!G27 -> 58872591.82 | G13: ='A4-FinPerf RE'!H27 -> 58872591.82 | H13: ='A4-FinPerf RE'!I27 -> 58872591.82 | I13: ='A4-FinPerf RE'!J27 -> 58872591.82 | J13: ='A4-FinPerf RE'!K27 -> 61816221.41 | K13: ='A4-FinPerf RE'!L27 -> 64288870.27
A14: Finance charges | B14: ='A4-FinPerf RE'!C28 -> 8338647 | C14: ='A4-FinPerf RE'!D28 -> 10202243 | D14: ='A4-FinPerf RE'!E28 -> 17575034.34 | E14: ='A4-FinPerf RE'!F28 -> 17835802.79 | F14: ='A4-FinPerf RE'!G28 -> 17835802.79 | G14: ='A4-FinPerf RE'!H28 -> 17835802.79 | H14: ='A4-FinPerf RE'!I28 -> 17835802.79 | I14: ='A4-FinPerf RE'!J28 -> 17845133.12 | J14: ='A4-FinPerf RE'!K28 -> 18737389.77 | K14: ='A4-FinPerf RE'!L28 -> 19486885.36
A15: Materials and bulk purchases | B15: ='A4-FinPerf RE'!C29+'A4-FinPerf RE'!C30 -> 54339271 | C15: ='A4-FinPerf RE'!D29+'A4-FinPerf RE'!D30 -> 62245242 | D15: ='A4-FinPerf RE'!E29+'A4-FinPerf RE'!E30 -> 64947102.43 | E15: ='A4-FinPerf RE'!F29+'A4-FinPerf RE'!F30 -> 60643387.47 | F15: ='A4-FinPerf RE'!G29+'A4-FinPerf RE'!G30 -> 59210272.91 | G15: ='A4-FinPerf RE'!H29+'A4-FinPerf RE'!H30 -> 59210272.91 | H15: ='A4-FinPerf RE'!I29+'A4-FinPerf RE'!I30 -> 59210272.91 | I15: ='A4-FinPerf RE'!J29+'A4-FinPerf RE'!J30 -> 62871421.33 | J15: ='A4-FinPerf RE'!K29+'A4-FinPerf RE'!K30 -> 66014992.4 | K15: ='A4-FinPerf RE'!L29+'A4-FinPerf RE'!L30 -> 68655592.1
A16: Transfers and grants | B16: ='A4-FinPerf RE'!C32 -> 0 | C16: ='A4-FinPerf RE'!D32 -> 0 | D16: ='A4-FinPerf RE'!E32 -> 0 | E16: ='A4-FinPerf RE'!F32 -> 0 | F16: ='A4-FinPerf RE'!G32 -> 0 | G16: ='A4-FinPerf RE'!H32 -> 0 | H16: ='A4-FinPerf RE'!I32 -> 0 | I16: ='A4-FinPerf RE'!J32 -> 0 | J16: ='A4-FinPerf RE'!K32 -> 0 | K16: ='A4-FinPerf RE'!L32 -> 0
A17: Other expenditure | B17: ='A4-FinPerf RE'!C26+'A4-FinPerf RE'!C31+'A4-FinPerf RE'!C33+'A4-FinPerf RE'!C34 -> 161742226 | C17: ='A4-FinPerf RE'!D26+'A4-FinPerf RE'!D31+'A4-FinPerf RE'!D33+'A4-FinPerf RE'!D34 -> 149505151 | D17: ='A4-FinPerf RE'!E26+'A4-FinPerf RE'!E31+'A4-FinPerf RE'!E33+'A4-FinPerf RE'!E34 -> 100193446.7 | E17: ='A4-FinPerf RE'!F26+'A4-FinPerf RE'!F31+'A4-FinPerf RE'!F33+'A4-FinPerf RE'!F34 -> 96093075.61 | F17: ='A4-FinPerf RE'!G26+'A4-FinPerf RE'!G31+'A4-FinPerf RE'!G33+'A4-FinPerf RE'!G34 -> 102824584.9 | G17: ='A4-FinPerf RE'!H26+'A4-FinPerf RE'!H31+'A4-FinPerf RE'!H33+'A4-FinPerf RE'!H34 -> 102824584.9 | H17: ='A4-FinPerf RE'!I26+'A4-FinPerf RE'!I31+'A4-FinPerf RE'!I33+'A4-FinPerf RE'!I34 -> 102824584.9 | I17: ='A4-FinPerf RE'!J26+'A4-FinPerf RE'!J31+'A4-FinPerf RE'!J33+'A4-FinPerf RE'!J34 -> 102215068.8 | J17: ='A4-FinPerf RE'!K26+'A4-FinPerf RE'!K31+'A4-FinPerf RE'!K33+'A4-FinPerf RE'!K34 -> 107325822.2 | K17: ='A4-FinPerf RE'!L26+'A4-FinPerf RE'!L31+'A4-FinPerf RE'!L33+'A4-FinPerf RE'!L34 -> 111618855.1
A18: ='A4-FinPerf RE'!A35 -> Total Expenditure | B18: =SUM(B11:B17) -> 362910927 | C18: =SUM(C11:C17) -> 368157108 | D18: 336123939.1 | E18: 336918488.5 | F18: 346207570.1 | G18: 346207570.1 | H18: 346207570.1 | I18: 356990251.1 | J18: 374839763.7 | K18: 389833354.3
A19: ='A4-FinPerf RE'!A37 -> Surplus/(Deficit) | B19: =B10-B18 -> -126221346 | C19: -101164439 | D19: -43036236.57 | E19: -33206813.75 | F19: -37532132.16 | G19: -37532132.16 | H19: -37532132.16 | I19: -24894370.14 | J19: -22818129.84 | K19: -16690422.35
A20: ='A4-FinPerf RE'!A38 -> Transfers and subsidies - capital (monetary allocations) (National / Provincial and District) | B20: ='A4-FinPerf RE'!C38 -> 62156934 | C20: ='A4-FinPerf RE'!D38 -> 59864687 | D20: ='A4-FinPerf RE'!E38 -> 64218000 | E20: ='A4-FinPerf RE'!F38 -> 98761000 | F20: ='A4-FinPerf RE'!G38 -> 98761000 | G20: ='A4-FinPerf RE'!H38 -> 98761000 | H20: ='A4-FinPerf RE'!I38 -> 98761000 | I20: ='A4-FinPerf RE'!J38 -> 64927000 | J20: ='A4-FinPerf RE'!K38 -> 68822620 | K20: ='A4-FinPerf RE'!L38 -> 72951977.2
A21: Contributions recognised - capital & contributed assets | B21: ='A4-FinPerf RE'!C39+'A4-FinPerf RE'!C40 -> 0 | C21: ='A4-FinPerf RE'!D39+'A4-FinPerf RE'!D40 -> 0 | D21: ='A4-FinPerf RE'!E39+'A4-FinPerf RE'!E40 -> 0 | E21: ='A4-FinPerf RE'!F39+'A4-FinPerf RE'!F40 -> 0 | F21: ='A4-FinPerf RE'!G39+'A4-FinPerf RE'!G40 -> 0 | G21: ='A4-FinPerf RE'!H39+'A4-FinPerf RE'!H40 -> 0 | H21: ='A4-FinPerf RE'!I39+'A4-FinPerf RE'!I40 -> 0 | I21: ='A4-FinPerf RE'!J39+'A4-FinPerf RE'!J40 -> 0 | J21: ='A4-FinPerf RE'!K39+'A4-FinPerf RE'!K40 -> 0 | K21: ='A4-FinPerf RE'!L39+'A4-FinPerf RE'!L40 -> 0
A22: ='A4-FinPerf RE'!A41 -> Surplus/(Deficit) after capital transfers & contributions | B22: =B19+SUM(B20:B21) -> -64064412 | C22: =C19+SUM(C20:C21) -> -41299752 | D22: 21181763.43 | E22: 65554186.25 | F22: 61228867.84 | G22: 61228867.84 | H22: 61228867.84 | I22: 40032629.86 | J22: 46004490.16 | K22: 56261554.85
A23: ='A4-FinPerf RE'!A46 -> Share of surplus/ (deficit) of associate | B23: ='A4-FinPerf RE'!C46 -> 0 | C23: ='A4-FinPerf RE'!D46 -> 0 | D23: ='A4-FinPerf RE'!E46 -> 0 | E23: ='A4-FinPerf RE'!F46 -> 0 | F23: ='A4-FinPerf RE'!G46 -> 0 | G23: ='A4-FinPerf RE'!H46 -> 0 | H23: ='A4-FinPerf RE'!I46 -> 0 | I23: ='A4-FinPerf RE'!J46 -> 0 | J23: ='A4-FinPerf RE'!K46 -> 0 | K23: ='A4-FinPerf RE'!L46 -> 0
A24: ='A4-FinPerf RE'!A47 -> Surplus/(Deficit) for the year | B24: =B22+B23 -> -64064412 | C24: =C22+C23 -> -41299752 | D24: 21181763.43 | E24: 65554186.25 | F24: 61228867.84 | G24: 61228867.84 | H24: 61228867.84 | I24: 40032629.86 | J24: 46004490.16 | K24: 56261554.85
A26: Capital expenditure & funds sources
A27: Capital expenditure | B27: ='A5-Capex'!C63 -> 45597961 | C27: ='A5-Capex'!D63 -> 59576592 | D27: ='A5-Capex'!E63 -> 64218000 | E27: ='A5-Capex'!F63 -> 98761000 | F27: ='A5-Capex'!G63 -> 98761000.01 | G27: ='A5-Capex'!H63 -> 98761000.01 | H27: ='A5-Capex'!I63 -> 98761000.01 | I27: ='A5-Capex'!J63 -> 64927000 | J27: ='A5-Capex'!K63 -> 68822620 | K27: ='A5-Capex'!L63 -> 72951977.2
A28: Transfers recognised - capital | B28: ='A5-Capex'!C70 -> 44175660 | C28: ='A5-Capex'!D70 -> 58035212 | D28: ='A5-Capex'!E70 -> 64218000 | E28: ='A5-Capex'!F70 -> 98761000 | F28: ='A5-Capex'!G70 -> 98761000.01 | G28: ='A5-Capex'!H70 -> 98761000.01 | H28: ='A5-Capex'!I70 -> 98761000.01 | I28: ='A5-Capex'!J70 -> 64927000 | J28: ='A5-Capex'!K70 -> 68822620 | K28: ='A5-Capex'!L70 -> 72951977.2
A29: ='A5-Capex'!A71 -> Public contributions & donations | B29: ='A5-Capex'!C71 -> 0 | C29: ='A5-Capex'!D71 -> 0 | D29: ='A5-Capex'!E71 -> 0 | E29: ='A5-Capex'!F71 -> 0 | F29: ='A5-Capex'!G71 -> 0 | G29: ='A5-Capex'!H71 -> 0 | H29: ='A5-Capex'!I71 -> 0 | I29: ='A5-Capex'!J71 -> 0 | J29: ='A5-Capex'!K71 -> 0 | K29: ='A5-Capex'!L71 -> 0
A30: ='A5-Capex'!A72 -> Borrowing | B30: ='A5-Capex'!C72 -> 0 | C30: ='A5-Capex'!D72 -> 0 | D30: ='A5-Capex'!E72 -> 0 | E30: ='A5-Capex'!F72 -> 0 | F30: ='A5-Capex'!G72 -> 0 | G30: ='A5-Capex'!H72 -> 0 | H30: ='A5-Capex'!I72 -> 0 | I30: ='A5-Capex'!J72 -> 0 | J30: ='A5-Capex'!K72 -> 0 | K30: ='A5-Capex'!L72 -> 0
A31: ='A5-Capex'!A73 -> Internally generated funds | B31: ='A5-Capex'!C73 -> 1422301 | C31: ='A5-Capex'!D73 -> 1541380 | D31: ='A5-Capex'!E73 -> 0 | E31: ='A5-Capex'!F73 -> 0 | F31: ='A5-Capex'!G73 -> 0 | G31: ='A5-Capex'!H73 -> 0 | H31: ='A5-Capex'!I73 -> 0 | I31: ='A5-Capex'!J73 -> 0 | J31: ='A5-Capex'!K73 -> 0 | K31: ='A5-Capex'!L73 -> 0
A32: Total sources of capital funds | B32: =SUM(B28:B31) -> 45597961 | C32: 59576592 | D32: 64218000 | E32: 98761000 | F32: 98761000.01 | G32: 98761000.01 | H32: 98761000.01 | I32: 64927000 | J32: 68822620 | K32: 72951977.2
A34: Financial position
A35: ='A6-FinPos'!A12 -> Total current assets | B35: ='A6-FinPos'!C12 -> 23035348 | C35: ='A6-FinPos'!D12 -> 25304023 | D35: ='A6-FinPos'!E12 -> 362149435 | E35: ='A6-FinPos'!F12 -> 369814253.2 | F35: ='A6-FinPos'!G12 -> 369814253.2 | G35: ='A6-FinPos'!H12 -> 369814253.2 | H35: ='A6-FinPos'!I12 -> 369814253.2 | I35: ='A6-FinPos'!J12 -> 317261834.4 | J35: ='A6-FinPos'!K12 -> 336297544.5 | K35: ='A6-FinPos'!L12 -> 356475397.2
A36: ='A6-FinPos'!A24 -> Total non current assets | B36: ='A6-FinPos'!C24 -> 1025331110 | C36: ='A6-FinPos'!D24 -> 1026074097 | D36: ='A6-FinPos'!E24 -> 1021372743 | E36: ='A6-FinPos'!F24 -> 1047427370 | F36: ='A6-FinPos'!G24 -> 1047427370 | G36: ='A6-FinPos'!H24 -> 1047427370 | H36: ='A6-FinPos'!I24 -> 1047427370 | I36: ='A6-FinPos'!J24 -> 1008063861 | J36: ='A6-FinPos'!K24 -> 1068426583 | K36: ='A6-FinPos'!L24 -> 1132411068
A37: ='A6-FinPos'!A34 -> Total current liabilities | B37: ='A6-FinPos'!C34 -> 137876139 | C37: ='A6-FinPos'!D34 -> 181295443 | D37: ='A6-FinPos'!E34 -> 166484173.5 | E37: ='A6-FinPos'!F34 -> 173147449.7 | F37: ='A6-FinPos'!G34 -> 173147449.7 | G37: ='A6-FinPos'!H34 -> 173147449.7 | H37: ='A6-FinPos'!I34 -> 173147449.7 | I37: ='A6-FinPos'!J34 -> 218328350 | J37: ='A6-FinPos'!K34 -> 230296732 | K37: ='A6-FinPos'!L34 -> 243883216.9
A38: ='A6-FinPos'!A39 -> Total non current liabilities | B38: ='A6-FinPos'!C39 -> 26558659 | C38: ='A6-FinPos'!D39 -> 27415767 | D38: ='A6-FinPos'!E39 -> 309250281 | E38: ='A6-FinPos'!F39 -> 315435286.6 | F38: ='A6-FinPos'!G39 -> 315435286.6 | G38: ='A6-FinPos'!H39 -> 315435286.6 | H38: ='A6-FinPos'!I39 -> 315435286.6 | I38: ='A6-FinPos'!J39 -> 25563995 | J38: ='A6-FinPos'!K39 -> 26079648.56 | K38: ='A6-FinPos'!L39 -> 26266518.43
A39: Community wealth/Equity | B39: ='A6-FinPos'!C48 -> 883931660 | C39: ='A6-FinPos'!D48 -> 842666910 | D39: ='A6-FinPos'!E48 -> 907787723.3 | E39: ='A6-FinPos'!F48 -> 928658886.5 | F39: ='A6-FinPos'!G48 -> 928658886.5 | G39: ='A6-FinPos'!H48 -> 928658886.5 | H39: ='A6-FinPos'!I48 -> 928658886.5 | I39: ='A6-FinPos'!J48 -> 1081433350 | J39: ='A6-FinPos'!K48 -> 1148347747 | K39: ='A6-FinPos'!L48 -> 1218736729
A41: Cash flows
A42: Net cash from (used) operating | B42: ='A7-CFlow'!C17 -> 49195456 | C42: ='A7-CFlow'!D17 -> 60900965 | D42: ='A7-CFlow'!E17 -> 12867316 | E42: ='A7-CFlow'!F17 -> 102988103.4 | F42: ='A7-CFlow'!G17 -> 91247334.74 | G42: ='A7-CFlow'!H17 -> 91247334.74 | H42: ='A7-CFlow'!I17 -> 91247334.74 | I42: ='A7-CFlow'!J17 -> 82263928.68 | J42: ='A7-CFlow'!K17 -> 87199764.4 | K42: ='A7-CFlow'!L17 -> 92431750.26
A43: Net cash from (used) investing | B43: ='A7-CFlow'!C27 -> -45254812 | C43: ='A7-CFlow'!D27 -> -59271489 | D43: ='A7-CFlow'!E27 -> 0 | E43: ='A7-CFlow'!F27 -> -98761000 | F43: ='A7-CFlow'!G27 -> -98761000 | G43: ='A7-CFlow'!H27 -> -98761000 | H43: ='A7-CFlow'!I27 -> -98761000 | I43: ='A7-CFlow'!J27 -> -64927000 | J43: ='A7-CFlow'!K27 -> -68822620 | K43: ='A7-CFlow'!L27 -> -72951977.2
A44: Net cash from (used) financing | B44: ='A7-CFlow'!C36 -> -1348909 | C44: ='A7-CFlow'!D36 -> -812885 | D44: ='A7-CFlow'!E36 -> -8504369.284 | E44: ='A7-CFlow'!F36 -> -341109.66 | F44: ='A7-CFlow'!G36 -> -3855109.66 | G44: ='A7-CFlow'!H36 -> -3855109.66 | H44: ='A7-CFlow'!I36 -> -3855109.66 | I44: ='A7-CFlow'!J36 -> -2235000 | J44: ='A7-CFlow'!K36 -> -2369100 | K44: ='A7-CFlow'!L36 -> -2511246
A45: =LEFT('A7-CFlow'!A40,37) -> Cash/cash equivalents at the year end | B45: ='A7-CFlow'!C40 -> 1710429 | C45: ='A7-CFlow'!D40 -> 2527021 | D45: ='A7-CFlow'!E40 -> 11632231.72 | E45: ='A7-CFlow'!F40 -> 6413014.784 | F45: ='A7-CFlow'!G40 -> 1012576.083 | G45: ='A7-CFlow'!H40 -> 1012576.083 | H45: ='A7-CFlow'!I40 -> 1012576.083 | I45: ='A7-CFlow'!J40 -> 12621688.68 | J45: ='A7-CFlow'!K40 -> 28629733.08 | K45: ='A7-CFlow'!L40 -> 45598260.14
A47: Cash backing/surplus reconciliation
A48: ='A8-ResRecon'!A4 -> Cash and investments available | B48: ='A8-ResRecon'!C8 -> 2908446 | C48: ='A8-ResRecon'!D8 -> 3104182 | D48: ='A8-ResRecon'!E8 -> 21755989 | E48: ='A8-ResRecon'!F8 -> 16167241.27 | F48: ='A8-ResRecon'!G8 -> 16167241.27 | G48: ='A8-ResRecon'!H8 -> 16167241.27 | H48: ='A8-ResRecon'!I8 -> 16167241.27 | I48: ='A8-ResRecon'!J8 -> 16215532.27 | J48: ='A8-ResRecon'!K8 -> 17188464.21 | K48: ='A8-ResRecon'!L8 -> 18219772.06
A49: ='A8-ResRecon'!A10 -> Application of cash and investments | B49: ='A8-ResRecon'!C18 -> 107057716 | C49: ='A8-ResRecon'!D18 -> 153913261 | D49: ='A8-ResRecon'!E18 -> 83978240.48 | E49: ='A8-ResRecon'!F18 -> -48269261.92 | F49: ='A8-ResRecon'!G18 -> -23028261.92 | G49: ='A8-ResRecon'!H18 -> -23028261.92 | H49: ='A8-ResRecon'!I18 -> -23028261.92 | I49: ='A8-ResRecon'!J18 -> 10888383 | J49: ='A8-ResRecon'!K18 -> 11618565.98 | K49: ='A8-ResRecon'!L18 -> 12392859.94
A50: Balance - surplus (shortfall) | B50: =B48-B49 -> -104149270 | C50: =C48-C49 -> -150809079 | D50: -62222251.48 | E50: 64436503.19 | F50: 39195503.19 | G50: 39195503.19 | H50: 39195503.19 | I50: 5327149.27 | J50: 5569898.226 | K50: 5826912.12
A52: Asset management
A53: Asset register summary (WDV) | B53: ='A9-Asset'!C165 -> 1022835849 | C53: ='A9-Asset'!D165 -> 1023525798 | D53: ='A9-Asset'!E165 -> 605196560 | E53: ='A9-Asset'!F165 -> 1040469397 | F53: ='A9-Asset'!G165 -> 1040469397 | G53: ='A9-Asset'!H165 -> 1040469397 | H53: 1040469397 | I53: ='A9-Asset'!I165 -> 1061278784 | J53: ='A9-Asset'!J165 -> 1124955512 | K53: ='A9-Asset'!K165 -> 1192452842
A54: ='A9-Asset'!A168 -> Depreciation | B54: ='A9-Asset'!C168 -> 57015081 | C54: ='A9-Asset'!D168 -> 58502541 | D54: ='A9-Asset'!E168 -> 58502541 | E54: ='A9-Asset'!F168 -> 59672591.82 | F54: ='A9-Asset'!G168 -> 58872591.82 | G54: ='A9-Asset'!H168 -> 58872591.82 | H54: 58872591.82 | I54: ='A9-Asset'!I168 -> 58872591.82 | J54: ='A9-Asset'!J168 -> 62404947.33 | K54: ='A9-Asset'!K168 -> 66149244.17
A55: Renewal of Existing Assets | B55: ='A9-Asset'!C37 -> 0 | C55: ='A9-Asset'!D37 -> 0 | D55: ='A9-Asset'!E37 -> 7827409.29 | E55: ='A9-Asset'!F37 -> 46675138.24 | F55: ='A9-Asset'!G37 -> 53978923.24 | G55: ='A9-Asset'!H37 -> 53978923.24 | H55: 53978923.24 | I55: ='A9-Asset'!I37 -> 40991448.38 | J55: ='A9-Asset'!J37 -> 43450935.28 | K55: ='A9-Asset'!K37 -> 46057991.4
A56: Repairs and Maintenance | B56: ='A9-Asset'!C169 -> 15404523 | C56: ='A9-Asset'!D169 -> 18427321 | D56: ='A9-Asset'!E169 -> 9564144.57 | E56: ='A9-Asset'!F169 -> 10187870 | F56: ='A9-Asset'!G169 -> 8754755.439 | G56: ='A9-Asset'!H169 -> 8754755.439 | H56: 8754755.439 | I56: ='A9-Asset'!I169 -> 9010000 | J56: ='A9-Asset'!J169 -> 9550600 | K56: ='A9-Asset'!K169 -> 10123636
A58: Free services
A59: Cost of Free Basic Services provided | B59: ='A10-SerDel'!C60 -> 26529439.68 | C59: ='A10-SerDel'!D60 -> 20102918.1 | D59: ='A10-SerDel'!E60 -> 43280135.36 | E59: ='A10-SerDel'!F60 -> 48219681.7 | F59: ='A10-SerDel'!G60 -> 51672441.77 | G59: ='A10-SerDel'!H60 -> 51672441.77 | H59: ='A10-SerDel'!I60 -> 54763594.66 | I59: ='A10-SerDel'!I60 -> 54763594.66 | J59: ='A10-SerDel'!J60 -> 58049410.34 | K59: ='A10-SerDel'!K60 -> 61532374.96
A60: Revenue cost of free services provided | B60: ='A10-SerDel'!C79 -> 1452148 | C60: ='A10-SerDel'!D79 -> 1881561 | D60: ='A10-SerDel'!E79 -> 22358745.94 | E60: ='A10-SerDel'!F79 -> 23435024.16 | F60: ='A10-SerDel'!G79 -> 23899892.86 | G60: ='A10-SerDel'!H79 -> 23899892.86 | H60: ='A10-SerDel'!I79 -> 25559078.55 | I60: ='A10-SerDel'!I79 -> 25559078.55 | J60: ='A10-SerDel'!J79 -> 27092623.26 | K60: ='A10-SerDel'!K79 -> 28718180.66
A61: Households below minimum service level
A62: ='A10-SerDel'!A5 -> Water: | B62: ='A10-SerDel'!C14 -> 7873 | C62: ='A10-SerDel'!D14 -> 7873 | D62: ='A10-SerDel'!E14 -> 7005 | E62: ='A10-SerDel'!F14 -> 7145.1 | F62: ='A10-SerDel'!G14 -> 7145.1 | G62: ='A10-SerDel'!H14 -> 7145.1 | H62: ='A10-SerDel'!I14 -> 7573.806 | I62: ='A10-SerDel'!I14 -> 7573.806 | J62: ='A10-SerDel'!J14 -> 8028.23436 | K62: ='A10-SerDel'!K14 -> 8509.928422
A63: ='A10-SerDel'!A16 -> Sanitation/sewerage: | B63: ='A10-SerDel'!C26 -> 4191 | C63: ='A10-SerDel'!D26 -> 4191 | D63: ='A10-SerDel'!E26 -> 4191 | E63: ='A10-SerDel'!F26 -> 4274.82 | F63: ='A10-SerDel'!G26 -> 4274.82 | G63: ='A10-SerDel'!H26 -> 4274.82 | H63: ='A10-SerDel'!I26 -> 4531.3092 | I63: ='A10-SerDel'!I26 -> 4531.3092 | J63: ='A10-SerDel'!J26 -> 4803.187752 | K63: ='A10-SerDel'!K26 -> 5091.379017
A64: ='A10-SerDel'!A28 -> Energy: | B64: ='A10-SerDel'!C35 -> 13804 | C64: ='A10-SerDel'!D35 -> 13804 | D64: ='A10-SerDel'!E35 -> 12835 | E64: ='A10-SerDel'!F35 -> 13091.7 | F64: ='A10-SerDel'!G35 -> 13091.7 | G64: ='A10-SerDel'!H35 -> 13091.7 | H64: ='A10-SerDel'!I35 -> 13877.202 | I64: ='A10-SerDel'!I35 -> 13877.202 | J64: ='A10-SerDel'!J35 -> 14709.83412 | K64: ='A10-SerDel'!K35 -> 15592.42417
A65: ='A10-SerDel'!A37 -> Refuse: | B65: ='A10-SerDel'!C45 -> 4813 | C65: ='A10-SerDel'!D45 -> 4813 | D65: ='A10-SerDel'!E45 -> 4701 | E65: ='A10-SerDel'!F45 -> 4795.02 | F65: ='A10-SerDel'!G45 -> 4795.02 | G65: ='A10-SerDel'!H45 -> 4795.02 | H65: ='A10-SerDel'!I45 -> 5082.7212 | I65: ='A10-SerDel'!I45 -> 5082.7212 | J65: ='A10-SerDel'!J45 -> 5387.684472 | K65: ='A10-SerDel'!K45 -> 5710.94554

Sheet A2-FinPerf SC
A1: =muni&" - "&Approve3 -> FS193 Nketoana - Table A2 Budgeted Financial Performance (revenue and expenditure by functional classification)
A2: ="Functional Classification "&desc -> Functional Classification Description | B2: =head27 -> Ref | C2: =head1b -> 2014/15 | D2: =head1A -> 2015/16 | E2: =Head1 -> 2016/17 | F2: =Head2 -> Current Year 2017/18 | I2: =Head3 -> 2018/19 Medium Term Revenue & Expenditure Framework
A3: R thousand | B3: 1 | C3: =Head5 -> Audited Outcome | D3: =Head5 -> Audited Outcome | E3: =Head5 -> Audited Outcome | F3: =Head6 -> Original Budget | G3: =Head7 -> Adjusted Budget | H3: =Head8 -> Full Year Forecast | I3: =Head9 -> Budget Year 2018/19 | J3: =Head10 -> Budget Year +1 2019/20 | K3: =Head11 -> Budget Year +2 2020/21
A4: Revenue - Functional
A5: Governance and administration | C5: =SUM(C6:C8) -> 120053686 | D5: =SUM(D6:D8) -> 132741099 | E5: 94445503.46 | F5: 87219210.31 | G5: 88948028.85 | H5: 88948028.85 | I5: 92863957.63 | J5: 98435795.09 | K5: 104341942.8
A6: Executive and council | C6: =A2A!C6 -> 0 | D6: =A2A!D6 -> 0 | E6: =A2A!E6 -> 19521342.64 | F6: =A2A!F6 -> 8546342.64 | G6: =A2A!G6 -> 8546342.64 | H6: =A2A!H6 -> 8546342.64 | I6: =A2A!I6 -> 8616342.94 | J6: =A2A!J6 -> 9133323.516 | K6: =A2A!K6 -> 9681322.927
A7: Finance and administration | C7: =A2A!C9 -> 120053686 | D7: =A2A!D9 -> 132741099 | E7: =A2A!E9 -> 74924160.82 | F7: =A2A!F9 -> 78672867.67 | G7: =A2A!G9 -> 80401686.21 | H7: =A2A!H9 -> 80401686.21 | I7: =A2A!I9 -> 84247614.69 | J7: =A2A!J9 -> 89302471.57 | K7: =A2A!K9 -> 94660619.87
A8: Internal audit | C8: =A2A!C24 -> 0 | D8: =A2A!D24 -> 0 | E8: =A2A!E24 -> 0 | F8: =A2A!F24 -> 0 | G8: =A2A!G24 -> 0 | H8: =A2A!H24 -> 0 | I8: =A2A!I24 -> 0 | J8: =A2A!J24 -> 0 | K8: =A2A!K24 -> 0
A9: Community and public safety | C9: =SUM(C10:C14) -> 7114995 | D9: =SUM(D10:D14) -> 4336413 | E9: 36274860.52 | F9: 15252626 | G9: 17093757.33 | H9: 17093757.33 | I9: 12798569.55 | J9: 13566483.72 | K9: 14380472.75
A10: Community and social services | C10: =A2A!C27 -> 0 | D10: =A2A!D27 -> 0 | E10: =A2A!E27 -> 27768991.68 | F10: =A2A!F27 -> 9209765.732 | G10: =A2A!G27 -> 9345312.432 | H10: =A2A!H27 -> 9345312.432 | I10: =A2A!I27 -> 8534912.531 | J10: =A2A!J27 -> 9047007.283 | K10: =A2A!K27 -> 9589827.72
A11: Sport and recreation | C11: =A2A!C49 -> 6909591 | D11: =A2A!D49 -> 4120103 | E11: =A2A!E49 -> 8269168.84 | F11: =A2A!F49 -> 5612860.27 | G11: =A2A!G49 -> 7368444.9 | H11: =A2A!H49 -> 7368444.9 | I11: =A2A!I49 -> 3563657.02 | J11: =A2A!J49 -> 3777476.441 | K11: =A2A!K49 -> 4004125.028
A12: Public safety | C12: =A2A!C55 -> 205404 | D12: =A2A!D55 -> 216310 | E12: =A2A!E55 -> 236700 | F12: =A2A!F55 -> 430000 | G12: =A2A!G55 -> 380000 | H12: =A2A!H55 -> 380000 | I12: =A2A!I55 -> 700000 | J12: =A2A!J55 -> 742000 | K12: =A2A!K55 -> 786520
A13: Housing | C13: =A2A!C62 -> 0 | D13: =A2A!D62 -> 0 | E13: =A2A!E62 -> 0 | F13: =A2A!F62 -> 0 | G13: =A2A!G62 -> 0 | H13: =A2A!H62 -> 0 | I13: =A2A!I62 -> 0 | J13: =A2A!J62 -> 0 | K13: =A2A!K62 -> 0
A14: Health | C14: =A2A!C65 -> 0 | D14: =A2A!D65 -> 0 | E14: =A2A!E65 -> 0 | F14: =A2A!F65 -> 0 | G14: =A2A!G65 -> 0 | H14: =A2A!H65 -> 0 | I14: =A2A!I65 -> 0 | J14: =A2A!J65 -> 0 | K14: =A2A!K65 -> 0
A15: Economic and environmental services | C15: =SUM(C16:C18) -> 12311264 | D15: =SUM(D16:D18) -> 15780460 | E15: 22563962.48 | F15: 25455738.13 | G15: 28822098.14 | H15: 28822098.14 | I15: 21225383.46 | J15: 22498906.46 | K15: 23848840.85
A16: Planning and development | C16: =A2A!C74 -> 2000 | D16: =A2A!D74 -> 0 | E16: =A2A!E74 -> 6635595.746 | F16: =A2A!F74 -> 4620581.46 | G16: =A2A!G74 -> 4661865.609 | H16: =A2A!H74 -> 4661865.609 | I16: =A2A!I74 -> 4664342.657 | J16: =A2A!J74 -> 4944203.217 | K16: =A2A!K74 -> 5240855.41
A17: Road transport | C17: =A2A!C85 -> 12309264 | D17: =A2A!D85 -> 15780460 | E17: =A2A!E85 -> 15928366.73 | F17: =A2A!F85 -> 20835156.67 | G17: =A2A!G85 -> 24160232.53 | H17: =A2A!H85 -> 24160232.53 | I17: =A2A!I85 -> 16561040.8 | J17: =A2A!J85 -> 17554703.25 | K17: =A2A!K85 -> 18607985.44
A18: Environmental protection | C18: =A2A!C92 -> 0 | D18: =A2A!D92 -> 0 | E18: =A2A!E92 -> 0 | F18: =A2A!F92 -> 0 | G18: =A2A!G92 -> 0 | H18: =A2A!H92 -> 0 | I18: =A2A!I92 -> 0 | J18: =A2A!J92 -> 0 | K18: =A2A!K92 -> 0
A19: Trading services | C19: =SUM(C20:C23) -> 153751609 | D19: =SUM(D20:D23) -> 172430958 | E19: 202319454.2 | F19: 272843178 | G19: 270870631.4 | H19: 270870631.4 | I19: 266352847.3 | J19: =SUM(J20:J23) -> 282334018.1 | K19: 299274059.2
A20: Energy sources | C20: =A2A!C100 -> 45435565 | D20: =A2A!D100 -> 49324095 | E20: =A2A!E100 -> 53737275.02 | F20: =A2A!F100 -> 57572098.6 | G20: =A2A!G100 -> 58333258.14 | H20: =A2A!H100 -> 58333258.14 | I20: =A2A!I100 -> 58620604.31 | J20: =A2A!J100 -> 62137840.56 | K20: =A2A!K100 -> 65866111
A21: Water management | C21: =A2A!C104 -> 62543611 | D21: =A2A!D104 -> 69818760 | E21: =A2A!E104 -> 80958321.85 | F21: =A2A!F104 -> 130279857.6 | G21: =A2A!G104 -> 131014105.4 | H21: =A2A!H104 -> 131014105.4 | I21: =A2A!I104 -> 115284010.9 | J21: =A2A!J104 -> 122201051.5 | K21: =A2A!K104 -> 129533114.6
A22: Waste water management | C22: =A2A!C108 -> 30862203 | D22: =A2A!D108 -> 32469467 | E22: =A2A!E108 -> 38874189.26 | F22: =A2A!F108 -> 48227020.75 | G22: =A2A!G108 -> 50516358.4 | H22: =A2A!H108 -> 50516358.4 | I22: =A2A!I108 -> 58816705.1 | J22: =A2A!J108 -> 62345707.41 | K22: =A2A!K108 -> 66086449.85
A23: Waste management | C23: =A2A!C113 -> 14910230 | D23: =A2A!D113 -> 20818636 | E23: =A2A!E113 -> 28749668.06 | F23: =A2A!F113 -> 36764201.05 | G23: =A2A!G113 -> 31006909.46 | H23: =A2A!H113 -> 31006909.46 | I23: =A2A!I113 -> 33631527.02 | J23: =A2A!J113 -> 35649418.64 | K23: =A2A!K113 -> 37788383.76
A24: Other | B24: 4 | C24: =A2A!C118 -> 0 | D24: =A2A!D118 -> 0 | E24: =A2A!E118 -> 1701922.28 | F24: =A2A!F118 -> 1701922.28 | G24: =A2A!G118 -> 1701922.28 | H24: =A2A!H118 -> 1701922.28 | I24: =A2A!I118 -> 1701922.28 | J24: =A2A!J118 -> 1804037.617 | K24: =A2A!K118 -> 1912279.874
A25: ="Total "&A4 -> Total Revenue - Functional | B25: 2 | C25: =C5+C9+C15+C19+C24 -> 293231554 | D25: =D5+D9+D15+D19+D24 -> 325288930 | E25: =E5+E9+E15+E19+E24 -> 357305702.9 | F25: 402472674.7 | G25: 407436438 | H25: 407436438 | I25: =I5+I9+I15+I19+I24 -> 394942680.2 | J25: 418639241 | K25: 443757595.5
A27: Expenditure - Functional
A28: Governance and administration | C28: =SUM(C29:C31) -> 89894160 | D28: =SUM(D29:D31) -> 123126062 | E28: 110299822.5 | F28: 82707545.51 | G28: 93732965.58 | H28: 93732965.58 | I28: 92700989.73 | J28: 97631175.59 | K28: 102162111.7
A29: Executive and council | C29: =A2A!C129 -> 20653305 | D29: =A2A!D129 -> 23465912 | E29: =A2A!E129 -> 26474858.83 | F29: =A2A!F129 -> 24701627.69 | G29: =A2A!G129 -> 27289615.38 | H29: =A2A!H129 -> 27289615.38 | I29: =A2A!I129 -> 29513637.12 | J29: =A2A!J129 -> 31284455.35 | K29: =A2A!K129 -> 33161522.67
A30: Finance and administration | C30: =A2A!C132 -> 69240855 | D30: =A2A!D132 -> 99660150 | E30: =A2A!E132 -> 83824963.67 | F30: =A2A!F132 -> 58005917.82 | G30: =A2A!G132 -> 66443350.2 | H30: =A2A!H132 -> 66443350.2 | I30: =A2A!I132 -> 63187352.61 | J30: =A2A!J132 -> 66346720.24 | K30: =A2A!K132 -> 69000589.05
A31: Internal audit | C31: =A2A!C147 -> 0 | D31: =A2A!D147 -> 0 | E31: =A2A!E147 -> 0 | F31: =A2A!F147 -> 0 | G31: =A2A!G147 -> 0 | H31: =A2A!H147 -> 0 | I31: =A2A!I147 -> 0 | J31: =A2A!J147 -> 0 | K31: =A2A!K147 -> 0
A32: Community and public safety | C32: =SUM(C33:C37) -> 7363149 | D32: =SUM(D33:D37) -> 5869888 | E32: 22170020.34 | F32: 24183077 | G32: 28340768.54 | H32: 28340768.54 | I32: 29739720.17 | J32: 31226706.17 | K32: 32475774.42
A33: Community and social services | C33: =A2A!C150 -> 0 | D33: =A2A!D150 -> 0 | E33: =A2A!E150 -> 17228201.2 | F33: =A2A!F150 -> 18202333.64 | G33: =A2A!G150 -> 21880200.21 | H33: =A2A!H150 -> 21880200.21 | I33: =A2A!I150 -> 22127596.32 | J33: =A2A!J150 -> 23233976.14 | K33: =A2A!K150 -> 24163335.19
A34: Sport and recreation | C34: =A2A!C172 -> 337573 | D34: =A2A!D172 -> 503988 | E34: =A2A!E172 -> 474992.36 | F34: =A2A!F172 -> 595122.5345 | G34: =A2A!G172 -> 418374.8678 | H34: =A2A!H172 -> 418374.8678 | I34: =A2A!I172 -> 561623.7162 | J34: =A2A!J172 -> 589704.902 | K34: =A2A!K172 -> 613293.0981
A35: Public safety | C35: =A2A!C178 -> 7025576 | D35: =A2A!D178 -> 5365900 | E35: =A2A!E178 -> 4466826.78 | F35: =A2A!F178 -> 5385620.827 | G35: =A2A!G178 -> 6042193.463 | H35: =A2A!H178 -> 6042193.463 | I35: =A2A!I178 -> 7050500.125 | J35: =A2A!J178 -> 7403025.132 | K35: =A2A!K178 -> 7699146.137
A36: Housing | C36: =A2A!C185 -> 0 | D36: =A2A!D185 -> 0 | E36: =A2A!E185 -> 0 | F36: =A2A!F185 -> 0 | G36: =A2A!G185 -> 0 | H36: =A2A!H185 -> 0 | I36: =A2A!I185 -> 0 | J36: =A2A!J185 -> 0 | K36: =A2A!K185 -> 0
A37: Health | C37: =A2A!C188 -> 0 | D37: =A2A!D188 -> 0 | E37: =A2A!E188 -> 0 | F37: =A2A!F188 -> 0 | G37: =A2A!G188 -> 0 | H37: =A2A!H188 -> 0 | I37: =A2A!I188 -> 0 | J37: =A2A!J188 -> 0 | K37: =A2A!K188 -> 0
A38: Economic and environmental services | C38: =SUM(C39:C41) -> 47023353 | D38: =SUM(D39:D41) -> 56393049 | E38: 46761272.66 | F38: 51386087.11 | G38: 48887964.38 | H38: 48887964.38 | I38: 51248312.86 | J38: 53810728.5 | K38: 55963157.64
A39: Planning and development | C39: =A2A!C197 -> 2058354 | D39: =A2A!D197 -> 8105303 | E39: =A2A!E197 -> 3310877.98 | F39: =A2A!F197 -> 3269809.343 | G39: =A2A!G197 -> 3488578.32 | H39: =A2A!H197 -> 3488578.32 | I39: =A2A!I197 -> 4007528.231 | J39: =A2A!J197 -> 4207904.643 | K39: =A2A!K197 -> 4376220.828
A40: Road transport | C40: =A2A!C208 -> 44964999 | D40: =A2A!D208 -> 48287746 | E40: =A2A!E208 -> 43450394.68 | F40: =A2A!F208 -> 48116277.76 | G40: =A2A!G208 -> 45399386.06 | H40: =A2A!H208 -> 45399386.06 | I40: =A2A!I208 -> 47240784.62 | J40: =A2A!J208 -> 49602823.86 | K40: =A2A!K208 -> 51586936.81
A41: Environmental protection | C41: =A2A!C215 -> 0 | D41: =A2A!D215 -> 0 | E41: =A2A!E215 -> 0 | F41: =A2A!F215 -> 0 | G41: =A2A!G215 -> 0 | H41: =A2A!H215 -> 0 | I41: =A2A!I215 -> 0 | J41: =A2A!J215 -> 0 | K41: =A2A!K215 -> 0
A42: Trading services | C42: =SUM(C43:C46) -> 203500022 | D42: =SUM(D43:D46) -> 173311982 | E42: 155825138.8 | F42: =SUM(F43:F46) -> 177518057.1 | G42: 174149662.1 | H42: 174149662.1 | I42: 181580338.4 | J42: 190659355.3 | K42: =SUM(K43:K46) -> 198285729.5
A43: Energy sources | C43: =A2A!C223 -> 73308773 | D43: =A2A!D223 -> 69949988 | E43: =A2A!E223 -> 67523586.52 | F43: =A2A!F223 -> 71959366.67 | G43: =A2A!G223 -> 72665455.42 | H43: =A2A!H223 -> 72665455.42 | I43: =A2A!I223 -> 75740631.34 | J43: =A2A!J223 -> 79527662.91 | K43: =A2A!K223 -> 82708769.42
A44: Water management | C44: =A2A!C227 -> 58910306 | D44: =A2A!D227 -> 58956916 | E44: =A2A!E227 -> 45176037.29 | F44: =A2A!F227 -> 56073206.11 | G44: =A2A!G227 -> 51586266.56 | H44: =A2A!H227 -> 51586266.56 | I44: =A2A!I227 -> 54198276.71 | J44: =A2A!J227 -> 56908190.55 | K44: =A2A!K227 -> 59184518.17
A45: Waste water management | C45: =A2A!C231 -> 40696948 | D45: =A2A!D231 -> 22440550 | E45: =A2A!E231 -> 22604956.5 | F45: =A2A!F231 -> 25743626.76 | G45: =A2A!G231 -> 25950940.91 | H45: =A2A!H231 -> 25950940.91 | I45: =A2A!I231 -> 26910064.95 | J45: =A2A!J231 -> 28255568.2 | K45: =A2A!K231 -> 29385790.93
A46: Waste management | C46: =A2A!C236 -> 30583995 | D46: =A2A!D236 -> 21964528 | E46: =A2A!E236 -> 20520558.49 | F46: =A2A!F236 -> 23741857.54 | G46: =A2A!G236 -> 23946999.25 | H46: =A2A!H236 -> 23946999.25 | I46: =A2A!I236 -> 24731365.39 | J46: =A2A!J236 -> 25967933.66 | K46: =A2A!K236 -> 27006651
A47: Other | B47: 4 | C47: =A2A!C241 -> 833342 | D47: =A2A!D241 -> 604704 | E47: =A2A!E241 -> 1067684.8 | F47: =A2A!F241 -> 1123721.763 | G47: =A2A!G241 -> 1096209.509 | H47: =A2A!H241 -> 1096209.509 | I47: =A2A!I241 -> 1272390.007 | J47: =A2A!J241 -> 1040873.137 | K47: =A2A!K241 -> 456818.9524
A48: ="Total "&A27 -> Total Expenditure - Functional | B48: 3 | C48: =C28+C32+C38+C42+C47 -> 348614026 | D48: =D28+D32+D38+D42+D47 -> 359305685 | E48: =E28+E32+E38+E42+E47 -> 336123939.1 | F48: =F28+F32+F38+F42+F47 -> 336918488.5 | G48: 346207570.2 | H48: 346207570.2 | I48: 356541751.2 | J48: 374368838.7 | K48: 389343592.3
A49: =result -> Surplus/(Deficit) for the year | C49: =C25-C48 -> -55382472 | D49: =D25-D48 -> -34016755 | E49: 21181763.82 | F49: 65554186.24 | G49: 61228867.85 | H49: 61228867.85 | I49: 38400929.06 | J49: 44270402.32 | K49: 54414003.23
A50: =head27a -> References
A51: 1. Government Finance Statistics Functions and Sub-functions are standardised to assist the compilation of national and international accounts for comparison purposes
A52: 2. Total Revenue by functional classification must reconcile to Total Operating Revenue shown in Budgeted Financial Performance (revenue and expenditure)
A53: 3. Total Expenditure by Functional Classification must reconcile to Total Operating Expenditure shown in Budgeted Financial Performance (revenue and expenditure)
A54: 4. All amounts must be classified under a functional classification . The GFS function 'Other' is only for Abbatoirs, Air Transport, Forestry, Licensing and Regulation, Markets and Tourism - and if used must be supported by footnotes. Nothing else may be placed under 'Other'. Assign associate share to relevant classification.
A57: check oprev balance | C57: =C25-'A4-FinPerf RE'!C59 -> -5614961 | D57: =D25-'A4-FinPerf RE'!D59 -> -1568426 | E57: =E25-'A4-FinPerf RE'!E59 -> 0.405256629 | F57: =F25-'A4-FinPerf RE'!F59 -> -0.01161247492 | G57: =G25-'A4-FinPerf RE'!G59 -> 0.006754159927 | H57: =H25-'A4-FinPerf RE'!H59 -> 0.006754159927 | I57: =I25-'A4-FinPerf RE'!J59 -> -2080200.795 | J57: =J25-'A4-FinPerf RE'!K59 -> -2205012.843 | K57: =K25-'A4-FinPerf RE'!L59 -> -2337313.613
A58: check opexp balance | C58: =C48-'A4-FinPerf RE'!C35 -> -14296901 | D58: =D48-'A4-FinPerf RE'!D35 -> -8851423 | E58: =E48-'A4-FinPerf RE'!E35 -> 0.01551932096 | F58: =F48-'A4-FinPerf RE'!F35 -> -0.004863739014 | G58: =G48-'A4-FinPerf RE'!G35 -> 0.003715395927 | H58: =H48-'A4-FinPerf RE'!H35 -> 0.003715395927 | I58: =I48-'A4-FinPerf RE'!J35 -> -448499.9968 | J58: =J48-'A4-FinPerf RE'!K35 -> -470924.9953 | K58: =K48-'A4-FinPerf RE'!L35 -> -489761.9981

Sheet A2A
A1: =muni&" - "&Approve3 -> FS193 Nketoana - Table A2 Budgeted Financial Performance (revenue and expenditure by functional classification)
A2: ="Functional Classification "&desc -> Functional Classification Description | B2: =head27 -> Ref | C2: =head1b -> 2014/15 | D2: =head1A -> 2015/16 | E2: =Head1 -> 2016/17 | F2: =Head2 -> Current Year 2017/18 | I2: =Head3 -> 2018/19 Medium Term Revenue & Expenditure Framework
A3: R thousand | B3: 1 | C3: =Head5 -> Audited Outcome | D3: =Head5 -> Audited Outcome | E3: =Head5 -> Audited Outcome | F3: =Head6 -> Original Budget | G3: =Head7 -> Adjusted Budget | H3: =Head8 -> Full Year Forecast | I3: =Head9 -> Budget Year 2018/19 | J3: =Head10 -> Budget Year +1 2019/20 | K3: =Head11 -> Budget Year +2 2020/21
A4: Revenue - Functional
A5: Municipal governance and administration | C5: =C6+C9+C24 -> 120053686 | D5: =D6+D9+D24 -> 132741099 | E5: 94445503.46 | F5: 87219210.31 | G5: 88948028.85 | H5: 88948028.85 | I5: 92863957.63 | J5: 98435795.09 | K5: 104341942.8
A6: Executive and council | C6: =SUM(C7:C8) -> 0 | D6: =SUM(D7:D8) -> 0 | E6: 19521342.64 | F6: 8546342.64 | G6: 8546342.64 | H6: 8546342.64 | I6: 8616342.94 | J6: 9133323.516 | K6: 9681322.927
A7: Mayor and Council | E7: 10432366.36 | F7: 4432366.36 | G7: 4432366.36 | H7: 4432366.36 | I7: 4432366.66 | J7: =I7*1.06 -> 4698308.66 | K7: =J7*1.06 -> 4980207.179
A8: Municipal Manager, Town Secretary and Chief Executive | E8: 9088976.28 | F8: 4113976.28 | G8: 4113976.28 | H8: 4113976.28 | I8: 4183976.28 | J8: =I8*1.06 -> 4435014.857 | K8: =J8*1.06 -> 4701115.748
A9: Finance and administration | C9: =SUM(C10:C23) -> 120053686 | D9: 132741099 | E9: 74924160.82 | F9: 78672867.67 | G9: 80401686.21 | H9: 80401686.21 | I9: 84247614.69 | J9: 89302471.57 | K9: 94660619.87
A10: Administrative and Corporate Support
A11: Asset Management
A12: Budget and Treasury Office | C12: 119598106 | D12: 129513572 | E12: 74587793.18 | F12: =78873091.1898663-564348.08 -> 78308743.11 | G12: =80390885.9317737-553881.17 -> 79837004.76 | H12: =80390885.9317737-553881.17 -> 79837004.76 | I12: =84220592.8128367-587114.04 -> 83633478.77 | J12: =I12*1.06 -> 88651487.5 | K12: =J12*1.06 -> 93970576.75
A13: Finance
A14: Fleet Management
A15: Human Resources | C15: 455580 | D15: 3227527 | E15: 336367.6414 | F15: 364124.5564 | G15: 564681.4446 | H15: 564681.4446 | I15: 614135.9169 | J15: =I15*1.06 -> 650984.0719 | K15: =J15*1.06 -> 690043.1162
A16: Information Technology
A17: Legal Services
A18: Marketing, Customer Relations, Publicity and Media Co-ordination
A19: Property Services
A20: Risk Management
A21: Security Services
A22: Supply Chain Management
A23: Valuation Service
A24: Internal audit | C24: =SUM(C25:C25) -> 0 | D24: 0 | E24: 0 | F24: 0 | G24: 0 | H24: 0 | I24: 0 | J24: 0 | K24: 0
A25: Governance Function
A26: Community and public safety | C26: =C27+C49+C55+C62+C65 -> 7114995 | D26: =D27+D49+D55+D62+D65 -> 4336413 | E26: 36274860.52 | F26: 15252626 | G26: 17093757.33 | H26: 17093757.33 | I26: 12798569.55 | J26: 13566483.72 | K26: 14380472.75
A27: Community and social services | C27: =SUM(C28:C48) -> 0 | D27: =SUM(D28:D48) -> 0 | E27: 27768991.68 | F27: 9209765.732 | G27: 9345312.432 | H27: 9345312.432 | I27: 8534912.531 | J27: 9047007.283 | K27: 9589827.72
A28: Aged Care
A29: Agricultural
A30: Animal Care and Diseases
A31: Cemeteries, Funeral Parlours and Crematoriums | E31: 21888768.14 | F31: 5330343.31 | G31: =4611322.4+854567.61 -> 5465890.01 | H31: =4611322.4+854567.61 -> 5465890.01 | I31: 4654994.079 | J31: =I31*1.06 -> 4934293.724 | K31: =J31*1.06 -> 5230351.347
A32: Child Care Facilities
A33: Community Halls and Facilities | E33: 5880223.54 | F33: 3879422.422 | G33: 3879422.422 | H33: 3879422.422 | I33: 3879918.452 | J33: =I33*1.06 -> 4112713.559 | K33: =J33*1.06 -> 4359476.373
A34: Consumer Protection
A35: Cultural Matters
A36: Disaster Management
A37: Education
A38: Indigenous and Customary Law
A39: Industrial Promotion
A40: Language Policy
A41: Libraries and Archives
A42: Literacy Programmes
A43: Media Services
A44: Museums and Art Galleries
A45: Population Development
A46: Provincial Cultural Matters
A47: Theatres
A48: Zoo's
A49: Sport and recreation | C49: =SUM(C50:C54) -> 6909591 | D49: =SUM(D50:D54) -> 4120103 | E49: 8269168.84 | F49: 5612860.27 | G49: 7368444.9 | H49: 7368444.9 | I49: 3563657.02 | J49: 3777476.441 | K49: 4004125.028
A50: Beaches and Jetties
A51: Casinos, Racing, Gambling, Wagering
A52: Community Parks (including Nurseries)
A53: Recreational Facilities
A54: Sports Grounds and Stadiums | C54: 6909591 | D54: 4120103 | E54: 8269168.84 | F54: 5612860.27 | G54: =2358237.28+5010207.62 -> 7368444.9 | H54: =2358237.28+5010207.62 -> 7368444.9 | I54: =2358237.28+1205419.74 -> 3563657.02 | J54: =I54*1.06 -> 3777476.441 | K54: =J54*1.06 -> 4004125.028
A55: Public safety | C55: =SUM(C56:C61) -> 205404 | D55: =SUM(D56:D61) -> 216310 | E55: 236700 | F55: 430000 | G55: 380000 | H55: 380000 | I55: 700000 | J55: 742000 | K55: 786520
A56: Civil Defence
A57: Cleansing
A58: Control of Public Nuisances
A59: Fencing and Fences
A60: Fire Fighting and Protection | C60: 205404 | D60: 216310 | E60: 236700 | F60: 430000 | G60: 380000 | H60: 380000 | I60: 700000 | J60: =I60*1.06 -> 742000 | K60: =J60*1.06 -> 786520
A61: Licensing and Control of Animals
A62: Housing | C62: =SUM(C63:C64) -> 0 | D62: =SUM(D63:D64) -> 0 | E62: 0 | F62: 0 | G62: 0 | H62: 0 | I62: 0 | J62: 0 | K62: 0
A63: Housing
A64: Informal Settlements
A65: Health | C65: =SUM(C66:C72) -> 0 | D65: =SUM(D66:D72) -> 0 | E65: 0 | F65: 0 | G65: 0 | H65: 0 | I65: 0 | J65: 0 | K65: 0
A66: Ambulance
A67: Health Services
A68: Laboratory Services
A69: Food Control
A70: Health Surveillance and Prevention of Communicable Diseases including immunizations
A71: Vector Control
A72: Chemical Safety
A73: Economic and environmental services | C73: =C74+C85+C92 -> 12311264 | D73: =D74+D85+D92 -> 15780460 | E73: 22563962.48 | F73: 25455738.13 | G73: 28822098.14 | H73: 28822098.14 | I73: 21225383.46 | J73: 22498906.46 | K73: 23848840.85
A74: Planning and development | C74: =SUM(C75:C84) -> 2000 | D74: =SUM(D75:D84) -> 0 | E74: 6635595.746 | F74: 4620581.46 | G74: 4661865.609 | H74: 4661865.609 | I74: 4664342.657 | J74: 4944203.217 | K74: 5240855.41
A75: Billboards
A76: Corporate Wide Strategic Planning (IDPs, LEDs)
A77: Central City Improvement District
A78: Development Facilitation
A79: Economic Development/Planning | E79: 2758237.28 | F79: 2758237.28 | G79: 2799521.429 | H79: 2799521.429 | I79: 2801998.477 | J79: =I79*1.06 -> 2970118.386 | K79: =J79*1.06 -> 3148325.489
A80: Regional Planning and Development
A81: Town Planning, Building Regulations and Enforcement, and City Engineer | C81: 2000 | E81: 3877358.466 | F81: 1862344.18 | G81: 1862344.18 | H81: 1862344.18 | I81: 1862344.18 | J81: =I81*1.06 -> 1974084.831 | K81: =J81*1.06 -> 2092529.921
A82: Project Management Unit
A83: Provincial Planning
A84: Support to Local Municipalities
A85: Road transport | C85: =SUM(C86:C91) -> 12309264 | D85: =SUM(D86:D91) -> 15780460 | E85: 15928366.73 | F85: 20835156.67 | G85: 24160232.53 | H85: 24160232.53 | I85: 16561040.8 | J85: 17554703.25 | K85: 18607985.44
A86: Police Forces, Traffic and Street Parking Control
A87: Pounds
A88: Public Transport
A89: Road and Traffic Regulation
A90: Roads | C90: 12309264 | D90: 15780460 | E90: 15928366.73 | F90: 20835156.67 | G90: =7002091.05+17158141.48 -> 24160232.53 | H90: =7002091.05+17158141.48 -> 24160232.53 | I90: =7992967.42+8568073.38 -> 16561040.8 | J90: =I90*1.06 -> 17554703.25 | K90: =J90*1.06 -> 18607985.44
A91: Taxi Ranks
A92: Environmental protection | C92: =SUM(C93:C98) -> 0 | D92: =SUM(D93:D98) -> 0 | E92: 0 | F92: 0 | G92: 0 | H92: 0 | I92: 0 | J92: 0 | K92: 0
A93: Biodiversity and Landscape
A94: Coastal Protection
A95: Indigenous Forests
A96: Nature Conservation
A97: Pollution Control
A98: Soil Conservation
A99: Trading services | C99: =C100+C104+C108+C113 -> 153751609 | D99: =D100+D104+D108+D113 -> 172430958 | E99: 202319454.2 | F99: 272843178 | G99: 270870631.4 | H99: 270870631.4 | I99: 266352847.3 | J99: 282334018.1 | K99: =K100+K104+K108+K113 -> 299274059.2
A100: Energy sources | C100: =SUM(C101:C103) -> 45435565 | D100: =SUM(D101:D103) -> 49324095 | E100: 53737275.02 | F100: 57572098.6 | G100: 58333258.14 | H100: 58333258.14 | I100: 58620604.31 | J100: 62137840.56 | K100: 65866111
A101: Electricity | C101: 45435565 | D101: 49324095 | E101: 53737275.02 | F101: 57572098.6 | G101: =55662401.5602286-2329143.42+5000000 -> 58333258.14 | H101: =55662401.5602286-2329143.42+5000000 -> 58333258.14 | I101: =59940508.8359429-2866961.18+1547056.65 -> 58620604.31 | J101: =I101*1.06 -> 62137840.56 | K101: =J101*1.06 -> 65866111
A102: Street Lighting and Signal Systems
A103: Nonelectric Energy
A104: Water management | C104: =SUM(C105:C107) -> 62543611 | D104: =SUM(D105:D107) -> 69818760 | E104: 80958321.85 | F104: 130279857.6 | G104: 131014105.4 | H104: 131014105.4 | I104: 115284010.9 | J104: 122201051.5 | K104: 129533114.6
A105: Water Treatment | C105: 62543611 | D105: 69818760 | E105: 80958321.85 | F105: 130279857.6 | G105: =116503056.923657-33338437.27+47849485.74 -> 131014105.4 | H105: =116503056.923657-33338437.27+47849485.74 -> 131014105.4 | I105: =125597985.082629-35005359.13+24691384.92 -> 115284010.9 | J105: =I105*1.06 -> 122201051.5 | K105: =J105*1.06 -> 129533114.6
A106: Water Distribution
A107: Water Storage
A108: Waste water management | C108: =SUM(C109:C112) -> 30862203 | D108: =SUM(D109:D112) -> 32469467 | E108: 38874189.26 | F108: 48227020.75 | G108: 50516358.4 | H108: 50516358.4 | I108: 58816705.1 | J108: 62345707.41 | K108: 66086449.85
A109: Public Toilets
A110: Sewerage | C110: 30862203 | D110: 32469467 | E110: 38874189.26 | F110: 48227020.75 | G110: =35401969.3938583-7387838.54+22502227.55 -> 50516358.4 | H110: =35401969.3938583-7387838.54+22502227.55 -> 50516358.4 | I110: =38083415.2520297-7757230.46+28490520.31 -> 58816705.1 | J110: =I110*1.06 -> 62345707.41 | K110: =J110*1.06 -> 66086449.85
A111: Storm Water Management
A112: Waste Water Treatment
A113: Waste management | C113: =SUM(C114:C117) -> 14910230 | D113: =SUM(D114:D117) -> 20818636 | E113: 28749668.06 | F113: 36764201.05 | G113: 31006909.46 | H113: 31006909.46 | I113: 33631527.02 | J113: 35649418.64 | K113: 37788383.76
A114: Recycling
A115: Solid Waste Disposal (Landfill Sites) | C115: 14910230 | D115: 20818636 | E115: 28749668.06 | F115: 36764201.05 | G115: =39237561.9924572-8617022.54+386370.01 -> 31006909.46 | H115: =39237561.9924572-8617022.54+386370.01 -> 31006909.46 | I115: =42341025.9064-9134043.89+424545 -> 33631527.02 | J115: =I115*1.06 -> 35649418.64 | K115: =J115*1.06 -> 37788383.76
A116: Solid Waste Removal
A117: Street Cleaning
A118: Other | C118: =SUM(C119:C124) -> 0 | D118: =SUM(D119:D124) -> 0 | E118: 1701922.28 | F118: 1701922.28 | G118: 1701922.28 | H118: 1701922.28 | I118: 1701922.28 | J118: 1804037.617 | K118: 1912279.874
A119: Abattoirs
A120: Air Transport
A121: Forestry
A122: Licensing and Regulation
A123: Markets
A124: Tourism | E124: 1701922.28 | F124: 1701922.28 | G124: 1701922.28 | H124: 1701922.28 | I124: 1701922.28 | J124: =I124*1.06 -> 1804037.617 | K124: =J124*1.06 -> 1912279.874
A125: ="Total "&A4 -> Total Revenue - Functional | B125: 2 | C125: =C5+C26+C73+C99+C118 -> 293231554 | D125: 325288930 | E125: 357305702.9 | F125: 402472674.7 | G125: 407436438 | H125: 407436438 | I125: 394942680.2 | J125: 418639241 | K125: 443757595.5
A127: Expenditure - Functional
A128: =A5 -> Municipal governance and administration | C128: =C129+C132+C147 -> 89894160 | D128: 123126062 | E128: 110299822.5 | F128: 82707545.51 | G128: 93732965.58 | H128: 93732965.58 | I128: 92700989.73 | J128: 97631175.59 | K128: 102162111.7
A129: Executive and council | C129: =SUM(C130:C131) -> 20653305 | D129: 23465912 | E129: 26474858.83 | F129: 24701627.69 | G129: 27289615.38 | H129: 27289615.38 | I129: 29513637.12 | J129: 31284455.35 | K129: 33161522.67
A130: Mayor and Council | C130: 6676993 | D130: 6891541 | E130: 14442737.68 | F130: 14048812.01 | G130: 13993134.15 | H130: 13993134.15 | I130: 15710571.71 | J130: =I130*1.06 -> 16653206.01 | K130: =J130*1.06 -> 17652398.37
A131: Municipal Manager, Town Secretary and Chief Executive | C131: 13976312 | D131: 16574371 | E131: 12032121.15 | F131: 10652815.68 | G131: 13296481.22 | H131: 13296481.22 | I131: 13803065.41 | J131: =I131*1.06 -> 14631249.34 | K131: =J131*1.06 -> 15509124.3
A132: Finance and administration | C132: =SUM(C133:C146) -> 69240855 | D132: =SUM(D133:D146) -> 99660150 | E132: 83824963.67 | F132: 58005917.82 | G132: 66443350.2 | H132: 66443350.2 | I132: 63187352.61 | J132: 66346720.24 | K132: 69000589.05
A133: Administrative and Corporate Support
A134: Asset Management
A135: Budget and Treasury Office | C135: 43188649 | D135: 37358895 | E135: 42779404.26 | F135: 30795580.54 | G135: =40642877.6890583-553881.17 -> 40088996.52 | H135: =40642877.6890583-553881.17 -> 40088996.52 | I135: =37925327.0875446-587114.04 -> 37338213.05 | J135: =I135*1.05 -> 39205123.7 | K135: =J135*1.04 -> 40773328.65
A136: Finance
A137: Fleet Management
A138: Human Resources | C138: 26052206 | D138: 62301255 | E138: 41045559.41 | F138: 27210337.28 | G138: 26354353.68 | H138: 26354353.68 | I138: 25849139.56 | J138: =I138*1.05 -> 27141596.54 | K138: =J138*1.04 -> 28227260.4
A139: Information Technology
A140: Legal Services
A141: Marketing, Customer Relations, Publicity and Media Co-ordination
A142: Property Services
A143: Risk Management
A144: Security Services
A145: Supply Chain Management
A146: Valuation Service
A147: Internal audit | C147: =SUM(C148:C148) -> 0 | D147: 0 | E147: 0 | F147: 0 | G147: 0 | H147: 0 | I147: 0 | J147: 0 | K147: 0
A148: Governance Function
A149: Community and public safety | C149: =C150+C172+C178+C185+C188 -> 7363149 | D149: 5869888 | E149: 22170020.34 | F149: 24183077 | G149: 28340768.54 | H149: 28340768.54 | I149: 29739720.17 | J149: 31226706.17 | K149: 32475774.42
A150: Community and social services | C150: =SUM(C151:C171) -> 0 | D150: =SUM(D151:D171) -> 0 | E150: 17228201.2 | F150: 18202333.64 | G150: 21880200.21 | H150: 21880200.21 | I150: 22127596.32 | J150: 23233976.14 | K150: 24163335.19
A151: Aged Care
A152: =A29 -> Agricultural
A153: Animal Care and Diseases
A154: Cemeteries, Funeral Parlours and Crematoriums | E154: 14342181.6 | F154: 15316716.13 | G154: 18056355.27 | H154: 18056355.27 | I154: 18592011.16 | J154: =I154*1.05 -> 19521611.72 | K154: =J154*1.04 -> 20302476.19
A155: Child Care Facilities
A156: Community Halls and Facilities | E156: 2886019.6 | F156: 2885617.505 | G156: 3823844.94 | H156: 3823844.94 | I156: 3535585.163 | J156: =I156*1.05 -> 3712364.421 | K156: =J156*1.04 -> 3860858.998
A157: Consumer Protection
A158: Cultural Matters
A159: Disaster Management
A160: Education
A161: Indigenous and Customary Law
A162: Industrial Promotion
A163: Language Policy
A164: Libraries and Archives
A165: Literacy Programmes
A166: Media Services
A167: Museums and Art Galleries
A168: Population Development
A169: Provincial Cultural Matters
A170: Theatres
A171: Zoo's
A172: =A49 -> Sport and recreation | C172: =SUM(C173:C177) -> 337573 | D172: 503988 | E172: 474992.36 | F172: 595122.5345 | G172: 418374.8678 | H172: 418374.8678 | I172: 561623.7162 | J172: 589704.902 | K172: 613293.0981
A173: Beaches and Jetties
A174: Casinos, Racing, Gambling, Wagering
A175: Community Parks (including Nurseries)
A176: Recreational Facilities
A177: Sports Grounds and Stadiums | C177: 337573 | D177: 503988 | E177: 474992.36 | F177: 595122.5345 | G177: 418374.8678 | H177: 418374.8678 | I177: 561623.7162 | J177: =I177*1.05 -> 589704.902 | K177: =J177*1.04 -> 613293.0981
A178: Public safety | C178: =SUM(C179:C184) -> 7025576 | D178: 5365900 | E178: 4466826.78 | F178: 5385620.827 | G178: 6042193.463 | H178: 6042193.463 | I178: 7050500.125 | J178: 7403025.132 | K178: 7699146.137
A179: Civil Defence
A180: Cleansing
A181: Control of Public Nuisances
A182: =A59 -> Fencing and Fences
A183: Fire Fighting and Protection | C183: 7025576 | D183: 5365900 | E183: 4466826.78 | F183: 5385620.827 | G183: 6042193.463 | H183: 6042193.463 | I183: 7050500.125 | J183: =I183*1.05 -> 7403025.132 | K183: =J183*1.04 -> 7699146.137
A184: Licensing and Control of Animals
A185: Housing | C185: =SUM(C186:C187) -> 0 | D185: 0 | E185: 0 | F185: 0 | G185: 0 | H185: 0 | I185: 0 | J185: 0 | K185: 0
A186: Housing
A187: Informal Settlements
A188: Health | C188: =SUM(C189:C195) -> 0 | D188: =SUM(D189:D195) -> 0 | E188: 0 | F188: 0 | G188: 0 | H188: 0 | I188: 0 | J188: 0 | K188: 0
A189: Ambulance
A190: Health Services
A191: Laboratory Services
A192: Food Control
A193: Health Surveillance and Prevention of Communicable Diseases including immunizations
A194: Vector Control
A195: Chemical Safety
A196: Economic and environmental services | C196: =C197+C208+C215 -> 47023353 | D196: 56393049 | E196: 46761272.66 | F196: 51386087.11 | G196: 48887964.38 | H196: 48887964.38 | I196: 51248312.86 | J196: 53810728.5 | K196: 55963157.64
A197: Planning and development | C197: =SUM(C198:C207) -> 2058354 | D197: =SUM(D198:D207) -> 8105303 | E197: 3310877.98 | F197: 3269809.343 | G197: 3488578.32 | H197: 3488578.32 | I197: 4007528.231 | J197: 4207904.643 | K197: 4376220.828
A198: Billboards
A199: Corporate Wide Strategic Planning (IDPs, LEDs)
A200: Central City Improvement District
A201: Development Facilitation
... 55 more rows

Sheet A3-FinPerf V
A1: =muni&" - "&Approve2 -> FS193 Nketoana - Table A3 Budgeted Financial Performance (revenue and expenditure by municipal vote)
A2: =Vdesc -> Vote Description | B2: =head27 -> Ref | C2: =head1b -> 2014/15 | D2: =head1A -> 2015/16 | E2: =Head1 -> 2016/17 | F2: =Head2 -> Current Year 2017/18 | I2: =Head3 -> 2018/19 Medium Term Revenue & Expenditure Framework | L2: =Head4 -> LTFS
A3: R thousand | C3: =Head5 -> Audited Outcome | D3: =Head5 -> Audited Outcome | E3: =Head5 -> Audited Outcome | F3: =Head6 -> Original Budget | G3: =Head7 -> Adjusted Budget | H3: =Head8 -> Full Year Forecast | I3: =Head9 -> Budget Year 2018/19 | J3: =Head10 -> Budget Year +1 2019/20 | K3: =Head11 -> Budget Year +2 2020/21 | L3: =Head12 -> Forecast 2021/22 | M3: =Head13 -> Forecast 2022/23 | N3: =Head14 -> Forecast 2023/24 | O3: =Head15 -> Forecast 2024/25 | P3: =Head16 -> Forecast 2025/26 | Q3: =Head17 -> Forecast 2026/27 | R3: =Head18 -> Forecast 2027/28 | S3: =Head19 -> Forecast 2028/29 | T3: =Head20 -> Forecast 2029/30 | U3: =Head21 -> Forecast 2030/31 | V3: =Head22 -> Forecast 2031/32 | W3: =Head23 -> Forecast 2032/33
A4: Revenue by Vote | B4: 1
A5: =A3A!A5 -> Vote 1 - EXECUTIVE AND COUNCIL | C5: =A3A!C5 -> 0 | D5: =A3A!D5 -> 0 | E5: =A3A!E5 -> 19521342.64 | F5: =A3A!F5 -> 8546342.64 | G5: =A3A!G5 -> 8546342.64 | H5: =A3A!H5 -> 8546342.64 | I5: =A3A!I5 -> 8616342.64 | J5: =A3A!J5 -> 9133323.198 | K5: =A3A!K5 -> 9681322.59
A6: =A3A!A16 -> Vote 2 - FINANCE AND ADMINISTRATION | C6: =A3A!C16 -> 120053686 | D6: =A3A!D16 -> 132741099 | E6: =A3A!E16 -> 74924160.82 | F6: =A3A!F16 -> 78672867.67 | G6: =A3A!G16 -> 80401686.21 | H6: =A3A!H16 -> 80401686.21 | I6: =A3A!I16 -> 84247614.69 | J6: =A3A!J16 -> 89302471.57 | K6: =A3A!K16 -> 94660619.87
A7: =A3A!A27 -> Vote 3 - COMMUNITY SERVICES | C7: =A3A!C27 -> 12729956 | D7: =A3A!D27 -> 5904839 | E7: =A3A!E27 -> 36274860.52 | F7: =A3A!F27 -> 15252626 | G7: =A3A!G27 -> 17093757.33 | H7: =A3A!H27 -> 17093757.33 | I7: =A3A!I27 -> 12798569.55 | J7: =A3A!J27 -> 13566483.72 | K7: =A3A!K27 -> 14380472.75
A8: =A3A!A38 -> Vote 4 - WASTE MANAGEMENT | C8: =A3A!C38 -> 14910230 | D8: =A3A!D38 -> 20818636 | E8: =A3A!E38 -> 28749668.02 | F8: =A3A!F38 -> 36764201.05 | G8: =A3A!G38 -> 31006909.46 | H8: =A3A!H38 -> 31006909.46 | I8: =A3A!I38 -> 33631527.02 | J8: =A3A!J38 -> 35649418.64 | K8: =A3A!K38 -> 37788383.76
A9: =A3A!A49 -> Vote 5 - LOCAL ECONOMIC DEVELOPMENT | C9: =A3A!C49 -> 2000 | D9: =A3A!D49 -> 0 | E9: =A3A!E49 -> 4460159.56 | F9: =A3A!F49 -> 4460159.56 | G9: =A3A!G49 -> 4501443.709 | H9: =A3A!H49 -> 4501443.709 | I9: =A3A!I49 -> 4503920.757 | J9: =A3A!J49 -> 4774156.003 | K9: =A3A!K49 -> 5060605.363
A10: =A3A!A60 -> Vote 6 - ROADS TRANSPORT | C10: =A3A!C60 -> 12309264 | D10: =A3A!D60 -> 15780460 | E10: =A3A!E60 -> 15928366.73 | F10: =A3A!F60 -> 20835156.67 | G10: =A3A!G60 -> 24160232.53 | H10: =A3A!H60 -> 24160232.53 | I10: =A3A!I60 -> 16561040.8 | J10: =A3A!J60 -> 17554703.25 | K10: =A3A!K60 -> 18607985.44
A11: =A3A!A71 -> Vote 7 - WATER | C11: =A3A!C71 -> 62543611 | D11: =A3A!D71 -> 69818760 | E11: =A3A!E71 -> 80958321.85 | F11: =A3A!F71 -> 130279857.6 | G11: =A3A!G71 -> 105666937.2 | H11: =A3A!H71 -> 105666937.2 | I11: =A3A!I71 -> 115284010.9 | J11: =A3A!J71 -> 122201051.5 | K11: =A3A!K71 -> 129533114.6
A12: =A3A!A82 -> Vote 8 - ELECTRICITY | C12: =A3A!C82 -> 45435565 | D12: =A3A!D82 -> 49324095 | E12: =A3A!E82 -> 53737275.02 | F12: =A3A!F82 -> 57572098.6 | G12: =A3A!G82 -> 58333258.14 | H12: =A3A!H82 -> 58333258.14 | I12: =A3A!I82 -> 58620604.31 | J12: =A3A!J82 -> 62137840.56 | K12: =A3A!K82 -> 65866111
A13: =A3A!A93 -> Vote 9 - WASTE WATER | C13: =A3A!C93 -> 30862203 | D13: =A3A!D93 -> 32469467 | E13: =A3A!E93 -> 38874189.26 | F13: =A3A!F93 -> 48227020.75 | G13: =A3A!G93 -> 75863616.59 | H13: =A3A!H93 -> 75863616.59 | I13: =A3A!I93 -> 58816705.56 | J13: =A3A!J93 -> 62345707.9 | K13: =A3A!K93 -> 66086450.37
A14: =A3A!A104 -> Vote 10 - HOUSING | C14: =A3A!C104 -> 0 | D14: =A3A!D104 -> 0 | E14: =A3A!E104 -> 3877358.466 | F14: =A3A!F104 -> 1862344.18 | G14: =A3A!G104 -> 1862254.17 | H14: =A3A!H104 -> 1862254.17 | I14: =A3A!I104 -> 1862344.18 | J14: =A3A!J104 -> 1974084.831 | K14: =A3A!K104 -> 2092529.921
A15: =A3A!A115 -> Vote 11 - [NAME OF VOTE 11] | C15: =A3A!C115 -> 0 | D15: =A3A!D115 -> 0 | E15: =A3A!E115 -> 0 | F15: =A3A!F115 -> 0 | G15: =A3A!G115 -> 0 | H15: =A3A!H115 -> 0 | I15: =A3A!I115 -> 0 | J15: =A3A!J115 -> 0 | K15: =A3A!K115 -> 0 | L15: =A5A!L115 -> 0
A16: =A3A!A126 -> Vote 12 - [NAME OF VOTE 12] | C16: =A3A!C126 -> 0 | D16: =A3A!D126 -> 0 | E16: =A3A!E126 -> 0 | F16: =A3A!F126 -> 0 | G16: =A3A!G126 -> 0 | H16: =A3A!H126 -> 0 | I16: =A3A!I126 -> 0 | J16: =A3A!J126 -> 0 | K16: =A3A!K126 -> 0 | L16: =A5A!L126 -> 0
A17: =A3A!A137 -> Vote 13 - [NAME OF VOTE 13] | C17: =A3A!C137 -> 0 | D17: =A3A!D137 -> 0 | E17: =A3A!E137 -> 0 | F17: =A3A!F137 -> 0 | G17: =A3A!G137 -> 0 | H17: =A3A!H137 -> 0 | I17: =A3A!I137 -> 0 | J17: =A3A!J137 -> 0 | K17: =A3A!K137 -> 0 | L17: =A5A!L137 -> 0
A18: =A3A!A148 -> Vote 14 - [NAME OF VOTE 14] | C18: =A3A!C148 -> 0 | D18: =A3A!D148 -> 0 | E18: =A3A!E148 -> 0 | F18: =A3A!F148 -> 0 | G18: =A3A!G148 -> 0 | H18: =A3A!H148 -> 0 | I18: =A3A!I148 -> 0 | J18: =A3A!J148 -> 0 | K18: =A3A!K148 -> 0 | L18: =A5A!L148 -> 0
A19: =A3A!A159 -> Vote 15 - [NAME OF VOTE 15] | C19: =A3A!C159 -> 0 | D19: =A3A!D159 -> 0 | E19: =A3A!E159 -> 0 | F19: =A3A!F159 -> 0 | G19: =A3A!G159 -> 0 | H19: =A3A!H159 -> 0 | I19: =A3A!I159 -> 0 | J19: =A3A!J159 -> 0 | K19: =A3A!K159 -> 0 | L19: =A5A!L159 -> 0
A20: Total Revenue by Vote | B20: 2 | C20: =SUM(C5:C19) -> 298846515 | D20: =SUM(D5:D19) -> 326857356 | E20: 357305702.9 | F20: 402472674.7 | G20: 407436438 | H20: 407436438 | I20: 394942680.4 | J20: 418639241.2 | K20: 443757595.7
A22: Expenditure by Vote to be appropriated | B22: 1
A23: =A3A!A173 -> Vote 1 - EXECUTIVE AND COUNCIL | C23: =A3A!C173 -> 20653305 | D23: =A3A!D173 -> 23465912 | E23: =A3A!E173 -> 26474858.83 | F23: =A3A!F173 -> 24701627.69 | G23: =A3A!G173 -> 27289615.38 | H23: =A3A!H173 -> 27289615.38 | I23: =A3A!I173 -> 29513637.13 | J23: =A3A!J173 -> 30989318.98 | K23: =A3A!K173 -> 32228891.74
A24: =A3A!A184 -> Vote 2 - FINANCE AND ADMINISTRATION | C24: =A3A!C184 -> 69240855 | D24: =A3A!D184 -> 99660150 | E24: =A3A!E184 -> 83824963.65 | F24: =A3A!F184 -> 58005917.82 | G24: =A3A!G184 -> 66443350.2 | H24: =A3A!H184 -> 66443350.2 | I24: =A3A!I184 -> 63187352.61 | J24: =A3A!J184 -> 66346720.24 | K24: =A3A!K184 -> 69000589.05
A25: =A3A!A195 -> Vote 3 - COMMUNITY SERVICES | C25: =A3A!C195 -> 21660050 | D25: =A3A!D195 -> 14721311 | E25: =A3A!E195 -> 22170020.34 | F25: =A3A!F195 -> 24183077 | G25: =A3A!G195 -> 28340768.54 | H25: =A3A!H195 -> 28340768.54 | I25: =A3A!I195 -> 29739720.17 | J25: =A3A!J195 -> 31226706.17 | K25: =A3A!K195 -> 32475774.42
A26: =A3A!A206 -> Vote 4 - WASTE MANAGEMENT | C26: =A3A!C206 -> 30583995 | D26: =A3A!D206 -> 21964528 | E26: =A3A!E206 -> 20520558.49 | F26: =A3A!F206 -> 23741857.54 | G26: =A3A!G206 -> 23946999.26 | H26: =A3A!H206 -> 23946999.26 | I26: =A3A!I206 -> 24731365.39 | J26: =A3A!J206 -> 25967933.66 | K26: =A3A!K206 -> 27006651
A27: =A3A!A217 -> Vote 5 - LOCAL ECONOMIC DEVELOPMENT | C27: =A3A!C217 -> 2058354 | D27: =A3A!D217 -> 8105303 | E27: =A3A!E217 -> 2347814.38 | F27: =A3A!F217 -> 2336215.518 | G27: =A3A!G217 -> 2259843.317 | H27: =A3A!H217 -> 2259843.317 | I27: =A3A!I217 -> 2597181.17 | J27: =A3A!J217 -> 2727040.228 | K27: =A3A!K217 -> 2836121.837
A28: =A3A!A228 -> Vote 6 - ROADS TRANSPORT | C28: =A3A!C228 -> 44964999 | D28: =A3A!D228 -> 48287746 | E28: =A3A!E228 -> 43450394.68 | F28: =A3A!F228 -> 48116277.76 | G28: =A3A!G228 -> 45399386.06 | H28: =A3A!H228 -> 45399386.06 | I28: =A3A!I228 -> 47240784.62 | J28: =A3A!J228 -> 49602823.86 | K28: =A3A!K228 -> 51586936.81
A29: =A3A!A239 -> Vote 7 - WATER | C29: =A3A!C239 -> 58910306 | D29: =A3A!D239 -> 58956916 | E29: =A3A!E239 -> 45176037.29 | F29: =A3A!F239 -> 56073206.11 | G29: =A3A!G239 -> 51586266.55 | H29: =A3A!H239 -> 51586266.55 | I29: =A3A!I239 -> 54198276.71 | J29: =A3A!J239 -> 56908190.55 | K29: =A3A!K239 -> 59184518.17
A30: =A3A!A250 -> Vote 8 - ELECTRICITY | C30: =A3A!C250 -> 73308773 | D30: =A3A!D250 -> 69949988 | E30: =A3A!E250 -> 67523586.52 | F30: =A3A!F250 -> 71959366.67 | G30: =A3A!G250 -> 72665455.41 | H30: =A3A!H250 -> 72665455.41 | I30: =A3A!I250 -> 75740631.34 | J30: =A3A!J250 -> 79527662.91 | K30: =A3A!K250 -> 82708769.42
A31: =A3A!A261 -> Vote 9 - WASTE WATER | C31: =A3A!C261 -> 40696948 | D31: =A3A!D261 -> 22440550 | E31: =A3A!E261 -> 22604956.5 | F31: =A3A!F261 -> 25743626.76 | G31: =A3A!G261 -> 25950940.9 | H31: =A3A!H261 -> 25950940.9 | I31: =A3A!I261 -> 26910064.95 | J31: =A3A!J261 -> 28255568.2 | K31: =A3A!K261 -> 29385790.93
A32: =A3A!A272 -> Vote 10 - HOUSING | C32: =A3A!C272 -> 833342 | D32: =A3A!D272 -> 604704 | E32: =A3A!E272 -> 2030748.402 | F32: =A3A!F272 -> 2057315.588 | G32: =A3A!G272 -> 2324944.511 | H32: =A3A!H272 -> 2324944.511 | I32: =A3A!I272 -> 2682737.068 | J32: =A3A!J272 -> 2816873.921 | K32: =A3A!K272 -> 2929548.878
A33: =A3A!A283 -> Vote 11 - [NAME OF VOTE 11] | C33: =A3A!C283 -> 0 | D33: =A3A!D283 -> 0 | E33: =A3A!E283 -> 0 | F33: =A3A!F283 -> 0 | G33: =A3A!G283 -> 0 | H33: =A3A!H283 -> 0 | I33: =A3A!I283 -> 0 | J33: =A3A!J283 -> 0 | K33: =A3A!K283 -> 0 | L33: =A3A!L284 -> 0
A34: =A3A!A294 -> Vote 12 - [NAME OF VOTE 12] | C34: =A3A!C294 -> 0 | D34: =A3A!D294 -> 0 | E34: =A3A!E294 -> 0 | F34: =A3A!F294 -> 0 | G34: =A3A!G294 -> 0 | H34: =A3A!H294 -> 0 | I34: =A3A!I294 -> 0 | J34: =A3A!J294 -> 0 | K34: =A3A!K294 -> 0 | L34: =A3A!L295 -> 0
A35: =A3A!A305 -> Vote 13 - [NAME OF VOTE 13] | C35: =A3A!C305 -> 0 | D35: =A3A!D305 -> 0 | E35: =A3A!E305 -> 0 | F35: =A3A!F305 -> 0 | G35: =A3A!G305 -> 0 | H35: =A3A!H305 -> 0 | I35: =A3A!I305 -> 0 | J35: =A3A!J305 -> 0 | K35: =A3A!K305 -> 0 | L35: =A3A!L306 -> 0
A36: =A3A!A316 -> Vote 14 - [NAME OF VOTE 14] | C36: =A3A!C316 -> 0 | D36: =A3A!D316 -> 0 | E36: =A3A!E316 -> 0 | F36: =A3A!F316 -> 0 | G36: =A3A!G316 -> 0 | H36: =A3A!H316 -> 0 | I36: =A3A!I316 -> 0 | J36: =A3A!J316 -> 0 | K36: =A3A!K316 -> 0 | L36: =A3A!L317 -> 0
A37: =A3A!A327 -> Vote 15 - [NAME OF VOTE 15] | C37: =A3A!C327 -> 0 | D37: =A3A!D327 -> 0 | E37: =A3A!E327 -> 0 | F37: =A3A!F327 -> 0 | G37: =A3A!G327 -> 0 | H37: =A3A!H327 -> 0 | I37: =A3A!I327 -> 0 | J37: =A3A!J327 -> 0 | K37: =A3A!K327 -> 0 | L37: =A3A!L328 -> 0
A38: Total Expenditure by Vote | B38: 2 | C38: =SUM(C23:C37) -> 362910927 | D38: =SUM(D23:D37) -> 368157108 | E38: 336123939.1 | F38: 336918488.5 | G38: 346207570.1 | H38: 346207570.1 | I38: 356541751.2 | J38: 374368838.7 | K38: 389343592.3 | L38: =SUM(L23:L29) -> 0 | M38: 0 | N38: 0 | O38: 0 | P38: 0 | Q38: 0 | R38: 0 | S38: 0 | T38: 0 | U38: 0 | V38: 0 | W38: 0
A39: =result -> Surplus/(Deficit) for the year | B39: 2 | C39: =C20-C38 -> -64064412 | D39: -41299752 | E39: 21181763.79 | F39: 65554186.24 | G39: 61228867.84 | H39: 61228867.84 | I39: 38400929.22 | J39: 44270402.49 | K39: 54414003.41 | L39: 0 | M39: 0 | N39: 0 | O39: 0 | P39: 0 | Q39: 0 | R39: 0 | S39: 0 | T39: 0 | U39: 0 | V39: 0 | W39: 0
A40: =head27a -> References
A41: 1. Insert 'Vote'; e.g. department, if different to functional classification structure
A42: 2. Must reconcile to Budgeted Financial Performance (revenue and expenditure)
A43: 3. Assign share in 'associate' to relevant Vote
A45: ="check "&A39 -> check Surplus/(Deficit) for the year | C45: =C39-A3A!C340 -> 0 | D45: =D39-A3A!D340 -> 0 | E45: =E39-A3A!E340 -> 0 | F45: =F39-A3A!F340 -> 0 | G45: =G39-A3A!G340 -> 0 | H45: =H39-A3A!H340 -> 0 | I45: =I39-A3A!I340 -> 0 | J45: =J39-A3A!J340 -> 0 | K45: =K39-A3A!K340 -> 0

Sheet A3A
A1: =muni&" - "&Approve2&"A" -> FS193 Nketoana - Table A3 Budgeted Financial Performance (revenue and expenditure by municipal vote)A
A2: =Vdesc -> Vote Description | B2: =head27 -> Ref | C2: =head1b -> 2014/15 | D2: =head1A -> 2015/16 | E2: =Head1 -> 2016/17 | F2: =Head2 -> Current Year 2017/18 | I2: =Head3 -> 2018/19 Medium Term Revenue & Expenditure Framework | L2: =Head4 -> LTFS
A3: R thousand | C3: =Head5 -> Audited Outcome | D3: =Head5 -> Audited Outcome | E3: =Head5 -> Audited Outcome | F3: =Head6 -> Original Budget | G3: =Head7 -> Adjusted Budget | H3: =Head8 -> Full Year Forecast | I3: =Head9 -> Budget Year 2018/19 | J3: =Head10 -> Budget Year +1 2019/20 | K3: =Head11 -> Budget Year +2 2020/21 | L3: =Head12 -> Forecast 2021/22 | M3: =Head13 -> Forecast 2022/23 | N3: =Head14 -> Forecast 2023/24 | O3: =Head15 -> Forecast 2024/25 | P3: =Head16 -> Forecast 2025/26 | Q3: =Head17 -> Forecast 2026/27 | R3: =Head18 -> Forecast 2027/28 | S3: =Head19 -> Forecast 2028/29 | T3: =Head20 -> Forecast 2029/30 | U3: =Head21 -> Forecast 2030/31 | V3: =Head22 -> Forecast 2031/32 | W3: =Head23 -> Forecast 2032/33
A4: Revenue by Vote | B4: 1
A5: ='Org structure'!A2 -> Vote 1 - EXECUTIVE AND COUNCIL | C5: =SUM(C6:C15) -> 0 | D5: =SUM(D6:D15) -> 0 | E5: 19521342.64 | F5: 8546342.64 | G5: 8546342.64 | H5: 8546342.64 | I5: 8616342.64 | J5: 9133323.198 | K5: 9681322.59
A6: ='Org structure'!E3 -> 1.1 - Mayor's Office | E6: 2217237.29 | F6: 2217237.29 | G6: 2217237.29 | H6: 2217237.29 | I6: 2217237.29 | J6: =I6*1.06 -> 2350271.527 | K6: =J6*1.06 -> 2491287.819
A7: ='Org structure'!E4 -> 1.2 - Speaker's Office | E7: 8215129.07 | F7: 2215129.07 | G7: 2215129.07 | H7: 2215129.07 | I7: 2215129.07 | J7: =I7*1.06 -> 2348036.814 | K7: 2488919.023
A8: ='Org structure'!E5 -> 1.3 - Municipal Manager's Office | E8: 9088976.28 | F8: 4113976.28 | G8: 4113976.28 | H8: 4113976.28 | I8: 4183976.28 | J8: =I8*1.06 -> 4435014.857 | K8: 4701115.748
A9: ='Org structure'!E6 -> 1.4 - IDP and PMS
A10: ='Org structure'!E7 -> 1.5 - Internal Audit
A11: ='Org structure'!E8 -> 1.6 - Special Programmes
A12: ='Org structure'!E9 -> 0
A13: ='Org structure'!E10 -> 0
A14: ='Org structure'!E11 -> 0
A15: ='Org structure'!E12 -> 0
A16: ='Org structure'!A3 -> Vote 2 - FINANCE AND ADMINISTRATION | C16: =SUM(C17:C26) -> 120053686 | D16: =SUM(D17:D26) -> 132741099 | E16: 74924160.82 | F16: 78672867.67 | G16: 80401686.21 | H16: 80401686.21 | I16: 84247614.69 | J16: 89302471.57 | K16: 94660619.87
A17: ='Org structure'!E14 -> 2.1 - Human Resource
A18: ='Org structure'!E15 -> 2.2 - Records Management
A19: ='Org structure'!E16 -> 2.3 - Legal Services
A20: ='Org structure'!E17 -> 2.4 - Administration | C20: 455580 | D20: 3227527 | E20: 336367.6414 | F20: 364124.5564 | G20: 564681.4446 | H20: 564681.4446 | I20: 614135.9169 | J20: =I20*1.06 -> 650984.0719 | K20: 690043.1162
A21: ='Org structure'!E18 -> 2.5 - Revenue Management
A22: ='Org structure'!E19 -> 2.6 - Supply Chain Management
A23: ='Org structure'!E20 -> 2.7 - CFO | C23: 119598106 | D23: 129513572 | E23: 74587793.18 | F23: 78308743.11 | G23: =80390885.9319074-553881.17 -> 79837004.76 | H23: =80390885.9319074-553881.17 -> 79837004.76 | I23: =84220592.8128367-587114.04 -> 83633478.77 | J23: =I23*1.06 -> 88651487.5 | K23: 93970576.75
A24: ='Org structure'!E21 -> 2.8 - Director Corporate Services
A25: ='Org structure'!E22 -> 2.9 - Budget and Treasury
A26: ='Org structure'!E23 -> 2.10 - Expenditure
A27: ='Org structure'!A4 -> Vote 3 - COMMUNITY SERVICES | C27: =SUM(C28:C37) -> 12729956 | D27: 5904839 | E27: 36274860.52 | F27: 15252626 | G27: 17093757.33 | H27: 17093757.33 | I27: 12798569.55 | J27: 13566483.72 | K27: 14380472.75
A28: ='Org structure'!E25 -> 3.1 - Cementry | E28: 21888768.14 | F28: 5330343.31 | G28: 5465890.01 | H28: 5465890.01 | I28: 4654994.079 | J28: =I28*1.06 -> 4934293.724 | K28: 5230351.347
A29: ='Org structure'!E26 -> 3.2 - Parks
A30: ='Org structure'!E27 -> 3.3 - Director Community Services | C30: 5614961 | D30: 1568426 | E30: 5880223.54 | F30: 3879422.422 | G30: 3879422.422 | H30: 3879422.422 | I30: 3879918.452 | J30: =I30*1.06 -> 4112713.559 | K30: 4359476.373
A31: ='Org structure'!E28 -> 3.4 - Traffic Services | C31: 205404 | D31: 216310 | E31: 236700 | F31: 430000 | G31: 380000 | H31: 380000 | I31: 700000 | J31: 742000 | K31: 786520
A32: ='Org structure'!E29 -> 3.5 - Fire Services
A33: ='Org structure'!E30 -> 3.6 - Sports and Recreation | C33: 6909591 | D33: 4120103 | E33: 8269168.84 | F33: 5612860.27 | G33: 7368444.9 | H33: 7368444.9 | I33: =2358237.28+1205419.74 -> 3563657.02 | J33: =I33*1.06 -> 3777476.441 | K33: 4004125.028
A34: ='Org structure'!E31 -> 3.7 - Libraries
A35: ='Org structure'!E32 -> 0
A36: ='Org structure'!E33 -> 0
A37: ='Org structure'!E34 -> 0
A38: ='Org structure'!A5 -> Vote 4 - WASTE MANAGEMENT | C38: =SUM(C39:C48) -> 14910230 | D38: 20818636 | E38: 28749668.02 | F38: 36764201.05 | G38: 31006909.46 | H38: 31006909.46 | I38: 33631527.02 | J38: 35649418.64 | K38: 37788383.76
A39: ='Org structure'!E36 -> 4.1 - Waste Collection
A40: ='Org structure'!E37 -> 4.2 - Solid Waste Disposal | C40: 14910230 | D40: 20818636 | E40: 28749668.02 | F40: 36764201.05 | G40: =39623932.0024572-8617022.54 -> 31006909.46 | H40: =39623932.0024572-8617022.54 -> 31006909.46 | I40: =42341025.9064+424545-9134043.89 -> 33631527.02 | J40: =I40*1.06 -> 35649418.64 | K40: 37788383.76
A41: ='Org structure'!E38 -> 4.3 - Solid Waste Management
A42: ='Org structure'!E39 -> 0
A43: ='Org structure'!E40 -> 0
A44: ='Org structure'!E41 -> 0
A45: ='Org structure'!E42 -> 0
A46: ='Org structure'!E43 -> 0
A47: ='Org structure'!E44 -> 0
A48: ='Org structure'!E45 -> 0
A49: ='Org structure'!A6 -> Vote 5 - LOCAL ECONOMIC DEVELOPMENT | C49: =SUM(C50:C59) -> 2000 | D49: =SUM(D50:D59) -> 0 | E49: 4460159.56 | F49: 4460159.56 | G49: 4501443.709 | H49: 4501443.709 | I49: 4503920.757 | J49: 4774156.003 | K49: 5060605.363
A50: ='Org structure'!E47 -> 5.1 - SMME Hub
A51: ='Org structure'!E48 -> 5.2 - Tourism | E51: 1701922.28 | F51: 1701922.28 | G51: 1701922.28 | H51: 1701922.28 | I51: 1701922.28 | J51: =I51*1.06 -> 1804037.617 | K51: 1912279.874
A52: ='Org structure'!E49 -> 5.3 - Economic Development | C52: 2000 | E52: 2758237.28 | F52: 2758237.28 | G52: 2799521.429 | H52: 2799521.429 | I52: 2801998.477 | J52: =I52*1.06 -> 2970118.386 | K52: 3148325.489
A53: ='Org structure'!E50 -> 0
A54: ='Org structure'!E51 -> 0
A55: ='Org structure'!E52 -> 0
A56: ='Org structure'!E53 -> 0
A57: ='Org structure'!E54 -> 0
A58: ='Org structure'!E55 -> 0
A59: ='Org structure'!E56 -> 0
A60: ='Org structure'!A7 -> Vote 6 - ROADS TRANSPORT | C60: =SUM(C61:C70) -> 12309264 | D60: =SUM(D61:D70) -> 15780460 | E60: 15928366.73 | F60: 20835156.67 | G60: 24160232.53 | H60: 24160232.53 | I60: 16561040.8 | J60: 17554703.25 | K60: 18607985.44
A61: ='Org structure'!E58 -> 6.1 - Roads | C61: 12309264 | D61: 15780460 | E61: 15928366.73 | F61: 20835156.67 | G61: =24160232.53 -> 24160232.53 | H61: 24160232.53 | I61: =7992967.42+8568073.38 -> 16561040.8 | J61: =I61*1.06 -> 17554703.25 | K61: 18607985.44
A62: ='Org structure'!E59 -> 6.2 - Storm Water
A63: ='Org structure'!E60 -> 6.3 - Director Technical
A64: ='Org structure'!E61 -> 0
A65: ='Org structure'!E62 -> 0
A66: ='Org structure'!E63 -> 0
A67: ='Org structure'!E64 -> 0
A68: ='Org structure'!E65 -> 0
A69: ='Org structure'!E66 -> 0
A70: ='Org structure'!E67 -> 0
A71: ='Org structure'!A8 -> Vote 7 - WATER | C71: =SUM(C72:C81) -> 62543611 | D71: 69818760 | E71: 80958321.85 | F71: 130279857.6 | G71: 105666937.2 | H71: 105666937.2 | I71: 115284010.9 | J71: 122201051.5 | K71: 129533114.6
A72: ='Org structure'!E69 -> 7.1 - WTW Reitz
A73: ='Org structure'!E70 -> 7.2 - WTW Mamafubedu
A74: ='Org structure'!E71 -> 7.3 - WTW Lindley
A75: ='Org structure'!E72 -> 7.4 - WTW Arlington
A76: ='Org structure'!E73 -> 7.5 - Water Network Reitz
A77: ='Org structure'!E74 -> 7.6 - Water Network Mamafubedu
A78: ='Org structure'!E75 -> 7.7 - Water Network Lindley
A79: ='Org structure'!E76 -> 7.8 - Water Network Arlington
A80: ='Org structure'!E77 -> 7.9 - General Water Works | C80: 62543611 | D80: 69818760 | E80: 80958321.85 | F80: 130279857.6 | G80: =139005284.473657-33338347.27 -> 105666937.2 | H80: =139005284.473657-33338347.27 -> 105666937.2 | I80: =125597985.082629+24691384.92-35005359.13 -> 115284010.9 | J80: =I80*1.06 -> 122201051.5 | K80: 129533114.6
A81: ='Org structure'!E78 -> 0
A82: ='Org structure'!A9 -> Vote 8 - ELECTRICITY | C82: =SUM(C83:C92) -> 45435565 | D82: =SUM(D83:D92) -> 49324095 | E82: 53737275.02 | F82: 57572098.6 | G82: 58333258.14 | H82: 58333258.14 | I82: 58620604.31 | J82: 62137840.56 | K82: 65866111
A83: ='Org structure'!E80 -> 8.1 - Reitz Electricity
A84: ='Org structure'!E81 -> 8.2 - Mamafubedu Electricity
A85: ='Org structure'!E82 -> 8.3 - Lindley Electricity
A86: ='Org structure'!E83 -> 8.4 - General Electricity Works | C86: 45435565 | D86: 49324095 | E86: 53737275.02 | F86: 57572098.6 | G86: =60662401.5602286-2329143.42 -> 58333258.14 | H86: =60662401.5602286-2329143.42 -> 58333258.14 | I86: =59940508.8359429+1547056.65-2866961.18 -> 58620604.31 | J86: =I86*1.06 -> 62137840.56 | K86: 65866111
A87: ='Org structure'!E84 -> 0
A88: ='Org structure'!E85 -> 0
A89: ='Org structure'!E86 -> 0
A90: ='Org structure'!E87 -> 0
A91: ='Org structure'!E88 -> 0
A92: ='Org structure'!E89 -> 0
A93: ='Org structure'!A10 -> Vote 9 - WASTE WATER | C93: =SUM(C94:C103) -> 30862203 | D93: =SUM(D94:D103) -> 32469467 | E93: 38874189.26 | F93: 48227020.75 | G93: 75863616.59 | H93: 75863616.59 | I93: 58816705.56 | J93: 62345707.9 | K93: 66086450.37
A94: ='Org structure'!E91 -> 9.1 - WWTW Reitz | C94: 30862203 | D94: 32469467 | E94: 38874189.26 | F94: 48227020.75 | G94: =83251455.1338583-7387838.54 -> 75863616.59 | H94: =83251455.1338583-7387838.54 -> 75863616.59 | I94: =38083415.2520297+28490520.31-7757230 -> 58816705.56 | J94: =I94*1.06 -> 62345707.9 | K94: 66086450.37
A95: ='Org structure'!E92 -> 9.2 - Network Reitz
A96: ='Org structure'!E93 -> 9.3 - Network Mamafubedu
A97: ='Org structure'!E94 -> 9.4 - WWTW Mamafubedu
A98: ='Org structure'!E95 -> 9.5 - WWTW Lindley
A99: ='Org structure'!E96 -> 9.6 - Network Lindley
A100: ='Org structure'!E97 -> 9.7 - WWTW Arlington
A101: ='Org structure'!E98 -> 9.8 - Network Arlington
A102: ='Org structure'!E99 -> 0
A103: ='Org structure'!E100 -> 0
A104: ='Org structure'!A11 -> Vote 10 - HOUSING | C104: =SUM(C105:C114) -> 0 | D104: =SUM(D105:D114) -> 0 | E104: 3877358.466 | F104: 1862344.18 | G104: 1862254.17 | H104: 1862254.17 | I104: 1862344.18 | J104: 1974084.831 | K104: 2092529.921
A105: ='Org structure'!E102 -> 10.1 - Urban Planning | E105: 3877358.466 | F105: 1862344.18 | G105: =1862344.18-90.01 -> 1862254.17 | H105: =1862344.18-90.01 -> 1862254.17 | I105: 1862344.18 | J105: =I105*1.06 -> 1974084.831 | K105: 2092529.921
A106: ='Org structure'!E103 -> 10.2 - Housing
A107: ='Org structure'!E104 -> 0
A108: ='Org structure'!E105 -> 0
A109: ='Org structure'!E106 -> 0
A110: ='Org structure'!E107 -> 0
A111: ='Org structure'!E108 -> 0
A112: ='Org structure'!E109 -> 0
A113: ='Org structure'!E110 -> 0
A114: ='Org structure'!E111 -> 0
A115: ='Org structure'!A12 -> Vote 11 - [NAME OF VOTE 11] | C115: =SUM(C116:C125) -> 0 | D115: =SUM(D116:D125) -> 0 | E115: 0 | F115: 0 | G115: 0 | H115: 0 | I115: 0 | J115: 0 | K115: 0
A116: ='Org structure'!E113 -> 11.1 - [Name of sub-vote]
A117: ='Org structure'!E114 -> 0
A118: ='Org structure'!E115 -> 0
A119: ='Org structure'!E116 -> 0
A120: ='Org structure'!E117 -> 0
A121: ='Org structure'!E118 -> 0
A122: ='Org structure'!E119 -> 0
A123: ='Org structure'!E120 -> 0
A124: ='Org structure'!E121 -> 0
A125: ='Org structure'!E122 -> 0
A126: ='Org structure'!A13 -> Vote 12 - [NAME OF VOTE 12] | C126: =SUM(C127:C136) -> 0 | D126: =SUM(D127:D136) -> 0 | E126: 0 | F126: 0 | G126: 0 | H126: 0 | I126: 0 | J126: 0 | K126: 0
A127: ='Org structure'!E124 -> 12.1 - [Name of sub-vote]
A128: ='Org structure'!E125 -> 0
A129: ='Org structure'!E126 -> 0
A130: ='Org structure'!E127 -> 0
A131: ='Org structure'!E128 -> 0
A132: ='Org structure'!E129 -> 0
A133: ='Org structure'!E130 -> 0
A134: ='Org structure'!E131 -> 0
A135: ='Org structure'!E132 -> 0
A136: ='Org structure'!E133 -> 0
A137: ='Org structure'!A14 -> Vote 13 - [NAME OF VOTE 13] | C137: =SUM(C138:C147) -> 0 | D137: =SUM(D138:D147) -> 0 | E137: 0 | F137: 0 | G137: 0 | H137: 0 | I137: 0 | J137: 0 | K137: 0
A138: ='Org structure'!E135 -> 13.1 - [Name of sub-vote]
A139: ='Org structure'!E136 -> 0
A140: ='Org structure'!E137 -> 0
A141: ='Org structure'!E138 -> 0
A142: ='Org structure'!E139 -> 0
A143: ='Org structure'!E140 -> 0
A144: ='Org structure'!E141 -> 0
A145: ='Org structure'!E142 -> 0
A146: ='Org structure'!E143 -> 0
A147: ='Org structure'!E144 -> 0
A148: ='Org structure'!A15 -> Vote 14 - [NAME OF VOTE 14] | C148: =SUM(C149:C158) -> 0 | D148: =SUM(D149:D158) -> 0 | E148: 0 | F148: 0 | G148: 0 | H148: 0 | I148: 0 | J148: 0 | K148: 0
A149: ='Org structure'!E146 -> 14.1 - [Name of sub-vote]
A150: ='Org structure'!E147 -> 0
A151: ='Org structure'!E148 -> 0
A152: ='Org structure'!E149 -> 0
A153: ='Org structure'!E150 -> 0
A154: ='Org structure'!E151 -> 0
A155: ='Org structure'!E152 -> 0
A156: ='Org structure'!E153 -> 0
A157: ='Org structure'!E154 -> 0
A158: ='Org structure'!E155 -> 0
A159: ='Org structure'!A16 -> Vote 15 - [NAME OF VOTE 15] | C159: =SUM(C160:C169) -> 0 | D159: =SUM(D160:D169) -> 0 | E159: 0 | F159: 0 | G159: 0 | H159: 0 | I159: 0 | J159: 0 | K159: 0
A160: ='Org structure'!E157 -> 15.1 - [Name of sub-vote]
A161: ='Org structure'!E158 -> 0
A162: ='Org structure'!E159 -> 0
A163: ='Org structure'!E160 -> 0
A164: ='Org structure'!E161 -> 0
A165: ='Org structure'!E162 -> 0
A166: ='Org structure'!E163 -> 0
A167: ='Org structure'!E164 -> 0
A168: ='Org structure'!E165 -> 0
A169: ='Org structure'!E166 -> 0
A170: Total Revenue by Vote | B170: 2 | C170: =C5+C16+C27+C38+C49+C60+C71+C82+C93+C104+C115+C126+C137+C148+C159 -> 298846515 | D170: =D5+D16+D27+D38+D49+D60+D71+D82+D93+D104+D115+D126+D137+D148+D159 -> 326857356 | E170: =E5+E16+E27+E38+E49+E60+E71+E82+E93+E104+E115+E126+E137+E148+E159 -> 357305702.9 | F170: 402472674.7 | G170: 407436438 | H170: 407436438 | I170: =I5+I16+I27+I38+I49+I60+I71+I82+I93+I104+I115+I126+I137+I148+I159 -> 394942680.4 | J170: 418639241.2 | K170: 443757595.7 | L170: =SUM(L78:L81) -> 0 | M170: 0 | N170: 0 | O170: 0 | P170: 0 | Q170: 0 | R170: 0 | S170: 0 | T170: 0 | U170: 0 | V170: 0 | W170: 0
A172: Expenditure by Vote | B172: 1
A173: =A5 -> Vote 1 - EXECUTIVE AND COUNCIL | C173: =SUM(C174:C183) -> 20653305 | D173: 23465912 | E173: 26474858.83 | F173: 24701627.69 | G173: 27289615.38 | H173: 27289615.38 | I173: 29513637.13 | J173: 30989318.98 | K173: 32228891.74
A174: =A6 -> 1.1 - Mayor's Office | C174: 2225664 | D174: 2297180 | E174: 4267895.02 | F174: 3859738.837 | G174: 3439666.495 | H174: 3439666.495 | I174: 4333743.526 | J174: =I174*1.05 -> 4550430.702 | K174: =J174*1.04 -> 4732447.93
A175: 1.2 - Speaker's Office | C175: 4451329 | D175: 4594361 | E175: 10174842.66 | F175: 10189073.18 | G175: 10553467.66 | H175: 10553467.66 | I175: 11376828.19 | J175: =I175*1.05 -> 11945669.6 | K175: =J175*1.04 -> 12423496.38
A176: 1.3 - Municipal Manager's Office | C176: 13976312 | D176: 16574371 | E176: 12032121.15 | F176: 10652815.68 | G176: 13296481.22 | H176: 13296481.22 | I176: 13803065.41 | J176: =I176*1.05 -> 14493218.69 | K176: =J176*1.04 -> 15072947.43
A177: 1.4 - IDP and PMS
A178: 1.5 - Internal Audit
A179: 1.6 - Special Programmes
A180: 0
A181: 0
A182: 0
A183: 0
A184: =A16 -> Vote 2 - FINANCE AND ADMINISTRATION | C184: =SUM(C185:C194) -> 69240855 | D184: =SUM(D185:D194) -> 99660150 | E184: =SUM(E185:E194) -> 83824963.65 | F184: 58005917.82 | G184: 66443350.2 | H184: 66443350.2 | I184: 63187352.61 | J184: 66346720.24 | K184: 69000589.05
A185: =A17 -> 2.1 - Human Resource
A186: 2.2 - Records Management
A187: 2.3 - Legal Services
A188: 2.4 - Administration | C188: 26052206 | D188: 62301255 | E188: 41045559.39 | F188: 27210337.28 | G188: 26354353.68 | H188: 26354353.68 | I188: 25849139.56 | J188: =I188*1.05 -> 27141596.54 | K188: =J188*1.04 -> 28227260.4
A189: 2.5 - Revenue Management
A190: 2.6 - Supply Chain Management
A191: 2.7 - CFO | C191: 43188649 | D191: 37358895 | E191: 42779404.26 | F191: 30795580.54 | G191: =40642877.6890583-553881.17 -> 40088996.52 | H191: =40642877.6890583-553881.17 -> 40088996.52 | I191: =37925327.0875446-587114.04 -> 37338213.05 | J191: =I191*1.05 -> 39205123.7 | K191: =J191*1.04 -> 40773328.65
A192: 2.8 - Director Corporate Services
A193: 2.9 - Budget and Treasury
A194: 2.10 - Expenditure
A195: =A27 -> Vote 3 - COMMUNITY SERVICES | C195: =SUM(C196:C205) -> 21660050 | D195: 14721311 | E195: 22170020.34 | F195: 24183077 | G195: 28340768.54 | H195: 28340768.54 | I195: 29739720.17 | J195: 31226706.17 | K195: 32475774.42
A196: 3.1 - Cementry | E196: 14342181.6 | F196: 15316716.13 | G196: 18056355.27 | H196: 18056355.27 | I196: 18592011.16 | J196: =I196*1.05 -> 19521611.72 | K196: =J196*1.04 -> 20302476.19
A197: 3.2 - Parks
A198: 3.3 - Director Community Services | C198: 14296901 | D198: 8851423 | E198: 2886019.6 | F198: 2885617.505 | G198: 3823844.94 | H198: 3823844.94 | I198: 3535585.163 | J198: =I198*1.05 -> 3712364.421 | K198: =J198*1.04 -> 3860858.998
A199: 3.4 - Traffic Services | C199: 7025576 | D199: 5365900 | E199: 4466826.78 | F199: 5385620.827 | G199: 6042193.463 | H199: 6042193.463 | I199: 7050500.125 | J199: =I199*1.05 -> 7403025.132 | K199: =J199*1.04 -> 7699146.137
A200: 3.5 - Fire Services
A201: 3.6 - Sports and Recreation | C201: 337573 | D201: 503988 | E201: 474992.36 | F201: 595122.5345 | G201: 418374.8678 | H201: 418374.8678 | I201: 561623.7162 | J201: =I201*1.05 -> 589704.902 | K201: =J201*1.04 -> 613293.0981
... 144 more rows

Sheet A4-FinPerf RE
A1: =muni&" - "&Approve4 -> FS193 Nketoana - Table A4 Budgeted Financial Performance (revenue and expenditure)
A2: =desc -> Description | B2: =head27 -> Ref | C2: =head1b -> 2014/15 | D2: =head1A -> 2015/16 | E2: =Head1 -> 2016/17 | F2: =Head2 -> Current Year 2017/18 | J2: =Head3 -> 2018/19 Medium Term Revenue & Expenditure Framework | M2: =Head4 -> LTFS
A3: R thousand | B3: 1 | C3: =Head5 -> Audited Outcome | D3: =Head5 -> Audited Outcome | E3: =Head5 -> Audited Outcome | F3: =Head6 -> Original Budget | G3: =Head7 -> Adjusted Budget | H3: =Head8 -> Full Year Forecast | I3: =Head5b -> Pre-audit outcome | J3: =Head9 -> Budget Year 2018/19 | K3: =Head10 -> Budget Year +1 2019/20 | L3: =Head11 -> Budget Year +2 2020/21 | M3: =Head12 -> Forecast 2021/22 | N3: =Head13 -> Forecast 2022/23 | O3: =Head14 -> Forecast 2023/24 | P3: =Head15 -> Forecast 2024/25 | Q3: =Head16 -> Forecast 2025/26 | R3: =Head17 -> Forecast 2026/27 | S3: =Head18 -> Forecast 2027/28 | T3: =Head19 -> Forecast 2028/29 | U3: =Head20 -> Forecast 2029/30 | V3: =Head21 -> Forecast 2030/31 | W3: =Head22 -> Forecast 2031/32 | X3: =Head23 -> Forecast 2032/33
A4: Revenue By Source
A5: Property rates | B5: 2 | C5: ='SA1'!C9 -> 15835059 | D5: ='SA1'!D9 -> 16612976 | E5: ='SA1'!E9 -> 19537745.91 | F5: ='SA1'!F9 -> 20340678.09 | G5: 19875809.39 | H5: 19875809.39 | I5: 19875809.39 | J5: ='SA1'!J9 -> 21272654.85 | K5: ='SA1'!K9 -> 22549014.15 | L5: ='SA1'!L9 -> 23901954.99
A6: Service charges - electricity revenue | B6: 2 | C6: ='SA1'!C15 -> 41780565 | D6: ='SA1'!D15 -> 46084095 | E6: ='SA1'!E15 -> 49523648.54 | F6: ='SA1'!F15 -> 49940173.37 | G6: 50562788.32 | H6: 50562788.32 | I6: 50562788.32 | J6: ='SA1'!J15 -> 53727405.79 | K6: ='SA1'!K15 -> 56951050.13 | L6: ='SA1'!L15 -> 60368113.14
A7: Service charges - water revenue | B7: 2 | C7: ='SA1'!C21 -> 38736065 | D7: ='SA1'!D21 -> 44260561 | E7: ='SA1'!E21 -> 47531660.66 | F7: ='SA1'!F21 -> 51324389.06 | G7: 52064183.67 | H7: 52064183.67 | I7: 52064183.67 | J7: ='SA1'!J21 -> 56375445.28 | K7: ='SA1'!K21 -> 59757971.99 | L7: ='SA1'!L21 -> 63343450.31
A8: Service charges - sanitation revenue | B8: 2 | C8: ='SA1'!C27 -> 15902118 | D8: ='SA1'!D27 -> 19500461 | E8: ='SA1'!E27 -> 20313173.08 | F8: ='SA1'!F27 -> 21134998.3 | G8: 21179679.46 | H8: 21179679.46 | I8: 21179679.46 | J8: ='SA1'!J27 -> 22810013.8 | K8: ='SA1'!K27 -> 24178614.62 | L8: ='SA1'!L27 -> 25629331.5
A9: Service charges - refuse revenue | B9: 2 | C9: ='SA1'!C34 -> 14836937 | D9: ='SA1'!D34 -> 18505722 | E9: ='SA1'!E34 -> 19401805.02 | F9: ='SA1'!F34 -> 20169485.96 | G9: 20658821.47 | H9: 20658821.47 | I9: 20658821.47 | J9: ='SA1'!J34 -> 22191109.2 | K9: ='SA1'!K34 -> 23522575.75 | L9: ='SA1'!L34 -> 24933930.29
A10: Service charges - other
A11: Rental of facilities and equipment | C11: 356580 | D11: 331864 | E11: 362559.74 | F11: 393185.597 | G11: 577775.2812 | H11: 577775.2812 | I11: 577775.2812 | J11: 618219.5508 | K11: =J11*1.06 -> 655312.7239 | L11: 694631.4873
A12: Interest earned - external investments | C12: 583166 | D12: 1101572 | E12: 1202536.78 | F12: 1303833.357 | G12: 1303833.357 | H12: 1303833.357 | I12: 1303833.357 | J12: 1395101.692 | K12: 1478807.793 | L12: 1567536.261
A13: Interest earned - outstanding debtors | C13: 20201160 | D13: 24391914 | E13: 36727276.26 | F13: 39421351.63 | G13: 39440262.63 | H13: 39440262.63 | I13: 39440262.63 | J13: 42201081.02 | K13: 44733145.88 | L13: 47417134.63
A14: Dividends received | G14: 0 | H14: 0 | I14: 0 | K14: 0 | L14: 0
A15: Fines, penalties and forfeits | C15: 205404 | D15: 216310 | E15: 236700 | F15: 330000 | G15: 330000 | H15: 330000 | I15: 330000 | J15: 650000 | K15: 689000 | L15: 730340
A16: Licences and permits | G16: 0 | H16: 0 | I16: 0 | K16: 0 | L16: 0
A17: Agency services | G17: 0 | H17: 0 | I17: 0 | K17: 0 | L17: 0
A18: Transfers and subsidies | C18: 82878721 | D18: 85568721 | E18: 81702000 | F18: 82580000 | G18: 82580000 | H18: 82580000 | I18: 82580000 | J18: 90367000 | K18: 95789020 | L18: 101536361.2
A19: Other revenue | B19: 2 | C19: ='SA1'!C49 -> 5373806 | D19: ='SA1'!D49 -> 10418473 | E19: ='SA1'!E49 -> 16548596.52 | F19: ='SA1'!F49 -> 16773579.34 | G19: 20102284.4 | H19: 20102284.4 | I19: 20102284.4 | J19: ='SA1'!J49 -> 20487849.84 | K19: ='SA1'!K49 -> 21717120.83 | L19: ='SA1'!L49 -> 23020148.08
A20: Gains on disposal of PPE
A21: Total Revenue (excluding capital transfers and contributions) | C21: =SUM(C5:C20) -> 236689581 | D21: 266992669 | E21: 293087702.5 | F21: 303711674.7 | G21: 308675438 | H21: 308675438 | I21: 308675438 | J21: 332095881 | K21: 352021633.9 | L21: 373142931.9 | M21: 0 | N21: 0 | O21: 0 | P21: 0 | Q21: 0 | R21: 0 | S21: 0 | T21: 0 | U21: 0 | V21: 0 | W21: 0 | X21: 0
A23: Expenditure By Type
A24: Employee related costs | B24: 2 | C24: ='SA1'!C67 -> 74798709 | D24: ='SA1'!D67 -> 80810390 | E24: ='SA1'!E67 -> 86156238.96 | F24: ='SA1'!F67 -> 93590545.79 | G24: 97962608.54 | H24: 97962608.54 | I24: 97962608.54 | J24: ='SA1'!J67 -> 105019841.4 | K24: ='SA1'!K67 -> 110270833.5 | L24: ='SA1'!L67 -> 114681666.8
A25: Remuneration of councillors | C25: 6676993 | D25: 6891541 | E25: 8749575.68 | F25: 9083084.992 | G25: 9501709.217 | H25: 9501709.217 | I25: 9501709.217 | J25: 10166194.69 | K25: =J25*1.05 -> 10674504.43 | L25: =K25*1.04 -> 11101484.6
A26: Debt impairment | B26: 3 | C26: 108567852 | D26: 83419298 | E26: 40340358.03 | F26: 49930820.36 | G26: 54965937.25 | H26: 54965937.25 | I26: 54965937.25 | J26: 55027045.74 | K26: =J26*1.05 -> 57778398.03 | L26: =K26*1.04 -> 60089533.95
A27: Depreciation & asset impairment | B27: 2 | C27: ='SA1'!C83 -> 57015081 | D27: ='SA1'!D83 -> 58502541 | E27: ='SA1'!E83 -> 58502541 | F27: ='SA1'!F83 -> 59672591.82 | G27: 58872591.82 | H27: 58872591.82 | I27: 58872591.82 | J27: ='SA1'!J83 -> 58872591.82 | K27: ='SA1'!K83 -> 61816221.41 | L27: ='SA1'!L83 -> 64288870.27
A28: Finance charges | C28: 8338647 | D28: 10202243 | E28: 17575034.34 | F28: 17835802.79 | G28: 17835802.79 | H28: 17835802.79 | I28: 17835802.79 | J28: 17845133.12 | K28: =J28*1.05 -> 18737389.77 | L28: =K28*1.04 -> 19486885.36
A29: Bulk purchases | B29: 2 | C29: ='SA1'!C88 -> 38934748 | D29: ='SA1'!D88 -> 43817910 | E29: ='SA1'!E88 -> 55382957.86 | F29: ='SA1'!F88 -> 50455517.47 | G29: 50455517.47 | H29: 50455517.47 | I29: 50455517.47 | J29: ='SA1'!J88 -> 53861421.33 | K29: ='SA1'!K88 -> 56554492.4 | L29: ='SA1'!L88 -> 58816672.1
A30: Other materials | B30: 8 | C30: 15404523 | D30: 18427332 | E30: 9564144.571 | F30: 10187870 | G30: 8754755.44 | H30: 8754755.44 | I30: 8754755.44 | J30: 9010000 | K30: =J30*1.05 -> 9460500 | L30: =K30*1.04 -> 9838920
A31: Contracted services | C31: ='SA1'!C127 -> 10758689 | D31: ='SA1'!D127 -> 11399862 | E31: ='SA1'!E127 -> 6767735.303 | F31: ='SA1'!F127 -> 9163485.61 | G31: 6773494.69 | H31: 6773494.69 | I31: 6773494.69 | J31: ='SA1'!J127 -> 7130000 | K31: ='SA1'!K127 -> 7486500 | L31: ='SA1'!L127 -> 7785960
A32: Transfers and subsidies | C32: ='SA1'!C93 -> 0 | D32: ='SA1'!D93 -> 0 | E32: ='SA1'!E93 -> 0 | F32: ='SA1'!F93 -> 0 | G32: 0 | H32: 0 | I32: 0 | J32: ='SA1'!J93 -> 0 | K32: ='SA1'!K93 -> 0 | L32: ='SA1'!L93 -> 0
A33: Other expenditure | B33: 4, 5 | C33: ='SA1'!C157 -> 42415685 | D33: ='SA1'!D157 -> 54685991 | E33: ='SA1'!E157 -> 53085353.34 | F33: ='SA1'!F157 -> 36998769.65 | G33: 41085152.93 | H33: 41085152.93 | I33: 41085152.93 | J33: ='SA1'!J157 -> 40058023.04 | K33: ='SA1'!K157 -> 42060924.2 | L33: ='SA1'!L157 -> 43743361.16
A34: Loss on disposal of PPE | G34: 0 | H34: 0 | I34: 0
A35: Total Expenditure | C35: =SUM(C24:C34) -> 362910927 | D35: =SUM(D24:D34) -> 368157108 | E35: 336123939.1 | F35: 336918488.5 | G35: 346207570.1 | H35: 346207570.1 | I35: 346207570.1 | J35: 356990251.1 | K35: 374839763.7 | L35: 389833354.3 | M35: =SUM(M24:M34) -> 0 | N35: 0 | O35: 0 | P35: 0 | Q35: 0 | R35: 0 | S35: 0 | T35: 0 | U35: 0 | V35: 0 | W35: 0 | X35: 0
A37: Surplus/(Deficit) | C37: =C21-C35 -> -126221346 | D37: -101164439 | E37: -43036236.57 | F37: -33206813.75 | G37: -37532132.16 | H37: -37532132.16 | I37: -37532132.16 | J37: -24894370.14 | K37: -22818129.84 | L37: -16690422.35 | M37: =M21+M35 -> 0 | N37: 0 | O37: 0 | P37: 0 | Q37: 0 | R37: 0 | S37: 0 | T37: 0 | U37: 0 | V37: 0 | W37: 0 | X37: 0
A38: Transfers and subsidies - capital (monetary allocations) (National / Provincial and District) | C38: 62156934 | D38: 59864687 | E38: 64218000 | F38: 98761000 | G38: 98761000 | H38: 98761000 | I38: 98761000 | J38: 64927000 | K38: =J38*1.06 -> 68822620 | L38: 72951977.2
A39: Transfers and subsidies - capital (monetary allocations) (National / Provincial Departmental Agencies, Households, Non-profit Institutions, Private Enterprises, Public Corporatons, Higher Educational Institutions) | B39: 6 | C39: ='SA1'!C76 -> 0 | D39: ='SA1'!D76 -> 0 | E39: ='SA1'!E76 -> 0 | F39: ='SA1'!F76 -> 0 | G39: ='SA1'!G76 -> 0 | H39: ='SA1'!H76 -> 0 | I39: ='SA1'!I76 -> 0 | J39: ='SA1'!J76 -> 0 | K39: ='SA1'!K76 -> 0 | L39: ='SA1'!L76 -> 0
A40: Transfers and subsidies - capital (in-kind - all)
A41: Surplus/(Deficit) after capital transfers & contributions | C41: =SUM(C37:C40) -> -64064412 | D41: -41299752 | E41: 21181763.43 | F41: 65554186.25 | G41: 61228867.84 | H41: 61228867.84 | I41: 61228867.84 | J41: 40032629.86 | K41: 46004490.16 | L41: 56261554.85
A42: Taxation
A43: Surplus/(Deficit) after taxation | C43: =C41-C42 -> -64064412 | D43: -41299752 | E43: 21181763.43 | F43: 65554186.25 | G43: 61228867.84 | H43: 61228867.84 | I43: 61228867.84 | J43: 40032629.86 | K43: 46004490.16 | L43: 56261554.85
A44: Attributable to minorities
A45: Surplus/(Deficit) attributable to municipality | C45: =SUM(C43:C44) -> -64064412 | D45: -41299752 | E45: 21181763.43 | F45: 65554186.25 | G45: 61228867.84 | H45: 61228867.84 | I45: 61228867.84 | J45: 40032629.86 | K45: 46004490.16 | L45: 56261554.85
A46: Share of surplus/ (deficit) of associate | B46: 7
A47: =result -> Surplus/(Deficit) for the year | C47: =SUM(C45:C46) -> -64064412 | D47: -41299752 | E47: 21181763.43 | F47: 65554186.25 | G47: 61228867.84 | H47: 61228867.84 | I47: 61228867.84 | J47: 40032629.86 | K47: 46004490.16 | L47: 56261554.85 | M47: =M25+M46 -> 0 | N47: 0 | O47: 0 | P47: 0 | Q47: 0 | R47: 0 | S47: 0 | T47: 0 | U47: 0 | V47: 0 | W47: 0 | X47: 0
A48: =head27a -> References
A49: 1. Classifications are revenue sources and expenditure type
A50: 2. Detail to be provided in Table SA1
A51: 3. Previously described as 'bad or doubtful debts' - amounts shown should reflect the change in the provision for debt impairment
A52: 4. Expenditure type components previously shown under repairs and maintenance should be allocated back to the originating expenditure group/item; e.g. employee costs
A53: 5. Repairs & maintenance detailed in Table A9 and Table SA34c
A54: 6. Contributions are funds provided by external organisations to assist with infrastructure development; e.g. developer contributions (detail to be provided in Table SA1)
A55: 7. Equity method ( Includes Joint Ventures)
A56: 8. All materials not part of 'bulk' e.g road making materials, pipe, cable etc.
A57: check balance | C57: =C45-'A3-FinPerf V'!C39 -> 0 | D57: =D45-'A3-FinPerf V'!D39 -> 0 | E57: =E45-'A3-FinPerf V'!E39 -> -0.3654695153 | F57: =F45-'A3-FinPerf V'!F39 -> 0.004343509674 | G57: =G45-'A3-FinPerf V'!G39 -> -0.001003444195 | H57: =H45-'A3-FinPerf V'!H39 -> -0.001003444195 | J57: =J45-'A3-FinPerf V'!I39 -> 1631700.64 | K57: =K45-'A3-FinPerf V'!J39 -> 1734087.678 | L57: =L45-'A3-FinPerf V'!K39 -> 1847551.439
A59: Total revenue | C59: =C21+SUM(C38:C40) -> 298846515 | D59: 326857356 | E59: 357305702.5 | F59: 402472674.7 | G59: 407436438 | H59: 407436438 | I59: 407436438 | J59: =J21+SUM(J38:J40) -> 397022881 | K59: 420844253.9 | L59: 446094909.1

Sheet A5-Capex
A1: =muni&" - "&Approve5 -> FS193 Nketoana - Table A5 Budgeted Capital Expenditure by vote, functional classification and funding
A2: =Vdesc -> Vote Description | B2: =head27 -> Ref | C2: =head1b -> 2014/15 | D2: =head1A -> 2015/16 | E2: =Head1 -> 2016/17 | F2: =Head2 -> Current Year 2017/18 | J2: =Head3 -> 2018/19 Medium Term Revenue & Expenditure Framework
A3: R thousand | B3: 1 | C3: =Head5 -> Audited Outcome | D3: =Head5 -> Audited Outcome | E3: =Head5 -> Audited Outcome | F3: =Head6 -> Original Budget | G3: =Head7 -> Adjusted Budget | H3: =Head8 -> Full Year Forecast | I3: =Head5b -> Pre-audit outcome | J3: =Head9 -> Budget Year 2018/19 | K3: =Head10 -> Budget Year +1 2019/20 | L3: =Head11 -> Budget Year +2 2020/21
A4: Capital expenditure - Vote
A5: Multi-year expenditure to be appropriated | B5: 2
A6: =A5A!A6 -> Vote 1 - EXECUTIVE AND COUNCIL | C6: =A5A!C6 -> 0 | D6: =A5A!D6 -> 0 | E6: =A5A!E6 -> 0 | F6: =A5A!F6 -> 0 | G6: =A5A!G6 -> 0 | H6: =A5A!H6 -> 0 | I6: =A5A!I6 -> 0 | J6: =A5A!J6 -> 0 | K6: =A5A!K6 -> 0 | L6: =A5A!L6 -> 0
A7: =A5A!A17 -> Vote 2 - FINANCE AND ADMINISTRATION | C7: =A5A!C17 -> 0 | D7: =A5A!D17 -> 0 | E7: =A5A!E17 -> 0 | F7: =A5A!F17 -> 0 | G7: =A5A!G17 -> 0 | H7: =A5A!H17 -> 0 | I7: =A5A!I17 -> 0 | J7: =A5A!J17 -> 0 | K7: =A5A!K17 -> 0 | L7: =A5A!L17 -> 0
A8: =A5A!A28 -> Vote 3 - COMMUNITY SERVICES | C8: =A5A!C28 -> 0 | D8: =A5A!D28 -> 0 | E8: =A5A!E28 -> 0 | F8: =A5A!F28 -> 0 | G8: =A5A!G28 -> 0 | H8: =A5A!H28 -> 0 | I8: =A5A!I28 -> 0 | J8: =A5A!J28 -> 0 | K8: =A5A!K28 -> 0 | L8: =A5A!L28 -> 0
A9: =A5A!A39 -> Vote 4 - WASTE MANAGEMENT | C9: =A5A!C39 -> 0 | D9: =A5A!D39 -> 0 | E9: =A5A!E39 -> 0 | F9: =A5A!F39 -> 0 | G9: =A5A!G39 -> 0 | H9: =A5A!H39 -> 0 | I9: =A5A!I39 -> 0 | J9: =A5A!J39 -> 0 | K9: =A5A!K39 -> 0 | L9: =A5A!L39 -> 0
A10: =A5A!A50 -> Vote 5 - LOCAL ECONOMIC DEVELOPMENT | C10: =A5A!C50 -> 0 | D10: =A5A!D50 -> 0 | E10: =A5A!E50 -> 0 | F10: =A5A!F50 -> 0 | G10: =A5A!G50 -> 0 | H10: =A5A!H50 -> 0 | I10: =A5A!I50 -> 0 | J10: =A5A!J50 -> 0 | K10: =A5A!K50 -> 0 | L10: =A5A!L50 -> 0
A11: =A5A!A61 -> Vote 6 - ROADS TRANSPORT | C11: =A5A!C61 -> 0 | D11: =A5A!D61 -> 0 | E11: =A5A!E61 -> 0 | F11: =A5A!F61 -> 0 | G11: =A5A!G61 -> 0 | H11: =A5A!H61 -> 0 | I11: =A5A!I61 -> 0 | J11: =A5A!J61 -> 0 | K11: =A5A!K61 -> 0 | L11: =A5A!L61 -> 0
A12: =A5A!A72 -> Vote 7 - WATER | C12: =A5A!C72 -> 0 | D12: =A5A!D72 -> 0 | E12: =A5A!E72 -> 0 | F12: =A5A!F72 -> 0 | G12: =A5A!G72 -> 0 | H12: =A5A!H72 -> 0 | I12: =A5A!I72 -> 0 | J12: =A5A!J72 -> 0 | K12: =A5A!K72 -> 0 | L12: =A5A!L72 -> 0
A13: =A5A!A83 -> Vote 8 - ELECTRICITY | C13: =A5A!C83 -> 0 | D13: =A5A!D83 -> 0 | E13: =A5A!E83 -> 0 | F13: =A5A!F83 -> 0 | G13: =A5A!G83 -> 0 | H13: =A5A!H83 -> 0 | I13: =A5A!I83 -> 0 | J13: =A5A!J83 -> 0 | K13: =A5A!K83 -> 0 | L13: =A5A!L83 -> 0
A14: =A5A!A94 -> Vote 9 - WASTE WATER | C14: =A5A!C94 -> 0 | D14: =A5A!D94 -> 0 | E14: =A5A!E94 -> 0 | F14: =A5A!F94 -> 0 | G14: =A5A!G94 -> 0 | H14: =A5A!H94 -> 0 | I14: =A5A!I94 -> 0 | J14: =A5A!J94 -> 0 | K14: =A5A!K94 -> 0 | L14: =A5A!L94 -> 0
A15: =A5A!A105 -> Vote 10 - HOUSING | C15: =A5A!C105 -> 0 | D15: =A5A!D105 -> 0 | E15: =A5A!E105 -> 0 | F15: =A5A!F105 -> 0 | G15: =A5A!G105 -> 0 | H15: =A5A!H105 -> 0 | I15: =A5A!I105 -> 0 | J15: =A5A!J105 -> 0 | K15: =A5A!K105 -> 0 | L15: =A5A!L105 -> 0
A16: =A5A!A116 -> Vote 11 - [NAME OF VOTE 11] | C16: =A5A!C116 -> 0 | D16: =A5A!D116 -> 0 | E16: =A5A!E116 -> 0 | F16: =A5A!F116 -> 0 | G16: =A5A!G116 -> 0 | H16: =A5A!H116 -> 0 | I16: =A5A!I116 -> 0 | J16: =A5A!J116 -> 0 | K16: =A5A!K116 -> 0 | L16: =A5A!L116 -> 0
A17: =A5A!A127 -> Vote 12 - [NAME OF VOTE 12] | C17: =A5A!C127 -> 0 | D17: =A5A!D127 -> 0 | E17: =A5A!E127 -> 0 | F17: =A5A!F127 -> 0 | G17: =A5A!G127 -> 0 | H17: =A5A!H127 -> 0 | I17: =A5A!I127 -> 0 | J17: =A5A!J127 -> 0 | K17: =A5A!K127 -> 0 | L17: =A5A!L127 -> 0
A18: =A5A!A138 -> Vote 13 - [NAME OF VOTE 13] | C18: =A5A!C138 -> 0 | D18: =A5A!D138 -> 0 | E18: =A5A!E138 -> 0 | F18: =A5A!F138 -> 0 | G18: =A5A!G138 -> 0 | H18: =A5A!H138 -> 0 | I18: =A5A!I138 -> 0 | J18: =A5A!J138 -> 0 | K18: =A5A!K138 -> 0 | L18: =A5A!L138 -> 0
A19: =A5A!A149 -> Vote 14 - [NAME OF VOTE 14] | C19: =A5A!C149 -> 0 | D19: =A5A!D149 -> 0 | E19: =A5A!E149 -> 0 | F19: =A5A!F149 -> 0 | G19: =A5A!G149 -> 0 | H19: =A5A!H149 -> 0 | I19: =A5A!I149 -> 0 | J19: =A5A!J149 -> 0 | K19: =A5A!K149 -> 0 | L19: =A5A!L149 -> 0
A20: =A5A!A160 -> Vote 15 - [NAME OF VOTE 15] | C20: =A5A!C160 -> 0 | D20: =A5A!D160 -> 0 | E20: =A5A!E160 -> 0 | F20: =A5A!F160 -> 0 | G20: =A5A!G160 -> 0 | H20: =A5A!H160 -> 0 | I20: =A5A!I160 -> 0 | J20: =A5A!J160 -> 0 | K20: =A5A!K160 -> 0 | L20: =A5A!L160 -> 0
A21: Capital multi-year expenditure sub-total | B21: 7 | C21: =SUM(C6:C20) -> 0 | D21: =SUM(D6:D20) -> 0 | E21: 0 | F21: 0 | G21: 0 | H21: =SUM(H6:H20) -> 0 | I21: 0 | J21: 0 | K21: 0 | L21: 0
A23: Single-year expenditure to be appropriated | B23: 2
A24: =A6 -> Vote 1 - EXECUTIVE AND COUNCIL | C24: =A5A!C175 -> 0 | D24: =A5A!D175 -> 0 | E24: =A5A!E175 -> 0 | F24: =A5A!F175 -> 0 | G24: =A5A!G175 -> 0 | H24: =A5A!H175 -> 0 | I24: =A5A!I175 -> 0 | J24: =A5A!J175 -> 0 | K24: =A5A!K175 -> 0 | L24: =A5A!L175 -> 0
A25: =A7 -> Vote 2 - FINANCE AND ADMINISTRATION | C25: =A5A!C186 -> 8929961 | D25: =A5A!D186 -> 7753889 | E25: =A5A!E186 -> 0 | F25: =A5A!F186 -> 0 | G25: =A5A!G186 -> 0 | H25: =A5A!H186 -> 0 | I25: =A5A!I186 -> 0 | J25: =A5A!J186 -> 0 | K25: =A5A!K186 -> 0 | L25: =A5A!L186 -> 0
A26: Vote 3 - COMMUNITY SERVICES | C26: =A5A!C197 -> 0 | D26: =A5A!D197 -> 0 | E26: =A5A!E197 -> 16300177.48 | F26: =A5A!F197 -> 4109190.6 | G26: =A5A!G197 -> 5864775.23 | H26: =A5A!H197 -> 5864775.23 | I26: =A5A!I197 -> 5864775.23 | J26: =A5A!J197 -> 1205419.74 | K26: =A5A!K197 -> 1277744.924 | L26: =A5A!L197 -> 1354409.62
A27: Vote 4 - WASTE MANAGEMENT | C27: =A5A!C208 -> 1516178 | D27: =A5A!D208 -> 8942785 | E27: =A5A!E208 -> 376200 | F27: =A5A!F208 -> 7690155 | G27: =A5A!G208 -> 386370.01 | H27: =A5A!H208 -> 386370.01 | I27: =A5A!I208 -> 386370.01 | J27: =A5A!J208 -> 424545 | K27: =A5A!K208 -> 450017.7 | L27: =A5A!L208 -> 477018.762
A28: Vote 5 - LOCAL ECONOMIC DEVELOPMENT | C28: =A5A!C219 -> 0 | D28: =A5A!D219 -> 0 | E28: =A5A!E219 -> 0 | F28: =A5A!F219 -> 0 | G28: =A5A!G219 -> 0 | H28: =A5A!H219 -> 0 | I28: =A5A!I219 -> 0 | J28: =A5A!J219 -> 0 | K28: =A5A!K219 -> 0 | L28: =A5A!L219 -> 0
A29: Vote 6 - ROADS TRANSPORT | C29: =A5A!C230 -> 11094273 | D29: =A5A!D230 -> 12648409 | E29: =A5A!E230 -> 5127377.73 | F29: =A5A!F230 -> 13833065.62 | G29: =A5A!G230 -> 17158141.48 | H29: =A5A!H230 -> 17158141.48 | I29: =A5A!I230 -> 17158141.48 | J29: =A5A!J230 -> 8568073.38 | K29: =A5A!K230 -> 9082157.783 | L29: =A5A!L230 -> 9627087.25
A30: Vote 7 - WATER | C30: =A5A!C241 -> 14597433 | D30: =A5A!D241 -> 19660506 | E30: =A5A!E241 -> 32010790.85 | F30: =A5A!F241 -> 47849485.74 | G30: =A5A!G241 -> 47849485.74 | H30: =A5A!H241 -> 47849485.74 | I30: =A5A!I241 -> 47849485.74 | J30: =A5A!J241 -> 24691384.92 | K30: =A5A!K241 -> 26172868.02 | L30: =A5A!L241 -> 27743240.1
A31: Vote 8 - ELECTRICITY | C31: =A5A!C252 -> 5300000 | D31: =A5A!D252 -> 2842188 | E31: =A5A!E252 -> 0 | F31: =A5A!F252 -> 5000000 | G31: =A5A!G252 -> 5000000 | H31: =A5A!H252 -> 5000000 | I31: =A5A!I252 -> 5000000 | J31: =A5A!J252 -> 1547056.65 | K31: =A5A!K252 -> 1639880.049 | L31: =A5A!L252 -> 1738272.852
A32: Vote 9 - WASTE WATER | C32: =A5A!C263 -> 4160116 | D32: =A5A!D263 -> 7728815 | E32: =A5A!E263 -> 10403453.94 | F32: =A5A!F263 -> 20279103.04 | G32: =A5A!G263 -> 22502227.55 | H32: =A5A!H263 -> 22502227.55 | I32: =A5A!I263 -> 22502227.55 | J32: =A5A!J263 -> 28490520.31 | K32: =A5A!K263 -> 30199951.53 | L32: =A5A!L263 -> 32011948.62
A33: Vote 10 - HOUSING | C33: =A5A!C274 -> 0 | D33: =A5A!D274 -> 0 | E33: =A5A!E274 -> 0 | F33: =A5A!F274 -> 0 | G33: =A5A!G274 -> 0 | H33: =A5A!H274 -> 0 | I33: =A5A!I274 -> 0 | J33: =A5A!J274 -> 0 | K33: =A5A!K274 -> 0 | L33: =A5A!L274 -> 0
A34: Vote 11 - [NAME OF VOTE 11] | C34: =A5A!C285 -> 0 | D34: =A5A!D285 -> 0 | E34: =A5A!E285 -> 0 | F34: =A5A!F285 -> 0 | G34: =A5A!G285 -> 0 | H34: =A5A!H285 -> 0 | I34: =A5A!I285 -> 0 | J34: =A5A!J285 -> 0 | K34: =A5A!K285 -> 0 | L34: =A5A!L285 -> 0
A35: Vote 12 - [NAME OF VOTE 12] | C35: =A5A!C296 -> 0 | D35: =A5A!D296 -> 0 | E35: =A5A!E296 -> 0 | F35: =A5A!F296 -> 0 | G35: =A5A!G296 -> 0 | H35: =A5A!H296 -> 0 | I35: =A5A!I296 -> 0 | J35: =A5A!J296 -> 0 | K35: =A5A!K296 -> 0 | L35: =A5A!L296 -> 0
A36: Vote 13 - [NAME OF VOTE 13] | C36: =A5A!C307 -> 0 | D36: =A5A!D307 -> 0 | E36: =A5A!E307 -> 0 | F36: =A5A!F307 -> 0 | G36: =A5A!G307 -> 0 | H36: =A5A!H307 -> 0 | I36: =A5A!I307 -> 0 | J36: =A5A!J307 -> 0 | K36: =A5A!K307 -> 0 | L36: =A5A!L307 -> 0
A37: Vote 14 - [NAME OF VOTE 14] | C37: =A5A!C318 -> 0 | D37: =A5A!D318 -> 0 | E37: =A5A!E318 -> 0 | F37: =A5A!F318 -> 0 | G37: =A5A!G318 -> 0 | H37: =A5A!H318 -> 0 | I37: =A5A!I318 -> 0 | J37: =A5A!J318 -> 0 | K37: =A5A!K318 -> 0 | L37: =A5A!L318 -> 0
A38: =A20 -> Vote 15 - [NAME OF VOTE 15] | C38: =A5A!C329 -> 0 | D38: =A5A!D329 -> 0 | E38: =A5A!E329 -> 0 | F38: =A5A!F329 -> 0 | G38: =A5A!G329 -> 0 | H38: =A5A!H329 -> 0 | I38: =A5A!I329 -> 0 | J38: =A5A!J329 -> 0 | K38: =A5A!K329 -> 0 | L38: =A5A!L329 -> 0
A39: Capital single-year expenditure sub-total | C39: =SUM(C24:C38) -> 45597961 | D39: =SUM(D24:D38) -> 59576592 | E39: 64218000 | F39: 98761000 | G39: 98761000.01 | H39: 98761000.01 | I39: 98761000.01 | J39: 64927000 | K39: 68822620 | L39: 72951977.2
A40: Total Capital Expenditure - Vote | C40: =C39+C21 -> 45597961 | D40: =D39+D21 -> 59576592 | E40: 64218000 | F40: 98761000 | G40: 98761000.01 | H40: 98761000.01 | I40: 98761000.01 | J40: 64927000 | K40: 68822620 | L40: 72951977.2
A42: Capital Expenditure - Functional
A43: Governance and administration | C43: =SUM(C44:C46) -> 8929961 | D43: =SUM(D44:D46) -> 7753889 | E43: 0 | F43: 0 | G43: 0 | H43: 0 | I43: 0 | J43: 0 | K43: 0 | L43: 0
A44: Executive and council
A45: Finance and administration | C45: 8929961 | D45: 7753889
A46: Internal audit
A47: Community and public safety | C47: =SUM(C48:C52) -> 0 | D47: =SUM(D48:D52) -> 0 | E47: 16300177.48 | F47: 4109190.6 | G47: 5864775.23 | H47: 5864775.23 | I47: 5864775.23 | J47: 1205419.74 | K47: 1277744.924 | L47: 1354409.62
A48: Community and social services | E48: 12389245.92 | F48: 854567.61 | G48: 854567.61 | H48: 854567.61 | I48: 854567.61 | K48: =J48*1.06 -> 0 | L48: 0
A49: Sport and recreation | E49: 3910931.56 | F49: 3254622.99 | G49: 5010207.62 | H49: 5010207.62 | I49: 5010207.62 | J49: 1205419.74 | K49: =J49*1.06 -> 1277744.924 | L49: =K49*1.06 -> 1354409.62
A50: Public safety
A51: Housing
A52: Health
A53: Economic and environmental services | C53: =SUM(C54:C56) -> 11094273 | D53: =SUM(D54:D56) -> 12648409 | E53: 5127377.73 | F53: 13833065.62 | G53: 17158141.48 | H53: 17158141.48 | I53: 17158141.48 | J53: 8568073.38 | K53: 9082157.783 | L53: 9627087.25
A54: Planning and development
A55: Road transport | C55: 11094273 | D55: 12648409 | E55: 5127377.73 | F55: 13833065.62 | G55: 17158141.48 | H55: 17158141.48 | I55: 17158141.48 | J55: 8568073.38 | K55: =J55*1.06 -> 9082157.783 | L55: 9627087.25
A56: Environmental protection
A57: Trading services | C57: =SUM(C58:C61) -> 25573727 | D57: =SUM(D58:D61) -> 39174294 | E57: 42790444.79 | F57: 80818743.78 | G57: 75738083.3 | H57: 75738083.3 | I57: 75738083.3 | J57: 55153506.88 | K57: 58462717.29 | L57: 61970480.33
A58: Energy sources | C58: 5300000 | D58: 2842188 | E58: 0 | F58: 5000000 | G58: 5000000 | H58: 5000000 | I58: 5000000 | J58: 1547056.65 | K58: =J58*1.06 -> 1639880.049 | L58: 1738272.852
A59: Water management | C59: 14597433 | D59: 19660506 | E59: 32010790.85 | F59: 47849485.74 | G59: 47849485.74 | H59: 47849485.74 | I59: 47849485.74 | J59: 24691384.92 | K59: 26172868.02 | L59: 27743240.1
A60: Waste water management | C60: 4160116 | D60: 7728815 | E60: 10403453.94 | F60: 20279103.04 | G60: 22502227.55 | H60: 22502227.55 | I60: 22502227.55 | J60: 28490520.31 | K60: 30199951.53 | L60: 32011948.62
A61: Waste management | C61: 1516178 | D61: 8942785 | E61: 376200 | F61: 7690155 | G61: 386370.01 | H61: 386370.01 | I61: 386370.01 | J61: 424545 | K61: 450017.7 | L61: 477018.762
A62: Other
A63: Total Capital Expenditure - Functional | B63: 3 | C63: =C43+C47+C53+C57+C62 -> 45597961 | D63: =D43+D47+D53+D57+D62 -> 59576592 | E63: 64218000 | F63: 98761000 | G63: 98761000.01 | H63: 98761000.01 | I63: 98761000.01 | J63: 64927000 | K63: 68822620 | L63: =L43+L47+L53+L57+L62 -> 72951977.2
A65: Funded by:
A66: National Government | C66: 44175660 | D66: 58035212 | E66: 64218000 | F66: 98761000 | G66: 98761000.01 | H66: 98761000.01 | I66: 98761000.01 | J66: 64927000 | K66: =J66*1.06 -> 68822620 | L66: 72951977.2
A67: Provincial Government
A68: District Municipality
A69: Other transfers and grants
A70: Transfers recognised - capital | B70: 4 | C70: =SUM(C66:C69) -> 44175660 | D70: 58035212 | E70: 64218000 | F70: 98761000 | G70: 98761000.01 | H70: 98761000.01 | I70: 98761000.01 | J70: 64927000 | K70: 68822620 | L70: 72951977.2
A71: Public contributions & donations | B71: 5
A72: Borrowing | B72: 6
A73: Internally generated funds | C73: 1422301 | D73: 1541380
A74: Total Capital Funding | B74: 7 | C74: =SUM(C70:C73) -> 45597961 | D74: 59576592 | E74: 64218000 | F74: 98761000 | G74: 98761000.01 | H74: 98761000.01 | I74: 98761000.01 | J74: 64927000 | K74: 68822620 | L74: 72951977.2
A75: =head27a -> References
A76: 1. Municipalities may choose to appropriate for capital expenditure for three years or for one year (if one year appropriation projected expenditure required for yr2 and yr3).
A77: 2. Include capital component of PPP unitary payment. Note that capital transfers are only appropriated to municipalities for the budget year
A78: 3. Capital expenditure by functional classification must reconcile to the appropriations by vote
A79: 4. Must reconcile to supporting table SA20 and to Budgeted Financial Performance (revenue and expenditure)
A80: 5. Must reconcile to Budgeted Financial Performance (revenue and expenditure)
A81: 6. Include finance leases and PPP capital funding component of unitary payment - total borrowing/repayments to reconcile to changes in Table SA17
A82: 7. Total Capital Funding must balance with Total Capital Expenditure
A83: 8. Include any capitalised interest (MFMA section 46) as part of relevant capital budget
A85: check balance | C85: =IF((C63-C74)=0,0,"Unbalanced") -> 0 | D85: =IF((D63-D74)=0,0,"Unbalanced") -> 0 | E85: 0 | F85: 0 | G85: =IF((G63-G74)=0,0,"Unbalanced") -> 0 | H85: =IF((H63-H74)=0,0,"Unbalanced") -> 0 | I85: 0 | J85: 0 | K85: 0 | L85: 0

Sheet A5A
A1: =muni&" - "&Approve5 -> FS193 Nketoana - Table A5 Budgeted Capital Expenditure by vote, functional classification and funding
A2: =Vdesc -> Vote Description | B2: =head27 -> Ref | C2: =head1b -> 2014/15 | D2: =head1A -> 2015/16 | E2: =Head1 -> 2016/17 | F2: =Head2 -> Current Year 2017/18 | J2: =Head3 -> 2018/19 Medium Term Revenue & Expenditure Framework | N2: ="Multi-year appropriation for "&Head9& " in the "&Head2A&" Annual Budget" -> Multi-year appropriation for Budget Year 2018/19 in the 2017/18 Annual Budget | R2: ="Multi-year appropriation for "&RIGHT(Head10,7)& " in the "&Head2A&" Annual Budget" -> Multi-year appropriation for 2019/20 in the 2017/18 Annual Budget | V2: New multi-year appropriations (funds for new and existing projects)
A3: R thousand | B3: 1 | C3: =Head5 -> Audited Outcome | D3: =Head5 -> Audited Outcome | E3: =Head5 -> Audited Outcome | F3: =Head6 -> Original Budget | G3: =Head7 -> Adjusted Budget | H3: =Head8 -> Full Year Forecast | I3: =Head5b -> Pre-audit outcome | J3: =Head9 -> Budget Year 2018/19 | K3: =Head10 -> Budget Year +1 2019/20 | L3: =Head11 -> Budget Year +2 2020/21 | N3: ="Appropriation for "&RIGHT(Head9,7) -> Appropriation for 2018/19 | O3: ="Adjustments in "&Head2A -> Adjustments in 2017/18 | P3: ="Downward adjustments for "&RIGHT(Head9,7) -> Downward adjustments for 2018/19 | Q3: Appropriation carried forward | R3: ="Appropriation for "&RIGHT(Head9,7) -> Appropriation for 2018/19 | S3: ="Adjustments in "&Head2A -> Adjustments in 2017/18 | T3: ="Downward adjustments for "&RIGHT(Head9,7) -> Downward adjustments for 2018/19 | U3: Appropriation carried forward | V3: =Head9 -> Budget Year 2018/19 | W3: =Head10 -> Budget Year +1 2019/20 | X3: =Head11 -> Budget Year +2 2020/21
A4: Capital expenditure - Municipal Vote
A5: Multi-year expenditure appropriation | B5: 2
A6: ='Org structure'!A2 -> Vote 1 - EXECUTIVE AND COUNCIL | C6: =SUM(C7:C16) -> 0 | D6: =SUM(D7:D16) -> 0 | E6: 0 | F6: 0 | G6: 0 | H6: 0 | I6: =SUM(I7:I16) -> 0 | J6: 0 | K6: 0 | L6: 0 | N6: =SUM(N7:N16) -> 0 | O6: 0 | P6: 0 | Q6: 0 | R6: 0 | S6: 0 | T6: 0 | U6: 0 | V6: =SUM(V7:V16) -> 0 | W6: =SUM(W7:W16) -> 0 | X6: =SUM(X7:X16) -> 0
A7: ='Org structure'!E3 -> 1.1 - Mayor's Office | J7: =Q7+V7 -> 0 | K7: =U7+W7 -> 0 | L7: =X7 -> 0 | Q7: =SUM(N7:P7) -> 0 | U7: =SUM(R7:T7) -> 0
A8: ='Org structure'!E4 -> 1.2 - Speaker's Office | J8: =Q8+V8 -> 0 | K8: =U8+W8 -> 0 | L8: =X8 -> 0 | Q8: =SUM(N8:P8) -> 0 | U8: =SUM(R8:T8) -> 0
A9: ='Org structure'!E5 -> 1.3 - Municipal Manager's Office | J9: =Q9+V9 -> 0 | K9: =U9+W9 -> 0 | L9: 0 | Q9: 0 | U9: 0
A10: ='Org structure'!E6 -> 1.4 - IDP and PMS | J10: 0 | K10: 0 | L10: 0 | Q10: 0 | U10: 0
A11: ='Org structure'!E7 -> 1.5 - Internal Audit | J11: 0 | K11: 0 | L11: =X11 -> 0 | Q11: 0 | U11: 0
A12: ='Org structure'!E8 -> 1.6 - Special Programmes | J12: 0 | K12: 0 | L12: 0 | Q12: 0 | U12: 0
A13: ='Org structure'!E9 -> 0 | J13: 0 | K13: 0 | L13: 0 | Q13: 0 | U13: 0
A14: ='Org structure'!E10 -> 0 | J14: 0 | K14: 0 | L14: 0 | Q14: 0 | U14: 0
A15: ='Org structure'!E11 -> 0 | J15: 0 | K15: 0 | L15: 0 | Q15: 0 | U15: 0
A16: ='Org structure'!E12 -> 0 | J16: 0 | K16: 0 | L16: 0 | Q16: 0 | U16: 0
A17: ='Org structure'!A3 -> Vote 2 - FINANCE AND ADMINISTRATION | C17: =SUM(C18:C27) -> 0 | D17: =SUM(D18:D27) -> 0 | E17: 0 | F17: 0 | G17: 0 | H17: 0 | I17: =SUM(I18:I27) -> 0 | J17: 0 | K17: 0 | L17: 0 | N17: =SUM(N18:N27) -> 0 | O17: 0 | P17: 0 | Q17: 0 | R17: 0 | S17: 0 | T17: 0 | U17: 0 | V17: 0 | W17: 0 | X17: 0
A18: ='Org structure'!E14 -> 2.1 - Human Resource | J18: =Q18+V18 -> 0 | K18: =U18+W18 -> 0 | L18: =X18 -> 0 | Q18: =SUM(N18:P18) -> 0 | U18: 0
A19: ='Org structure'!E15 -> 2.2 - Records Management | J19: =Q19+V19 -> 0 | K19: =U19+W19 -> 0 | L19: 0 | Q19: 0 | U19: 0
A20: ='Org structure'!E16 -> 2.3 - Legal Services | J20: 0 | K20: 0 | L20: 0 | Q20: 0 | U20: 0
A21: ='Org structure'!E17 -> 2.4 - Administration | J21: 0 | K21: =U21+W21 -> 0 | L21: 0 | Q21: 0 | U21: 0
A22: ='Org structure'!E18 -> 2.5 - Revenue Management | J22: 0 | K22: 0 | L22: 0 | Q22: 0 | U22: 0
A23: ='Org structure'!E19 -> 2.6 - Supply Chain Management | J23: 0 | K23: 0 | L23: 0 | Q23: 0 | U23: 0
A24: ='Org structure'!E20 -> 2.7 - CFO | J24: 0 | K24: 0 | L24: 0 | Q24: 0 | U24: 0
A25: ='Org structure'!E21 -> 2.8 - Director Corporate Services | J25: 0 | K25: 0 | L25: 0 | Q25: 0 | U25: 0
A26: ='Org structure'!E22 -> 2.9 - Budget and Treasury | J26: 0 | K26: 0 | L26: 0 | Q26: 0 | U26: 0
A27: ='Org structure'!E23 -> 2.10 - Expenditure | J27: 0 | K27: 0 | L27: 0 | Q27: 0 | U27: 0
A28: ='Org structure'!A4 -> Vote 3 - COMMUNITY SERVICES | C28: =SUM(C29:C38) -> 0 | D28: =SUM(D29:D38) -> 0 | E28: 0 | F28: 0 | G28: 0 | H28: 0 | I28: =SUM(I29:I38) -> 0 | J28: 0 | K28: 0 | L28: 0 | N28: =SUM(N29:N38) -> 0 | O28: 0 | P28: 0 | Q28: 0 | R28: 0 | S28: 0 | T28: 0 | U28: 0 | V28: 0 | W28: 0 | X28: 0
A29: ='Org structure'!E25 -> 3.1 - Cementry | J29: =Q29+V29 -> 0 | K29: =U29+W29 -> 0 | L29: =X29 -> 0 | Q29: =SUM(N29:P29) -> 0 | U29: 0
A30: ='Org structure'!E26 -> 3.2 - Parks | J30: 0 | K30: 0 | L30: 0 | Q30: 0 | U30: 0
A31: ='Org structure'!E27 -> 3.3 - Director Community Services | J31: 0 | K31: 0 | L31: 0 | Q31: 0 | U31: =SUM(R31:T31) -> 0
A32: ='Org structure'!E28 -> 3.4 - Traffic Services | J32: 0 | K32: =U32+W32 -> 0 | L32: 0 | Q32: 0 | U32: 0
A33: ='Org structure'!E29 -> 3.5 - Fire Services | J33: =Q33+V33 -> 0 | K33: 0 | L33: 0 | Q33: 0 | U33: 0
A34: ='Org structure'!E30 -> 3.6 - Sports and Recreation | J34: 0 | K34: 0 | L34: 0 | Q34: 0 | U34: 0
A35: ='Org structure'!E31 -> 3.7 - Libraries | J35: 0 | K35: 0 | L35: 0 | Q35: 0 | U35: 0
A36: ='Org structure'!E32 -> 0 | J36: 0 | K36: 0 | L36: 0 | Q36: 0 | U36: 0
A37: ='Org structure'!E33 -> 0 | J37: 0 | K37: 0 | L37: 0 | Q37: 0 | U37: 0
A38: ='Org structure'!E34 -> 0 | J38: 0 | K38: 0 | L38: 0 | Q38: 0 | U38: 0
A39: ='Org structure'!A5 -> Vote 4 - WASTE MANAGEMENT | C39: =SUM(C40:C49) -> 0 | D39: =SUM(D40:D49) -> 0 | E39: 0 | F39: 0 | G39: 0 | H39: 0 | I39: =SUM(I40:I49) -> 0 | J39: 0 | K39: 0 | L39: 0 | N39: =SUM(N40:N49) -> 0 | O39: 0 | P39: 0 | Q39: 0 | R39: 0 | S39: 0 | T39: 0 | U39: 0 | V39: 0 | W39: 0 | X39: 0
A40: ='Org structure'!E36 -> 4.1 - Waste Collection | J40: =Q40+V40 -> 0 | K40: =U40+W40 -> 0 | L40: =X40 -> 0 | Q40: =SUM(N40:P40) -> 0 | U40: 0
A41: ='Org structure'!E37 -> 4.2 - Solid Waste Disposal | J41: 0 | K41: 0 | L41: 0 | Q41: 0 | U41: 0
A42: ='Org structure'!E38 -> 4.3 - Solid Waste Management | J42: 0 | K42: 0 | L42: 0 | Q42: 0 | U42: 0
A43: ='Org structure'!E39 -> 0 | J43: 0 | K43: 0 | L43: 0 | Q43: 0 | U43: 0
A44: ='Org structure'!E40 -> 0 | J44: 0 | K44: 0 | L44: 0 | Q44: 0 | U44: 0
A45: ='Org structure'!E41 -> 0 | J45: 0 | K45: 0 | L45: 0 | Q45: 0 | U45: 0
A46: ='Org structure'!E42 -> 0 | J46: 0 | K46: 0 | L46: 0 | Q46: 0 | U46: 0
A47: ='Org structure'!E43 -> 0 | J47: 0 | K47: 0 | L47: 0 | Q47: 0 | U47: 0
A48: ='Org structure'!E44 -> 0 | J48: 0 | K48: 0 | L48: 0 | Q48: 0 | U48: 0
A49: ='Org structure'!E45 -> 0 | J49: 0 | K49: 0 | L49: 0 | Q49: 0 | U49: 0
A50: ='Org structure'!A6 -> Vote 5 - LOCAL ECONOMIC DEVELOPMENT | C50: =SUM(C51:C60) -> 0 | D50: =SUM(D51:D60) -> 0 | E50: 0 | F50: 0 | G50: 0 | H50: 0 | I50: =SUM(I51:I60) -> 0 | J50: 0 | K50: 0 | L50: 0 | N50: =SUM(N51:N60) -> 0 | O50: 0 | P50: 0 | Q50: 0 | R50: 0 | S50: 0 | T50: 0 | U50: 0 | V50: 0 | W50: 0 | X50: 0
A51: ='Org structure'!E47 -> 5.1 - SMME Hub | J51: =Q51+V51 -> 0 | K51: =U51+W51 -> 0 | L51: =X51 -> 0 | Q51: =SUM(N51:P51) -> 0 | U51: 0
A52: ='Org structure'!E48 -> 5.2 - Tourism | J52: 0 | K52: 0 | L52: 0 | Q52: 0 | U52: 0
A53: ='Org structure'!E49 -> 5.3 - Economic Development | J53: 0 | K53: 0 | L53: 0 | Q53: 0 | U53: 0
A54: ='Org structure'!E50 -> 0 | J54: 0 | K54: 0 | L54: 0 | Q54: 0 | U54: 0
A55: ='Org structure'!E51 -> 0 | J55: 0 | K55: 0 | L55: 0 | Q55: 0 | U55: 0
A56: ='Org structure'!E52 -> 0 | J56: 0 | K56: 0 | L56: 0 | Q56: 0 | U56: 0
A57: ='Org structure'!E53 -> 0 | J57: 0 | K57: 0 | L57: 0 | Q57: 0 | U57: 0
A58: ='Org structure'!E54 -> 0 | J58: 0 | K58: 0 | L58: 0 | Q58: 0 | U58: 0
A59: ='Org structure'!E55 -> 0 | J59: 0 | K59: 0 | L59: 0 | Q59: 0 | U59: 0
A60: ='Org structure'!E56 -> 0 | J60: 0 | K60: 0 | L60: 0 | Q60: 0 | U60: 0
A61: ='Org structure'!A7 -> Vote 6 - ROADS TRANSPORT | C61: =SUM(C62:C71) -> 0 | D61: =SUM(D62:D71) -> 0 | E61: 0 | F61: 0 | G61: 0 | H61: 0 | I61: =SUM(I62:I71) -> 0 | J61: 0 | K61: 0 | L61: 0 | N61: =SUM(N62:N71) -> 0 | O61: 0 | P61: 0 | Q61: 0 | R61: 0 | S61: 0 | T61: 0 | U61: 0 | V61: 0 | W61: 0 | X61: 0
A62: ='Org structure'!E58 -> 6.1 - Roads | J62: =Q62+V62 -> 0 | K62: =U62+W62 -> 0 | L62: =X62 -> 0 | Q62: =SUM(N62:P62) -> 0 | U62: 0
A63: ='Org structure'!E59 -> 6.2 - Storm Water | J63: 0 | K63: 0 | L63: 0 | Q63: 0 | U63: 0
A64: ='Org structure'!E60 -> 6.3 - Director Technical | J64: 0 | K64: 0 | L64: 0 | Q64: 0 | U64: 0
A65: ='Org structure'!E61 -> 0 | J65: 0 | K65: 0 | L65: 0 | Q65: 0 | U65: 0
A66: ='Org structure'!E62 -> 0 | J66: 0 | K66: 0 | L66: 0 | Q66: 0 | U66: 0
A67: ='Org structure'!E63 -> 0 | J67: 0 | K67: 0 | L67: 0 | Q67: 0 | U67: 0
A68: ='Org structure'!E64 -> 0 | J68: 0 | K68: 0 | L68: 0 | Q68: 0 | U68: 0
A69: ='Org structure'!E65 -> 0 | J69: 0 | K69: 0 | L69: 0 | Q69: 0 | U69: 0
A70: ='Org structure'!E66 -> 0 | J70: 0 | K70: 0 | L70: 0 | Q70: 0 | U70: 0
A71: ='Org structure'!E67 -> 0 | J71: 0 | K71: 0 | L71: 0 | Q71: 0 | U71: 0
A72: ='Org structure'!A8 -> Vote 7 - WATER | C72: =SUM(C73:C82) -> 0 | D72: 0 | E72: 0 | F72: 0 | G72: 0 | H72: 0 | I72: 0 | J72: 0 | K72: 0 | L72: 0 | N72: =SUM(N73:N82) -> 0 | O72: 0 | P72: 0 | Q72: 0 | R72: 0 | S72: 0 | T72: 0 | U72: 0 | V72: 0 | W72: 0 | X72: 0
A73: ='Org structure'!E69 -> 7.1 - WTW Reitz | J73: =Q73+V73 -> 0 | K73: =U73+W73 -> 0 | L73: =X73 -> 0 | Q73: =SUM(N73:P73) -> 0 | U73: =SUM(R73:T73) -> 0
A74: ='Org structure'!E70 -> 7.2 - WTW Mamafubedu | J74: 0 | K74: 0 | L74: 0 | Q74: 0 | U74: 0
A75: ='Org structure'!E71 -> 7.3 - WTW Lindley | J75: 0 | K75: 0 | L75: 0 | Q75: 0 | U75: 0
A76: ='Org structure'!E72 -> 7.4 - WTW Arlington | J76: 0 | K76: 0 | L76: 0 | Q76: 0 | U76: 0
A77: ='Org structure'!E73 -> 7.5 - Water Network Reitz | J77: 0 | K77: 0 | L77: 0 | Q77: 0 | U77: 0
A78: ='Org structure'!E74 -> 7.6 - Water Network Mamafubedu | J78: 0 | K78: 0 | L78: 0 | Q78: 0 | U78: 0
A79: ='Org structure'!E75 -> 7.7 - Water Network Lindley | J79: 0 | K79: 0 | L79: 0 | Q79: 0 | U79: 0
A80: ='Org structure'!E76 -> 7.8 - Water Network Arlington | J80: 0 | K80: 0 | L80: 0 | Q80: 0 | U80: 0
A81: ='Org structure'!E77 -> 7.9 - General Water Works | J81: 0 | K81: 0 | L81: 0 | Q81: 0 | U81: 0
A82: ='Org structure'!E78 -> 0 | J82: 0 | K82: 0 | L82: 0 | Q82: 0 | U82: 0
A83: ='Org structure'!A9 -> Vote 8 - ELECTRICITY | C83: =SUM(C84:C93) -> 0 | D83: 0 | E83: 0 | F83: 0 | G83: 0 | H83: 0 | I83: 0 | J83: 0 | K83: 0 | L83: 0 | N83: =SUM(N84:N93) -> 0 | O83: 0 | P83: 0 | Q83: 0 | R83: 0 | S83: 0 | T83: 0 | U83: 0 | V83: 0 | W83: 0 | X83: 0
A84: ='Org structure'!E80 -> 8.1 - Reitz Electricity | J84: =Q84+V84 -> 0 | K84: =U84+W84 -> 0 | L84: =X84 -> 0 | Q84: =SUM(N84:P84) -> 0 | U84: 0
A85: ='Org structure'!E81 -> 8.2 - Mamafubedu Electricity | J85: 0 | K85: 0 | L85: 0 | Q85: 0 | U85: 0
A86: ='Org structure'!E82 -> 8.3 - Lindley Electricity | J86: 0 | K86: 0 | L86: 0 | Q86: 0 | U86: 0
A87: ='Org structure'!E83 -> 8.4 - General Electricity Works | J87: 0 | K87: 0 | L87: 0 | Q87: 0 | U87: 0
A88: ='Org structure'!E84 -> 0 | J88: 0 | K88: 0 | L88: 0 | Q88: 0 | U88: 0
A89: ='Org structure'!E85 -> 0 | J89: 0 | K89: 0 | L89: 0 | Q89: 0 | U89: 0
A90: ='Org structure'!E86 -> 0 | J90: 0 | K90: 0 | L90: 0 | Q90: 0 | U90: 0
A91: ='Org structure'!E87 -> 0 | J91: 0 | K91: 0 | L91: 0 | Q91: 0 | U91: 0
A92: ='Org structure'!E88 -> 0 | J92: 0 | K92: 0 | L92: 0 | Q92: 0 | U92: 0
A93: ='Org structure'!E89 -> 0 | J93: 0 | K93: 0 | L93: 0 | Q93: 0 | U93: 0
A94: ='Org structure'!A10 -> Vote 9 - WASTE WATER | C94: =SUM(C95:C104) -> 0 | D94: =SUM(D95:D104) -> 0 | E94: 0 | F94: 0 | G94: 0 | H94: 0 | I94: 0 | J94: 0 | K94: 0 | L94: 0 | N94: =SUM(N95:N104) -> 0 | O94: 0 | P94: 0 | Q94: 0 | R94: 0 | S94: 0 | T94: 0 | U94: 0 | V94: 0 | W94: 0 | X94: 0
A95: ='Org structure'!E91 -> 9.1 - WWTW Reitz | J95: =Q95+V95 -> 0 | K95: =U95+W95 -> 0 | L95: =X95 -> 0 | Q95: =SUM(N95:P95) -> 0 | U95: 0
A96: ='Org structure'!E92 -> 9.2 - Network Reitz | J96: 0 | K96: 0 | L96: 0 | Q96: 0 | U96: 0
A97: ='Org structure'!E93 -> 9.3 - Network Mamafubedu | J97: 0 | K97: 0 | L97: 0 | Q97: 0 | U97: 0
A98: ='Org structure'!E94 -> 9.4 - WWTW Mamafubedu | J98: 0 | K98: 0 | L98: 0 | Q98: 0 | U98: 0
A99: ='Org structure'!E95 -> 9.5 - WWTW Lindley | J99: 0 | K99: 0 | L99: 0 | Q99: 0 | U99: 0
A100: ='Org structure'!E96 -> 9.6 - Network Lindley | J100: 0 | K100: 0 | L100: 0 | Q100: 0 | U100: 0
A101: ='Org structure'!E97 -> 9.7 - WWTW Arlington | J101: 0 | K101: 0 | L101: 0 | Q101: 0 | U101: 0
A102: ='Org structure'!E98 -> 9.8 - Network Arlington | J102: 0 | K102: 0 | L102: 0 | Q102: 0 | U102: 0
A103: ='Org structure'!E99 -> 0 | J103: 0 | K103: 0 | L103: 0 | Q103: 0 | U103: 0
A104: ='Org structure'!E100 -> 0 | J104: 0 | K104: 0 | L104: 0 | Q104: 0 | U104: 0
A105: ='Org structure'!A11 -> Vote 10 - HOUSING | C105: =SUM(C106:C115) -> 0 | D105: =SUM(D106:D115) -> 0 | E105: 0 | F105: 0 | G105: 0 | H105: 0 | I105: 0 | J105: 0 | K105: 0 | L105: 0 | N105: =SUM(N106:N115) -> 0 | O105: 0 | P105: 0 | Q105: 0 | R105: 0 | S105: 0 | T105: 0 | U105: 0 | V105: 0 | W105: 0 | X105: 0
A106: ='Org structure'!E102 -> 10.1 - Urban Planning | J106: =Q106+V106 -> 0 | K106: =U106+W106 -> 0 | L106: =X106 -> 0 | Q106: =SUM(N106:P106) -> 0 | U106: 0
A107: ='Org structure'!E103 -> 10.2 - Housing | J107: 0 | K107: 0 | L107: 0 | Q107: 0 | U107: 0
A108: ='Org structure'!E104 -> 0 | J108: 0 | K108: 0 | L108: 0 | Q108: 0 | U108: 0
A109: ='Org structure'!E105 -> 0 | J109: 0 | K109: 0 | L109: 0 | Q109: 0 | U109: 0
A110: ='Org structure'!E106 -> 0 | J110: 0 | K110: 0 | L110: 0 | Q110: 0 | U110: 0
A111: ='Org structure'!E107 -> 0 | J111: 0 | K111: 0 | L111: 0 | Q111: 0 | U111: 0
A112: ='Org structure'!E108 -> 0 | J112: 0 | K112: 0 | L112: 0 | Q112: 0 | U112: 0
A113: ='Org structure'!E109 -> 0 | J113: 0 | K113: 0 | L113: 0 | Q113: 0 | U113: 0
A114: ='Org structure'!E110 -> 0 | J114: 0 | K114: 0 | L114: 0 | Q114: 0 | U114: 0
A115: ='Org structure'!E111 -> 0 | J115: 0 | K115: 0 | L115: 0 | Q115: 0 | U115: 0
A116: ='Org structure'!A12 -> Vote 11 - [NAME OF VOTE 11] | C116: =SUM(C117:C126) -> 0 | D116: 0 | E116: 0 | F116: 0 | G116: 0 | H116: 0 | I116: 0 | J116: 0 | K116: 0 | L116: 0 | N116: =SUM(N117:N126) -> 0 | O116: 0 | P116: 0 | Q116: 0 | R116: 0 | S116: 0 | T116: 0 | U116: 0 | V116: 0 | W116: 0 | X116: 0
A117: ='Org structure'!E113 -> 11.1 - [Name of sub-vote] | J117: =Q117+V117 -> 0 | K117: =U117+W117 -> 0 | L117: =X117 -> 0 | Q117: =SUM(N117:P117) -> 0 | U117: 0
A118: ='Org structure'!E114 -> 0 | J118: 0 | K118: 0 | L118: 0 | Q118: 0 | U118: 0
A119: ='Org structure'!E115 -> 0 | J119: 0 | K119: 0 | L119: 0 | Q119: 0 | U119: 0
A120: ='Org structure'!E116 -> 0 | J120: 0 | K120: 0 | L120: 0 | Q120: 0 | U120: 0
A121: ='Org structure'!E117 -> 0 | J121: 0 | K121: 0 | L121: 0 | Q121: 0 | U121: 0
A122: ='Org structure'!E118 -> 0 | J122: 0 | K122: 0 | L122: 0 | Q122: 0 | U122: 0
A123: ='Org structure'!E119 -> 0 | J123: 0 | K123: 0 | L123: 0 | Q123: 0 | U123: 0
A124: ='Org structure'!E120 -> 0 | J124: 0 | K124: 0 | L124: 0 | Q124: 0 | U124: 0
A125: ='Org structure'!E121 -> 0 | J125: 0 | K125: 0 | L125: 0 | Q125: 0 | U125: 0
A126: ='Org structure'!E122 -> 0 | J126: 0 | K126: 0 | L126: 0 | Q126: 0 | U126: 0
A127: ='Org structure'!A13 -> Vote 12 - [NAME OF VOTE 12] | C127: =SUM(C128:C137) -> 0 | D127: 0 | E127: 0 | F127: 0 | G127: 0 | H127: 0 | I127: 0 | J127: 0 | K127: 0 | L127: 0 | N127: =SUM(N128:N137) -> 0 | O127: 0 | P127: 0 | Q127: 0 | R127: 0 | S127: 0 | T127: 0 | U127: 0 | V127: 0 | W127: 0 | X127: 0
A128: ='Org structure'!E124 -> 12.1 - [Name of sub-vote] | J128: =Q128+V128 -> 0 | K128: =U128+W128 -> 0 | L128: =X128 -> 0 | Q128: =SUM(N128:P128) -> 0 | U128: 0
A129: ='Org structure'!E125 -> 0 | J129: 0 | K129: 0 | L129: 0 | Q129: 0 | U129: 0
A130: ='Org structure'!E126 -> 0 | J130: 0 | K130: 0 | L130: 0 | Q130: 0 | U130: 0
A131: ='Org structure'!E127 -> 0 | J131: 0 | K131: 0 | L131: 0 | Q131: 0 | U131: 0
A132: ='Org structure'!E128 -> 0 | J132: 0 | K132: 0 | L132: 0 | Q132: 0 | U132: 0
A133: ='Org structure'!E129 -> 0 | J133: =Q133+V133 -> 0 | K133: 0 | L133: 0 | Q133: 0 | U133: 0
A134: ='Org structure'!E130 -> 0 | J134: 0 | K134: 0 | L134: 0 | Q134: 0 | U134: 0
A135: ='Org structure'!E131 -> 0 | J135: 0 | K135: 0 | L135: 0 | Q135: 0 | U135: 0
A136: ='Org structure'!E132 -> 0 | J136: 0 | K136: 0 | L136: 0 | Q136: 0 | U136: =SUM(R136:T136) -> 0
A137: ='Org structure'!E133 -> 0 | J137: 0 | K137: 0 | L137: 0 | Q137: 0 | U137: 0
A138: ='Org structure'!A14 -> Vote 13 - [NAME OF VOTE 13] | C138: =SUM(C139:C148) -> 0 | D138: 0 | E138: 0 | F138: 0 | G138: 0 | H138: 0 | I138: 0 | J138: 0 | K138: 0 | L138: 0 | N138: =SUM(N139:N148) -> 0 | O138: 0 | P138: 0 | Q138: 0 | R138: 0 | S138: 0 | T138: 0 | U138: 0 | V138: 0 | W138: 0 | X138: 0
A139: ='Org structure'!E135 -> 13.1 - [Name of sub-vote] | J139: =Q139+V139 -> 0 | K139: =U139+W139 -> 0 | L139: =X139 -> 0 | Q139: =SUM(N139:P139) -> 0 | U139: 0
A140: ='Org structure'!E136 -> 0 | J140: 0 | K140: 0 | L140: 0 | Q140: 0 | U140: 0
A141: ='Org structure'!E137 -> 0 | J141: 0 | K141: 0 | L141: 0 | Q141: 0 | U141: 0
A142: ='Org structure'!E138 -> 0 | J142: 0 | K142: 0 | L142: 0 | Q142: 0 | U142: 0
A143: ='Org structure'!E139 -> 0 | J143: 0 | K143: 0 | L143: 0 | Q143: 0 | U143: 0
A144: ='Org structure'!E140 -> 0 | J144: 0 | K144: 0 | L144: 0 | Q144: 0 | U144: 0
A145: ='Org structure'!E141 -> 0 | J145: 0 | K145: 0 | L145: 0 | Q145: 0 | U145: 0
A146: ='Org structure'!E142 -> 0 | J146: 0 | K146: 0 | L146: 0 | Q146: 0 | U146: 0
A147: ='Org structure'!E143 -> 0 | J147: 0 | K147: 0 | L147: 0 | Q147: 0 | U147: 0
A148: ='Org structure'!E144 -> 0 | J148: 0 | K148: 0 | L148: 0 | Q148: 0 | U148: 0
A149: ='Org structure'!A15 -> Vote 14 - [NAME OF VOTE 14] | C149: =SUM(C150:C159) -> 0 | D149: 0 | E149: 0 | F149: 0 | G149: 0 | H149: 0 | I149: 0 | J149: 0 | K149: 0 | L149: 0 | N149: =SUM(N150:N159) -> 0 | O149: 0 | P149: 0 | Q149: 0 | R149: 0 | S149: 0 | T149: 0 | U149: 0 | V149: 0 | W149: 0 | X149: 0
A150: ='Org structure'!E146 -> 14.1 - [Name of sub-vote] | J150: =Q150+V150 -> 0 | K150: =U150+W150 -> 0 | L150: =X150 -> 0 | Q150: =SUM(N150:P150) -> 0 | U150: 0
A151: ='Org structure'!E147 -> 0 | J151: 0 | K151: 0 | L151: 0 | Q151: 0 | U151: 0
A152: ='Org structure'!E148 -> 0 | J152: 0 | K152: 0 | L152: 0 | Q152: 0 | U152: 0
A153: ='Org structure'!E149 -> 0 | J153: 0 | K153: 0 | L153: 0 | Q153: 0 | U153: 0
A154: ='Org structure'!E150 -> 0 | J154: 0 | K154: 0 | L154: 0 | Q154: 0 | U154: 0
A155: ='Org structure'!E151 -> 0 | J155: 0 | K155: 0 | L155: 0 | Q155: 0 | U155: 0
A156: ='Org structure'!E152 -> 0 | J156: 0 | K156: 0 | L156: 0 | Q156: 0 | U156: 0
A157: ='Org structure'!E153 -> 0 | J157: 0 | K157: 0 | L157: 0 | Q157: 0 | U157: 0
A158: ='Org structure'!E154 -> 0 | J158: 0 | K158: 0 | L158: 0 | Q158: 0 | U158: 0
A159: ='Org structure'!E155 -> 0 | J159: 0 | K159: 0 | L159: 0 | Q159: 0 | U159: 0
A160: ='Org structure'!A16 -> Vote 15 - [NAME OF VOTE 15] | C160: =SUM(C161:C170) -> 0 | D160: 0 | E160: 0 | F160: 0 | G160: 0 | H160: 0 | I160: 0 | J160: 0 | K160: 0 | L160: 0 | N160: =SUM(N161:N170) -> 0 | O160: 0 | P160: 0 | Q160: 0 | R160: 0 | S160: 0 | T160: 0 | U160: 0 | V160: 0 | W160: 0 | X160: 0
A161: ='Org structure'!E157 -> 15.1 - [Name of sub-vote] | J161: =Q161+V161 -> 0 | K161: =U161+W161 -> 0 | L161: =X161 -> 0 | Q161: =SUM(N161:P161) -> 0 | U161: 0
A162: ='Org structure'!E158 -> 0 | J162: 0 | K162: 0 | L162: 0 | Q162: 0 | U162: 0
A163: ='Org structure'!E159 -> 0 | J163: 0 | K163: 0 | L163: 0 | Q163: 0 | U163: 0
A164: ='Org structure'!E160 -> 0 | J164: 0 | K164: 0 | L164: 0 | Q164: 0 | U164: 0
A165: ='Org structure'!E161 -> 0 | J165: 0 | K165: 0 | L165: 0 | Q165: 0 | U165: 0
A166: ='Org structure'!E162 -> 0 | J166: 0 | K166: 0 | L166: 0 | Q166: 0 | U166: 0
A167: ='Org structure'!E163 -> 0 | J167: 0 | K167: 0 | L167: 0 | Q167: 0 | U167: 0
A168: ='Org structure'!E164 -> 0 | J168: 0 | K168: 0 | L168: 0 | Q168: 0 | U168: 0
A169: ='Org structure'!E165 -> 0 | J169: 0 | K169: 0 | L169: 0 | Q169: 0 | U169: 0
A170: ='Org structure'!E166 -> 0 | J170: 0 | K170: 0 | L170: 0 | Q170: 0 | U170: 0
A171: Capital multi-year expenditure sub-total | C171: =C6+C17+C28+C39+C50+C61+C72+C83+C94+C105+C116+C127+C138+C149+C160 -> 0 | D171: =D6+D17+D28+D39+D50+D61+D72+D83+D94+D105+D116+D127+D138+D149+D160 -> 0 | E171: 0 | F171: 0 | G171: 0 | H171: 0 | I171: 0 | J171: 0 | K171: 0 | L171: 0 | N171: =N6+N17+N28+N39+N50+N61+N72+N83+N94+N105+N116+N127+N138+N149+N160 -> 0 | O171: 0 | P171: 0 | Q171: 0 | R171: 0 | S171: 0 | U171: 0 | V171: =V6+V17+V28+V39+V50+V61+V72+V83+V94+V105+V116+V127+V138+V149+V160 -> 0 | W171: =W6+W17+W28+W39+W50+W61+W72+W83+W94+W105+W116+W127+W138+W149+W160 -> 0
A173: Capital expenditure - Municipal Vote
A174: Single-year expenditure appropriation | B174: 2
A175: =A6 -> Vote 1 - EXECUTIVE AND COUNCIL | C175: =SUM(C176:C185) -> 0 | D175: 0 | E175: 0 | F175: 0 | G175: 0 | H175: 0 | I175: 0 | J175: 0 | K175: 0 | L175: 0
A176: =A7 -> 1.1 - Mayor's Office
A177: 1.2 - Speaker's Office
A178: 1.3 - Municipal Manager's Office
A179: 1.4 - IDP and PMS
A180: 1.5 - Internal Audit
A181: 1.6 - Special Programmes
A182: 0
A183: 0
A184: 0
A185: 0
A186: Vote 2 - FINANCE AND ADMINISTRATION | C186: =SUM(C187:C196) -> 8929961 | D186: 7753889 | E186: 0 | F186: 0 | G186: 0 | H186: 0 | I186: 0 | J186: 0 | K186: 0 | L186: 0
A187: 2.1 - Human Resource
A188: 2.2 - Records Management
A189: 2.3 - Legal Services
A190: 2.4 - Administration | C190: 8064296 | D190: 7646115
A191: 2.5 - Revenue Management | C191: 865665 | D191: 107774
A192: 2.6 - Supply Chain Management
A193: 2.7 - CFO
A194: 2.8 - Director Corporate Services
A195: 2.9 - Budget and Treasury
A196: 2.10 - Expenditure
A197: Vote 3 - COMMUNITY SERVICES | C197: =SUM(C198:C207) -> 0 | D197: 0 | E197: 16300177.48 | F197: 4109190.6 | G197: 5864775.23 | H197: 5864775.23 | I197: 5864775.23 | J197: 1205419.74 | K197: 1277744.924 | L197: 1354409.62
A198: 3.1 - Cementry | E198: 12389245.92 | F198: 854567.61 | G198: 854567.61 | H198: 854567.61 | I198: 854567.61 | K198: =J198*1.06 -> 0 | L198: 0
A199: 3.2 - Parks
A200: 3.3 - Director Community Services
A201: 3.4 - Traffic Services
... 140 more rows

Sheet A6-FinPos
A2: =desc -> Description | B2: =head27 -> Ref | C2: =head1b -> 2014/15 | D2: =head1A -> 2015/16 | E2: =Head1 -> 2016/17 | F2: =Head2 -> Current Year 2017/18 | J2: =Head3 -> 2018/19 Medium Term Revenue & Expenditure Framework
A3: R thousand | C3: =Head5 -> Audited Outcome | D3: =Head5 -> Audited Outcome | E3: =Head5 -> Audited Outcome | F3: =Head6 -> Original Budget | G3: =Head7 -> Adjusted Budget | H3: =Head8 -> Full Year Forecast | I3: =Head5b -> Pre-audit outcome | J3: =Head9 -> Budget Year 2018/19 | K3: =Head10 -> Budget Year +1 2019/20 | L3: =Head11 -> Budget Year +2 2020/21
A4: ASSETS
A5: Current assets
A6: Cash | C6: 2908446 | D6: 3104182 | E6: 4878356 | J6: 48291 | K6: =J6*1.06 -> 51188.46 | L6: 54259.7676
A7: Call investment deposits | B7: 1 | C7: ='SA3'!C9 -> 0 | D7: ='SA3'!D9 -> 0 | E7: ='SA3'!E9 -> 16877633 | F7: ='SA3'!F9 -> 16167241.27 | G7: ='SA3'!G9 -> 16167241.27 | H7: ='SA3'!H9 -> 16167241.27 | I7: ='SA3'!I9 -> 16167241.27 | J7: ='SA3'!J9 -> 16167241.27 | K7: ='SA3'!K9 -> 17137275.75 | L7: ='SA3'!L9 -> 18165512.29
A8: Consumer debtors | B8: 1 | C8: ='SA3'!C14 -> 15822490 | D8: ='SA3'!D14 -> 17708530 | E8: ='SA3'!E14 -> 306076806 | F8: ='SA3'!F14 -> 317271373.5 | G8: ='SA3'!G14 -> 317271373.5 | H8: ='SA3'!H14 -> 317271373.5 | I8: ='SA3'!I14 -> 317271373.5 | J8: ='SA3'!J14 -> 298507907.2 | K8: ='SA3'!K14 -> 316418381.6 | L8: ='SA3'!L14 -> 335403484.5
A9: Other debtors | C9: 1953845 | D9: 2119152 | E9: 13341583 | F9: 14142077.98 | G9: 14142077.98 | H9: 14142077.98 | I9: 14142077.98 | J9: 1824616 | K9: =J9*1.06 -> 1934092.96 | L9: 2050138.538
A10: Current portion of long-term receivables | C10: 1763881 | D10: 1763881 | E10: 20311929 | F10: 21530644.74 | G10: 21530644.74 | H10: 21530644.74 | I10: 21530644.74 | J10: 8306 | K10: 8804.36 | L10: 9332.6216
A11: Inventory | B11: 2 | C11: 586686 | D11: 608278 | E11: 663128 | F11: 702915.68 | G11: 702915.68 | H11: 702915.68 | I11: 702915.68 | J11: 705473 | K11: 747801.38 | L11: 792669.4628
A12: Total current assets | C12: =SUM(C6:C11) -> 23035348 | D12: 25304023 | E12: 362149435 | F12: 369814253.2 | G12: 369814253.2 | H12: 369814253.2 | I12: 369814253.2 | J12: 317261834.4 | K12: 336297544.5 | L12: 356475397.2
A14: Non current assets
A15: Long-term receivables | C15: 2018500 | D15: 2018500 | E15: 2099240 | F15: 2225194.4 | G15: 2225194.4 | H15: 2225194.4 | I15: 2225194.4 | J15: 2018500 | K15: 2018500 | L15: 2018500
A16: Investments
A17: Investment property | C17: 13877904 | D17: 13877904 | E17: 8441625 | F17: 14155462.08 | G17: 14155462.08 | H17: 14155462.08 | I17: 14155462.08 | J17: 13966722 | K17: =J17*1.06 -> 14804725.32 | L17: 15693008.84
A18: Investment in Associate | E18: 4478037 | F18: 4567597.944 | G18: 4567597.944 | H18: 4567597.944 | I18: 4567597.944 | J18: 4892128 | K18: 5185655.68 | L18: 5496795.021
A19: Property, plant and equipment | B19: 3 | C19: ='SA3'!C26 -> 1004475920 | D19: ='SA3'!D26 -> 1004970006 | E19: ='SA3'!E26 -> 1006101788 | F19: ='SA3'!F26 -> 1026223823 | G19: ='SA3'!G26 -> 1026223823 | H19: ='SA3'!H26 -> 1026223823 | I19: ='SA3'!I26 -> 1026223823 | J19: ='SA3'!J26 -> 986569640 | K19: ='SA3'!K26 -> 1045763818 | L19: ='SA3'!L26 -> 1108509648
A20: Agricultural
A21: Biological | C21: 50476 | D21: 24513 | E21: 24513 | F21: 24513 | G21: 24513 | H21: 24513 | I21: 24513 | J21: 37700 | K21: =J21*1.06 -> 39962 | L21: 42359.72
A22: Intangible | C22: 72705 | D22: 65598 | E22: 65598 | F22: 65598 | G22: 65598 | H22: 65598 | I22: 65598 | J22: 49371 | K22: 52333.26 | L22: 55473.2556
A23: Other non-current assets | C23: 4835605 | D23: 5117576 | E23: 161942 | F23: 165180.84 | G23: 165180.84 | H23: 165180.84 | I23: 165180.84 | J23: 529800 | K23: 561588 | L23: 595283.28
A24: Total non current assets | C24: =SUM(C15:C23) -> 1025331110 | D24: =SUM(D15:D23) -> 1026074097 | E24: =SUM(E15:E23) -> 1021372743 | F24: 1047427370 | G24: 1047427370 | H24: 1047427370 | I24: 1047427370 | J24: 1008063861 | K24: 1068426583 | L24: 1132411068
A25: TOTAL ASSETS | C25: =C12+C24 -> 1048366458 | D25: =D12+D24 -> 1051378120 | E25: =E12+E24 -> 1383522178 | F25: =F12+F24 -> 1417241623 | G25: 1417241623 | H25: 1417241623 | I25: 1417241623 | J25: 1325325695 | K25: 1404724127 | L25: 1488886465
A27: LIABILITIES
A28: Current liabilities
A29: Bank overdraft | B29: 1
A30: Borrowing | B30: 4 | C30: ='SA3'!C32 -> 1398503 | D30: ='SA3'!D32 -> 1531041 | E30: ='SA3'!E32 -> 7829433 | F30: ='SA3'!F32 -> 7986021.66 | G30: ='SA3'!G32 -> 7986021.66 | H30: ='SA3'!H32 -> 7986021.66 | I30: ='SA3'!I32 -> 7986021.66 | J30: ='SA3'!J32 -> 2188650 | K30: ='SA3'!K32 -> 1188650 | L30: ='SA3'!L32 -> 1028650
A31: Consumer deposits | C31: 1305253 | D31: 1348785 | E31: 1423310 | F31: 1508708.6 | G31: 1508708.6 | H31: 1508708.6 | I31: 1508708.6 | J31: 1401912 | K31: =J31*1.06 -> 1486026.72 | L31: 1575188.323
A32: Trade and other payables | B32: 4 | C32: ='SA3'!C38 -> 134622383 | D32: ='SA3'!D38 -> 177993617 | E32: ='SA3'!E38 -> 156659430.5 | F32: ='SA3'!F38 -> 163652719.5 | G32: ='SA3'!G38 -> 163652719.5 | H32: ='SA3'!H38 -> 163652719.5 | I32: ='SA3'!I38 -> 163652719.5 | J32: ='SA3'!J38 -> 209630150 | K32: ='SA3'!K38 -> 222207959 | L32: ='SA3'!L38 -> 235540436.5
A33: Provisions | C33: 550000 | D33: 422000 | E33: 572000 | J33: =214464+530000+4363174 -> 5107638 | K33: =J33*1.06 -> 5414096.28 | L33: =K33*1.06 -> 5738942.057
A34: Total current liabilities | C34: =SUM(C29:C33) -> 137876139 | D34: 181295443 | E34: 166484173.5 | F34: 173147449.7 | G34: 173147449.7 | H34: 173147449.7 | I34: 173147449.7 | J34: 218328350 | K34: 230296732 | L34: 243883216.9
A36: Non current liabilities
A37: Borrowing | C37: ='SA3'!C43 -> 8569848 | D37: ='SA3'!D43 -> 8273764 | E37: ='SA3'!E43 -> 7829433 | F37: ='SA3'!F43 -> 7986021.66 | G37: ='SA3'!G43 -> 7986021.66 | H37: ='SA3'!H43 -> 7986021.66 | I37: ='SA3'!I43 -> 7986021.66 | J37: ='SA3'!J43 -> 6902519 | K37: ='SA3'!K43 -> 6298484 | L37: ='SA3'!L43 -> 5298484
A38: Provisions | C38: ='SA3'!C50 -> 17988811 | D38: ='SA3'!D50 -> 19142003 | E38: ='SA3'!E50 -> 301420848 | F38: ='SA3'!F50 -> 307449265 | G38: ='SA3'!G50 -> 307449265 | H38: ='SA3'!H50 -> 307449265 | I38: ='SA3'!I50 -> 307449265 | J38: ='SA3'!J50 -> 18661476 | K38: ='SA3'!K50 -> 19781164.56 | L38: ='SA3'!L50 -> 20968034.43
A39: Total non current liabilities | C39: =SUM(C37:C38) -> 26558659 | D39: =SUM(D37:D38) -> 27415767 | E39: =SUM(E37:E38) -> 309250281 | F39: =SUM(F37:F38) -> 315435286.6 | G39: 315435286.6 | H39: 315435286.6 | I39: 315435286.6 | J39: 25563995 | K39: =SUM(K37:K38) -> 26079648.56 | L39: 26266518.43
A40: TOTAL LIABILITIES | C40: =C34+C39 -> 164434798 | D40: =D34+D39 -> 208711210 | E40: =E34+E39 -> 475734454.5 | F40: =F34+F39 -> 488582736.4 | G40: 488582736.4 | H40: 488582736.4 | I40: 488582736.4 | J40: 243892345 | K40: =K34+K39 -> 256376380.6 | L40: 270149735.4
A42: NET ASSETS | B42: 5 | C42: =C25-C40 -> 883931660 | D42: 842666910 | E42: 907787723.3 | F42: 928658886.5 | G42: 928658886.5 | H42: 928658886.5 | I42: 928658886.5 | J42: 1081433350 | K42: 1148347747 | L42: 1218736729
A44: COMMUNITY WEALTH/EQUITY
A45: Accumulated Surplus/(Deficit) | C45: 883931660 | D45: 842666910 | E45: 907787723.3 | F45: 928658886.5 | G45: 928658886.5 | H45: 928658886.5 | I45: 928658886.5 | J45: 1081433350 | K45: 1148347747 | L45: 1218736729
A46: Reserves | B46: 4 | C46: ='SA3'!C69 -> 0 | D46: ='SA3'!D69 -> 0 | E46: ='SA3'!E69 -> 0 | F46: ='SA3'!F69 -> 0 | G46: ='SA3'!G69 -> 0 | H46: ='SA3'!H69 -> 0 | I46: ='SA3'!I69 -> 0
A48: TOTAL COMMUNITY WEALTH/EQUITY | B48: 5 | C48: =SUM(C45:C47) -> 883931660 | D48: =SUM(D45:D47) -> 842666910 | E48: 907787723.3 | F48: 928658886.5 | G48: 928658886.5 | H48: 928658886.5 | I48: 928658886.5 | J48: 1081433350 | K48: 1148347747 | L48: 1218736729
A49: =head27a -> References
A50: 1. Detail to be provided in Table SA3
A51: 2. Include completed low cost housing to be transferred to beneficiaries within 12 months
A52: 3. Include 'Construction-work-in-progress' (disclosed separately in annual financial statements)
A53: 4. Detail to be provided in Table SA3. Includes reserves to be funded by statute.
A54: 5. Net assets must balance with Total Community Wealth/Equity
A55: check balance | C55: =IF((C42-C48)=0,0,"Unbalanced") -> 0 | D55: =IF((D42-D48)=0,0,"Unbalanced") -> 0 | E55: 0 | F55: 0 | G55: 0 | H55: 0 | I55: 0 | J55: 0 | K55: 0 | L55: 0
A71: Test | C71: =IF(C25<>C40,"Unbalanced",0) -> Unbalanced | D71: =IF(D25<>D40,"Unbalanced",0) -> Unbalanced | E71: Unbalanced | F71: Unbalanced | G71: Unbalanced | H71: Unbalanced | I71: Unbalanced | J71: Unbalanced | K71: Unbalanced | L71: Unbalanced

Sheet A7-CFlow
A1: =muni&" - "&Approve7 -> FS193 Nketoana - Table A7 Budgeted Cash Flows
A2: =desc -> Description | B2: =head27 -> Ref | C2: =head1b -> 2014/15 | D2: =head1A -> 2015/16 | E2: =Head1 -> 2016/17 | F2: =Head2 -> Current Year 2017/18 | J2: =Head3 -> 2018/19 Medium Term Revenue & Expenditure Framework
A3: R thousand | C3: =Head5 -> Audited Outcome | D3: =Head5 -> Audited Outcome | E3: =Head5 -> Audited Outcome | F3: =Head6 -> Original Budget | G3: =Head7 -> Adjusted Budget | H3: =Head8 -> Full Year Forecast | I3: =Head5b -> Pre-audit outcome | J3: =Head9 -> Budget Year 2018/19 | K3: =Head10 -> Budget Year +1 2019/20 | L3: =Head11 -> Budget Year +2 2020/21
A4: CASH FLOW FROM OPERATING ACTIVITIES
A5: Receipts
A6: Property rates | C6: 15835059 | D6: 16673984 | E6: 19537746 | F6: 14238474.66 | G6: 9294651.9 | H6: 9294651.9 | I6: 9294651.9 | J6: ='SA30'!N5 -> 15801268.47 | K6: ='SA30'!O5 -> 16749344.57 | L6: ='SA30'!P5 -> 17754305.25
A7: Service charges | C7: 54705719 | D7: 69183916 | E7: 0 | F7: 99798332.69 | G7: 88550332.69 | H7: 88550332.69 | I7: 88550332.69 | J7: ='SA30'!N6+'SA30'!N7+'SA30'!N8+'SA30'!N9+'SA30'!N10 -> 115253635.7 | K7: ='SA30'!O6+'SA30'!O7+'SA30'!O8+'SA30'!O9+'SA30'!O10 -> 122168853.8 | L7: ='SA30'!P6+'SA30'!P7+'SA30'!P8+'SA30'!P9+'SA30'!P10 -> 129498985
A8: Other revenue | C8: 583166 | D8: 1101572 | E8: 17147557 | F8: 14026549.07 | G8: 16103675.28 | H8: 16103675.28 | I8: 16103675.28 | J8: ='SA30'!N11+'SA30'!N15+'SA30'!N16+'SA30'!N17+'SA30'!N19 -> 21720065.99 | K8: ='SA30'!O11+'SA30'!O15+'SA30'!O16+'SA30'!O17+'SA30'!O19 -> 23023269.95 | L8: ='SA30'!P11+'SA30'!P15+'SA30'!P16+'SA30'!P17+'SA30'!P19 -> 24404666.14
A9: Government - operating | B9: 1 | C9: 139771682 | D9: 153427832 | E9: 81702000 | F9: 82580000 | G9: 82580000 | H9: 82580000 | I9: 82580000 | J9: ='SA30'!N18 -> 90367000 | K9: ='SA30'!O18 -> 95789020 | L9: ='SA30'!P18 -> 101536361.2
A10: Government - capital | B10: 1 | E10: 64218000 | F10: 98761000 | G10: 98761000 | H10: 98761000 | I10: 98761000 | J10: ='SA30'!N23 -> 64927000 | K10: ='SA30'!O23 -> 68822620 | L10: ='SA30'!P23 -> 72951977.2
A11: Interest | E11: 37929813 | F11: 28898779.5 | G11: 2336455.157 | H11: 2336455.157 | I11: 2336455.157 | J11: ='SA30'!N12+'SA30'!N13 -> 32737072.15 | K11: ='SA30'!O12+'SA30'!O13 -> 34701296.48 | L11: ='SA30'!P12+'SA30'!P13 -> 36783374.27
A12: Dividends | F12: 0 | G12: 0 | H12: 0 | I12: 0 | J12: ='SA30'!N14 -> 0 | K12: ='SA30'!O14 -> 0 | L12: ='SA30'!P14 -> 0
A13: Payments
A14: Suppliers and employees | C14: -153361523 | D14: -169284096 | E14: -206167800 | F14: -217479756 | G14: -197461142.1 | H14: -197461142.1 | I14: -197461142.1 | J14: =-('SA30'!N35+'SA30'!N36+'SA30'!N38+'SA30'!N39+'SA30'!N40+'SA30'!N41+'SA30'!N44+'SA30'!N50) -> -240696980.5 | K14: =-('SA30'!O35+'SA30'!O36+'SA30'!O38+'SA30'!O39+'SA30'!O40+'SA30'!O41+'SA30'!O44+'SA30'!O50) -> -255138799.3 | L14: =-('SA30'!P35+'SA30'!P36+'SA30'!P38+'SA30'!P39+'SA30'!P40+'SA30'!P41+'SA30'!P44+'SA30'!P50) -> -270447127.3
A15: Finance charges | C15: -8338647 | D15: -10202243 | E15: -1500000 | F15: -17835276.45 | G15: -8917638.225 | H15: -8917638.225 | I15: -8917638.225 | J15: =-('SA30'!N37) -> -17845133.12 | K15: =-('SA30'!O37) -> -18915841.1 | L15: =-('SA30'!P37) -> -20050791.57
A16: Transfers and Grants | B16: 1 | F16: 0 | G16: 0 | H16: 0 | I16: 0 | J16: =-('SA30'!N42+'SA30'!N43) -> 0 | K16: =-('SA30'!O42+'SA30'!O43) -> 0 | L16: =-('SA30'!P42+'SA30'!P43) -> 0
A17: NET CASH FROM/(USED) OPERATING ACTIVITIES | C17: =SUM(C6:C12)+SUM(C14:C16) -> 49195456 | D17: 60900965 | E17: 12867316 | F17: 102988103.4 | G17: 91247334.74 | H17: 91247334.74 | I17: 91247334.74 | J17: 82263928.68 | K17: 87199764.4 | L17: 92431750.26
A19: CASH FLOWS FROM INVESTING ACTIVITIES
A20: Receipts
A21: Proceeds on disposal of PPE | C21: 36425 | D21: 587073 | F21: 0 | G21: 0 | H21: 0 | I21: 0 | J21: ='SA30'!N24+'SA30'!N25 -> 0 | K21: ='SA30'!O24+'SA30'!O25 -> 0 | L21: ='SA30'!P24+'SA30'!P25 -> 0
A22: Decrease (Increase) in non-current debtors | C22: 0 | D22: 0 | F22: 0 | G22: 0 | H22: 0 | I22: 0 | J22: ='SA30'!N29 -> 0 | K22: ='SA30'!O29 -> 0 | L22: ='SA30'!P29 -> 0
A23: Decrease (increase) other non-current receivables | C23: 287058 | D23: -309553 | F23: 0 | G23: 0 | H23: 0 | I23: 0 | J23: ='SA30'!N30 -> 0 | K23: ='SA30'!O30 -> 0 | L23: ='SA30'!P30 -> 0
A24: Decrease (increase) in non-current investments | F24: 0 | G24: 0 | H24: 0 | I24: 0 | J24: ='SA30'!N31 -> 0 | K24: ='SA30'!O31 -> 0 | L24: ='SA30'!P31 -> 0
A25: Payments
A26: Capital assets | C26: -45578295 | D26: -59549009 | F26: -98761000 | G26: -98761000 | H26: -98761000 | I26: -98761000 | J26: =-('SA30'!N48) -> -64927000 | K26: =-('SA30'!O48) -> -68822620 | L26: =-('SA30'!P48) -> -72951977.2
A27: NET CASH FROM/(USED) INVESTING ACTIVITIES | C27: =SUM(C21:C24)+C26 -> -45254812 | D27: =SUM(D21:D24)+D26 -> -59271489 | E27: 0 | F27: -98761000 | G27: -98761000 | H27: -98761000 | I27: -98761000 | J27: -64927000 | K27: -68822620 | L27: -72951977.2
A29: CASH FLOWS FROM FINANCING ACTIVITIES
A30: Receipts
A31: Short term loans | F31: 0 | G31: 0 | H31: 0 | I31: 0 | J31: ='SA30'!N26 -> 0 | K31: ='SA30'!O26 -> 0 | L31: ='SA30'!P26 -> 0
A32: Borrowing long term/refinancing | F32: 0 | G32: 0 | H32: 0 | I32: 0 | J32: ='SA30'!N27 -> 0 | K32: ='SA30'!O27 -> 0 | L32: ='SA30'!P27 -> 0
A33: Increase (decrease) in consumer deposits | E33: 132261.996 | F33: 144890.34 | G33: 144890.34 | H33: 144890.34 | I33: 144890.34 | J33: ='SA30'!N28 -> 165000 | K33: ='SA30'!O28 -> 174900 | L33: ='SA30'!P28 -> 185394
A34: Payments
A35: Repayment of borrowing | C35: -1348909 | D35: -812885 | E35: -8636631.28 | F35: -486000 | G35: -4000000 | H35: -4000000 | I35: -4000000 | J35: =-('SA30'!N49) -> -2400000 | K35: =-('SA30'!O49) -> -2544000 | L35: =-('SA30'!P49) -> -2696640
A36: NET CASH FROM/(USED) FINANCING ACTIVITIES | C36: =SUM(C31:C33)+C35 -> -1348909 | D36: =SUM(D31:D33)+D35 -> -812885 | E36: -8504369.284 | F36: -341109.66 | G36: -3855109.66 | H36: -3855109.66 | I36: -3855109.66 | J36: -2235000 | K36: -2369100 | L36: -2511246
A38: NET INCREASE/ (DECREASE) IN CASH HELD | C38: =C17+C27+C36 -> 2591735 | D38: =D17+D27+D36 -> 816591 | E38: 4362946.716 | F38: =F17+F27+F36 -> 3885993.784 | G38: -11368774.92 | H38: -11368774.92 | I38: -11368774.92 | J38: 15101928.68 | K38: 16008044.4 | L38: 16968527.06
A39: Cash/cash equivalents at the year begin: | B39: 2 | C39: -881306 | D39: 1710430 | E39: 7269285 | F39: 2527021 | G39: 12381351 | H39: 12381351 | I39: 12381351 | J39: ='SA30'!N54 -> -2480240 | K39: =J40 -> 12621688.68 | L39: =K40 -> 28629733.08
A40: Cash/cash equivalents at the year end: | B40: 2 | C40: =C38+C39 -> 1710429 | D40: =D38+D39 -> 2527021 | E40: =E38+E39 -> 11632231.72 | F40: =F38+F39 -> 6413014.784 | G40: 1012576.083 | H40: 1012576.083 | I40: 1012576.083 | J40: 12621688.68 | K40: 28629733.08 | L40: 45598260.14
A41: =head27a -> References
A42: 1. Local/District municipalities to include transfers from/to District/Local Municipalities
A43: 2. Cash equivalents includes investments with maturities of 3 months or less
A44: 3. The MTREF is populated directly from SA30.
A45: Total receipts | C45: =SUM(C6:C12)+SUM(C21:C23) -> 211219109 | D45: 240664824 | E45: 220535116 | F45: 338303135.9 | G45: 297626115 | H45: 297626115 | I45: 297626115 | J45: 340806042.3 | K45: 361254404.8 | L45: 382929669.1
A46: Total payments | C46: =SUM(C14:C16)+C26 -> -207278465 | D46: =SUM(D14:D16)+D26 -> -239035348 | E46: -207667800 | F46: -334076032.5 | G46: -305139780.3 | H46: -305139780.3 | I46: -305139780.3 | J46: -323469113.6 | K46: -342877260.4 | L46: -363449896
C47: =C45+C46 -> 3940644 | D47: =D45+D46 -> 1629476 | E47: 12867316 | F47: 4227103.444 | G47: -7513665.257 | H47: -7513665.257 | I47: -7513665.257 | J47: 17336928.68 | K47: 18377144.4 | L47: 19479773.06
A48: Borrowings & investments & c.deposits | C48: =C24+C32+C33 -> 0 | D48: =D24+D32+D33 -> 0 | E48: 132261.996 | F48: 144890.34 | G48: 144890.34 | H48: 144890.34 | I48: 144890.34 | J48: 165000 | K48: 174900 | L48: 185394
A49: =A35 -> Repayment of borrowing | C49: =C35 -> -1348909 | D49: =D35 -> -812885 | E49: -8636631.28 | F49: -486000 | G49: -4000000 | H49: -4000000 | I49: =I35 -> -4000000 | J49: -2400000 | K49: -2544000 | L49: -2696640
C50: =C47+C48+C49 -> 2591735 | D50: =D47+D48+D49 -> 816591 | E50: 4362946.716 | F50: 3885993.784 | G50: -11368774.92 | H50: -11368774.92 | I50: -11368774.92 | J50: 15101928.68 | K50: 16008044.4 | L50: 16968527.06
C51: =C38-C50 -> 0 | D51: 0 | E51: 0 | F51: -2.980232239e-08 | G51: 0 | H51: 0 | I51: 0 | J51: 0 | K51: 0 | L51: 0

Sheet A8-ResRecon
A1: =muni&" - "&Approve8 -> FS193 Nketoana - Table A8 Cash backed reserves/accumulated surplus reconciliation
A2: =desc -> Description | B2: =head27 -> Ref | C2: =head1b -> 2014/15 | D2: =head1A -> 2015/16 | E2: =Head1 -> 2016/17 | F2: =Head2 -> Current Year 2017/18 | J2: =Head3 -> 2018/19 Medium Term Revenue & Expenditure Framework
A3: R thousand | C3: =Head5 -> Audited Outcome | D3: =Head5 -> Audited Outcome | E3: =Head5 -> Audited Outcome | F3: =Head6 -> Original Budget | G3: =Head7 -> Adjusted Budget | H3: =Head8 -> Full Year Forecast | I3: =Head5b -> Pre-audit outcome | J3: =Head9 -> Budget Year 2018/19 | K3: =Head10 -> Budget Year +1 2019/20 | L3: =Head11 -> Budget Year +2 2020/21
A4: Cash and investments available
A5: =LEFT('A7-CFlow'!A40,37) -> Cash/cash equivalents at the year end | B5: 1 | C5: ='A7-CFlow'!C40 -> 1710429 | D5: ='A7-CFlow'!D40 -> 2527021 | E5: ='A7-CFlow'!E40 -> 11632231.72 | F5: ='A7-CFlow'!F40 -> 6413014.784 | G5: ='A7-CFlow'!G40 -> 1012576.083 | H5: ='A7-CFlow'!H40 -> 1012576.083 | I5: ='A7-CFlow'!I40 -> 1012576.083 | J5: ='A7-CFlow'!J40 -> 12621688.68 | K5: ='A7-CFlow'!K40 -> 28629733.08 | L5: ='A7-CFlow'!L40 -> 45598260.14
A6: Other current investments > 90 days | C6: ='A6-FinPos'!C6+'A6-FinPos'!C7-'A6-FinPos'!C29-'A8-ResRecon'!C5 -> 1198017 | D6: ='A6-FinPos'!D6+'A6-FinPos'!D7-'A6-FinPos'!D29-'A8-ResRecon'!D5 -> 577161 | E6: ='A6-FinPos'!E6+'A6-FinPos'!E7-'A6-FinPos'!E29-'A8-ResRecon'!E5 -> 10123757.28 | F6: ='A6-FinPos'!F6+'A6-FinPos'!F7-'A6-FinPos'!F29-'A8-ResRecon'!F5 -> 9754226.486 | G6: ='A6-FinPos'!G6+'A6-FinPos'!G7-'A6-FinPos'!G29-'A8-ResRecon'!G5 -> 15154665.19 | H6: ='A6-FinPos'!H6+'A6-FinPos'!H7-'A6-FinPos'!H29-'A8-ResRecon'!H5 -> 15154665.19 | I6: ='A6-FinPos'!I6+'A6-FinPos'!I7-'A6-FinPos'!I29-'A8-ResRecon'!I5 -> 15154665.19 | J6: ='A6-FinPos'!J6+'A6-FinPos'!J7-'A6-FinPos'!J29-'A8-ResRecon'!J5 -> 3593843.591 | K6: ='A6-FinPos'!K6+'A6-FinPos'!K7-'A6-FinPos'!K29-'A8-ResRecon'!K5 -> -11441268.87 | L6: ='A6-FinPos'!L6+'A6-FinPos'!L7-'A6-FinPos'!L29-'A8-ResRecon'!L5 -> -27378488.09
A7: ='A6-FinPos'!A14&" - "&'A6-FinPos'!A16 -> Non current assets - Investments | B7: 1 | C7: ='A6-FinPos'!C16 -> 0 | D7: ='A6-FinPos'!D16 -> 0 | E7: ='A6-FinPos'!E16 -> 0 | F7: ='A6-FinPos'!F16 -> 0 | G7: ='A6-FinPos'!G16 -> 0 | H7: ='A6-FinPos'!H16 -> 0 | I7: ='A6-FinPos'!I16 -> 0 | J7: ='A6-FinPos'!J16 -> 0 | K7: ='A6-FinPos'!K16 -> 0 | L7: ='A6-FinPos'!L16 -> 0
A8: Cash and investments available: | C8: =SUM(C5:C7) -> 2908446 | D8: =SUM(D5:D7) -> 3104182 | E8: 21755989 | F8: 16167241.27 | G8: 16167241.27 | H8: 16167241.27 | I8: 16167241.27 | J8: 16215532.27 | K8: 17188464.21 | L8: 18219772.06
A10: Application of cash and investments
A11: ='SA3'!A36 -> Unspent conditional transfers | C11: ='SA3'!C36 -> 1091381 | D11: ='SA3'!D36 -> 92019 | E11: ='SA3'!E36 -> 2270072.48 | F11: ='SA3'!F36 -> 0 | G11: ='SA3'!G36 -> 0 | H11: ='SA3'!H36 -> 0 | I11: ='SA3'!I36 -> 0 | J11: ='SA3'!J36 -> 0 | K11: ='SA3'!K36 -> 0 | L11: ='SA3'!L36 -> 0
A12: Unspent borrowing | C12: ='SA17'!C67 -> 0 | D12: ='SA17'!D67 -> 0 | E12: ='SA17'!E67 -> 0 | F12: ='SA17'!F67 -> 0 | G12: ='SA17'!G67 -> 0 | H12: ='SA17'!H67 -> 0 | J12: ='SA17'!I67 -> 0 | K12: ='SA17'!J67 -> 0 | L12: ='SA17'!K67 -> 0
A13: Statutory requirements | B13: 2
A14: Other working capital requirements | B14: 3 | C14: =-C32 -> 105966335 | D14: =-D32 -> 153821242 | E14: 81708168 | F14: =-F32 -> -48269261.92 | G14: =-G32 -> -23028261.92 | H14: -23028261.92 | I14: -23028261.92 | J14: =-J32 -> 10888383 | K14: 11618565.98 | L14: 12392859.94
A15: Other provisions
A16: Long term investments committed | B16: 4 | C16: =C52 -> 0 | D16: =D52 -> 0 | E16: 0 | F16: 0 | G16: 0 | H16: 0 | I16: 0 | J16: 0 | K16: 0 | L16: 0
A17: Reserves to be backed by cash/investments | B17: 5
A18: ="Total "&A10&":" -> Total Application of cash and investments: | C18: =SUM(C11:C17) -> 107057716 | D18: =SUM(D11:D17) -> 153913261 | E18: 83978240.48 | F18: -48269261.92 | G18: -23028261.92 | H18: -23028261.92 | I18: -23028261.92 | J18: 10888383 | K18: 11618565.98 | L18: 12392859.94
A19: Surplus(shortfall) | C19: =C8-C18 -> -104149270 | D19: =D8-D18 -> -150809079 | E19: -62222251.48 | F19: 64436503.19 | G19: 39195503.19 | H19: 39195503.19 | I19: 39195503.19 | J19: 5327149.27 | K19: 5569898.226 | L19: 5826912.12
A20: =head27a -> References
A21: 1. Must reconcile with Budgeted Cash Flows
A22: 2. For example: VAT, taxation
A23: 3. Council approval for policy required - include sufficient working capital (e.g. allowing for a % of current debtors > 90 days as uncollectable)
A24: 4. For example: sinking fund requirements for borrowing
A25: 5. Council approval required for each reserve created and basis of cash backing of reserves
A28: Other working capital requirements
A29: Debtors | C29: =IF(ISERROR(ROUND(C35*C36,-3)),0,(ROUND(C35*C36,-3))) -> 9188000 | D29: =IF(ISERROR(ROUND(D35*D36,-3)),0,(ROUND(D35*D36,-3))) -> 10535000 | E29: 56118000 | F29: 194365000 | G29: =IF(ISERROR(ROUND(G35*G36,-3)),0,(ROUND(G35*G36,-3))) -> 169124000 | H29: 169124000 | I29: 169124000 | J29: =IF(ISERROR(ROUND(J35*J36,-3)),0,(ROUND(J35*J36,-3))) -> 192198000 | K29: 203653000 | L29: 215795000
A31: Creditors due | C31: ='SA3'!C35 -> 115154335 | D31: ='SA3'!D35 -> 164356242 | E31: ='SA3'!E35 -> 137826168 | F31: ='SA3'!F35 -> 146095738.1 | G31: ='SA3'!G35 -> 146095738.1 | H31: ='SA3'!H35 -> 146095738.1 | I31: ='SA3'!I35 -> 146095738.1 | J31: ='SA3'!J35 -> 203086383 | K31: ='SA3'!K35 -> 215271566 | L31: ='SA3'!L35 -> 228187859.9
A32: Total | C32: =C29-C31 -> -105966335 | D32: =D29-D31 -> -153821242 | E32: -81708168 | F32: 48269261.92 | G32: 23028261.92 | H32: 23028261.92 | I32: 23028261.92 | J32: -10888383 | K32: -11618565.98 | L32: -12392859.94
A34: Debtors collection assumptions
A35: Balance outstanding - debtors | C35: ='A6-FinPos'!C8+'A6-FinPos'!C9+'A6-FinPos'!C15 -> 19794835 | D35: ='A6-FinPos'!D8+'A6-FinPos'!D9+'A6-FinPos'!D15 -> 21846182 | E35: ='A6-FinPos'!E8+'A6-FinPos'!E9+'A6-FinPos'!E15 -> 321517629 | F35: ='A6-FinPos'!F8+'A6-FinPos'!F9+'A6-FinPos'!F15 -> 333638645.9 | G35: ='A6-FinPos'!G8+'A6-FinPos'!G9+'A6-FinPos'!G15 -> 333638645.9 | H35: ='A6-FinPos'!H8+'A6-FinPos'!H9+'A6-FinPos'!H15 -> 333638645.9 | I35: ='A6-FinPos'!I8+'A6-FinPos'!I9+'A6-FinPos'!I15 -> 333638645.9 | J35: ='A6-FinPos'!J8+'A6-FinPos'!J9+'A6-FinPos'!J15 -> 302351023.2 | K35: ='A6-FinPos'!K8+'A6-FinPos'!K9+'A6-FinPos'!K15 -> 320370974.6 | L35: ='A6-FinPos'!L8+'A6-FinPos'!L9+'A6-FinPos'!L15 -> 339472123
A36: Estimate of debtors collection rate | C36: =IF(ISERROR('SA10'!D10),0,('SA10'!D10)) -> 0.4641716007 | D36: =IF(ISERROR('SA10'!E10),0,('SA10'!E10)) -> 0.4822444886 | E36: =IF(ISERROR('SA10'!F10),0,('SA10'!F10)) -> 0.1745396824 | F36: =IF(ISERROR('SA10'!G10),0,('SA10'!G10)) -> 0.5825620432 | G36: =IF(ISERROR('SA10'!H10),0,('SA10'!H10)) -> 0.5069079873 | H36: =IF(ISERROR('SA10'!I10),0,('SA10'!I10)) -> 0.5069079873 | I36: =IF(ISERROR('SA10'!J10),0,('SA10'!J10)) -> 0.5069079873 | J36: =IF(ISERROR('SA10'!K10),0,('SA10'!K10)) -> 0.6356783077 | K36: =IF(ISERROR('SA10'!L10),0,('SA10'!L10)) -> 0.6356783077 | L36: =IF(ISERROR('SA10'!M10),0,('SA10'!M10)) -> 0.6356783077
K39: `
A40: =A16 -> Long term investments committed
A41: Balance (Insert description; eg sinking fund)
C52: =SUM(C41:C51) -> 0 | D52: =SUM(D41:D51) -> 0 | E52: 0 | F52: 0 | G52: 0 | H52: 0 | I52: 0 | J52: 0 | K52: 0 | L52: 0
A53: =A17 -> Reserves to be backed by cash/investments
A54: ='SA3'!A64 -> Housing Development Fund | C54: ='SA3'!C64 -> 0 | D54: ='SA3'!D64 -> 0 | E54: ='SA3'!E64 -> 0 | F54: ='SA3'!F64 -> 0 | G54: ='SA3'!G64 -> 0 | H54: ='SA3'!H64 -> 0 | I54: ='SA3'!I64 -> 0 | J54: ='SA3'!J64 -> 0 | K54: ='SA3'!K64 -> 0 | L54: ='SA3'!L64 -> 0
A55: ='SA3'!A65 -> Capital replacement
A56: ='SA3'!A66 -> Self-insurance
A57: Other (list)
C67: =SUM(C54:C65) -> 0 | D67: 0 | E67: 0 | F67: 0 | G67: 0 | H67: 0 | I67: 0 | J67: 0 | K67: 0 | L67: 0

Sheet A9-Asset
A1: =muni&" - "&Approve9 -> FS193 Nketoana - Table A9 Asset Management
A2: =desc -> Description | B2: =head27 -> Ref | C2: =head1b -> 2014/15 | D2: =head1A -> 2015/16 | E2: =Head1 -> 2016/17 | F2: =Head2 -> Current Year 2017/18 | I2: =Head3 -> 2018/19 Medium Term Revenue & Expenditure Framework
A3: R thousand | C3: =Head5 -> Audited Outcome | D3: =Head5 -> Audited Outcome | E3: =Head5 -> Audited Outcome | F3: =Head6 -> Original Budget | G3: =Head7 -> Adjusted Budget | H3: =Head8 -> Full Year Forecast | I3: =Head9 -> Budget Year 2018/19 | J3: =Head10 -> Budget Year +1 2019/20 | K3: =Head11 -> Budget Year +2 2020/21
A4: CAPITAL EXPENDITURE
A5: Total New Assets | B5: 1 | C5: =C15+C18+C19+C22+C25+C26+SUM(C29:C35) -> 45597961 | D5: =D15+D18+D19+D22+D25+D26+SUM(D29:D35) -> 59576592 | E5: 56390590.69 | F5: 52085861.76 | G5: 44782076.77 | H5: 44782076.77 | I5: 23935551.62 | J5: 25371684.72 | K5: 26893985.8
A6: Roads Infrastructure | C6: =SA34a!C7 -> 11094273 | D6: =SA34a!D7 -> 12648409 | E6: =SA34a!E7 -> 1210900 | F6: =SA34a!F7 -> 1287750 | G6: =SA34a!G7 -> 1287750 | H6: =SA34a!H7 -> 1287750 | I6: =SA34a!I7 -> 1352100 | J6: =SA34a!J7 -> 1433226 | K6: =SA34a!K7 -> 1519219.56
A7: Storm water Infrastructure | C7: =SA34a!C12 -> 0 | D7: =SA34a!D12 -> 0 | E7: =SA34a!E12 -> 0 | F7: =SA34a!F12 -> 0 | G7: =SA34a!G12 -> 0 | H7: =SA34a!H12 -> 0 | I7: =SA34a!I12 -> 0 | J7: =SA34a!J12 -> 0 | K7: =SA34a!K12 -> 0
A8: Electrical Infrastructure | C8: =SA34a!C16 -> 5300000 | D8: =SA34a!D16 -> 2842188 | E8: =SA34a!E16 -> 0 | F8: =SA34a!F16 -> 0 | G8: =SA34a!G16 -> 0 | H8: =SA34a!H16 -> 0 | I8: =SA34a!I16 -> 1547056.65 | J8: =SA34a!J16 -> 1639880.049 | K8: =SA34a!K16 -> 1738272.852
A9: Water Supply Infrastructure | C9: =SA34a!C26 -> 14597433 | D9: =SA34a!D26 -> 19660506 | E9: =SA34a!E26 -> 32010790.85 | F9: =SA34a!F26 -> 42253389.15 | G9: =SA34a!G26 -> 42253389.15 | H9: =SA34a!H26 -> 42253389.15 | I9: =SA34a!I26 -> 0 | J9: =SA34a!J26 -> 0 | K9: =SA34a!K26 -> 0
A10: Sanitation Infrastructure | C10: =SA34a!C37 -> 4160116 | D10: =SA34a!D37 -> 7728815 | E10: =SA34a!E37 -> 10403453.92 | F10: =SA34a!F37 -> 0 | G10: =SA34a!G37 -> 0 | H10: =SA34a!H37 -> 0 | I10: =SA34a!I37 -> 20611849.97 | J10: =SA34a!J37 -> 21848560.97 | K10: =SA34a!K37 -> 23159474.63
A11: Solid Waste Infrastructure | C11: =SA34a!C44 -> 9023838 | D11: =SA34a!D44 -> 8942785 | E11: =SA34a!E44 -> 376200 | F11: =SA34a!F44 -> 7690155 | G11: =SA34a!G44 -> 386370.01 | H11: =SA34a!H44 -> 386370.01 | I11: =SA34a!I44 -> 424545 | J11: =SA34a!J44 -> 450017.7 | K11: =SA34a!K44 -> 477018.762
A12: Rail Infrastructure | C12: =SA34a!C52 -> 0 | D12: =SA34a!D52 -> 0 | E12: =SA34a!E52 -> 0 | F12: =SA34a!F52 -> 0 | G12: =SA34a!G52 -> 0 | H12: =SA34a!H52 -> 0 | I12: =SA34a!I52 -> 0 | J12: =SA34a!J52 -> 0 | K12: =SA34a!K52 -> 0
A13: Coastal Infrastructure | C13: =SA34a!C62 -> 0 | D13: =SA34a!D62 -> 0 | E13: =SA34a!E62 -> 0 | F13: =SA34a!F62 -> 0 | G13: =SA34a!G62 -> 0 | H13: =SA34a!H62 -> 0 | I13: =SA34a!I62 -> 0 | J13: =SA34a!J62 -> 0 | K13: =SA34a!K62 -> 0
A14: Information and Communication Infrastructure | C14: =SA34a!C68 -> 0 | D14: =SA34a!D68 -> 0 | E14: =SA34a!E68 -> 0 | F14: =SA34a!F68 -> 0 | G14: =SA34a!G68 -> 0 | H14: =SA34a!H68 -> 0 | I14: =SA34a!I68 -> 0 | J14: =SA34a!J68 -> 0 | K14: =SA34a!K68 -> 0
A15: Infrastructure | C15: =SUM(C6:C14) -> 44175660 | D15: =SUM(D6:D14) -> 51822703 | E15: 44001344.77 | F15: 51231294.15 | G15: 43927509.16 | H15: 43927509.16 | I15: 23935551.62 | J15: 25371684.72 | K15: 26893985.8
A16: Community Facilities | C16: =SA34a!C75 -> 0 | D16: =SA34a!D75 -> 6212509 | E16: =SA34a!E75 -> 12389245.92 | F16: =SA34a!F75 -> 854567.61 | G16: =SA34a!G75 -> 854567.61 | H16: =SA34a!H75 -> 854567.61 | I16: =SA34a!I75 -> 0 | J16: =SA34a!J75 -> 0 | K16: =SA34a!K75 -> 0
A17: Sport and Recreation Facilities | C17: =SA34a!C98 -> 0 | D17: =SA34a!D98 -> 0 | E17: =SA34a!E98 -> 0 | F17: =SA34a!F98 -> 0 | G17: =SA34a!G98 -> 0 | H17: =SA34a!H98 -> 0 | I17: =SA34a!I98 -> 0 | J17: =SA34a!J98 -> 0 | K17: =SA34a!K98 -> 0
A18: Community Assets | C18: =SUM(C16:C17) -> 0 | D18: =SUM(D16:D17) -> 6212509 | E18: 12389245.92 | F18: 854567.61 | G18: 854567.61 | H18: 854567.61 | I18: 0 | J18: 0 | K18: 0
A19: Heritage Assets | C19: =SA34a!C103 -> 0 | D19: =SA34a!D103 -> 0 | E19: =SA34a!E103 -> 0 | F19: =SA34a!F103 -> 0 | G19: =SA34a!G103 -> 0 | H19: =SA34a!H103 -> 0 | I19: =SA34a!I103 -> 0 | J19: =SA34a!J103 -> 0 | K19: =SA34a!K103 -> 0
A20: Revenue Generating | C20: =SA34a!C111 -> 0 | D20: =SA34a!D111 -> 0 | E20: =SA34a!E111 -> 0 | F20: =SA34a!F111 -> 0 | G20: =SA34a!G111 -> 0 | H20: =SA34a!H111 -> 0 | I20: =SA34a!I111 -> 0 | J20: =SA34a!J111 -> 0 | K20: =SA34a!K111 -> 0
A21: Non-revenue Generating | C21: =SA34a!C114 -> 0 | D21: =SA34a!D114 -> 0 | E21: =SA34a!E114 -> 0 | F21: =SA34a!F114 -> 0 | G21: =SA34a!G114 -> 0 | H21: =SA34a!H114 -> 0 | I21: =SA34a!I114 -> 0 | J21: =SA34a!J114 -> 0 | K21: =SA34a!K114 -> 0
A22: Investment properties | C22: =SUM(C20:C21) -> 0 | D22: =SUM(D20:D21) -> 0 | E22: 0 | F22: 0 | G22: 0 | H22: 0 | I22: 0 | J22: 0 | K22: 0
A23: Operational Buildings | C23: =SA34a!C119 -> 1402635 | D23: =SA34a!D119 -> 1513798 | E23: =SA34a!E119 -> 0 | F23: =SA34a!F119 -> 0 | G23: =SA34a!G119 -> 0 | H23: =SA34a!H119 -> 0 | I23: =SA34a!I119 -> 0 | J23: =SA34a!J119 -> 0 | K23: =SA34a!K119 -> 0
A24: Housing | C24: =SA34a!C131 -> 0 | D24: =SA34a!D131 -> 0 | E24: =SA34a!E131 -> 0 | F24: =SA34a!F131 -> 0 | G24: =SA34a!G131 -> 0 | H24: =SA34a!H131 -> 0 | I24: =SA34a!I131 -> 0 | J24: =SA34a!J131 -> 0 | K24: =SA34a!K131 -> 0
A25: Other Assets | C25: =SUM(C23:C24) -> 1402635 | D25: =SUM(D23:D24) -> 1513798 | E25: 0 | F25: 0 | G25: 0 | H25: 0 | I25: 0 | J25: 0 | K25: 0
A26: Biological or Cultivated Assets | C26: =SA34a!C136 -> 0 | D26: =SA34a!D136 -> 0 | E26: =SA34a!E136 -> 0 | F26: =SA34a!F136 -> 0 | G26: =SA34a!G136 -> 0 | H26: =SA34a!H136 -> 0 | I26: =SA34a!I136 -> 0 | J26: =SA34a!J136 -> 0 | K26: =SA34a!K136 -> 0
A27: Servitudes | C27: =SA34a!C140 -> 0 | D27: =SA34a!D140 -> 0 | E27: =SA34a!E140 -> 0 | F27: =SA34a!F140 -> 0 | G27: =SA34a!G140 -> 0 | H27: =SA34a!H140 -> 0 | I27: =SA34a!I140 -> 0 | J27: =SA34a!J140 -> 0 | K27: =SA34a!K140 -> 0
A28: Licences and Rights | C28: =SA34a!C141 -> 19666 | D28: =SA34a!D141 -> 27582 | E28: =SA34a!E141 -> 0 | F28: =SA34a!F141 -> 0 | G28: =SA34a!G141 -> 0 | H28: =SA34a!H141 -> 0 | I28: =SA34a!I141 -> 0 | J28: =SA34a!J141 -> 0 | K28: =SA34a!K141 -> 0
A29: Intangible Assets | C29: =SUM(C27:C28) -> 19666 | D29: =SUM(D27:D28) -> 27582 | E29: 0 | F29: 0 | G29: 0 | H29: 0 | I29: 0 | J29: 0 | K29: 0
A30: Computer Equipment | C30: =SA34a!C149 -> 0 | D30: =SA34a!D149 -> 0 | E30: =SA34a!E149 -> 0 | F30: =SA34a!F149 -> 0 | G30: =SA34a!G149 -> 0 | H30: =SA34a!H149 -> 0 | I30: =SA34a!I149 -> 0 | J30: =SA34a!J149 -> 0 | K30: =SA34a!K149 -> 0
A31: Furniture and Office Equipment | C31: =SA34a!C152 -> 0 | D31: =SA34a!D152 -> 0 | E31: =SA34a!E152 -> 0 | F31: =SA34a!F152 -> 0 | G31: =SA34a!G152 -> 0 | H31: =SA34a!H152 -> 0 | I31: =SA34a!I152 -> 0 | J31: =SA34a!J152 -> 0 | K31: =SA34a!K152 -> 0
A32: Machinery and Equipment | C32: =SA34a!C155 -> 0 | D32: =SA34a!D155 -> 0 | E32: =SA34a!E155 -> 0 | F32: =SA34a!F155 -> 0 | G32: =SA34a!G155 -> 0 | H32: =SA34a!H155 -> 0 | I32: =SA34a!I155 -> 0 | J32: =SA34a!J155 -> 0 | K32: =SA34a!K155 -> 0
A33: Transport Assets | C33: =SA34a!C158 -> 0 | D33: =SA34a!D158 -> 0 | E33: =SA34a!E158 -> 0 | F33: =SA34a!F158 -> 0 | G33: =SA34a!G158 -> 0 | H33: =SA34a!H158 -> 0 | I33: =SA34a!I158 -> 0 | J33: =SA34a!J158 -> 0 | K33: =SA34a!K158 -> 0
A34: Libraries | C34: =SA34a!C161 -> 0 | D34: =SA34a!D161 -> 0 | E34: =SA34a!E161 -> 0 | F34: =SA34a!F161 -> 0 | G34: =SA34a!G161 -> 0 | H34: =SA34a!H161 -> 0 | I34: =SA34a!I161 -> 0 | J34: =SA34a!J161 -> 0 | K34: =SA34a!K161 -> 0
A35: Zoo's, Marine and Non-biological Animals | C35: =SA34a!C164 -> 0 | D35: =SA34a!D164 -> 0 | E35: =SA34a!E164 -> 0 | F35: =SA34a!F164 -> 0 | G35: =SA34a!G164 -> 0 | H35: =SA34a!H164 -> 0 | I35: =SA34a!I164 -> 0 | J35: =SA34a!J164 -> 0 | K35: =SA34a!K164 -> 0
A37: Total Renewal of Existing Assets | B37: 2 | C37: =C47+C50+C51+C54+C57+C58+SUM(C61:C67) -> 0 | D37: =D47+D50+D51+D54+D57+D58+SUM(D61:D67) -> 0 | E37: 7827409.29 | F37: 46675138.24 | G37: 53978923.24 | H37: 53978923.24 | I37: 40991448.38 | J37: 43450935.28 | K37: 46057991.4
A38: Roads Infrastructure | C38: =SA34b!C7 -> 0 | D38: =SA34b!D7 -> 0 | E38: =SA34b!E7 -> 3916477.73 | F38: =SA34b!F7 -> 12545315.62 | G38: =SA34b!G7 -> 15870391.48 | H38: =SA34b!H7 -> 15870391.48 | I38: =SA34b!I7 -> 7215973.38 | J38: =SA34b!J7 -> 7648931.783 | K38: =SA34b!K7 -> 8107867.69
A39: Storm water Infrastructure | C39: =SA34b!C12 -> 0 | D39: =SA34b!D12 -> 0 | E39: =SA34b!E12 -> 0 | F39: =SA34b!F12 -> 0 | G39: =SA34b!G12 -> 0 | H39: =SA34b!H12 -> 0 | I39: =SA34b!I12 -> 0 | J39: =SA34b!J12 -> 0 | K39: =SA34b!K12 -> 0
A40: Electrical Infrastructure | C40: =SA34b!C16 -> 0 | D40: =SA34b!D16 -> 0 | E40: =SA34b!E16 -> 0 | F40: =SA34b!F16 -> 5000000 | G40: =SA34b!G16 -> 5000000 | H40: =SA34b!H16 -> 5000000 | I40: =SA34b!I16 -> 0 | J40: =SA34b!J16 -> 0 | K40: =SA34b!K16 -> 0
A41: Water Supply Infrastructure | C41: =SA34b!C26 -> 0 | D41: =SA34b!D26 -> 0 | E41: =SA34b!E26 -> 0 | F41: =SA34b!F26 -> 5596096.59 | G41: =SA34b!G26 -> 5596096.59 | H41: =SA34b!H26 -> 5596096.59 | I41: =SA34b!I26 -> 28490520.31 | J41: =SA34b!J26 -> 30199951.53 | K41: =SA34b!K26 -> 32011948.62
A42: Sanitation Infrastructure | C42: =SA34b!C37 -> 0 | D42: =SA34b!D37 -> 0 | E42: =SA34b!E37 -> 0 | F42: =SA34b!F37 -> 20279103.04 | G42: =SA34b!G37 -> 22502227.55 | H42: =SA34b!H37 -> 22502227.55 | I42: =SA34b!I37 -> 4079534.95 | J42: =SA34b!J37 -> 4324307.047 | K42: =SA34b!K37 -> 4583765.47
A43: Solid Waste Infrastructure | C43: =SA34b!C44 -> 0 | D43: =SA34b!D44 -> 0 | E43: =SA34b!E44 -> 0 | F43: =SA34b!F44 -> 0 | G43: =SA34b!G44 -> 0 | H43: =SA34b!H44 -> 0 | I43: =SA34b!I44 -> 0 | J43: =SA34b!J44 -> 0 | K43: =SA34b!K44 -> 0
A44: Rail Infrastructure | C44: =SA34b!C52 -> 0 | D44: =SA34b!D52 -> 0 | E44: =SA34b!E52 -> 0 | F44: =SA34b!F52 -> 0 | G44: =SA34b!G52 -> 0 | H44: =SA34b!H52 -> 0 | I44: =SA34b!I52 -> 0 | J44: =SA34b!J52 -> 0 | K44: =SA34b!K52 -> 0
A45: Coastal Infrastructure | C45: =SA34b!C62 -> 0 | D45: =SA34b!D62 -> 0 | E45: =SA34b!E62 -> 0 | F45: =SA34b!F62 -> 0 | G45: =SA34b!G62 -> 0 | H45: =SA34b!H62 -> 0 | I45: =SA34b!I62 -> 0 | J45: =SA34b!J62 -> 0 | K45: =SA34b!K62 -> 0
A46: Information and Communication Infrastructure | C46: =SA34b!C68 -> 0 | D46: =SA34b!D68 -> 0 | E46: =SA34b!E68 -> 0 | F46: =SA34b!F68 -> 0 | G46: =SA34b!G68 -> 0 | H46: =SA34b!H68 -> 0 | I46: =SA34b!I68 -> 0 | J46: =SA34b!J68 -> 0 | K46: =SA34b!K68 -> 0
A47: Infrastructure | C47: =SUM(C38:C46) -> 0 | D47: =SUM(D38:D46) -> 0 | E47: 3916477.73 | F47: 43420515.25 | G47: 48968715.62 | H47: 48968715.62 | I47: 39786028.64 | J47: 42173190.36 | K47: 44703581.78
A48: Community Facilities | C48: =SA34b!C75 -> 0 | D48: =SA34b!D75 -> 0 | E48: =SA34b!E75 -> 3910931.56 | F48: =SA34b!F75 -> 0 | G48: =SA34b!G75 -> 0 | H48: =SA34b!H75 -> 0 | I48: =SA34b!I75 -> 0 | J48: =SA34b!J75 -> 0 | K48: =SA34b!K75 -> 0
A49: Sport and Recreation Facilities | C49: =SA34b!C98 -> 0 | D49: =SA34b!D98 -> 0 | E49: =SA34b!E98 -> 0 | F49: =SA34b!F98 -> 3254622.99 | G49: =SA34b!G98 -> 5010207.62 | H49: =SA34b!H98 -> 5010207.62 | I49: =SA34b!I98 -> 1205419.74 | J49: =SA34b!J98 -> 1277744.924 | K49: =SA34b!K98 -> 1354409.62
A50: Community Assets | C50: =SUM(C48:C49) -> 0 | D50: =SUM(D48:D49) -> 0 | E50: 3910931.56 | F50: 3254622.99 | G50: 5010207.62 | H50: 5010207.62 | I50: 1205419.74 | J50: 1277744.924 | K50: 1354409.62
A51: Heritage Assets | C51: =SA34b!C103 -> 0 | D51: =SA34b!D103 -> 0 | E51: =SA34b!E103 -> 0 | F51: =SA34b!F103 -> 0 | G51: =SA34b!G103 -> 0 | H51: =SA34b!H103 -> 0 | I51: =SA34b!I103 -> 0 | J51: =SA34b!J103 -> 0 | K51: =SA34b!K103 -> 0
A52: Revenue Generating | C52: =SA34b!C111 -> 0 | D52: =SA34b!D111 -> 0 | E52: =SA34b!E111 -> 0 | F52: =SA34b!F111 -> 0 | G52: =SA34b!G111 -> 0 | H52: =SA34b!H111 -> 0 | I52: =SA34b!I111 -> 0 | J52: =SA34b!J111 -> 0 | K52: =SA34b!K111 -> 0
A53: Non-revenue Generating | C53: =SA34b!C114 -> 0 | D53: =SA34b!D114 -> 0 | E53: =SA34b!E114 -> 0 | F53: =SA34b!F114 -> 0 | G53: =SA34b!G114 -> 0 | H53: =SA34b!H114 -> 0 | I53: =SA34b!I114 -> 0 | J53: =SA34b!J114 -> 0 | K53: =SA34b!K114 -> 0
A54: Investment properties | C54: =SUM(C52:C53) -> 0 | D54: =SUM(D52:D53) -> 0 | E54: 0 | F54: 0 | G54: 0 | H54: 0 | I54: 0 | J54: 0 | K54: 0
A55: Operational Buildings | C55: =SA34b!C119 -> 0 | D55: =SA34b!D119 -> 0 | E55: =SA34b!E119 -> 0 | F55: =SA34b!F119 -> 0 | G55: =SA34b!G119 -> 0 | H55: =SA34b!H119 -> 0 | I55: =SA34b!I119 -> 0 | J55: =SA34b!J119 -> 0 | K55: =SA34b!K119 -> 0
A56: Housing | C56: =SA34b!C131 -> 0 | D56: =SA34b!D131 -> 0 | E56: =SA34b!E131 -> 0 | F56: =SA34b!F131 -> 0 | G56: =SA34b!G131 -> 0 | H56: =SA34b!H131 -> 0 | I56: =SA34b!I131 -> 0 | J56: =SA34b!J131 -> 0 | K56: =SA34b!K131 -> 0
A57: Other Assets | C57: =SUM(C55:C56) -> 0 | D57: =SUM(D55:D56) -> 0 | E57: 0 | F57: 0 | G57: 0 | H57: 0 | I57: 0 | J57: 0 | K57: 0
A58: Biological or Cultivated Assets | C58: =SA34b!C136 -> 0 | D58: =SA34b!D136 -> 0 | E58: =SA34b!E136 -> 0 | F58: =SA34b!F136 -> 0 | G58: =SA34b!G136 -> 0 | H58: =SA34b!H136 -> 0 | I58: =SA34b!I136 -> 0 | J58: =SA34b!J136 -> 0 | K58: =SA34b!K136 -> 0
A59: Servitudes | C59: =SA34b!C140 -> 0 | D59: =SA34b!D140 -> 0 | E59: =SA34b!E140 -> 0 | F59: =SA34b!F140 -> 0 | G59: =SA34b!G140 -> 0 | H59: =SA34b!H140 -> 0 | I59: =SA34b!I140 -> 0 | J59: =SA34b!J140 -> 0 | K59: =SA34b!K140 -> 0
A60: Licences and Rights | C60: =SA34b!C141 -> 0 | D60: =SA34b!D141 -> 0 | E60: =SA34b!E141 -> 0 | F60: =SA34b!F141 -> 0 | G60: =SA34b!G141 -> 0 | H60: =SA34b!H141 -> 0 | I60: =SA34b!I141 -> 0 | J60: =SA34b!J141 -> 0 | K60: =SA34b!K141 -> 0
A61: Intangible Assets | C61: =SUM(C59:C60) -> 0 | D61: =SUM(D59:D60) -> 0 | E61: 0 | F61: 0 | G61: 0 | H61: 0 | I61: 0 | J61: 0 | K61: 0
A62: Computer Equipment | C62: =SA34b!C149 -> 0 | D62: =SA34b!D149 -> 0 | E62: =SA34b!E149 -> 0 | F62: =SA34b!F149 -> 0 | G62: =SA34b!G149 -> 0 | H62: =SA34b!H149 -> 0 | I62: =SA34b!I149 -> 0 | J62: =SA34b!J149 -> 0 | K62: =SA34b!K149 -> 0
A63: Furniture and Office Equipment | C63: =SA34b!C152 -> 0 | D63: =SA34b!D152 -> 0 | E63: =SA34b!E152 -> 0 | F63: =SA34b!F152 -> 0 | G63: =SA34b!G152 -> 0 | H63: =SA34b!H152 -> 0 | I63: =SA34b!I152 -> 0 | J63: =SA34b!J152 -> 0 | K63: =SA34b!K152 -> 0
A64: Machinery and Equipment | C64: =SA34b!C155 -> 0 | D64: =SA34b!D155 -> 0 | E64: =SA34b!E155 -> 0 | F64: =SA34b!F155 -> 0 | G64: =SA34b!G155 -> 0 | H64: =SA34b!H155 -> 0 | I64: =SA34b!I155 -> 0 | J64: =SA34b!J155 -> 0 | K64: =SA34b!K155 -> 0
A65: Transport Assets | C65: =SA34b!C158 -> 0 | D65: =SA34b!D158 -> 0 | E65: =SA34b!E158 -> 0 | F65: =SA34b!F158 -> 0 | G65: =SA34b!G158 -> 0 | H65: =SA34b!H158 -> 0 | I65: =SA34b!I158 -> 0 | J65: =SA34b!J158 -> 0 | K65: =SA34b!K158 -> 0
A66: Libraries | C66: =SA34b!C161 -> 0 | D66: =SA34b!D161 -> 0 | E66: =SA34b!E161 -> 0 | F66: =SA34b!F161 -> 0 | G66: =SA34b!G161 -> 0 | H66: =SA34b!H161 -> 0 | I66: =SA34b!I161 -> 0 | J66: =SA34b!J161 -> 0 | K66: =SA34b!K161 -> 0
A67: Zoo's, Marine and Non-biological Animals | C67: =SA34b!C164 -> 0 | D67: =SA34b!D164 -> 0 | E67: =SA34b!E164 -> 0 | F67: =SA34b!F164 -> 0 | G67: =SA34b!G164 -> 0 | H67: =SA34b!H164 -> 0 | I67: =SA34b!I164 -> 0 | J67: =SA34b!J164 -> 0 | K67: =SA34b!K164 -> 0
A69: Total Upgrading of Existing Assets | B69: 6 | C69: =C79+C82+C83+C86+C89+C90+SUM(C93:C99) -> 0 | D69: =D79+D82+D83+D86+D89+D90+SUM(D93:D99) -> 0 | E69: 0 | F69: 0 | G69: 0 | H69: 0 | I69: 0 | J69: 0 | K69: 0
A70: Roads Infrastructure | C70: =SA34e!C7 -> 0 | D70: =SA34e!D7 -> 0 | E70: =SA34e!E7 -> 0 | F70: =SA34e!F7 -> 0 | G70: =SA34e!G7 -> 0 | H70: =SA34e!H7 -> 0 | I70: =SA34e!I7 -> 0 | J70: =SA34e!J7 -> 0 | K70: =SA34e!K7 -> 0
A71: Storm water Infrastructure | C71: =SA34e!C12 -> 0 | D71: =SA34e!D12 -> 0 | E71: =SA34e!E12 -> 0 | F71: =SA34e!F12 -> 0 | G71: =SA34e!G12 -> 0 | H71: =SA34e!H12 -> 0 | I71: =SA34e!I12 -> 0 | J71: =SA34e!J12 -> 0 | K71: =SA34e!K12 -> 0
A72: Electrical Infrastructure | C72: =SA34e!C16 -> 0 | D72: =SA34e!D16 -> 0 | E72: =SA34e!E16 -> 0 | F72: =SA34e!F16 -> 0 | G72: =SA34e!G16 -> 0 | H72: =SA34e!H16 -> 0 | I72: =SA34e!I16 -> 0 | J72: =SA34e!J16 -> 0 | K72: =SA34e!K16 -> 0
A73: Water Supply Infrastructure | C73: =SA34e!C26 -> 0 | D73: =SA34e!D26 -> 0 | E73: =SA34e!E26 -> 0 | F73: =SA34e!F26 -> 0 | G73: =SA34e!G26 -> 0 | H73: =SA34e!H26 -> 0 | I73: =SA34e!I26 -> 0 | J73: =SA34e!J26 -> 0 | K73: =SA34e!K26 -> 0
A74: Sanitation Infrastructure | C74: =SA34e!C37 -> 0 | D74: =SA34e!D37 -> 0 | E74: =SA34e!E37 -> 0 | F74: =SA34e!F37 -> 0 | G74: =SA34e!G37 -> 0 | H74: =SA34e!H37 -> 0 | I74: =SA34e!I37 -> 0 | J74: =SA34e!J37 -> 0 | K74: =SA34e!K37 -> 0
A75: Solid Waste Infrastructure | C75: =SA34e!C44 -> 0 | D75: =SA34e!D44 -> 0 | E75: =SA34e!E44 -> 0 | F75: =SA34e!F44 -> 0 | G75: =SA34e!G44 -> 0 | H75: =SA34e!H44 -> 0 | I75: =SA34e!I44 -> 0 | J75: =SA34e!J44 -> 0 | K75: =SA34e!K44 -> 0
A76: Rail Infrastructure | C76: =SA34e!C52 -> 0 | D76: =SA34e!D52 -> 0 | E76: =SA34e!E52 -> 0 | F76: =SA34e!F52 -> 0 | G76: =SA34e!G52 -> 0 | H76: =SA34e!H52 -> 0 | I76: =SA34e!I52 -> 0 | J76: =SA34e!J52 -> 0 | K76: =SA34e!K52 -> 0
A77: Coastal Infrastructure | C77: =SA34e!C62 -> 0 | D77: =SA34e!D62 -> 0 | E77: =SA34e!E62 -> 0 | F77: =SA34e!F62 -> 0 | G77: =SA34e!G62 -> 0 | H77: =SA34e!H62 -> 0 | I77: =SA34e!I62 -> 0 | J77: =SA34e!J62 -> 0 | K77: =SA34e!K62 -> 0
A78: Information and Communication Infrastructure | C78: =SA34e!C68 -> 0 | D78: =SA34e!D68 -> 0 | E78: =SA34e!E68 -> 0 | F78: =SA34e!F68 -> 0 | G78: =SA34e!G68 -> 0 | H78: =SA34e!H68 -> 0 | I78: =SA34e!I68 -> 0 | J78: =SA34e!J68 -> 0 | K78: =SA34e!K68 -> 0
A79: Infrastructure | C79: =SUM(C70:C78) -> 0 | D79: 0 | E79: 0 | F79: 0 | G79: 0 | H79: 0 | I79: 0 | J79: 0 | K79: 0
A80: Community Facilities | C80: =SA34e!C75 -> 0 | D80: =SA34e!D75 -> 0 | E80: =SA34e!E75 -> 0 | F80: =SA34e!F75 -> 0 | G80: =SA34e!G75 -> 0 | H80: =SA34e!H75 -> 0 | I80: =SA34e!I75 -> 0 | J80: =SA34e!J75 -> 0 | K80: =SA34e!K75 -> 0
A81: Sport and Recreation Facilities | C81: =SA34e!C98 -> 0 | D81: =SA34e!D98 -> 0 | E81: =SA34e!E98 -> 0 | F81: =SA34e!F98 -> 0 | G81: =SA34e!G98 -> 0 | H81: =SA34e!H98 -> 0 | I81: =SA34e!I98 -> 0 | J81: =SA34e!J98 -> 0 | K81: =SA34e!K98 -> 0
A82: Community Assets | C82: =SUM(C80:C81) -> 0 | D82: 0 | E82: 0 | F82: 0 | G82: 0 | H82: 0 | I82: 0 | J82: 0 | K82: 0
A83: Heritage Assets | C83: =SA34e!C103 -> 0 | D83: =SA34e!D103 -> 0 | E83: =SA34e!E103 -> 0 | F83: =SA34e!F103 -> 0 | G83: =SA34e!G103 -> 0 | H83: =SA34e!H103 -> 0 | I83: =SA34e!I103 -> 0 | J83: =SA34e!J103 -> 0 | K83: =SA34e!K103 -> 0
A84: Revenue Generating | C84: =SA34e!C111 -> 0 | D84: =SA34e!D111 -> 0 | E84: =SA34e!E111 -> 0 | F84: =SA34e!F111 -> 0 | G84: =SA34e!G111 -> 0 | H84: =SA34e!H111 -> 0 | I84: =SA34e!I111 -> 0 | J84: =SA34e!J111 -> 0 | K84: =SA34e!K111 -> 0
A85: Non-revenue Generating | C85: =SA34e!C114 -> 0 | D85: =SA34e!D114 -> 0 | E85: =SA34e!E114 -> 0 | F85: =SA34e!F114 -> 0 | G85: =SA34e!G114 -> 0 | H85: =SA34e!H114 -> 0 | I85: =SA34e!I114 -> 0 | J85: =SA34e!J114 -> 0 | K85: =SA34e!K114 -> 0
A86: Investment properties | C86: =SUM(C84:C85) -> 0 | D86: 0 | E86: 0 | F86: 0 | G86: 0 | H86: 0 | I86: 0 | J86: 0 | K86: 0
A87: Operational Buildings | C87: =SA34e!C119 -> 0 | D87: =SA34e!D119 -> 0 | E87: =SA34e!E119 -> 0 | F87: =SA34e!F119 -> 0 | G87: =SA34e!G119 -> 0 | H87: =SA34e!H119 -> 0 | I87: =SA34e!I119 -> 0 | J87: =SA34e!J119 -> 0 | K87: =SA34e!K119 -> 0
A88: Housing | C88: =SA34e!C131 -> 0 | D88: =SA34e!D131 -> 0 | E88: =SA34e!E131 -> 0 | F88: =SA34e!F131 -> 0 | G88: =SA34e!G131 -> 0 | H88: =SA34e!H131 -> 0 | I88: =SA34e!I131 -> 0 | J88: =SA34e!J131 -> 0 | K88: =SA34e!K131 -> 0
A89: Other Assets | C89: =SUM(C87:C88) -> 0 | D89: 0 | E89: 0 | F89: 0 | G89: 0 | H89: 0 | I89: 0 | J89: 0 | K89: 0
A90: Biological or Cultivated Assets | C90: =SA34e!C136 -> 0 | D90: =SA34e!D136 -> 0 | E90: =SA34e!E136 -> 0 | F90: =SA34e!F136 -> 0 | G90: =SA34e!G136 -> 0 | H90: =SA34e!H136 -> 0 | I90: =SA34e!I136 -> 0 | J90: =SA34e!J136 -> 0 | K90: =SA34e!K136 -> 0
A91: Servitudes | C91: =SA34e!C140 -> 0 | D91: =SA34e!D140 -> 0 | E91: =SA34e!E140 -> 0 | F91: =SA34e!F140 -> 0 | G91: =SA34e!G140 -> 0 | H91: =SA34e!H140 -> 0 | I91: =SA34e!I140 -> 0 | J91: =SA34e!J140 -> 0 | K91: =SA34e!K140 -> 0
A92: Licences and Rights | C92: =SA34e!C141 -> 0 | D92: =SA34e!D141 -> 0 | E92: =SA34e!E141 -> 0 | F92: =SA34e!F141 -> 0 | G92: =SA34e!G141 -> 0 | H92: =SA34e!H141 -> 0 | I92: =SA34e!I141 -> 0 | J92: =SA34e!J141 -> 0 | K92: =SA34e!K141 -> 0
A93: Intangible Assets | C93: =SUM(C91:C92) -> 0 | D93: 0 | E93: 0 | F93: 0 | G93: 0 | H93: 0 | I93: 0 | J93: 0 | K93: 0
A94: Computer Equipment | C94: =SA34e!C149 -> 0 | D94: =SA34e!D149 -> 0 | E94: =SA34e!E149 -> 0 | F94: =SA34e!F149 -> 0 | G94: =SA34e!G149 -> 0 | H94: =SA34e!H149 -> 0 | I94: =SA34e!I149 -> 0 | J94: =SA34e!J149 -> 0 | K94: =SA34e!K149 -> 0
A95: Furniture and Office Equipment | C95: =SA34e!C152 -> 0 | D95: =SA34e!D152 -> 0 | E95: =SA34e!E152 -> 0 | F95: =SA34e!F152 -> 0 | G95: =SA34e!G152 -> 0 | H95: =SA34e!H152 -> 0 | I95: =SA34e!I152 -> 0 | J95: =SA34e!J152 -> 0 | K95: =SA34e!K152 -> 0
A96: Machinery and Equipment | C96: =SA34e!C155 -> 0 | D96: =SA34e!D155 -> 0 | E96: =SA34e!E155 -> 0 | F96: =SA34e!F155 -> 0 | G96: =SA34e!G155 -> 0 | H96: =SA34e!H155 -> 0 | I96: =SA34e!I155 -> 0 | J96: =SA34e!J155 -> 0 | K96: =SA34e!K155 -> 0
A97: Transport Assets | C97: =SA34e!C158 -> 0 | D97: =SA34e!D158 -> 0 | E97: =SA34e!E158 -> 0 | F97: =SA34e!F158 -> 0 | G97: =SA34e!G158 -> 0 | H97: =SA34e!H158 -> 0 | I97: =SA34e!I158 -> 0 | J97: =SA34e!J158 -> 0 | K97: =SA34e!K158 -> 0
A98: Libraries | C98: =SA34e!C161 -> 0 | D98: =SA34e!D161 -> 0 | E98: =SA34e!E161 -> 0 | F98: =SA34e!F161 -> 0 | G98: =SA34e!G161 -> 0 | H98: =SA34e!H161 -> 0 | I98: =SA34e!I161 -> 0 | J98: =SA34e!J161 -> 0 | K98: =SA34e!K161 -> 0
A99: Zoo's, Marine and Non-biological Animals | C99: =SA34e!C164 -> 0 | D99: =SA34e!D164 -> 0 | E99: =SA34e!E164 -> 0 | F99: =SA34e!F164 -> 0 | G99: =SA34e!G164 -> 0 | H99: =SA34e!H164 -> 0 | I99: =SA34e!I164 -> 0 | J99: =SA34e!J164 -> 0 | K99: =SA34e!K164 -> 0
A101: Total Capital Expenditure | B101: 4
A102: Roads Infrastructure | C102: =+C6+C38+C70 -> 11094273 | D102: =+D6+D38+D70 -> 12648409 | E102: 5127377.73 | F102: 13833065.62 | G102: 17158141.48 | H102: 17158141.48 | I102: 8568073.38 | J102: 9082157.783 | K102: 9627087.25
A103: Storm water Infrastructure | C103: =+C7+C39+C71 -> 0 | D103: 0 | E103: 0 | F103: 0 | G103: 0 | H103: 0 | I103: 0 | J103: 0 | K103: 0
A104: Electrical Infrastructure | C104: 5300000 | D104: 2842188 | E104: 0 | F104: 5000000 | G104: 5000000 | H104: 5000000 | I104: 1547056.65 | J104: 1639880.049 | K104: 1738272.852
A105: Water Supply Infrastructure | C105: 14597433 | D105: 19660506 | E105: 32010790.85 | F105: 47849485.74 | G105: 47849485.74 | H105: 47849485.74 | I105: 28490520.31 | J105: 30199951.53 | K105: 32011948.62
A106: Sanitation Infrastructure | C106: 4160116 | D106: 7728815 | E106: 10403453.92 | F106: 20279103.04 | G106: 22502227.55 | H106: 22502227.55 | I106: 24691384.92 | J106: 26172868.02 | K106: 27743240.1
A107: Solid Waste Infrastructure | C107: 9023838 | D107: 8942785 | E107: 376200 | F107: 7690155 | G107: 386370.01 | H107: 386370.01 | I107: 424545 | J107: 450017.7 | K107: 477018.762
A108: Rail Infrastructure | C108: 0 | D108: 0 | E108: 0 | F108: 0 | G108: 0 | H108: 0 | I108: 0 | J108: 0 | K108: 0
A109: Coastal Infrastructure | C109: 0 | D109: 0 | E109: 0 | F109: 0 | G109: 0 | H109: 0 | I109: 0 | J109: 0 | K109: 0
A110: Information and Communication Infrastructure | C110: 0 | D110: 0 | E110: 0 | F110: 0 | G110: 0 | H110: 0 | I110: 0 | J110: 0 | K110: 0
A111: Infrastructure | C111: =SUM(C102:C110) -> 44175660 | D111: =SUM(D102:D110) -> 51822703 | E111: 47917822.5 | F111: 94651809.4 | G111: 92896224.78 | H111: 92896224.78 | I111: 63721580.26 | J111: 67544875.08 | K111: 71597567.58
A112: Community Facilities | C112: =+C16+C48+C80 -> 0 | D112: =+D16+D48+D80 -> 6212509 | E112: 16300177.48 | F112: 854567.61 | G112: 854567.61 | H112: 854567.61 | I112: 0 | J112: 0 | K112: 0
A113: Sport and Recreation Facilities | C113: =+C17+C49+C81 -> 0 | D113: =+D17+D49+D81 -> 0 | E113: 0 | F113: 3254622.99 | G113: 5010207.62 | H113: 5010207.62 | I113: 1205419.74 | J113: 1277744.924 | K113: 1354409.62
A114: Community Assets | C114: =SUM(C112:C113) -> 0 | D114: =SUM(D112:D113) -> 6212509 | E114: 16300177.48 | F114: 4109190.6 | G114: 5864775.23 | H114: 5864775.23 | I114: 1205419.74 | J114: 1277744.924 | K114: 1354409.62
A115: Heritage Assets | C115: =+C19+C51+C83 -> 0 | D115: =+D19+D51+D83 -> 0 | E115: 0 | F115: 0 | G115: 0 | H115: 0 | I115: 0 | J115: 0 | K115: 0
A116: Revenue Generating | C116: =+C20+C52+C84 -> 0 | D116: =+D20+D52+D84 -> 0 | E116: 0 | F116: 0 | G116: 0 | H116: 0 | I116: 0 | J116: 0 | K116: 0
A117: Non-revenue Generating | C117: =+C21+C53+C85 -> 0 | D117: =+D21+D53+D85 -> 0 | E117: 0 | F117: 0 | G117: 0 | H117: 0 | I117: 0 | J117: 0 | K117: 0
A118: Investment properties | C118: =SUM(C116:C117) -> 0 | D118: =SUM(D116:D117) -> 0 | E118: 0 | F118: 0 | G118: 0 | H118: 0 | I118: 0 | J118: 0 | K118: 0
A119: Operational Buildings | C119: =+C23+C55+C87 -> 1402635 | D119: =+D23+D55+D87 -> 1513798 | E119: 0 | F119: 0 | G119: 0 | H119: 0 | I119: 0 | J119: 0 | K119: 0
A120: Housing | C120: =+C24+C56+C88 -> 0 | D120: =+D24+D56+D88 -> 0 | E120: 0 | F120: 0 | G120: 0 | H120: 0 | I120: 0 | J120: 0 | K120: 0
A121: Other Assets | C121: =SUM(C119:C120) -> 1402635 | D121: 1513798 | E121: 0 | F121: 0 | G121: 0 | H121: 0 | I121: 0 | J121: 0 | K121: 0
A122: Biological or Cultivated Assets | C122: =+C26+C58+C90 -> 0 | D122: =+D26+D58+D90 -> 0 | E122: 0 | F122: 0 | G122: 0 | H122: 0 | I122: 0 | J122: 0 | K122: 0
A123: Servitudes | C123: =+C27+C59+C91 -> 0 | D123: =+D27+D59+D91 -> 0 | E123: 0 | F123: 0 | G123: 0 | H123: 0 | I123: 0 | J123: 0 | K123: 0
A124: Licences and Rights | C124: =+C28+C60+C92 -> 19666 | D124: =+D28+D60+D92 -> 27582 | E124: 0 | F124: 0 | G124: 0 | H124: 0 | I124: 0 | J124: 0 | K124: 0
A125: Intangible Assets | C125: =SUM(C123:C124) -> 19666 | D125: =SUM(D123:D124) -> 27582 | E125: 0 | F125: 0 | G125: 0 | H125: 0 | I125: 0 | J125: 0 | K125: 0
A126: Computer Equipment | C126: =+C30+C62+C94 -> 0 | D126: =+D30+D62+D94 -> 0 | E126: 0 | F126: 0 | G126: 0 | H126: 0 | I126: 0 | J126: 0 | K126: 0
A127: Furniture and Office Equipment | C127: =+C31+C63+C95 -> 0 | D127: 0 | E127: 0 | F127: 0 | G127: 0 | H127: 0 | I127: 0 | J127: 0 | K127: 0
A128: Machinery and Equipment | C128: 0 | D128: 0 | E128: 0 | F128: 0 | G128: 0 | H128: 0 | I128: 0 | J128: 0 | K128: 0
A129: Transport Assets | C129: 0 | D129: 0 | E129: 0 | F129: 0 | G129: 0 | H129: 0 | I129: 0 | J129: 0 | K129: 0
A130: Libraries | C130: 0 | D130: 0 | E130: 0 | F130: 0 | G130: 0 | H130: 0 | I130: 0 | J130: 0 | K130: 0
A131: Zoo's, Marine and Non-biological Animals | C131: 0 | D131: 0 | E131: 0 | F131: 0 | G131: 0 | H131: 0 | I131: 0 | J131: 0 | K131: 0
A132: TOTAL CAPITAL EXPENDITURE - Asset class | C132: =+C5+C37+C69 -> 45597961 | D132: =+D5+D37+D69 -> 59576592 | E132: 64217999.98 | F132: 98761000 | G132: 98761000.01 | H132: 98761000.01 | I132: 64927000 | J132: 68822620 | K132: 72951977.2
A134: ASSET REGISTER SUMMARY - PPE (WDV) | B134: 5
A135: Roads Infrastructure | C135: 749464963 | D135: 737232411 | E135: 341665480 | F135: 368448574.9 | G135: 368448574.9 | H135: 368448574.9 | I135: =H135*1.02 -> 375817546.4 | J135: =I135*1.06 -> 398366599.1 | K135: 422268595.1
A136: Storm water Infrastructure | F136: 0 | G136: 0 | H136: 0 | I136: =H136*1.02 -> 0 | J136: 0 | K136: 0
A137: Electrical Infrastructure | C137: 5300000 | D137: 2842188 | E137: 9299836 | F137: 68087659.14 | G137: 68087659.14 | H137: 68087659.14 | I137: 69449412.32 | J137: 73616377.06 | K137: 78033359.69
A138: Water Supply Infrastructure | C138: 83413771 | D138: 100477590 | E138: 220062366 | F138: 225105199.4 | G138: 225105199.4 | H138: 225105199.4 | I138: 229607303.4 | J138: 243383741.6 | K138: 257986766.1
A139: Sanitation Infrastructure | C139: 4160116 | D139: 7728815 | E139: 17875622 | F139: 196125007.4 | G139: 196125007.4 | H139: 196125007.4 | I139: 200047507.5 | J139: 212050358 | K139: 224773379.5
A140: Solid Waste Infrastructure | C140: 160734435 | D140: 148962696 | E140: -1038795 | F140: 15422194.7 | G140: 15422194.7 | H140: 15422194.7 | I140: 15730638.6 | J140: 16674476.91 | K140: 17674945.53
A141: Rail Infrastructure
A142: Coastal Infrastructure
A143: Information and Communication Infrastructure
A144: Infrastructure | C144: =SUM(C135:C143) -> 1003073285 | D144: =SUM(D135:D143) -> 997243700 | E144: 587864509 | F144: 873188635.5 | G144: 873188635.5 | H144: 873188635.5 | I144: 890652408.2 | J144: 944091552.7 | K144: 1000737046
A145: Community Facilities | C145: 0 | D145: 6212509 | E145: -7190969 | F145: 20507113.26 | G145: 20507113.26 | H145: 20507113.26 | I145: =H145*1.02 -> 20917255.53 | J145: =I145*1.06 -> 22172290.86 | K145: 23502628.31
A146: Sport and Recreation Facilities
A147: Community Assets | C147: =SUM(C145:C146) -> 0 | D147: 6212509 | E147: -7190969 | F147: 20507113.26 | G147: 20507113.26 | H147: 20507113.26 | I147: 20917255.53 | J147: 22172290.86 | K147: 23502628.31
A148: Heritage Assets
A149: Revenue Generating
A150: Non-revenue Generating
A151: Investment properties | C151: =SUM(C149:C150) -> 0 | D151: 0 | E151: 0 | F151: 0 | G151: 0 | H151: 0 | I151: 0 | J151: 0 | K151: 0
A152: Operational Buildings | C152: 13877904 | D152: 13877904 | E152: 8441625 | F152: 14155462.08 | G152: 14155462.08 | H152: 14155462.08 | I152: =H152*1.02 -> 14438571.32 | J152: =I152*1.06 -> 15304885.6 | K152: 16223178.74
A153: Housing
A154: Other Assets | C154: =SUM(C152:C153) -> 13877904 | D154: 13877904 | E154: 8441625 | F154: 14155462.08 | G154: 14155462.08 | H154: 14155462.08 | I154: 14438571.32 | J154: 15304885.6 | K154: 16223178.74
A155: Biological or Cultivated Assets | C155: 50476 | D155: 24513 | E155: 24513 | F155: 24513 | G155: 24513 | H155: 24513 | I155: =H155*1.02 -> 25003.26 | J155: =I155*1.06 -> 26503.4556 | K155: 28093.66294
A156: Servitudes | C156: 72705 | D156: 65598 | E156: 65598 | F156: 65598 | G156: 65598 | H156: 65598 | I156: 66909.96 | J156: 70924.5576 | K156: 75180.03106
A157: Licences and Rights
A158: Intangible Assets | C158: =SUM(C156:C157) -> 72705 | D158: 65598 | E158: 65598 | F158: 65598 | G158: 65598 | H158: 65598 | I158: 66909.96 | J158: 70924.5576 | K158: 75180.03106
A159: Computer Equipment | C159: 5761479 | D159: 6101574 | E159: 15991284 | F159: 132528074.7 | G159: 132528074.7 | H159: 132528074.7 | I159: =H159*1.02 -> 135178636.2 | J159: =I159*1.06 -> 143289354.4 | K159: 151886715.6
A160: Furniture and Office Equipment
A161: Machinery and Equipment
A162: Transport Assets
A163: Libraries
A164: Zoo's, Marine and Non-biological Animals
A165: TOTAL ASSET REGISTER SUMMARY - PPE (WDV) | B165: 5 | C165: =C144+C147+C151+C154+C155+C158+C159+C160+C161+C162+C163+C164+C148 -> 1022835849 | D165: =D144+D147+D151+D154+D155+D158+D159+D160+D161+D162+D163+D164+D148 -> 1023525798 | E165: 605196560 | F165: 1040469397 | G165: 1040469397 | H165: 1040469397 | I165: 1061278784 | J165: 1124955512 | K165: 1192452842
A167: EXPENDITURE OTHER ITEMS
A168: Depreciation | B168: 7 | C168: =SA34d!C167 -> 57015081 | D168: =SA34d!D167 -> 58502541 | E168: =SA34d!E167 -> 58502541 | F168: =SA34d!F167 -> 59672591.82 | G168: =SA34d!G167 -> 58872591.82 | H168: =SA34d!H167 -> 58872591.82 | I168: =SA34d!I167 -> 58872591.82 | J168: =SA34d!J167 -> 62404947.33 | K168: =SA34d!K167 -> 66149244.17
A169: Repairs and Maintenance by Asset Class | B169: 3 | C169: =C179+C182+C183+C186+C189+C190+SUM(C193:C199) -> 15404523 | D169: =D179+D182+D183+D186+D189+D190+SUM(D193:D199) -> 18427321 | E169: 9564144.57 | F169: 10187870 | G169: 8754755.439 | H169: 8754755.439 | I169: 9010000 | J169: 9550600 | K169: 10123636
A170: Roads Infrastructure | C170: =SA34c!C7 -> 3396000 | D170: =SA34c!D7 -> 3114490 | E170: =SA34c!E7 -> 1820000 | F170: =SA34c!F7 -> 2541000 | G170: =SA34c!G7 -> 1372433.38 | H170: =SA34c!H7 -> 1372433.38 | I170: =SA34c!I7 -> 2462000 | J170: =SA34c!J7 -> 2609720 | K170: =SA34c!K7 -> 2766303.2
A171: Storm water Infrastructure | C171: =SA34c!C12 -> 0 | D171: =SA34c!D12 -> 0 | E171: =SA34c!E12 -> 0 | F171: =SA34c!F12 -> 0 | G171: =SA34c!G12 -> 0 | H171: =SA34c!H12 -> 0 | I171: =SA34c!I12 -> 0 | J171: =SA34c!J12 -> 0 | K171: =SA34c!K12 -> 0
A172: Electrical Infrastructure | C172: =SA34c!C16 -> 2650000 | D172: =SA34c!D16 -> 2628203 | E172: =SA34c!E16 -> 2481108 | F172: =SA34c!F16 -> 1851850 | G172: =SA34c!G16 -> 1755603.2 | H172: =SA34c!H16 -> 1755603.2 | I172: =SA34c!I16 -> 1553000 | J172: =SA34c!J16 -> 1646180 | K172: =SA34c!K16 -> 1744950.8
A173: Water Supply Infrastructure | C173: =SA34c!C26 -> 4992047 | D173: =SA34c!D26 -> 3836490 | E173: =SA34c!E26 -> 2502000 | F173: =SA34c!F26 -> 3430350 | G173: =SA34c!G26 -> 2249963.75 | H173: =SA34c!H26 -> 2249963.75 | I173: =SA34c!I26 -> 2810000 | J173: =SA34c!J26 -> 2978600 | K173: =SA34c!K26 -> 3157316
A174: Sanitation Infrastructure | C174: =SA34c!C37 -> 2295300 | D174: =SA34c!D37 -> 2047492 | E174: =SA34c!E37 -> 560000 | F174: =SA34c!F37 -> 311850 | G174: =SA34c!G37 -> 475934.46 | H174: =SA34c!H37 -> 475934.46 | I174: =SA34c!I37 -> 650000 | J174: =SA34c!J37 -> 689000 | K174: =SA34c!K37 -> 730340
A175: Solid Waste Infrastructure | C175: =SA34c!C44 -> 778000 | D175: =SA34c!D44 -> 849492 | E175: =SA34c!E44 -> 200000 | F175: =SA34c!F44 -> 269500 | G175: =SA34c!G44 -> 201000 | H175: =SA34c!H44 -> 201000 | I175: =SA34c!I44 -> 240000 | J175: =SA34c!J44 -> 254400 | K175: =SA34c!K44 -> 269664
A176: Rail Infrastructure | C176: =SA34c!C52 -> 0 | D176: =SA34c!D52 -> 0 | E176: =SA34c!E52 -> 0 | F176: =SA34c!F52 -> 0 | G176: =SA34c!G52 -> 0 | H176: =SA34c!H52 -> 0 | I176: =SA34c!I52 -> 0 | J176: =SA34c!J52 -> 0 | K176: =SA34c!K52 -> 0
A177: Coastal Infrastructure | C177: =SA34c!C62 -> 0 | D177: =SA34c!D62 -> 0 | E177: =SA34c!E62 -> 0 | F177: =SA34c!F62 -> 0 | G177: =SA34c!G62 -> 0 | H177: =SA34c!H62 -> 0 | I177: =SA34c!I62 -> 0 | J177: =SA34c!J62 -> 0 | K177: =SA34c!K62 -> 0
A178: Information and Communication Infrastructure | C178: =SA34c!C68 -> 0 | D178: =SA34c!D68 -> 0 | E178: =SA34c!E68 -> 0 | F178: =SA34c!F68 -> 0 | G178: =SA34c!G68 -> 0 | H178: =SA34c!H68 -> 0 | I178: =SA34c!I68 -> 0 | J178: =SA34c!J68 -> 0 | K178: =SA34c!K68 -> 0
A179: Infrastructure | C179: =SUM(C170:C178) -> 14111347 | D179: =SUM(D170:D178) -> 12476167 | E179: 7563108 | F179: 8404550 | G179: 6054934.79 | H179: 6054934.79 | I179: 7715000 | J179: 8177900 | K179: 8668574
A180: Community Facilities | C180: =SA34c!C75 -> 0 | D180: =SA34c!D75 -> 724492 | E180: =SA34c!E75 -> 530000 | F180: =SA34c!F75 -> 836220 | G180: =SA34c!G75 -> 2437977.96 | H180: =SA34c!H75 -> 2437977.96 | I180: =SA34c!I75 -> 790000 | J180: =SA34c!J75 -> 837400 | K180: =SA34c!K75 -> 887644
A181: Sport and Recreation Facilities | C181: =SA34c!C98 -> 0 | D181: =SA34c!D98 -> 0 | E181: =SA34c!E98 -> 30000 | F181: =SA34c!F98 -> 84700 | G181: =SA34c!G98 -> 1221.068571 | H181: =SA34c!H98 -> 1221.068571 | I181: =SA34c!I98 -> 80000 | J181: =SA34c!J98 -> 84800 | K181: =SA34c!K98 -> 89888
A182: Community Assets | C182: =SUM(C180:C181) -> 0 | D182: 724492 | E182: 560000 | F182: 920920 | G182: 2439199.029 | H182: 2439199.029 | I182: 870000 | J182: 922200 | K182: 977532
A183: Heritage Assets | C183: =SA34c!C103 -> 0 | D183: =SA34c!D103 -> 0 | E183: =SA34c!E103 -> 1391036.57 | F183: =SA34c!F103 -> 800800 | G183: =SA34c!G103 -> 243250.19 | H183: =SA34c!H103 -> 243250.19 | I183: =SA34c!I103 -> 345000 | J183: =SA34c!J103 -> 365700 | K183: =SA34c!K103 -> 387642
A184: Revenue Generating | C184: =SA34c!C111 -> 0 | D184: =SA34c!D111 -> 0 | E184: =SA34c!E111 -> 0 | F184: =SA34c!F111 -> 0 | G184: =SA34c!G111 -> 0 | H184: =SA34c!H111 -> 0 | I184: =SA34c!I111 -> 0 | J184: =SA34c!J111 -> 0 | K184: =SA34c!K111 -> 0
A185: Non-revenue Generating | C185: =SA34c!C114 -> 0 | D185: =SA34c!D114 -> 0 | E185: =SA34c!E114 -> 0 | F185: =SA34c!F114 -> 0 | G185: =SA34c!G114 -> 0 | H185: =SA34c!H114 -> 0 | I185: =SA34c!I114 -> 0 | J185: =SA34c!J114 -> 0 | K185: =SA34c!K114 -> 0
A186: Investment properties | C186: =SUM(C184:C185) -> 0 | D186: 0 | E186: 0 | F186: 0 | G186: 0 | H186: 0 | I186: 0 | J186: 0 | K186: 0
A187: Operational Buildings | C187: =SA34c!C119 -> 1293176 | D187: =SA34c!D119 -> 5226662 | E187: =SA34c!E119 -> 50000 | F187: =SA34c!F119 -> 0 | G187: =SA34c!G119 -> 0 | H187: =SA34c!H119 -> 0 | I187: =SA34c!I119 -> 0 | J187: =SA34c!J119 -> 0 | K187: =SA34c!K119 -> 0
A188: Housing | C188: =SA34c!C131 -> 0 | D188: =SA34c!D131 -> 0 | E188: =SA34c!E131 -> 0 | F188: =SA34c!F131 -> 0 | G188: =SA34c!G131 -> 0 | H188: =SA34c!H131 -> 0 | I188: =SA34c!I131 -> 0 | J188: =SA34c!J131 -> 0 | K188: =SA34c!K131 -> 0
A189: Other Assets | C189: =SUM(C187:C188) -> 1293176 | D189: 5226662 | E189: 50000 | F189: 0 | G189: 0 | H189: 0 | I189: 0 | J189: 0 | K189: 0
A190: Biological or Cultivated Assets | C190: =SA34c!C136 -> 0 | D190: =SA34c!D136 -> 0 | E190: =SA34c!E136 -> 0 | F190: =SA34c!F136 -> 0 | G190: =SA34c!G136 -> 0 | H190: =SA34c!H136 -> 0 | I190: =SA34c!I136 -> 0 | J190: =SA34c!J136 -> 0 | K190: =SA34c!K136 -> 0
A191: Servitudes | C191: =SA34c!C140 -> 0 | D191: =SA34c!D140 -> 0 | E191: =SA34c!E140 -> 0 | F191: =SA34c!F140 -> 0 | G191: =SA34c!G140 -> 0 | H191: =SA34c!H140 -> 0 | I191: =SA34c!I140 -> 0 | J191: =SA34c!J140 -> 0 | K191: =SA34c!K140 -> 0
A192: Licences and Rights | C192: =SA34c!C141 -> 0 | D192: =SA34c!D141 -> 0 | E192: =SA34c!E141 -> 0 | F192: =SA34c!F141 -> 0 | G192: =SA34c!G141 -> 0 | H192: =SA34c!H141 -> 0 | I192: =SA34c!I141 -> 0 | J192: =SA34c!J141 -> 0 | K192: =SA34c!K141 -> 0
A193: Intangible Assets | C193: =SUM(C191:C192) -> 0 | D193: 0 | E193: 0 | F193: 0 | G193: 0 | H193: 0 | I193: 0 | J193: 0 | K193: 0
A194: Computer Equipment | C194: =SA34c!C149 -> 0 | D194: =SA34c!D149 -> 0 | E194: =SA34c!E149 -> 0 | F194: =SA34c!F149 -> 0 | G194: =SA34c!G149 -> 0 | H194: =SA34c!H149 -> 0 | I194: =SA34c!I149 -> 0 | J194: =SA34c!J149 -> 0 | K194: =SA34c!K149 -> 0
A195: Furniture and Office Equipment | C195: =SA34c!C152 -> 0 | D195: =SA34c!D152 -> 0 | E195: =SA34c!E152 -> 0 | F195: =SA34c!F152 -> 61600 | G195: =SA34c!G152 -> 17371.43 | H195: =SA34c!H152 -> 17371.43 | I195: =SA34c!I152 -> 80000 | J195: =SA34c!J152 -> 84800 | K195: =SA34c!K152 -> 89888
A196: Machinery and Equipment | C196: =SA34c!C155 -> 0 | D196: =SA34c!D155 -> 0 | E196: =SA34c!E155 -> 0 | F196: =SA34c!F155 -> 0 | G196: =SA34c!G155 -> 0 | H196: =SA34c!H155 -> 0 | I196: =SA34c!I155 -> 0 | J196: =SA34c!J155 -> 0 | K196: =SA34c!K155 -> 0
A197: Transport Assets | C197: =SA34c!C158 -> 0 | D197: =SA34c!D158 -> 0 | E197: =SA34c!E158 -> 0 | F197: =SA34c!F158 -> 0 | G197: =SA34c!G158 -> 0 | H197: =SA34c!H158 -> 0 | I197: =SA34c!I158 -> 0 | J197: =SA34c!J158 -> 0 | K197: =SA34c!K158 -> 0
A198: Libraries | C198: =SA34c!C161 -> 0 | D198: =SA34c!D161 -> 0 | E198: =SA34c!E161 -> 0 | F198: =SA34c!F161 -> 0 | G198: =SA34c!G161 -> 0 | H198: =SA34c!H161 -> 0 | I198: =SA34c!I161 -> 0 | J198: =SA34c!J161 -> 0 | K198: =SA34c!K161 -> 0
A199: Zoo's, Marine and Non-biological Animals | C199: =SA34c!C164 -> 0 | D199: =SA34c!D164 -> 0 | E199: =SA34c!E164 -> 0 | F199: =SA34c!F164 -> 0 | G199: =SA34c!G164 -> 0 | H199: =SA34c!H164 -> 0 | I199: =SA34c!I164 -> 0 | J199: =SA34c!J164 -> 0 | K199: =SA34c!K164 -> 0
A201: TOTAL EXPENDITURE OTHER ITEMS | C201: =SUM(C168:C169) -> 72419604 | D201: 76929862 | E201: 68066685.57 | F201: 69860461.82 | G201: 67627347.26 | H201: 67627347.26 | I201: 67882591.82 | J201: 71955547.33 | K201: 76272880.17
A203: Renewal and upgrading of Existing Assets as % of total capex | C203: =IF(ISERROR((C37+C69)/C132),0,((C37+C69)/C132)) -> 0 | D203: =IF(ISERROR((D37+D69)/D132),0,((D37+D69)/D132)) -> 0 | E203: 0.1218880889 | F203: 0.4726069829 | G203: 0.5465611247 | H203: 0.5465611247 | I203: 0.6313467183 | J203: 0.6313467183 | K203: 0.6313467183
A204: Renewal and upgrading of Existing Assets as % of deprecn | C204: =IF(ISERROR((C37+C69)/C168),0,((C37+C69)/C168)) -> 0 | D204: =IF(ISERROR((D37+D69)/D168),0,((D37+D69)/D168)) -> 0 | E204: 0.1337960567 | F204: 0.7821872122 | G204: 0.9168769638 | H204: 0.9168769638 | I204: 0.6962738876 | J204: 0.6962738876 | K204: 0.6962738876
A205: R&M as a % of PPE | C205: =IF(ISERROR(ROUND(C169/'A6-FinPos'!C19,3)),0,(ROUND(C169/'A6-FinPos'!C19,3))) -> 0.015 | D205: =IF(ISERROR(ROUND(D169/'A6-FinPos'!D19,3)),0,(ROUND(D169/'A6-FinPos'!D19,3))) -> 0.018 | E205: =IF(ISERROR(ROUND(E169/'A6-FinPos'!E19,3)),0,(ROUND(E169/'A6-FinPos'!E19,3))) -> 0.01 | F205: =IF(ISERROR(ROUND(F169/'A6-FinPos'!F19,3)),0,(ROUND(F169/'A6-FinPos'!F19,3))) -> 0.01 | G205: =IF(ISERROR(ROUND(G169/'A6-FinPos'!G19,3)),0,(ROUND(G169/'A6-FinPos'!G19,3))) -> 0.009 | H205: =IF(ISERROR(ROUND(H169/'A6-FinPos'!H19,3)),0,(ROUND(H169/'A6-FinPos'!H19,3))) -> 0.009 | I205: =IF(ISERROR(ROUND(I169/'A6-FinPos'!J19,3)),0,(ROUND(I169/'A6-FinPos'!J19,3))) -> 0.009 | J205: =IF(ISERROR(ROUND(J169/'A6-FinPos'!K19,3)),0,(ROUND(J169/'A6-FinPos'!K19,3))) -> 0.009 | K205: =IF(ISERROR(ROUND(K169/'A6-FinPos'!L19,3)),0,(ROUND(K169/'A6-FinPos'!L19,3))) -> 0.009
A206: Renewal and upgrading and R&M as a % of PPE | C206: =IF(ISERROR(ROUND((C37+C69+C169)/C165,2)),0,(ROUND((C37+C69+C169)/C165,2))) -> 0.02 | D206: =IF(ISERROR(ROUND((D37+D69+D169)/D165,2)),0,(ROUND((D37+D69+D169)/D165,2))) -> 0.02 | E206: 0.03 | F206: 0.05 | G206: 0.06 | H206: 0.06 | I206: 0.05 | J206: 0.05 | K206: 0.05
A208: =head27a -> References
... 8 more rows

Sheet A10-SerDel
A1: =muni&" - "&Approve10 -> FS193 Nketoana - Table A10 Basic service delivery measurement
A2: =desc -> Description | B2: =head27 -> Ref | C2: =head1b -> 2014/15 | D2: =head1A -> 2015/16 | E2: =Head1 -> 2016/17 | F2: =Head2 -> Current Year 2017/18 | I2: =Head3 -> 2018/19 Medium Term Revenue & Expenditure Framework
C3: =Head5A -> Outcome | D3: =Head5A -> Outcome | E3: =Head5A -> Outcome | F3: =Head6 -> Original Budget | G3: =Head7 -> Adjusted Budget | H3: =Head8 -> Full Year Forecast | I3: =Head9 -> Budget Year 2018/19 | J3: =Head10 -> Budget Year +1 2019/20 | K3: =Head11 -> Budget Year +2 2020/21
A4: Household service targets | B4: 1
A5: Water:
A6: Piped water inside dwelling | C6: ='SA9'!E67 -> 7992 | D6: ='SA9'!F67 -> 8202 | E6: ='SA9'!G67 -> 8366.04 | F6: ='SA9'!H67 -> 8533.3608 | G6: ='SA9'!I67 -> 8533.3608 | H6: ='SA9'!J67 -> 8533.3608 | I6: ='SA9'!K67 -> 9045.362448 | J6: ='SA9'!L67 -> 9588.084195 | K6: ='SA9'!M67 -> 10163.36925
A7: Piped water inside yard (but not in dwelling) | C7: ='SA9'!E68 -> 2232 | D7: ='SA9'!F68 -> 2232 | E7: ='SA9'!G68 -> 2254.32 | F7: ='SA9'!H68 -> 2299.4064 | G7: ='SA9'!I68 -> 2299.4064 | H7: ='SA9'!J68 -> 2299.4064 | I7: ='SA9'!K68 -> 2437.370784 | J7: ='SA9'!L68 -> 2583.613031 | K7: ='SA9'!M68 -> 2738.629813
A8: Using public tap (at least min.service level) | B8: 2 | C8: ='SA9'!E69 -> 1691 | D8: ='SA9'!F69 -> 1083 | E8: ='SA9'!G69 -> 1093.83 | F8: ='SA9'!H69 -> 1115.7066 | G8: ='SA9'!I69 -> 1115.7066 | H8: ='SA9'!J69 -> 1115.7066 | I8: ='SA9'!K69 -> 1182.648996 | J8: ='SA9'!L69 -> 1253.607936 | K8: ='SA9'!M69 -> 1328.824412
A9: Other water supply (at least min.service level) | B9: 4 | C9: ='SA9'!E70 -> 0 | D9: ='SA9'!F70 -> 0 | E9: ='SA9'!G70 -> 0 | F9: ='SA9'!H70 -> 0 | G9: ='SA9'!I70 -> 0 | H9: ='SA9'!J70 -> 0 | I9: ='SA9'!K70 -> 0 | J9: ='SA9'!L70 -> 0 | K9: ='SA9'!M70 -> 0
A10: Minimum Service Level and Above sub-total | C10: =SUM(C6:C9) -> 11915 | D10: =SUM(D6:D9) -> 11517 | E10: 11714.19 | F10: 11948.4738 | G10: 11948.4738 | H10: 11948.4738 | I10: 12665.38223 | J10: 13425.30516 | K10: 14230.82347
A11: Using public tap (< min.service level) | B11: 3 | C11: ='SA9'!E72 -> 0 | D11: ='SA9'!F72 -> 0 | E11: ='SA9'!G72 -> 0 | F11: ='SA9'!H72 -> 0 | G11: ='SA9'!I72 -> 0 | H11: ='SA9'!J72 -> 0 | I11: ='SA9'!K72 -> 0 | J11: ='SA9'!L72 -> 0 | K11: ='SA9'!M72 -> 0
A12: Other water supply (< min.service level) | B12: =B9 -> 4 | C12: ='SA9'!E73 -> 0 | D12: ='SA9'!F73 -> 0 | E12: ='SA9'!G73 -> 0 | F12: ='SA9'!H73 -> 0 | G12: ='SA9'!I73 -> 0 | H12: ='SA9'!J73 -> 0 | I12: ='SA9'!K73 -> 0 | J12: ='SA9'!L73 -> 0 | K12: ='SA9'!M73 -> 0
A13: No water supply | C13: ='SA9'!E74 -> 7873 | D13: ='SA9'!F74 -> 7873 | E13: ='SA9'!G74 -> 7005 | F13: ='SA9'!H74 -> 7145.1 | G13: ='SA9'!I74 -> 7145.1 | H13: ='SA9'!J74 -> 7145.1 | I13: ='SA9'!K74 -> 7573.806 | J13: ='SA9'!L74 -> 8028.23436 | K13: ='SA9'!M74 -> 8509.928422
A14: Below Minimum Service Level sub-total | C14: =SUM(C11:C13) -> 7873 | D14: =SUM(D11:D13) -> 7873 | E14: 7005 | F14: 7145.1 | G14: 7145.1 | H14: 7145.1 | I14: 7573.806 | J14: 8028.23436 | K14: 8509.928422
A15: Total number of households | B15: 5 | C15: =C10+C14 -> 19788 | D15: =D10+D14 -> 19390 | E15: 18719.19 | F15: 19093.5738 | G15: 19093.5738 | H15: 19093.5738 | I15: 20239.18823 | J15: 21453.53952 | K15: 22740.75189
A16: Sanitation/sewerage:
A17: Flush toilet (connected to sewerage) | C17: ='SA9'!E78 -> 15597 | D17: ='SA9'!F78 -> 14322 | E17: ='SA9'!G78 -> 15597 | F17: ='SA9'!H78 -> 15908.94 | G17: ='SA9'!I78 -> 15908.94 | H17: ='SA9'!J78 -> 15908.94 | I17: ='SA9'!K78 -> 16863.4764 | J17: ='SA9'!L78 -> 17875.28498 | K17: ='SA9'!M78 -> 18947.80208
A18: Flush toilet (with septic tank) | C18: ='SA9'!E79 -> 0 | D18: ='SA9'!F79 -> 0 | E18: ='SA9'!G79 -> 0 | F18: ='SA9'!H79 -> 0 | G18: ='SA9'!I79 -> 0 | H18: ='SA9'!J79 -> 0 | I18: ='SA9'!K79 -> 0 | J18: ='SA9'!L79 -> 0 | K18: ='SA9'!M79 -> 0
A19: Chemical toilet | C19: ='SA9'!E80 -> 0 | D19: ='SA9'!F80 -> 0 | E19: ='SA9'!G80 -> 0 | F19: ='SA9'!H80 -> 0 | G19: ='SA9'!I80 -> 0 | H19: ='SA9'!J80 -> 0 | I19: ='SA9'!K80 -> 0 | J19: ='SA9'!L80 -> 0 | K19: ='SA9'!M80 -> 0
A20: Pit toilet (ventilated) | C20: ='SA9'!E81 -> 0 | D20: ='SA9'!F81 -> 0 | E20: ='SA9'!G81 -> 0 | F20: ='SA9'!H81 -> 0 | G20: ='SA9'!I81 -> 0 | H20: ='SA9'!J81 -> 0 | I20: ='SA9'!K81 -> 0 | J20: ='SA9'!L81 -> 0 | K20: ='SA9'!M81 -> 0
A21: Other toilet provisions (> min.service level) | C21: ='SA9'!E82 -> 0 | D21: ='SA9'!F82 -> 0 | E21: ='SA9'!G82 -> 0 | F21: ='SA9'!H82 -> 0 | G21: ='SA9'!I82 -> 0 | H21: ='SA9'!J82 -> 0 | I21: ='SA9'!K82 -> 0 | J21: ='SA9'!L82 -> 0 | K21: ='SA9'!M82 -> 0
A22: =$A$10 -> Minimum Service Level and Above sub-total | C22: =SUM(C17:C21) -> 15597 | D22: =SUM(D17:D21) -> 14322 | E22: 15597 | F22: 15908.94 | G22: 15908.94 | H22: 15908.94 | I22: 16863.4764 | J22: 17875.28498 | K22: 18947.80208
A23: Bucket toilet | C23: ='SA9'!E84 -> 0 | D23: ='SA9'!F84 -> 0 | E23: ='SA9'!G84 -> 0 | F23: ='SA9'!H84 -> 0 | G23: ='SA9'!I84 -> 0 | H23: ='SA9'!J84 -> 0 | I23: ='SA9'!K84 -> 0 | J23: ='SA9'!L84 -> 0 | K23: ='SA9'!M84 -> 0
A24: Other toilet provisions (< min.service level) | C24: ='SA9'!E85 -> 0 | D24: ='SA9'!F85 -> 0 | E24: ='SA9'!G85 -> 0 | F24: ='SA9'!H85 -> 0 | G24: ='SA9'!I85 -> 0 | H24: ='SA9'!J85 -> 0 | I24: ='SA9'!K85 -> 0 | J24: ='SA9'!L85 -> 0 | K24: ='SA9'!M85 -> 0
A25: No toilet provisions | C25: ='SA9'!E86 -> 4191 | D25: ='SA9'!F86 -> 4191 | E25: ='SA9'!G86 -> 4191 | F25: ='SA9'!H86 -> 4274.82 | G25: ='SA9'!I86 -> 4274.82 | H25: ='SA9'!J86 -> 4274.82 | I25: ='SA9'!K86 -> 4531.3092 | J25: ='SA9'!L86 -> 4803.187752 | K25: ='SA9'!M86 -> 5091.379017
A26: =$A$14 -> Below Minimum Service Level sub-total | C26: =SUM(C23:C25) -> 4191 | D26: =SUM(D23:D25) -> 4191 | E26: 4191 | F26: 4274.82 | G26: 4274.82 | H26: 4274.82 | I26: 4531.3092 | J26: 4803.187752 | K26: 5091.379017
A27: =$A$15 -> Total number of households | B27: =$B$15 -> 5 | C27: =C22+C26 -> 19788 | D27: =D22+D26 -> 18513 | E27: 19788 | F27: 20183.76 | G27: 20183.76 | H27: 20183.76 | I27: 21394.7856 | J27: 22678.47274 | K27: 24039.1811
A28: Energy:
A29: Electricity (at least min.service level) | C29: ='SA9'!E90 -> 3498 | D29: ='SA9'!F90 -> 3498 | E29: ='SA9'!G90 -> 3637.92 | F29: ='SA9'!H90 -> 3710.6784 | G29: ='SA9'!I90 -> 3710.6784 | H29: ='SA9'!J90 -> 3710.6784 | I29: ='SA9'!K90 -> 3933.319104 | J29: ='SA9'!L90 -> 4169.31825 | K29: ='SA9'!M90 -> 4419.477345
A30: Electricity - prepaid (min.service level) | C30: ='SA9'!E91 -> 2486 | D30: ='SA9'!F91 -> 2486 | E30: ='SA9'!G91 -> 2585.44 | F30: ='SA9'!H91 -> 2637.1488 | G30: ='SA9'!I91 -> 2637.1488 | H30: ='SA9'!J91 -> 2637.1488 | I30: ='SA9'!K91 -> 2795.377728 | J30: ='SA9'!L91 -> 2963.100392 | K30: ='SA9'!M91 -> 3140.886415
A31: =$A$10 -> Minimum Service Level and Above sub-total | C31: =SUM(C29:C30) -> 5984 | D31: =SUM(D29:D30) -> 5984 | E31: 6223.36 | F31: 6347.8272 | G31: 6347.8272 | H31: 6347.8272 | I31: 6728.696832 | J31: 7132.418642 | K31: 7560.36376
A32: Electricity (< min.service level) | C32: ='SA9'!E93 -> 0 | D32: ='SA9'!F93 -> 0 | E32: ='SA9'!G93 -> 0 | F32: ='SA9'!H93 -> 0 | G32: ='SA9'!I93 -> 0 | H32: ='SA9'!J93 -> 0 | I32: ='SA9'!K93 -> 0 | J32: ='SA9'!L93 -> 0 | K32: ='SA9'!M93 -> 0
A33: Electricity - prepaid (< min. service level) | C33: ='SA9'!E94 -> 0 | D33: ='SA9'!F94 -> 0 | E33: ='SA9'!G94 -> 0 | F33: ='SA9'!H94 -> 0 | G33: ='SA9'!I94 -> 0 | H33: ='SA9'!J94 -> 0 | I33: ='SA9'!K94 -> 0 | J33: ='SA9'!L94 -> 0 | K33: ='SA9'!M94 -> 0
A34: Other energy sources | C34: ='SA9'!E95 -> 13804 | D34: ='SA9'!F95 -> 13804 | E34: ='SA9'!G95 -> 12835 | F34: ='SA9'!H95 -> 13091.7 | G34: ='SA9'!I95 -> 13091.7 | H34: ='SA9'!J95 -> 13091.7 | I34: ='SA9'!K95 -> 13877.202 | J34: ='SA9'!L95 -> 14709.83412 | K34: ='SA9'!M95 -> 15592.42417
A35: =$A$14 -> Below Minimum Service Level sub-total | C35: =SUM(C32:C34) -> 13804 | D35: =SUM(D32:D34) -> 13804 | E35: 12835 | F35: 13091.7 | G35: 13091.7 | H35: 13091.7 | I35: 13877.202 | J35: 14709.83412 | K35: 15592.42417
A36: =$A$15 -> Total number of households | B36: =$B$15 -> 5 | C36: =C31+C35 -> 19788 | D36: =D31+D35 -> 19788 | E36: 19058.36 | F36: 19439.5272 | G36: 19439.5272 | H36: 19439.5272 | I36: 20605.89883 | J36: 21842.25276 | K36: 23152.78793
A37: Refuse:
A38: Removed at least once a week | C38: ='SA9'!E99 -> 14402 | D38: ='SA9'!F99 -> 14402 | E38: ='SA9'!G99 -> 14975 | F38: ='SA9'!H99 -> 15274.5 | G38: ='SA9'!I99 -> 15274.5 | H38: ='SA9'!J99 -> 15274.5 | I38: ='SA9'!K99 -> 16190.97 | J38: ='SA9'!L99 -> 17162.4282 | K38: ='SA9'!M99 -> 18192.17389
A39: =$A$10 -> Minimum Service Level and Above sub-total | C39: =SUM(C38) -> 14402 | D39: =SUM(D38) -> 14402 | E39: 14975 | F39: 15274.5 | G39: 15274.5 | H39: 15274.5 | I39: 16190.97 | J39: 17162.4282 | K39: 18192.17389
A40: Removed less frequently than once a week | C40: ='SA9'!E101 -> 0 | D40: ='SA9'!F101 -> 0 | E40: ='SA9'!G101 -> 0 | F40: ='SA9'!H101 -> 0 | G40: ='SA9'!I101 -> 0 | H40: ='SA9'!J101 -> 0 | I40: ='SA9'!K101 -> 0 | J40: ='SA9'!L101 -> 0 | K40: ='SA9'!M101 -> 0
A41: Using communal refuse dump | C41: ='SA9'!E102 -> 0 | D41: ='SA9'!F102 -> 0 | E41: ='SA9'!G102 -> 0 | F41: ='SA9'!H102 -> 0 | G41: ='SA9'!I102 -> 0 | H41: ='SA9'!J102 -> 0 | I41: ='SA9'!K102 -> 0 | J41: ='SA9'!L102 -> 0 | K41: ='SA9'!M102 -> 0
A42: Using own refuse dump | C42: ='SA9'!E103 -> 0 | D42: ='SA9'!F103 -> 0 | E42: ='SA9'!G103 -> 0 | F42: ='SA9'!H103 -> 0 | G42: ='SA9'!I103 -> 0 | H42: ='SA9'!J103 -> 0 | I42: ='SA9'!K103 -> 0 | J42: ='SA9'!L103 -> 0 | K42: ='SA9'!M103 -> 0
A43: Other rubbish disposal | C43: ='SA9'!E104 -> 0 | D43: ='SA9'!F104 -> 0 | E43: ='SA9'!G104 -> 0 | F43: ='SA9'!H104 -> 0 | G43: ='SA9'!I104 -> 0 | H43: ='SA9'!J104 -> 0 | I43: ='SA9'!K104 -> 0 | J43: ='SA9'!L104 -> 0 | K43: ='SA9'!M104 -> 0
A44: No rubbish disposal | C44: ='SA9'!E105 -> 4813 | D44: ='SA9'!F105 -> 4813 | E44: ='SA9'!G105 -> 4701 | F44: ='SA9'!H105 -> 4795.02 | G44: ='SA9'!I105 -> 4795.02 | H44: ='SA9'!J105 -> 4795.02 | I44: ='SA9'!K105 -> 5082.7212 | J44: ='SA9'!L105 -> 5387.684472 | K44: ='SA9'!M105 -> 5710.94554
A45: =$A$14 -> Below Minimum Service Level sub-total | C45: =SUM(C40:C44) -> 4813 | D45: 4813 | E45: 4701 | F45: 4795.02 | G45: 4795.02 | H45: 4795.02 | I45: 5082.7212 | J45: 5387.684472 | K45: 5710.94554
A46: =$A$15 -> Total number of households | B46: =$B$15 -> 5 | C46: =C39+C45 -> 19215 | D46: =D39+D45 -> 19215 | E46: 19676 | F46: 20069.52 | G46: 20069.52 | H46: 20069.52 | I46: 21273.6912 | J46: 22550.11267 | K46: 23903.11943
A48: Households receiving Free Basic Service | B48: 7
A49: Water (6 kilolitres per household per month) | C49: ='SA9'!E263 -> 5925 | D49: ='SA9'!F263 -> 4773 | E49: ='SA9'!G263 -> 6181 | F49: ='SA9'!H263 -> 6500 | G49: ='SA9'!I263 -> 6500 | H49: ='SA9'!J263 -> 6500 | I49: ='SA9'!K263 -> 7000 | J49: ='SA9'!L263 -> 7200 | K49: ='SA9'!M263 -> 7600
A50: Sanitation (free minimum level service) | C50: ='SA9'!E275 -> 5925 | D50: ='SA9'!F275 -> 4773 | E50: ='SA9'!G275 -> 6181 | F50: ='SA9'!H275 -> 6500 | G50: ='SA9'!I275 -> 6500 | H50: ='SA9'!J275 -> 6500 | I50: ='SA9'!K275 -> 7000 | J50: ='SA9'!L275 -> 7200 | K50: ='SA9'!M275 -> 7600
A51: Electricity/other energy (50kwh per household per month) | C51: ='SA9'!E251 -> 5925 | D51: ='SA9'!F251 -> 4773 | E51: ='SA9'!G251 -> 6181 | F51: ='SA9'!H251 -> 6500 | G51: ='SA9'!I251 -> 6500 | H51: ='SA9'!J251 -> 6500 | I51: ='SA9'!K251 -> 7000 | J51: ='SA9'!L251 -> 7200 | K51: ='SA9'!M251 -> 7600
A52: Refuse (removed at least once a week) | C52: ='SA9'!E287 -> 5925 | D52: ='SA9'!F287 -> 4773 | E52: ='SA9'!G287 -> 6181 | F52: ='SA9'!H287 -> 6500 | G52: ='SA9'!I287 -> 6500 | H52: ='SA9'!J287 -> 6500 | I52: ='SA9'!K287 -> 7000 | J52: ='SA9'!L287 -> 7200 | K52: ='SA9'!M287 -> 7600
A54: Cost of Free Basic Services provided - Formal Settlements (R'000) | B54: 8
A55: Water (6 kilolitres per indigent household per month) | C55: ='SA1'!C20 -> 9229924.36 | D55: ='SA1'!D20 -> 6894786.95 | E55: ='SA1'!E20 -> 28174505.76 | F55: ='SA1'!F20 -> 31143728.61 | G55: ='SA1'!G20 -> 33338437.27 | H55: ='SA1'!H20 -> 33338437.27 | I55: ='SA1'!J20 -> 35005359.13 | J55: ='SA1'!K20 -> 37105680.68 | K55: ='SA1'!L20 -> 39332021.52
A56: Sanitation (free sanitation service to indigent households) | C56: ='SA1'!C26 -> 6648454.68 | D56: ='SA1'!D26 -> 5021895.76 | E56: ='SA1'!E26 -> 6041176.7 | F56: ='SA1'!F26 -> 6815403.901 | G56: ='SA1'!G26 -> 7387838.537 | H56: ='SA1'!H26 -> 7387838.537 | I56: ='SA1'!J26 -> 7757230.464 | J56: ='SA1'!K26 -> 8222664.292 | K56: ='SA1'!L26 -> 8716024.149
A57: Electricity/other energy (50kwh per indigent household per month) | C57: ='SA1'!C14 -> 2944888.46 | D57: ='SA1'!D14 -> 2368567.55 | E57: ='SA1'!E14 -> 2034013.26 | F57: ='SA1'!F14 -> 2329143.422 | G57: ='SA1'!G14 -> 2329143.422 | H57: ='SA1'!H14 -> 2329143.422 | I57: ='SA1'!J14 -> 2866961.178 | J57: ='SA1'!K14 -> 3038978.849 | K57: ='SA1'!L14 -> 3221317.58
A58: Refuse (removed once a week for indigent households) | C58: ='SA1'!C33 -> 7706172.18 | D58: ='SA1'!D33 -> 5817667.84 | E58: ='SA1'!E33 -> 7030439.64 | F58: ='SA1'!F33 -> 7931405.765 | G58: ='SA1'!G33 -> 8617022.537 | H58: ='SA1'!H33 -> 8617022.537 | I58: ='SA1'!J33 -> 9134043.889 | J58: ='SA1'!K33 -> 9682086.523 | K58: ='SA1'!L33 -> 10263011.71
A59: Cost of Free Basic Services provided - Informal Formal Settlements (R'000) | C59: ='SA9'!E260+'SA9'!E272+'SA9'!E284+'SA9'!E296 -> 0 | D59: ='SA9'!F260+'SA9'!F272+'SA9'!F284+'SA9'!F296 -> 0 | E59: ='SA9'!G260+'SA9'!G272+'SA9'!G284+'SA9'!G296 -> 0 | F59: ='SA9'!H260+'SA9'!H272+'SA9'!H284+'SA9'!H296 -> 0 | G59: ='SA9'!I260+'SA9'!I272+'SA9'!I284+'SA9'!I296 -> 0 | H59: ='SA9'!J260+'SA9'!J272+'SA9'!J284+'SA9'!J296 -> 0 | I59: ='SA9'!K260+'SA9'!K272+'SA9'!K284+'SA9'!K296 -> 0 | J59: ='SA9'!L260+'SA9'!L272+'SA9'!L284+'SA9'!L296 -> 0 | K59: ='SA9'!M260+'SA9'!M272+'SA9'!M284+'SA9'!M296 -> 0
A60: Total cost of FBS provided | C60: =SUM(C55:C59) -> 26529439.68 | D60: 20102918.1 | E60: 43280135.36 | F60: 48219681.7 | G60: 51672441.77 | H60: 51672441.77 | I60: 54763594.66 | J60: 58049410.34 | K60: 61532374.96
A62: Highest level of free service provided per household
A63: Property rates (R value threshold) | C63: 20000 | D63: 20000 | E63: 20000 | F63: 15000 | G63: 15000 | H63: 15000 | I63: 15000 | J63: 15000 | K63: 15000
A64: Water (kilolitres per household per month) | C64: 6 | D64: 6 | E64: 6 | F64: 6 | G64: 6 | H64: 6 | I64: 6 | J64: 6 | K64: 6
A65: Sanitation (kilolitres per household per month) | E65: 0 | J65: =I65*1.06 -> 0 | K65: 0
A66: Sanitation (Rand per household per month) | C66: 96.77 | D66: 103 | E66: 109 | F66: 109 | G66: 109 | H66: 109 | I66: =H66*1.06 -> 115.54 | J66: 122.4724 | K66: 129.820744
A67: Electricity (kwh per household per month) | C67: 50 | D67: 50 | E67: 53 | F67: 53 | G67: 53 | H67: 53 | I67: =H67*1.06 -> 56.18 | J67: 59.5508 | K67: 63.123848
A68: Refuse (average litres per week) | C68: 85 | D68: 85 | E68: 89 | F68: 89 | G68: 89 | H68: 89 | I68: 94.34 | J68: 100.0004 | K68: 106.000424
A69: Revenue cost of subsidised services provided (R'000) | B69: 9
A70: Property rates (tariff adjustment) ( impermissable values per section 17 of MPRA) | C70: 674231 | D70: 714685 | E70: 780000 | F70: =E70*1.06 -> 826800 | G70: 826800 | H70: 826800 | I70: =H70*1.06 -> 876408 | J70: =I70*1.06 -> 928992.48 | K70: =J70*1.06 -> 984732.0288
A71: Property rates exemptions, reductions and rebates and impermissable values in excess of section 17 of MPRA) | C71: ='SA1'!C8 -> 777917 | D71: ='SA1'!D8 -> 1166876 | E71: ='SA1'!E8 -> 21578745.94 | F71: ='SA1'!F8 -> 22608224.16 | G71: ='SA1'!G8 -> 23073092.86 | H71: ='SA1'!H8 -> 23073092.86 | I71: ='SA1'!J8 -> 24682670.55 | J71: ='SA1'!K8 -> 26163630.78 | K71: ='SA1'!L8 -> 27733448.63
A72: Water (in excess of 6 kilolitres per indigent household per month) | C72: ='SA1'!C19 -> 0 | D72: ='SA1'!D19 -> 0 | E72: ='SA1'!E19 -> 0 | F72: ='SA1'!F19 -> 0 | G72: ='SA1'!G19 -> 0 | H72: ='SA1'!H19 -> 0 | I72: ='SA1'!J19 -> 0 | J72: ='SA1'!K19 -> 0 | K72: ='SA1'!L19 -> 0
A73: Sanitation (in excess of free sanitation service to indigent households) | C73: ='SA1'!C25 -> 0 | D73: ='SA1'!D25 -> 0 | E73: ='SA1'!E25 -> 0 | F73: ='SA1'!F25 -> 0 | G73: ='SA1'!G25 -> 0 | H73: ='SA1'!H25 -> 0 | I73: ='SA1'!J25 -> 0 | J73: ='SA1'!K25 -> 0 | K73: ='SA1'!L25 -> 0
A74: Electricity/other energy (in excess of 50 kwh per indigent household per month) | C74: ='SA1'!C13 -> 0 | D74: ='SA1'!D13 -> 0 | E74: ='SA1'!E13 -> 0 | F74: ='SA1'!F13 -> 0 | G74: ='SA1'!G13 -> 0 | H74: ='SA1'!H13 -> 0 | I74: ='SA1'!J13 -> 0 | J74: ='SA1'!K13 -> 0 | K74: ='SA1'!L13 -> 0
A75: Refuse (in excess of one removal a week for indigent households) | C75: ='SA1'!C32 -> 0 | D75: ='SA1'!D32 -> 0 | E75: ='SA1'!E32 -> 0 | F75: ='SA1'!F32 -> 0 | G75: ='SA1'!G32 -> 0 | H75: ='SA1'!H32 -> 0 | I75: ='SA1'!J32 -> 0 | J75: ='SA1'!K32 -> 0 | K75: ='SA1'!L32 -> 0
A76: Municipal Housing - rental rebates
A77: Housing - top structure subsidies | B77: 6
A78: Other
A79: Total revenue cost of subsidised services provided | C79: =SUM(C70:C78) -> 1452148 | D79: =SUM(D70:D78) -> 1881561 | E79: 22358745.94 | F79: 23435024.16 | G79: 23899892.86 | H79: 23899892.86 | I79: 25559078.55 | J79: =SUM(J70:J78) -> 27092623.26 | K79: =SUM(K70:K78) -> 28718180.66
A80: =head27a -> References
A81: 1. Include services provided by another entity; e.g. Eskom
A82: 2. Stand distance <= 200m from dwelling
A83: 3. Stand distance > 200m from dwelling
A84: 4. Borehole, spring, rain-water tank etc.
A85: 5. Must agree to total number of households in municipal area (informal settlements receiving services must be included)
A86: 6. Include value of subsidy provided by municipality above provincial subsidy level
A87: 7. Show number of households receiving at least these levels of services completely free (informal settlements must be included)
A88: 8. Must reflect the cost to the municipality of providing the Free Basic Service
A89: 9. Reflect the cost to the municipality in terms of 'revenue foregone' of providing free services (note this will not equal 'Revenue Foregone' on SA1)

Sheet SA1
A1: =muni&" - "&TableA1 -> FS193 Nketoana - Supporting Table SA1 Supportinging detail to 'Budgeted Financial Performance'
A2: =desc -> Description | B2: =head27 -> Ref | C2: =head1b -> 2014/15 | D2: =head1A -> 2015/16 | E2: =Head1 -> 2016/17 | F2: =Head2 -> Current Year 2017/18 | J2: =Head3 -> 2018/19 Medium Term Revenue & Expenditure Framework
C3: =Head5 -> Audited Outcome | D3: =Head5 -> Audited Outcome | E3: =Head5 -> Audited Outcome | F3: =Head6 -> Original Budget | G3: =Head7 -> Adjusted Budget | H3: =Head8 -> Full Year Forecast | I3: =Head5b -> Pre-audit outcome | J3: =Head9 -> Budget Year 2018/19 | K3: =Head10 -> Budget Year +1 2019/20 | L3: =Head11 -> Budget Year +2 2020/21
A4: R thousand
A5: REVENUE ITEMS:
A6: ='A4-FinPerf RE'!A5 -> Property rates | B6: 6
A7: Total Property Rates | C7: 16612976 | D7: 17779852 | E7: 41116491.85 | F7: 42948902.25 | G7: 42948902.25 | H7: 42948902.25 | I7: 42948902.25 | J7: 45955325.41 | K7: =J7*1.06 -> 48712644.93 | L7: 51635403.63
A8: less Revenue Foregone (exemptions, reductions and rebates and impermissable values in excess of section 17 of MPRA) | C8: 777917 | D8: 1166876 | E8: 21578745.94 | F8: 22608224.16 | G8: 23073092.86 | H8: 23073092.86 | I8: 23073092.86 | J8: 24682670.55 | K8: 26163630.78 | L8: 27733448.63
A9: Net Property Rates | C9: =C7-C8 -> 15835059 | D9: =D7-D8 -> 16612976 | E9: 19537745.91 | F9: 20340678.09 | G9: 19875809.39 | H9: 19875809.39 | I9: 19875809.39 | J9: 21272654.85 | K9: 22549014.15 | L9: 23901954.99
A11: ='A4-FinPerf RE'!A6 -> Service charges - electricity revenue | B11: 6
A12: ="Total "&A11 -> Total Service charges - electricity revenue | C12: 44725453.46 | D12: 48452662.55 | E12: 51557661.8 | F12: 52269316.79 | G12: 52891931.74 | H12: 52891931.74 | I12: 52891931.74 | J12: 56594366.96 | K12: =J12*1.06 -> 59990028.98 | L12: 63589430.72
A13: less Revenue Foregone (in excess of 50 kwh per indigent household per month)
A14: less Cost of Free Basis Services (50 kwh per indigent household per month) | C14: ='SA9'!E250 -> 2944888.46 | D14: ='SA9'!F250 -> 2368567.55 | E14: ='SA9'!G250 -> 2034013.26 | F14: 2329143.422 | G14: ='SA9'!I250 -> 2329143.422 | H14: ='SA9'!J250 -> 2329143.422 | I14: 2329143.422 | J14: ='SA9'!K250 -> 2866961.178 | K14: ='SA9'!L250 -> 3038978.849 | L14: ='SA9'!M250 -> 3221317.58
A15: ="Net "& A11 -> Net Service charges - electricity revenue | C15: =C12-C13-C14 -> 41780565 | D15: =D12-D13-D14 -> 46084095 | E15: 49523648.54 | F15: 49940173.37 | G15: 50562788.32 | H15: 50562788.32 | I15: 50562788.32 | J15: 53727405.79 | K15: 56951050.13 | L15: 60368113.14
A17: ='A4-FinPerf RE'!A7 -> Service charges - water revenue | B17: 6
A18: ="Total "&A17 -> Total Service charges - water revenue | C18: 47965989.36 | D18: 51155347.95 | E18: 75706166.42 | F18: 82468117.67 | G18: 85402620.94 | H18: 85402620.94 | I18: 85402620.94 | J18: 91380804.41 | K18: =J18*1.06 -> 96863652.67 | L18: 102675471.8
A19: less Revenue Foregone (in excess of 6 kilolitres per indigent household per month)
A20: less Cost of Free Basis Services (6 kilolitres per indigent household per month) | C20: ='SA9'!E262 -> 9229924.36 | D20: ='SA9'!F262 -> 6894786.95 | E20: ='SA9'!G262 -> 28174505.76 | F20: 31143728.61 | G20: ='SA9'!I262 -> 33338437.27 | H20: ='SA9'!J262 -> 33338437.27 | I20: 33338437.27 | J20: ='SA9'!K262 -> 35005359.13 | K20: ='SA9'!L262 -> 37105680.68 | L20: ='SA9'!M262 -> 39332021.52
A21: ="Net "& A17 -> Net Service charges - water revenue | C21: =C18-C19-C20 -> 38736065 | D21: =D18-D19-D20 -> 44260561 | E21: 47531660.66 | F21: 51324389.06 | G21: 52064183.67 | H21: 52064183.67 | I21: 52064183.67 | J21: 56375445.28 | K21: 59757971.99 | L21: 63343450.31
A23: ='A4-FinPerf RE'!A8 -> Service charges - sanitation revenue
A24: ="Total "&A23 -> Total Service charges - sanitation revenue | C24: 22550572.68 | D24: 24522356.76 | E24: 26354349.78 | F24: 27950402.21 | G24: 28567518 | H24: 28567518 | I24: 28567518 | J24: 30567244.26 | K24: =J24*1.06 -> 32401278.92 | L24: 34345355.65
A25: less Revenue Foregone (in excess of free sanitation service to indigent households) | K25: 0 | L25: 0
A26: less Cost of Free Basis Services (free sanitation service to indigent households) | C26: ='SA9'!E274 -> 6648454.68 | D26: ='SA9'!F274 -> 5021895.76 | E26: ='SA9'!G274 -> 6041176.7 | F26: 6815403.901 | G26: ='SA9'!I274 -> 7387838.537 | H26: ='SA9'!J274 -> 7387838.537 | I26: 7387838.537 | J26: ='SA9'!K274 -> 7757230.464 | K26: ='SA9'!L274 -> 8222664.292 | L26: ='SA9'!M274 -> 8716024.149
A27: ="Net "& A23 -> Net Service charges - sanitation revenue | C27: =C24-C25-C26 -> 15902118 | D27: =D24-D25-D26 -> 19500461 | E27: 20313173.08 | F27: 21134998.3 | G27: 21179679.46 | H27: 21179679.46 | I27: 21179679.46 | J27: 22810013.8 | K27: 24178614.62 | L27: 25629331.5
A29: ='A4-FinPerf RE'!A9 -> Service charges - refuse revenue | B29: 6
A30: Total refuse removal revenue | C30: 22543109.18 | D30: 24323389.84 | E30: 26432244.66 | F30: 28100891.73 | G30: 29275844.01 | H30: 29275844.01 | I30: 29275844.01 | J30: 31325153.09 | K30: =J30*1.06 -> 33204662.27 | L30: 35196942.01
A31: Total landfill revenue | G31: 0 | H31: 0 | I31: 0
A32: less Revenue Foregone (in excess of one removal a week to indigent households) | K32: =J32*1.06 -> 0 | L32: 0
A33: less Cost of Free Basis Services (removed once a week to indigent households) | C33: ='SA9'!E286 -> 7706172.18 | D33: ='SA9'!F286 -> 5817667.84 | E33: ='SA9'!G286 -> 7030439.64 | F33: 7931405.765 | G33: ='SA9'!I286 -> 8617022.537 | H33: ='SA9'!J286 -> 8617022.537 | I33: 8617022.537 | J33: ='SA9'!K286 -> 9134043.889 | K33: ='SA9'!L286 -> 9682086.523 | L33: ='SA9'!M286 -> 10263011.71
A34: ="Net "& A29 -> Net Service charges - refuse revenue | C34: =SUM(C30:C31)-C32-C33 -> 14836937 | D34: =SUM(D30:D31)-D32-D33 -> 18505722 | E34: 19401805.02 | F34: 20169485.96 | G34: 20658821.47 | H34: 20658821.47 | I34: 20658821.47 | J34: 22191109.2 | K34: 23522575.75 | L34: 24933930.29
A36: Other Revenue by source
A37: Fuel Levy
A38: Other Revenue | C38: 951709 | D38: 764114 | E38: 475520.9471 | F38: 945227.49 | G38: 4042610.272 | H38: 4042610.272 | I38: 4042610.272 | J38: 4325018.521 | K38: =J38*1.06 -> 4584519.632 | L38: 4859590.81
A39: Public donation | G39: 0 | H39: 0 | I39: 0 | K39: 0 | L39: 0
A40: Income From Old Debt (5% of R325 Mil) | E40: 14498201.08 | F40: 14500000 | G40: 14500000 | H40: 14500000 | I40: 14500000 | J40: 14500000 | K40: 15370000 | L40: 16292200
A41: Buildng Plans Applications | C41: 3000000 | D41: 5000000 | E41: 30000 | F41: 15000 | G41: 15000 | H41: 15000 | I41: 15000 | J41: 15000 | K41: 15900 | L41: 16854
A42: Discount received | C42: 41738 | D42: 30000 | G42: 0 | H42: 0 | I42: 0 | K42: 0 | L42: 0
A43: Zoning Certificates | D43: 0 | E43: 1000 | F43: 1000 | G43: 1000 | H43: 1000 | I43: 1000 | J43: 1000 | K43: 1060 | L43: 1123.6
A44: Cementy Payments | C44: 1000 | D44: 5000 | E44: 576957.3 | F44: 547866.6679 | G44: 655193.8457 | H44: 655193.8457 | I44: 655193.8457 | J44: 701057.4149 | K44: 743120.8598 | L44: 787708.1114
A45: Entrance Fees | C45: 1047959 | D45: 4047959 | E45: 16172.98 | F45: 20080.96249 | G45: 24418.49143 | H45: 24418.49143 | I45: 24418.49143 | J45: 26127.78583 | K45: 27695.45298 | L45: 29357.18016
A46: Sundries | C46: 40000 | D46: 50000 | E46: 295540.1435 | F46: 393647.8945 | G46: 383497.0905 | H46: 383497.0905 | I46: 383497.0905 | J46: 405441.8869 | K46: 429768.4001 | L46: 455554.5041
A47: Clearance Certificate | C47: 281400 | D47: 481400 | E47: 11597.16 | F47: 12961.74069 | G47: 21748.06286 | H47: 21748.06286 | I47: 21748.06286 | J47: 23270.42726 | K47: 24666.65289 | L47: 26146.65207
A48: Connection of service | B48: 3 | C48: 10000 | D48: 40000 | E48: 643606.9129 | F48: 337794.5858 | G48: 458816.64 | H48: 458816.64 | I48: 458816.64 | J48: 490933.8048 | K48: 520389.8331 | L48: 551613.2231
A49: Total 'Other' Revenue | B49: 1 | C49: =SUM(C37:C48) -> 5373806 | D49: =SUM(D37:D48) -> 10418473 | E49: 16548596.52 | F49: 16773579.34 | G49: 20102284.4 | H49: 20102284.4 | I49: 20102284.4 | J49: 20487849.84 | K49: 21717120.83 | L49: 23020148.08
A51: EXPENDITURE ITEMS:
A52: ='A4-FinPerf RE'!A24 -> Employee related costs
A53: Basic Salaries and Wages | B53: 2 | C53: 48212499 | D53: 40804500 | E53: 56068085.7 | F53: 60297518.37 | G53: 65513397.63 | H53: 65513397.63 | I53: 65513397.63 | J53: 69914656.86 | K53: =J53*1.05 -> 73410389.71 | L53: =K53*1.04 -> 76346805.3
A54: Pension and UIF Contributions | C54: 8966153 | D54: 9682000 | E54: 8459322.42 | F54: 9076000.005 | G54: 9226381.367 | H54: 9226381.367 | I54: 9226381.367 | J54: 11048547.21 | K54: =J54*1.05 -> 11600974.57 | L54: =K54*1.04 -> 12065013.55
A55: Medical Aid Contributions | C55: 2097075 | D55: 2304700 | E55: 2583355.4 | F55: 2785334.037 | G55: 2854983.879 | H55: 2854983.879 | I55: 2854983.879 | J55: 2943875.959 | K55: =J55*1.05 -> 3091069.757 | L55: 3214712.547
A56: Overtime | C56: 4476539 | D56: 10569000 | E56: 6960218.38 | F56: 7444570.15 | G56: 5047536.519 | H56: 5047536.519 | I56: 5047536.519 | J56: 5621400.365 | K56: =J56*1.05 -> 5902470.383 | L56: 6138569.198
A57: Performance Bonus | C57: 3694122 | D57: 4169000 | E57: 3230486 | F57: 3510208.389 | G57: 2776006.224 | H57: 2776006.224 | I57: 2776006.224 | J57: 4504128.119 | K57: =J57*1.05 -> 4729334.525 | L57: 4918507.906
A58: Motor Vehicle Allowance | C58: 2422581 | D58: 4154000 | E58: 3001122.02 | F58: 3107397.712 | G58: 3475300.521 | H58: 3475300.521 | I58: 3475300.521 | J58: 2966711.52 | K58: =J58*1.05 -> 3115047.096 | L58: 3239648.98
A59: Cellphone Allowance | C59: 732442 | D59: 1241000 | E59: 407020.8 | F59: 394109.9528 | G59: 980415.3132 | H59: 980415.3132 | I59: 980415.3132 | J59: 409078.548 | K59: =J59*1.05 -> 429532.4754 | L59: 446713.7744
A60: Housing Allowances | C60: 406791 | D60: 1290000 | E60: 878999.96 | F60: 1010226.889 | G60: 1255700.126 | H60: 1255700.126 | I60: 1255700.126 | J60: 1450380.5 | K60: =J60*1.05 -> 1522899.525 | L60: 1583815.506
A61: Other benefits and allowances | C61: 3114413 | D61: 3319000 | E61: 4567628.28 | F61: 5965180.28 | G61: 6832886.964 | H61: 6832886.964 | I61: 6832886.964 | J61: 6161062.323 | K61: =J61*1.05 -> 6469115.44 | L61: 6727880.057
A62: Payments in lieu of leave | C62: 676094 | D62: 2120000
A63: Long service awards | D63: 1157190
A64: Post-retirement benefit obligations | B64: 4
A65: sub-total | B65: 5 | C65: =SUM(C53:C64) -> 74798709 | D65: =SUM(D53:D64) -> 80810390 | E65: 86156238.96 | F65: 93590545.79 | G65: 97962608.54 | H65: 97962608.54 | I65: 97962608.54 | J65: 105019841.4 | K65: 110270833.5 | L65: 114681666.8
A66: Less: Employees costs capitalised to PPE
A67: ="Total "&A52 -> Total Employee related costs | B67: 1 | C67: =C65-C66 -> 74798709 | D67: =D65-D66 -> 80810390 | E67: 86156238.96 | F67: 93590545.79 | G67: 97962608.54 | H67: 97962608.54 | I67: 97962608.54 | J67: 105019841.4 | K67: 110270833.5 | L67: 114681666.8
A69: Contributions recognised - capital
A70: List contributions by contract
A76: ="Total "&A69 -> Total Contributions recognised - capital | C76: =SUM(C70:C75) -> 0 | D76: 0 | E76: 0 | F76: 0 | G76: 0 | H76: 0 | I76: 0 | J76: 0 | K76: 0 | L76: 0
A78: ='A4-FinPerf RE'!A27 -> Depreciation & asset impairment
A79: Depreciation of Property, Plant & Equipment | C79: 57015081 | D79: 58502541 | E79: 58502541 | F79: 59672591.82 | G79: 58872591.82 | H79: 58872591.82 | I79: 58872591.82 | J79: 58872591.82 | K79: =J79*1.05 -> 61816221.41 | L79: =K79*1.04 -> 64288870.27
A80: Lease amortisation
A81: Capital asset impairment
A82: Depreciation resulting from revaluation of PPE | B82: 10
A83: ="Total "&LEFT(A78,35) -> Total Depreciation & asset impairment | B83: 1 | C83: =SUM(C79:C81)-C82 -> 57015081 | D83: =SUM(D79:D81)-D82 -> 58502541 | E83: 58502541 | F83: 59672591.82 | G83: 58872591.82 | H83: 58872591.82 | I83: 58872591.82 | J83: =SUM(J79:J81)-J82 -> 58872591.82 | K83: 61816221.41 | L83: 64288870.27
A85: ='A4-FinPerf RE'!A29 -> Bulk purchases
A86: Electricity Bulk Purchases | C86: 38183983 | D86: 43532721 | E86: 54682957.86 | F86: 49710997.47 | G86: 49710997.47 | H86: 49710997.47 | I86: 49710997.47 | J86: 53091421.33 | K86: =J86*1.05 -> 55745992.4 | L86: =K86*1.04 -> 57975832.1
A87: Water Bulk Purchases | C87: 750765 | D87: 285189 | E87: 700000 | F87: 744520 | G87: 744520 | H87: 744520 | I87: 744520 | J87: 770000 | K87: =J87*1.05 -> 808500 | L87: =K87*1.04 -> 840840
A88: Total bulk purchases | B88: 1 | C88: =SUM(C86:C87) -> 38934748 | D88: =SUM(D86:D87) -> 43817910 | E88: 55382957.86 | F88: 50455517.47 | G88: 50455517.47 | H88: 50455517.47 | I88: 50455517.47 | J88: 53861421.33 | K88: 56554492.4 | L88: 58816672.1
A90: Transfers and grants
A91: Cash transfers and grants | C91: ='SA21'!C32 -> 0 | D91: ='SA21'!D32 -> 0 | E91: ='SA21'!E32 -> 0 | F91: ='SA21'!F32 -> 0 | G91: ='SA21'!G32 -> 0 | H91: ='SA21'!H32 -> 0 | I91: ='SA21'!I32 -> 0 | J91: ='SA21'!J32 -> 0 | K91: ='SA21'!K32 -> 0 | L91: ='SA21'!L32 -> 0
